Workbook

Sheet Титул
A1: ФЕДЕРАЛЬНАЯ СЛУЖБА ГОСУДАРСТВЕННОЙ СТАТИСТИКИ
B10: ЧИСЛЕННОСТЬ НАСЕЛЕНИЯ РОССИЙСКОЙ ФЕДЕРАЦИИ
B12: ПО МУНИЦИПАЛЬНЫМ ОБРАЗОВАНИЯМ
B14: НА 1 ЯНВАРЯ 2024 года
B18: (Статистический бюллетень)
B25: МОСКВА 2024 г.

Sheet Предисловие
A1: Содержание
A2: Предисловие
A4: В бюллетене приведены данные оценки численности постоянного населения на 1 января 2024 года (без учета статистической информации по Донецкой Народной Республике (ДНР), Луганской Народной Республике (ЛНР), Запорожской и Херсонской областям).
A5: Оценка численности населения - примерное определение числа жителей территории в период между переписями населения.
A6: В соответствии с действующей методологией (утверждена приказом Росстата от 03.06.2010 г. № 209) оценки численности населения на начало очередного года рассчитываются на основании итогов последней переписи населения, к которым ежегодно прибавляются числа родившихся и прибывших на данную территорию и вычитаются числа умерших и выбывших с данной территории.
A7: Расчеты численности населения приводятся по постоянному населению в целом по России, федеральным округам, субъектам Российской Федерации,
A8: муниципальным образованиям всех уровней, включая городские округа, муниципальные округа и районы, городские и сельские поселения и межселенные территории.
A9: В расчетах учитываются изменения численности населения территорий в результате изменения границ, а также изменения городского и сельского населения в результате преобразований
A10: городских населенных пунктов в сельские и сельских населенных пунктов в городские.
A11: К постоянному населению относятся лица, постоянно проживающие на данной территории, включая временно отсутствующих на указанную дату.
A12: К городскому населению относится население, проживающее в городских населенных пунктах. Городскими населенными пунктами считаются населенные пункты, утвержденные законодательными актами в качестве городов и поселков городского типа (рабочих, курортных, дачных поселков и поселков закрытых административно-территориальных образований). Все остальные населенные пункты считаются сельскими. Население, проживающее в них относится к сельскому.
A13: Сведения о муниципально-территориальном делении основаны на официальных документах, поступивших от органов власти субъектов Российской Федерации.
A14: В бюллетене впервые публикуются сведения об оценке численности населения:
A15: - районов Крайнего Севера и местностей, приравненных к ним, по городским округам и муниципальным районам;
A16: - сухопутных территорий Арктической зоны Российской Федерации по городским округам и муниципальным районам;
A17: - монопрофильных муниципальных образований (моногородов) Российской Федерации;
A18: - в местах традиционного проживания коренных малочисленных народов Российской Федерации по муниципальным образованиям. Приведена численность всего населения вне зависимости от его национального состава.
A19: Ранее публикуемые таблицы с различными относительными показателями по субъектам Российской Федерации приводятся в статистическом бюллетене "Численность и миграция населения Российской Федерации".
A20: Группировка городов и поселков городского типа произведена по численности городских населенных пунктов без населенных пунктов, подчиненных администрации соответствующего муниципального образования, по данным на 1 января 2024 года. Исключение составляют:
A21: - г. Москва, в границы которой с 1 июля 2012 года включены в качестве муниципальных поселений города Московский, Щербинка и Троицк, поселки городского типа Киевский и Кокошкино и 16 поселений с сельским населением (постановление Совета Федерации Федеральн
A22: - г. Севастополь, в границы которого включены г. Инкерман, населенный пункт с городским населением Балаклава, поселок Кача и 39 населенных пунктов с сельским населением.
A23: В группировках по числу и численности населения, проживающего в городских округах приведены также группировки по муниципальным округам.
A24: В сборнике используются условные обозначения:
A25: МТП - муниципально-территориальные преобразования;
A26: г - город;
A27: пгт - поселок городского типа;
A28: п - поселок;
A29: рп - рабочий поселок;
A30: гп - городской поселок;
A31: дп - дачный поселок;
A32: кп - курортный поселок;
A33: - - явление отсутствует;
A34: … - данных не имеется.
A36: Ответственный исполнитель | B36: Телефон
A37: Алексеева Виктория Сергеевна | B37: (495) 568-00-42, доб. 99854
A38: Гильманов Руслан Ирикович | B38: (495) 568-00-42, доб. 99629

Sheet Содержание
B2: № табл. | C2: СОДЕРЖАНИЕ
C3: Предисловие
B5: 1 | C5: Оценка численности постоянного населения по субъектам Российской Федерации
B6: 2 | C6: Изменения в муниципально-территориальном устройстве субъекта Российской Федерации в 2023 году
B7: 3 | C7: Оценка численности постоянного населения районов Крайнего Севера и приравненных к ним местностей по городским, муниципальным округам и муниципальным районам
B8: 4 | C8: Оценка численности постоянного населения сухопутных территорий Арктической Зоны Российской Федерации на 1 января 2024 и в среднем за 2023 год
B9: 5 | C9: Оценка численности постоянного населения монопрофильных муниципальных образований Российской Федерации
B10: 5.1. | C10: Муниципальные образования моногорода с наиболее сложным социально-экономическим положением
B11: 5.2. | C11: Муниципальные образования, в которых имеются риски ухудшения социально-экономического положения
B12: 5.3. | C12: Муниципальные образования со стабильной социально-экономической ситуацией
B13: 6 | C13: Оценка численности населения в местах традиционного проживания коренных малочисленных народов Российской Федерации; (человек)
B14: 7 | C14: Группировка числа городских округов по численности населения, проживающего в них, на 1 января 2024 года
B15: 8 | C15: Группировка численности населения, проживающего в городских округах, на 1 января 2024 года
B16: 9 | C16: Группировка числа муниципальных округов по численности населения, проживающего в них, на 1 января 2024 года
B17: 10 | C17: Группировка численности населения, проживающего в муниципальных округах, на 1 января 2024 года
B18: 11 | C18: Группировка числа муниципальных районов по численности населения, проживающего в них, на 1 января 2024 года
B19: 12 | C19: Группировка численности населения, проживающего в муниципальных районах, на 1 января 2024 года
B20: 13 | C20: Группировка числа городских поселений по численности населения, проживающего в них, на 1 января 2024 года
B21: 14 | C21: Группировка численности населения, проживающего в городских поселениях, на 1 января 2024 года
B22: 15 | C22: Группировка числа сельских поселений по численности населения, проживающего в них, на 1 января 2024 года
B23: 16 | C23: Группировка численности населения, проживающего в сельских поселениях, на 1 января 2024 года
B24: 17 | C24: Группировка числа городов по численности населения, проживающего в них, на 1 января 2024 года
B25: 18 | C25: Группировка численности населения, проживающего в городах, на 1 января 2024 года
B26: 19 | C26: Группировка числа поселков городского типа по численности населения, проживающего в них, на 1 января 2024 года
B27: 20 | C27: Группировка численности населения, проживающего в поселках городского типа, на 1 января 2024 года
B28: 21 | C28: Группировка внутригородских образований городов федерального значения Москвы, Санкт-Петербурга и Севастополя на 1 января 2024 года
B29: 22 | C29: Численность населения городов и поселков городского типа по федеральным округам и субъектам Российской Федерации на 1 января 2024 года
B30: 23 | C30: Города с численностью постоянного населения 1 млн. человек и более
B31: 24 | C31: Города с численностью постоянного населения от 500 тыс. до 1 млн. человек
B32: 25 | C32: Города с численностью постоянного населения от 250 тыс. до 500 тыс. человек
B33: 26 | C33: Города с численностью постоянного населения от 100 тыс. до 250 тыс. человек
B34: 27 | C34: Численность постоянного населения Российской Федерации по муниципальным образованиям на 1 января 2024 года

Sheet Таб_1
A1: Содержание
A2: 1. Оценка численности постоянного населения по субъектам Российской Федерации
A3: (человек)
B4: На 1 января 2024 года | E4: В среднем за 2023 год
B5: Все население | C5: Городское население | D5: Сельское население | E5: Все население | F5: Городское население | G5: Сельское население
A6: Российская Федеpация* | B6: 146150789 | C6: 109526940 | D6: 36623849 | E6: 146299107 | F6: 109591252 | G6: 36707855
A7: Центральный федеральный округ | B7: 40198659 | C7: 33031478 | D7: 7167181 | E7: 40219457 | F7: 33051552 | G7: 7167905
A8: Белгородская область | B8: 1500659 | C8: 980243 | D8: 520416 | E8: 1507593 | F8: 985030 | G8: 522563
A9: Брянская область | B9: 1142404 | C9: 796237 | D9: 346167 | E9: 1147454 | F9: 799306 | G9: 348148
A10: Владимирская область | B10: 1309942 | C10: 1016415 | D10: 293527 | E10: 1317726 | F10: 1022798 | G10: 294928
A11: Воронежская область | B11: 2273417 | C11: 1556609 | D11: 716808 | E11: 2279349 | F11: 1561181 | G11: 718168
A12: Ивановская область | B12: 905900 | C12: 743923 | D12: 161977 | E12: 910313 | F12: 747324 | G12: 162989
A13: Калужская область | B13: 1068410 | C13: 799470 | D13: 268940 | E13: 1069632 | F13: 800524 | G13: 269108
A14: Костромская область | B14: 566266 | C14: 421858 | D14: 144408 | E14: 569083 | F14: 422802 | G14: 146281
A15: Курская область | B15: 1060892 | C15: 729497 | D15: 331395 | E15: 1063963 | F15: 730133 | G15: 333830
A16: Липецкая область | B16: 1116265 | C16: 701658 | D16: 414607 | E16: 1121264 | F16: 705511 | G16: 415753
A17: Московская область | B17: 8651260 | C17: 6746477 | D17: 1904783 | E17: 8621498 | F17: 6736631 | G17: 1884867
A18: Орловская область | B18: 692486 | C18: 460807 | D18: 231679 | E18: 696381 | F18: 463636 | G18: 232745
A19: Рязанская область | B19: 1082231 | C19: 772290 | D19: 309941 | E19: 1085575 | F19: 774763 | G19: 310812
A20: Смоленская область | B20: 863987 | C20: 627931 | D20: 236056 | E20: 868514 | F20: 631148 | G20: 237366
A21: Тамбовская область | B21: 956292 | C21: 578544 | D21: 377748 | E21: 961271 | F21: 580902 | G21: 380369
A22: Тверская область | B22: 1199747 | C22: 915193 | D22: 284554 | E22: 1205465 | F22: 919910 | G22: 285555
A23: Тульская область | B23: 1471140 | C23: 1074386 | D23: 396754 | E23: 1476305 | F23: 1079132 | G23: 397173
A24: Ярославская область | B24: 1187558 | C24: 960137 | D24: 227421 | E24: 1191081 | F24: 963831 | G24: 227250
A25: г. Москва | B25: 13149803 | C25: 13149803 | D25: 0 | E25: 13126990 | F25: 13126990 | G25: 0
A26: Северо-Западный федеральный округ | B26: 13840352 | C26: 11775855 | D26: 2064497 | E26: 13853850 | F26: 11779990 | G26: 2073860
A27: Республика Карелия | B27: 523856 | C27: 418765 | D27: 105091 | E27: 525868 | F27: 419826 | G27: 106042
A28: Республика Коми | B28: 720610 | C28: 561102 | D28: 159508 | E28: 723522 | F28: 562731 | G28: 160791
A29: Архангельская область | B29: 998072 | C29: 778127 | D29: 219945 | E29: 1001880 | F29: 779786 | G29: 222094
A30: Ненецкий автономный округ | B30: 42224 | C30: 31582 | D30: 10642 | E30: 41804 | F30: 31207 | G30: 10597
A31: Архангельская область без Ненецкого автономного округа | B31: 955848 | C31: 746545 | D31: 209303 | E31: 960076 | F31: 748579 | G31: 211497
A32: Вологодская область | B32: 1121343 | C32: 814829 | D32: 306514 | E32: 1125062 | F32: 816732 | G32: 308330
A33: Калининградская область | B33: 1033914 | C33: 791229 | D33: 242685 | E33: 1033129 | F33: 791080 | G33: 242049
A34: Ленинградская область | B34: 2035762 | C34: 1373533 | D34: 662229 | E34: 2029764 | F34: 1365392 | G34: 664372
A35: Мурманская область | B35: 656438 | C35: 610635 | D35: 45803 | E35: 657568 | F35: 611746 | G35: 45822
A36: Новгородская область | B36: 571447 | C36: 418394 | D36: 153053 | E36: 573687 | F36: 419760 | G36: 153927
A37: Псковская область | B37: 581147 | C37: 411478 | D37: 169669 | E37: 584467 | F37: 414034 | G37: 170433
A38: г.Санкт-Петербург | B38: 5597763 | C38: 5597763 | D38: 0 | E38: 5598903 | F38: 5598903 | G38: 0
A39: Южный федеральный округ | B39: 16624081 | C39: 10515808 | D39: 6108273 | E39: 16633067 | F39: 10517590 | G39: 6115477
A40: Республика Адыгея | B40: 500591 | C40: 243610 | D40: 256981 | E40: 499288 | F40: 243777 | G40: 255511
A41: Республика Калмыкия | B41: 266770 | C41: 125275 | D41: 141495 | E41: 265627 | F41: 124773 | G41: 140854
A42: Республика Крым | B42: 1909499 | C42: 958534 | D42: 950965 | E42: 1913152 | F42: 961246 | G42: 951906
A43: Краснодарский край | B43: 5833002 | C43: 3341225 | D43: 2491777 | E43: 5826173 | F43: 3333022 | G43: 2493151
A44: Астраханская область | B44: 946429 | C44: 604707 | D44: 341722 | E44: 948493 | F44: 606830 | G44: 341663
A45: Волгоградская область | B45: 2453898 | C45: 1906201 | D45: 547697 | E45: 2461978 | F45: 1911251 | G45: 550727
A46: Ростовская область | B46: 4152518 | C46: 2816389 | D46: 1336129 | E46: 4158532 | F46: 2818562 | G46: 1339970
A47: г. Севастополь | B47: 561374 | C47: 519867 | D47: 41507 | E47: 559824 | F47: 518129 | G47: 41695
A48: Северо-Кавказский федеральный округ | B48: 10251083 | C48: 5219909 | D48: 5031174 | E48: 10228406 | F48: 5192600 | G48: 5035806
A49: Республика Дагестан | B49: 3232224 | C49: 1460173 | D49: 1772051 | E49: 3221002 | F49: 1455332 | G49: 1765670
A50: Республика Ингушетия | B50: 527220 | C50: 289978 | D50: 237242 | E50: 523149 | F50: 287315 | G50: 235834
A51: Кабардино-Балкарская Республика | B51: 905464 | C51: 468249 | D51: 437215 | E51: 904365 | F51: 467946 | G51: 436419
A52: Карачаево-Черкесская Республика | B52: 468322 | C52: 193948 | D52: 274374 | E52: 468383 | F52: 193875 | G52: 274508
A53: Республика Северная Осетия-Алания | B53: 678879 | C53: 429634 | D53: 249245 | E53: 679813 | F53: 429886 | G53: 249927
A54: Чеченская Республика | B54: 1552866 | C54: 622326 | D54: 930540 | E54: 1543038 | F54: 603533 | G54: 939505
A55: Ставропольский край | B55: 2886108 | C55: 1755601 | D55: 1130507 | E55: 2888656 | F55: 1754713 | G55: 1133943
A56: Приволжский федеральный округ | B56: 28540832 | C56: 20663709 | D56: 7877123 | E56: 28612039 | F56: 20701527 | G56: 7910512
A57: Республика Башкортостан | B57: 4064361 | C57: 2544428 | D57: 1519933 | E57: 4070980 | F57: 2543398 | G57: 1527582
A58: Республика Марий Эл | B58: 669854 | C58: 463042 | D58: 206812 | E58: 671088 | F58: 462851 | G58: 208237
A59: Республика Мордовия | B59: 765891 | C59: 488006 | D59: 277885 | E59: 768632 | F59: 489197 | G59: 279435
A60: Республика Татарстан | B60: 4003016 | C60: 3069163 | D60: 933853 | E60: 4002320 | F60: 3070259 | G60: 932061
A61: Удмуртская Республика | B61: 1434557 | C61: 943520 | D61: 491037 | E61: 1438404 | F61: 945983 | G61: 492421
A62: Чувашская Республика | B62: 1167061 | C62: 753236 | D62: 413825 | E62: 1170119 | F62: 753844 | G62: 416275
A63: Пермский край | B63: 2495266 | C63: 1891219 | D63: 604047 | E63: 2501809 | F63: 1894748 | G63: 607061
A64: Кировская область | B64: 1129935 | C64: 889197 | D64: 240738 | E64: 1134023 | F64: 890313 | G64: 243710
A65: Нижегородская область | B65: 3060335 | C65: 2449532 | D65: 610803 | E65: 3071076 | F65: 2457534 | G65: 613542
A66: Оренбургская область | B66: 1828656 | C66: 1096718 | D66: 731938 | E66: 1835017 | F66: 1099472 | G66: 735545
A67: Пензенская область | B67: 1236113 | C67: 851348 | D67: 384765 | E67: 1241361 | F67: 854453 | G67: 386908
A68: Самарская область | B68: 3127842 | C68: 2483394 | D68: 644448 | E68: 3135262 | F68: 2491026 | G68: 644236
A69: Саратовская область | B69: 2385163 | C69: 1836052 | D69: 549111 | E69: 2395054 | F69: 1841479 | G69: 553575
A70: Ульяновская область | B70: 1172782 | C70: 904854 | D70: 267928 | E70: 1176894 | F70: 906970 | G70: 269924
A71: Уральский федеральный округ | B71: 12262295 | C71: 10070981 | D71: 2191314 | E71: 12260711 | F71: 10065960 | G71: 2194751
A72: Курганская область | B72: 753002 | C72: 484819 | D72: 268183 | E72: 757294 | F72: 486915 | G72: 270379
A73: Свердловская область | B73: 4222695 | C73: 3626345 | D73: 596350 | E73: 4230928 | F73: 3632731 | G73: 598197
A74: Тюменская область | B74: 3890800 | C74: 3158201 | D74: 732599 | E74: 3871017 | F74: 3138432 | G74: 732585
A75: Ханты-Мансийский автономный округ-Югра | B75: 1759386 | C75: 1624576 | D75: 134810 | E75: 1744869 | F75: 1610171 | G75: 134698
A76: Ямало-Ненецкий автономный округ | B76: 515960 | C76: 439508 | D76: 76452 | E76: 514174 | F76: 436790 | G76: 77384
A77: Тюменская область без автономных округов | B77: 1615454 | C77: 1094117 | D77: 521337 | E77: 1611974 | F77: 1091471 | G77: 520503
A78: Челябинская область | B78: 3395798 | C78: 2801616 | D78: 594182 | E78: 3401472 | F78: 2807882 | G78: 593590
A79: Сибирский федеральный округ | B79: 16567143 | C79: 12442708 | D79: 4124435 | E79: 16606473 | F79: 12465990 | G79: 4140483
A80: Республика Алтай | B80: 210765 | C80: 64508 | D80: 146257 | E80: 210767 | F80: 64733 | G80: 146034
A81: Республика Тыва | B81: 337544 | C81: 188187 | D81: 149357 | E81: 337408 | F81: 187344 | G81: 150064
A82: Республика Хакасия | B82: 528175 | C82: 363873 | D82: 164302 | E82: 529204 | F82: 363959 | G82: 165245
A83: Алтайский край | B83: 2115308 | C83: 1237124 | D83: 878184 | E83: 2123129 | F83: 1239926 | G83: 883203
A84: Красноярский край | B84: 2846120 | C84: 2270252 | D84: 575868 | E84: 2845832 | F84: 2267480 | G84: 578352
A85: Иркутская область | B85: 2330537 | C85: 1804050 | D85: 526487 | E85: 2337448 | F85: 1810624 | G85: 526824
A86: Кемеровская область | B86: 2547684 | C86: 2204971 | D86: 342713 | E86: 2557961 | F86: 2213582 | G86: 344379
A87: Новосибирская область | B87: 2789532 | C87: 2225442 | D87: 564090 | E87: 2791899 | F87: 2226610 | G87: 565289
A88: Омская область | B88: 1818093 | C88: 1341849 | D88: 476244 | E88: 1825079 | F88: 1345506 | G88: 479573
A89: Томская область | B89: 1043385 | C89: 742452 | D89: 300933 | E89: 1047746 | F89: 746226 | G89: 301520
A90: Дальневосточный федеральный округ | B90: 7866344 | C90: 5806492 | D90: 2059852 | E90: 7885104 | F90: 5816043 | G90: 2069061
A91: Республика Бурятия | B91: 971922 | C91: 574492 | D91: 397430 | E91: 973275 | F91: 575253 | G91: 398022
A92: Республика Саха (Якутия) | B92: 1001664 | C92: 677004 | D92: 324660 | E92: 999614 | F92: 673642 | G92: 325972
A93: Забайкальский край | B93: 984395 | C93: 687127 | D93: 297268 | E93: 988412 | F93: 688544 | G93: 299868
A94: Камчатский край | B94: 288947 | C94: 225925 | D94: 63022 | E94: 288839 | F94: 225516 | G94: 63323
A95: Приморский край | B95: 1806393 | C95: 1416615 | D95: 389778 | E95: 1813234 | F95: 1421993 | G95: 391241
A96: Хабаровский край | B96: 1278132 | C96: 1067332 | D96: 210800 | E96: 1281111 | F96: 1069759 | G96: 211352
A97: Амурская область | B97: 750083 | C97: 513956 | D97: 236127 | E97: 753140 | F97: 515504 | G97: 237636
A98: Магаданская область | B98: 133387 | C98: 128678 | D98: 4709 | E98: 133851 | F98: 129146 | G98: 4705
A99: Сахалинская область | B99: 457590 | C99: 378750 | D99: 78840 | E99: 459063 | F99: 379642 | G99: 79421
A100: Еврейская автономная область | B100: 145802 | C100: 103295 | D100: 42507 | E100: 146630 | F100: 103861 | G100: 42769
A101: Чукотский автономный округ | B101: 48029 | C101: 33318 | D101: 14711 | E101: 47935 | F101: 33183 | G101: 14752
A103: *Без учета статистической информации по Донецкой Народной Республике (ДНР), Луганской Народной Республике (ЛНР), Запорожской и Херсонской областям.

Sheet Таб_2
A1: Содержание
A2: 2. Изменения в муниципально-территориальном устройстве
A3: субъектов Российской Федерации в 2023 году
A5: Преобразование муниципальных образований субъектов Российской Федерации: образование, упразднение, преобразование, переименование, изменение состава и границ муниципальных районов, городских округов, городских и сельских поселений, межселенных территорий и населенных пунктов | B5: Объемы МТП (человек)
B7: население
B8: городское | C8: сельское
A9: Российская Федерация | B9: 38873 | C9: -38873
A10: Центральный федеральный округ | B10: =B15+B23+B33 -> -8928 | C10: 8928
A11: Белгородская область | B11: 0 | C11: 0
A12: Изменений нет | B12: 0 | C12: 0
A13: Брянская область | B13: 0 | C13: 0
A14: Изменений нет | B14: 0 | C14: 0
A15: Владимирская область | B15: -453 | C15: 453
A16: 1. В городском поселении п.Доброград Ковровского муниципального района изменен статус городского населения на сельское. | B16: -453 | C16: 453
A17: 2. Объединены сельские поселения Березниковское и Асерховское Собинского муниципального района в сельское поселение Асерховское. Упразднено Березниковское сельское поселение. | B17: 0 | C17: 0
A18: Воронежская область | B18: 0 | C18: 0
A19: Изменений нет | B19: 0 | C19: 0
A20: Ивановская область | B20: 0 | C20: 0
A21: Изменений нет | B21: 0 | C21: 0
A22: Калужская область | B22: -43 | C22: 43
A23: Преобразован пгт Городок сельского поселения Село Истье Жуковского муниципального района в сельский населенный пункт поселок Городок | B23: -43 | C23: 43
A24: Костромская область | B24: 0 | C24: 0
A25: 1. Преобразован городской округ город Мантурово Костромской области в Мантуровский муниципальный округ Костромской области. Населенные пункты городского округа город Мантурово переданы в состав Мантуровского муниципального округа Костромской области. | B25: 0 | C25: 0
A26: 2. Преобразован Островский муниципальный район Костромской области в Островский муниципальный округ Костромской области. Населенные пункты Островского муниципального района переданы в состав Островского муниципального округа Костромской области. Упразднены сельские поселения Островского муниципального района: Адищевское, Клеванцовское, Островское и Островское (центральное). | B26: 0 | C26: 0
A27: 3. Преобразован Павинский муниципальный район Костромской области в Павинский муниципальный округ Костромской области. Населенные пункты Павинского муниципального района переданы в состав Павинского муниципального округа Костромской области. Упразднены сельские поселения Павинского муниципального района: Леденгское, Павинское и Петропавловское. | B27: 0 | C27: 0
A28: 4. Преобразован Солигаличский муниципальный район Костромской области в Солигаличский муниципальный округ Костромской области. Населенные пункты Солигаличского муниципального района переданы в состав Солигаличского муниципального округа Костромской области. Упразднены: городское поселение город Солигалич и сельские поселения Солигаличского муниципального района: Бурдуковское, Корцовское, Лосевское, Первомайское и Солигаличское. | B28: 0 | C28: 0
A29: Курская область | B29: 0 | C29: 0
A30: Изменений нет | B30: 0 | C30: 0
A31: Липецкая область | B31: 0 | C31: 0
A32: Изменений нет | B32: 0 | C32: 0
A33: Московская область | B33: -8432 | C33: 8432
A34: 1. Преобразованы городской округ Павловский Посад и городской округ Электрогорск Московской области путем объединения во вновь образованное муниципальное образование со статусом городского округа - Павлово-Посадский городской округ. | B34: 0 | C34: 0
A35: 2. Изменена категория поселка городского типа - рабочего поселка Оболенск, административно подчиненного городу Серпухову Московской области, на сельский населенный пункт - поселок | B35: -4101 | C35: 4101
A36: 3. Изменена категория поселка городского типа - рабочего поселка Пролетарский, административно подчиненного городу Серпухову Московской области, на сельский населенный пункт - поселок | B36: -4331 | C36: 4331
A37: Орловская область | B37: 0 | C37: 0
A38: Изменений нет. | B38: 0 | C38: 0
A39: Рязанская область | B39: 0 | C39: 0
A40: 1. Преобразованы городской округ г Сасово и Сасовский муниципальный район в Сасовский муниципальный округ. Упразднены городской округ г. Сасово, Сасовский муниципальный район и входящие в его состав сельские поселения. | B40: 0 | C40: 0
A41: 2. Преобразован Путятинский муниципальный район в Путятинский муниципальный округ. Упразднен Путятинский муниципальный район и входящие в его состав сельские поселения. | B41: 0 | C41: 0
A42: 3. Преобразован Ряжский муниципальный район в Ряжский муниципальный округ. Упразднен Ряжский муниципальный райони входящие в его состав городские и сельские поселения. городские сельские поселения. | B42: 0 | C42: 0
A43: Смоленская область | B43: 0 | C43: 0
A44: Изменений нет. | B44: 0 | C44: 0
A45: Тамбовская область | B45: 0 | C45: 0
A46: 1. Преобразованы все муниципальные районы Тамбовской области в муниципальные округа: Бондарский; Гавриловский; Жердевский; Знаменский; Инжавинский; Кирсановский; Мичуринский; Мордовский; Моршанский; Мучкапский; Никифоровский; Первомайский; Петровский; Пичаевский; Рассказовский; Ржаксинский; Сампурский; Сосновский; Староюрьевский; Тамбовский; Токарёвский; Уваровский; Умётский. Упразднены все сельские поселения (228) | B46: 0 | C46: 0
A47: 2. Упразднены все муниципальные районы и входящие в их состав 13 городских поселений: Знаменский, Инжавинский, Мордовский, Новопокровский, Мучкапский, Дмитриевский, Первомайский, Ржаксинский, Сосновский, Новолядинский, Умётский поссоветы, Токарёвский поселковый округ и город Жердевка и 228 сельских поселений. | B47: 0 | C47: 0
A48: Тверская область | B48: 0 | C48: 0
A49: 1. Преобразован Калязинский муниципальный район в Калязинский муниципальный округ. Упразднены входящие в его состав городские и сельские поселения. | B49: 0 | C49: 0
A50: 2. Преобразован Фировский муниципальный район в Фировский муниципальный округ. Упразднены входящие в его состав городские и сельские поселения. | B50: 0 | C50: 0
A51: 3. Преобразован Торопецкий муниципальный район в Торопецкий муниципальный округ. Упразднены входящие в его состав городские и сельские поселения. | B51: 0 | C51: 0
A52: 4. Преобразован Бежецкий муниципальный район в Бежецкий муниципальный округ. Упразднены входящие в его состав городские и сельские поселения. | B52: 0 | C52: 0
A53: 5. Преобразован Конаковский муниципальный район в Конаковский муниципальный округ. Упразднены входящие в его состав городские и сельские поселения. | B53: 0 | C53: 0
A54: 6. Преобразован Кувшиновский муниципальный район в Кувшиновский муниципальный округ. Упразднены входящие в его состав городские и сельские поселения. | B54: 0 | C54: 0
A55: 7. Преобразован Бологовский муниципальный район в Бологовский муниципальный округ. Упразднены входящие в его состав городские и сельские поселения. | B55: 0 | C55: 0
A56: 8. Преобразован Калининский муниципальный район в Калининский муниципальный округ. Упразднены входящие в его состав городские и сельские поселения. | B56: 0 | C56: 0
A57: Тульская область | B57: 0 | C57: 0
A58: Изменений нет | B58: 0 | C58: 0
A59: Ярославская область | B59: 0 | C59: 0
A60: Изменений нет | B60: 0 | C60: 0
A61: г. Москва | B61: 0 | C61: 0
A62: Изменений нет | B62: 0 | C62: 0
A63: Северо-Западный федеральный округ | B63: 14582 | C63: -14582
A64: Республика Карелия | B64: 0 | C64: 0
A65: 1. Преобразован Питкярантский муниципальный район в Питкярантский муниципальный округ. Упразднены городские и сельские поселения Питкярантского муниципального района. | B65: 0 | C65: 0
A66: 2. Преобразован Беломорский муниципальный район в Беломорский муниципальный округ. Упразднены городские и сельские поселения Беломорского муниципального района. | B66: 0 | C66: 0
A67: 3. Преобразован Сегежский муниципальный район в Сегежский муниципальный округ. Упразднены городские и сельские поселения Сегежского муниципального района. | B67: 0 | C67: 0
A68: Республика Коми | B68: 0 | C68: 0
A69: 1. Изменен статус городского округа Усинск с наделением его статусом муниципальный округ Усинск
A70: 2. Изменен статус городского округа Вуктыл с наделением его статусом муниципальный округ Вуктыл | B70: 0 | C70: 0
A71: Архангельская область | B71: 0 | C71: 0
A72: 1. Преобразован Приморский муниципальный район Архангельской области в Приморский муниципальный округ Архангельской области. Упразднены сельские поселения Приморского муниципального района. | B72: 0 | C72: 0
A73: 2. Преобразован Красноборский муниципальный район Архангельской области в Красноборский муниципальный округ Архангельской области. Упразднены сельские поселения Красноборского муниципального района Архангельской области. | B73: 0 | C73: 0
A74: 3. Преобразован Пинежский муниципальный район Архангельской области в Пинежский муниципальный округ Архангельской области. Упразднены сельские поселения Пинежского муниципального района. | B74: 0 | C74: 0
A75: Ненецкий автономный округ | B75: 0 | C75: 0
A76: Изменений нет | B76: 0 | C76: 0
A77: Вологодская область | B77: 109 | C77: -109
A78: 1. Преобразован Вашкинский муниципальный район в Вашкинский муниципальный округ. Упразднены сельские поселения Вашкинского муниципального района. | B78: 0 | C78: 0
A79: 2. Преобразован Кирилловский муниципальный район в Кирилловский муниципальный округ. Упразднены городские и сельские поселения Кирилловского муниципального района. | B79: 0 | C79: 0
A80: 3. Преобразован Никольский муниципальный район в Никольский муниципальный округ. Упразднены городские и сельские поселения Никольского муниципального района. | B80: 0 | C80: 0
A81: 4. Населенные пункты: деревня Бабаево, Высоково, Колпино и посёлок Заготскот включены в состав города Бабаево Бабаевского муниципального округа Вологодской области и исключены из учётных данных. | B81: 109 | C81: -109
A82: Калининградская область | B82: 0 | C82: 0
A83: Изменений нет | B83: 0 | C83: 0
A84: Ленинградская область | B84: 14473 | C84: -14473
A85: 1. Преобразован населенный пункт деревня Колтуши Колтушского сельского поселения Всеволожского муниципального района в г. Колтуши. Изменен статус Колтушского сельского поселения Всеволожского муниципального района с наделением его статусом Колтушское городское поселение. | B85: 14473 | C85: -14473
A86: Мурманская область | B86: 0 | C86: 0
A87: Изменений нет. | B87: 0 | C87: 0
A88: Новгородская область | B88: 0 | C88: 0
A89: 1. Преобразован Демянский муниципальный район в Демянский муниципальный округ. Упразднены все поселения Демянского муниципального района. | B89: 0 | C89: 0
A90: 2. Преобразован Пестовский муниципальный район в Пестовский муниципальный округ. Упразднены все поселения Пестовского муниципального района. | B90: 0 | C90: 0
A91: 3. Преобразован Мошенской муниципальный район в Мошенской муниципальный округ. Упразднены все поселения Мошенского муниципального района. | B91: 0 | C91: 0
A92: 4. Преобразован Крестецкий муниципальный район в Крестецкий муниципальный округ. Упразднены все поселения Крестецкого муниципального района. | B92: 0 | C92: 0
A93: Псковская область | B93: 0 | C93: 0
A94: 1. Преобразован Красногородский муниципальный район в Красногородский муниципальный округ. Упразднены городские и сельские поселения Красногородского муниципального района. | B94: 0 | C94: 0
A95: 2. Преобразован Локнянский муниципальный район в Локнянский муниципальный округ. Упразднены городские и сельские поселения Локнянского муниципального района. | B95: 0 | C95: 0
A96: 3. Преобразован Невельский муниципальный район в Невельский муниципальный округ. Упразднены городские и сельские поселения Невельского муниципального района. | B96: 0 | C96: 0
A97: 4. Преобразован Новоржевский муниципальный район в Новоржевский муниципальный округ. Упразднены городские и сельские поселения Новоржевского муниципального района. | B97: 0 | C97: 0
A98: 5. Преобразован Опочецкий муниципальный район в Опочецкий муниципальный округ. Упразднены городские и сельские поселения Опочецкого муниципального района. | B98: 0 | C98: 0
A99: 6. Преобразован Печорский муниципальный район в Печорский муниципальный округ. Упразднены городские и сельские поселения Печорского муниципального района. | B99: 0 | C99: 0
A100: 7. Преобразован Пыталовский муниципальный район в Пыталовский муниципальный округ. Упразднены городские и сельские поселения Пыталовского муниципального района. | B100: 0 | C100: 0
A101: 8. Преобразован Струго-Красненский муниципальный район в Струго-Красненский муниципальный округ. Упразднены городские и сельские поселения Струго-Красненского муниципального района. | B101: 0 | C101: 0
A102: г. Санкт-Петербург | B102: 0 | C102: 0
A103: Изменений нет. | B103: 0 | C103: 0
A104: Южный федеральный округ | B104: 0 | C104: 0
A105: Республика Адыгея | B105: 0 | C105: 0
A106: Изменений нет. | B106: 0 | C106: 0
A107: Республика Калмыкия | B107: 0 | C107: 0
A108: Изменений нет. | B108: 0 | C108: 0
A109: Республика Крым | B109: 0 | C109: 0
A110: Изменений нет. | B110: 0 | C110: 0
A111: Краснодарский край | B111: 0 | C111: 0
A112: Изменений нет. | B112: 0 | C112: 0
A113: Астраханская область | B113: 0 | C113: 0
A114: Изменений нет. | B114: 0 | C114: 0
A115: Волгоградская область | B115: 0 | C115: 0
A116: Изменений нет. | B116: 0 | C116: 0
A117: Ростовская область | B117: 0 | C117: 0
A118: Изменений нет. | B118: 0 | C118: 0
A119: г. Севастополь | B119: 0 | C119: 0
A120: Изменений нет. | B120: 0 | C120: 0
A121: Северо-Кавказский федеральный округ | B121: 31286 | C121: -31286
A122: Республика Дагестан | B122: 0 | C122: 0
A123: Переименовано сельское поселение Кироваул Кизилюртовского муниципального района в сельское поселение Манапкала; село Кироваул, входящее в состав данного поселения, переименовано в село Манапкала | B123: 0 | C123: 0
A124: Республика Ингушетия | B124: 0 | C124: 0
A125: Изменений нет. | B125: 0 | C125: 0
A126: Кабардино-Балкарская Республика | B126: 0 | C126: 0
A127: Изменений нет. | B127: 0 | C127: 0
A128: Карачаево-Черкесская Республика | B128: 0 | C128: 0
A129: Изменений нет. | B129: 0 | C129: 0
A130: Республика Северная Осетия - Алания | B130: 0 | C130: 0
A131: Изменений нет. | B131: 0 | C131: 0
A132: Чеченская Республика | B132: 31286 | C132: -31286
A133: 1. Преобразован сельский населенный пункт - село Ачхой-Мартан Ачхой-Мартановского района в городской населенный пункт - город Ачхой-Мартан. | B133: 31286 | C133: -31286
A134: Ставропольский край | B134: 0 | C134: 0
A135: 1. Преобразован Благодарненский городской округ в Благодарненский муниципальный округ. Упразднены городские и сельские поселения Благодарненского муниципального района. | B135: 0 | C135: 0
A136: 2. Преобразован Георгиевский городской округ в Георгиевский муниципальный округ. Упразднены городские и сельские поселения Георгиевского муниципального района. | B136: 0 | C136: 0
A137: 3. Преобразован Изобильненский городской округ в Изобильненский муниципальный округ. Упразднены городские и сельские поселения Изобильненского муниципального района. | B137: 0 | C137: 0
A138: 4. Преобразован Ипатовский городской округ в Ипатовский муниципальный округ. Упразднены городские и сельские поселения Ипатовского муниципального района. | B138: 0 | C138: 0
A139: 5. Преобразован Кировский городской округ в Кировский муниципальный округ. Упразднены городские и сельские поселения Кировского муниципального района. | B139: 0 | C139: 0
A140: 6. Преобразован Минераловодский городской округ в Минераловодский муниципальный округ. Упразднены городские и сельские поселения Минераловодского муниципального района. | B140: 0 | C140: 0
A141: 7. Преобразован Нефтекумский городской округ в Нефтекумский муниципальный округ. Упразднены городские и сельские поселения Нефтекумского муниципального района. | B141: 0 | C141: 0
A142: 8. Преобразован Новоалександровский городской округ в Новоалександровский муниципальный округ. Упразднены городские и сельские поселения Новоалександровского муниципального района. | B142: 0 | C142: 0
A143: 9. Преобразован Петровский городской округ в Петровский муниципальный округ. Упразднены городские и сельские поселения Петровского муниципального района. | B143: 0 | C143: 0
A144: 10. Преобразован Советский городской округ в Советский муниципальный округ. Упразднены городские и сельские поселения Советского муниципального района. | B144: 0 | C144: 0
A145: Приволжский федеральный округ | B145: 0 | C145: 0
A146: Республика Башкортостан | B146: 0 | C146: 0
A147: Изменений нет. | B147: 0 | C147: 0
A148: Республика Марий Эл | B148: 0 | C148: 0
A149: Изменений нет. | B149: 0 | C149: 0
A150: Республика Мордовия | B150: 0 | C150: 0
A151: Изменений нет. | B151: 0 | C151: 0
A152: Республика Татарстан | B152: 0 | C152: 0
A153: Изменений нет. | B153: 0 | C153: 0
A154: Удмуртская Республика | B154: 0 | C154: 0
A155: Изменений нет. | B155: 0 | C155: 0
A156: Чувашская Республика | B156: 0 | C156: 0
A157: Изменений нет. | B157: 0 | C157: 0
A158: Пермский край | B158: 0 | C158: 0
A159: Изменений нет. | B159: 0 | C159: 0
A160: Кировская область | B160: 0 | C160: 0
A161: Изменений нет. | B161: 0 | C161: 0
A162: Нижегородская область | B162: 0 | C162: 0
A163: Изменений нет. | B163: 0 | C163: 0
A164: Оренбургская область | B164: 0 | C164: 0
A165: Объединены сельcкие поселения Домбаровский поссовет и Заринский сельсовет Домбаровского муниципального района в сельское поселение Домбаровский поссовет | B165: 0 | C165: 0
A166: Пензенская область | B166: 0 | C166: 0
A167: Изменений нет. | B167: 0 | C167: 0
A168: Самарская область | B168: 0 | C168: 0
A169: Изменений нет. | B169: 0 | C169: 0
A170: Саратовская область | B170: 0 | C170: 0
A171: Изменений нет. | B171: 0 | C171: 0
A172: Ульяновская область | B172: 0 | C172: 0
A173: Изменений нет. | B173: 0 | C173: 0
A174: Уральский федеральный округ | B174: 1933 | C174: -1933
A175: Курганская область | B175: 0 | C175: 0
A176: 1. Преобразован Далматовский муниципальный район в Далматовский муниципальный округ. Упразднены городские и сельские поселения Далматовского муниципального района. | B176: 0 | C176: 0
A177: 2. Преобразован Катайский муниципальный район в Катайский муниципальный округ. Упразднены городские и сельские поселения Катайского муниципального района. | B177: 0 | C177: 0
A178: 3. Преобразован Варгашинский муниципальный район в Варгашинский муниципальный округ. Упразднены городские и сельские поселения Варгашинского муниципального района. | B178: 0 | C178: 0
A179: 4. Преобразован Притобольный муниципальный район в Притобольный муниципальный округ. Упразднены городские и сельские поселения Притобольного муниципального района. | B179: 0 | C179: 0
A180: Свердловская область | B180: 0 | C180: 0
A181: Изменений нет. | B181: 0 | C181: 0
A182: Тюменская область (без автономных округов) | B182: 0 | C182: 0
A183: Изменений нет. | B183: 0 | C183: 0
A184: Ханты-Мансийский автономный округ - Югра | B184: 0 | C184: 0
A185: Изменений нет. | B185: 0 | C185: 0
A186: Ямало-Ненецкий автономный округ | B186: 1933 | C186: -1933
A187: 1. Населенные пункты п. Пуровск и с. Сывдарма муниципального округа Пуровский район включены в черту г Тарко-Сале муниципального округа Пуровский район и упразднены | B187: 1933 | C187: -1933
A188: Челябинская область | B188: 0 | C188: 0
A189: Изменений нет. | B189: 0 | C189: 0
A190: Сибирский федеральный округ | B190: 0 | C190: 0
A191: Республика Алтай | B191: 0 | C191: 0
A192: Изменений нет. | B192: 0 | C192: 0
A193: Республика Тыва | B193: 0 | C193: 0
A194: Изменений нет. | B194: 0 | C194: 0
A195: Республика Хакасия | B195: 0 | C195: 0
A196: Изменений нет. | B196: 0 | C196: 0
A197: Алтайский край | B197: 0 | C197: 0
A198: Объединены Журавлихинский сельсовет Первомайского района и Новоберёзовский сельсовет Первомайского района в Журавлихинский сельсовет Первомайского района Алтайского края. Упразднен Новоберёзовский сельсовет Первомайского района. | B198: 0 | C198: 0
A199: Красноярский край | B199: 0 | C199: 0
A200: Изменений нет. | B200: 0 | C200: 0
A201: Иркутская область | B201: 0 | C201: 0
A202: Изменений нет. | B202: 0 | C202: 0
... 83 more rows

Sheet Таб_3
B1: Содержание
A2: 3. Оценка численности постоянного населения районов Крайнего Севера и приравненных к ним местностей по городским, муниципальным округам и муниципальным районам
A3: (человек)
C5: На 1 января 2024 года
C6: Все | D6: Городское | E6: Сельское
C7: население | D7: население | E7: население
A8: Всего по районам Крайнего Севера и местностям приравненным к ним | C8: =C9+C12+C20+C39+C60+C97+C117+C121+C136+C148+C152+C158+C172+C178+C209+C221+C231+C249+C268+C281+C321 -> 9350079 | D8: =D9+D12+D20+D39+D60+D97+D117+D121+D136+D148+D152+D158+D172+D178+D209+D221+D231+D249+D268+D281+D321 -> 7439483 | E8: 1910596
B9: Республика Алтай | C9: =C10+C11 -> 30546 | D9: =D10+D11 -> 0 | E9: 30546
B10: Кош-Агачский муниципальный район | C10: 18620 | D10: 0 | E10: 18620
B11: Улаганский муниципальный район | C11: 11926 | D11: 0 | E11: 11926
B12: Республика Бурятия | C12: =SUM(C13:C19) -> 88671 | D12: =SUM(D13:D19) -> 45915 | E12: 42756
B13: Городской округ город Северобайкальск | C13: 24340 | D13: 24340 | E13: 0
B14: Баргузинский муниципальный район | C14: 19584 | D14: 6080 | E14: 13504
B15: Баунтовский эвенкийский муниципальный район | C15: 7945 | D15: 0 | E15: 7945
B16: Курумканский муниципальный район | C16: 12809 | D16: 0 | E16: 12809
B17: Муйский муниципальный район | C17: 8570 | D17: 8030 | E17: 540
B18: Окинский муниципальный район | C18: 5349 | D18: 0 | E18: 5349
B19: Северо-Байкальский муниципальный район | C19: 10074 | D19: 7465 | E19: 2609
A20: * | B20: Республика Карелия | C20: =SUM(C21:C38) -> 523856 | D20: =SUM(D21:D38) -> 418765 | E20: 105091
B21: Городской округ г. Петрозаводск | C21: 235694 | D21: 235694 | E21: 0
B22: Городской округ г. Костомукша | C22: 26470 | D22: 25878 | E22: 592
B23: Суоярвский муниципальный округ | C23: 12070 | D23: 6697 | E23: 5373
B24: Беломорский муниципальный округ | C24: 12305 | D24: 7260 | E24: 5045
B25: Калевальский муниципальный район | C25: 5888 | D25: 3404 | E25: 2484
B26: Кемский муниципальный район | C26: 12493 | D26: 9580 | E26: 2913
B27: Кондопожский муниципальный район | C27: 31368 | D27: 25040 | E27: 6328
B28: Лахденпохский муниципальный район | C28: 10502 | D28: 5725 | E28: 4777
B29: Лоухский муниципальный район | C29: 10092 | D29: 7092 | E29: 3000
B30: Медвежьегорский муниципальный район | C30: 23603 | D30: 17163 | E30: 6440
B31: Муезерский муниципальный район | C31: 7695 | D31: 2445 | E31: 5250
B32: Олонецкий муниципальный район | C32: 18460 | D32: 7541 | E32: 10919
B33: Питкярантский муниципальный округ | C33: 14495 | D33: 7973 | E33: 6522
B34: Прионежский муниципальный район | C34: 21969 | D34: 0 | E34: 21969
B35: Пряжинский муниципальный район | C35: 12023 | D35: 2955 | E35: 9068
B36: Пудожский муниципальный район | C36: 13907 | D36: 7104 | E36: 6803
B37: Сегежский муниципальный округ | C37: 31219 | D37: 28672 | E37: 2547
B38: Сортавальский муниципальный район | C38: 23603 | D38: 18542 | E38: 5061
A39: * | B39: Республика Коми | C39: =SUM(C40:C59) -> 720610 | D39: =SUM(D40:D59) -> 561102 | E39: 159508
B40: Городской округ Сыктывкар | C40: 232811 | D40: 232134 | E40: 677
B41: Городской округ Воркута | C41: 67547 | D41: 67249 | E41: 298
B42: Муниципальный округ Вуктыл | C42: 10125 | D42: 9001 | E42: 1124
B43: Городской округ Инта | C43: 20870 | D43: 19764 | E43: 1106
B44: Муниципальный округ Усинск | C44: 35807 | D44: 31884 | E44: 3923
B45: Городской округ Ухта | C45: 93096 | D45: 91482 | E45: 1614
B46: Муниципальный район Ижемский | C46: 16187 | D46: 0 | E46: 16187
B47: Муниципальный район Княжпогостский | C47: 14981 | D47: 12630 | E47: 2351
B48: Муниципальный район Койгородский | C48: 7470 | D48: 0 | E48: 7470
B49: Муниципальный район Корткеросский | C49: 18232 | D49: 0 | E49: 18232
B50: Муниципальный район Печора | C50: 42164 | D50: 37327 | E50: 4837
B51: Муниципальный район Прилузский | C51: 17018 | D51: 0 | E51: 17018
B52: Муниципальный район Сосногорск | C52: 33872 | D52: 30861 | E52: 3011
B53: Муниципальный район Сыктывдинский | C53: 21442 | D53: 0 | E53: 21442
B54: Муниципальный район Сысольский | C54: 11592 | D54: 0 | E54: 11592
B55: Муниципальный район Троицко-Печорский | C55: 9461 | D55: 5824 | E55: 3637
B56: Муниципальный район Удорский | C56: 12261 | D56: 7782 | E56: 4479
B57: Муниципальный район Усть-Вымский | C57: 23548 | D57: 15164 | E57: 8384
B58: Муниципальный район Усть-Куломский | C58: 21766 | D58: 0 | E58: 21766
B59: Муниципальный район Усть-Цилемский | C59: 10360 | D59: 0 | E59: 10360
A60: * | B60: Республика Саха (Якутия) | C60: =SUM(C61:C96) -> 1001664 | D60: =SUM(D61:D96) -> 677004 | E60: 324660
B61: Городской округ город Якутск | C61: 384979 | D61: 367667 | E61: 17312
B62: Городской округ Жатай | C62: 11772 | D62: 11772 | E62: 0
B63: Абыйский муниципальный район | C63: 3737 | D63: 1849 | E63: 1888
B64: Алданский муниципальный район | C64: 38998 | D64: 35652 | E64: 3346
B65: Аллаиховский муниципальный район | C65: 2351 | D65: 1850 | E65: 501
B66: Амгинский муниципальный район | C66: 16705 | D66: 0 | E66: 16705
B67: Анабарский национальный (долгано-эвенкийский) муниципальный район | C67: 3456 | D67: 0 | E67: 3456
B68: Булунский муниципальный район | C68: 8126 | D68: 4600 | E68: 3526
B69: Верхневилюйский муниципальный район | C69: 20721 | D69: 0 | E69: 20721
B70: Верхнеколымский муниципальный район | C70: 3687 | D70: 2406 | E70: 1281
B71: Верхоянский муниципальный район | C71: 9998 | D71: 4655 | E71: 5343
B72: Вилюйский муниципальный район | C72: 25157 | D72: 12996 | E72: 12161
B73: Горный муниципальный район | C73: 11936 | D73: 0 | E73: 11936
B74: Жиганский национальный муниципальный район | C74: 4023 | D74: 0 | E74: 4023
B75: Кобяйский муниципальный район | C75: 11053 | D75: 3237 | E75: 7816
B76: Нюрбинский муниципальный район | C76: 22761 | D76: 10038 | E76: 12723
B77: Ленский муниципальный район | C77: 31833 | D77: 27969 | E77: 3864
B78: Мегино-Кангаласский муниципальный район | C78: 32932 | D78: 5300 | E78: 27632
B79: Мирнинский муниципальный район | C79: 71704 | D79: 69140 | E79: 2564
B80: Момский муниципальный район | C80: 3836 | D80: 0 | E80: 3836
B81: Намский муниципальный район | C81: 25069 | D81: 0 | E81: 25069
B82: Нерюнгринский муниципальный район | C82: 68431 | D82: 67194 | E82: 1237
B83: Нижнеколымский муниципальный район | C83: 4175 | D83: 2613 | E83: 1562
B84: Оймяконский муниципальный район | C84: 7566 | D84: 4503 | E84: 3063
B85: Олекминский муниципальный район | C85: 20525 | D85: 8544 | E85: 11981
B86: Оленекский эвенкийский национальный муниципальный район | C86: 4364 | D86: 0 | E86: 4364
B87: Среднеколымский муниципальный район | C87: 6714 | D87: 3120 | E87: 3594
B88: Сунтарский муниципальный район | C88: 22228 | D88: 0 | E88: 22228
B89: Таттинский муниципальный район | C89: 16750 | D89: 0 | E89: 16750
B90: Томпонский муниципальный район | C90: 10897 | D90: 6101 | E90: 4796
B91: Усть-Алданский муниципальный район | C91: 22012 | D91: 0 | E91: 22012
B92: Усть-Майский муниципальный район | C92: 7343 | D92: 5112 | E92: 2231
B93: Усть-Янский муниципальный район | C93: 6725 | D93: 3451 | E93: 3274
B94: Хангаласский муниципальный район | C94: 34331 | D94: 17235 | E94: 17096
B95: Чурапчинский муниципальный район | C95: 21807 | D95: 0 | E95: 21807
B96: Эвено-Бытантайский национальный муниципальный район | C96: 2962 | D96: 0 | E96: 2962
A97: * | B97: Республика Тыва | C97: =SUM(C98:C116) -> 337544 | D97: =SUM(D98:D116) -> 188187 | E97: 149357
B98: Городской округ город Кызыл | C98: 130042 | D98: 130042 | E98: 0
B99: Городской округ город Ак-Довурак | C99: 11977 | D99: 11977 | E99: 0
B100: Бай-Тайгинский муниципальный район | C100: 10431 | D100: 0 | E100: 10431
B101: Барун-Хемчикский муниципальный район | C101: 11626 | D101: 0 | E101: 11626
B102: Дзун-Хемчикский муниципальный район | C102: 18916 | D102: 9457 | E102: 9459
B103: Каа-Хемский муниципальный район | C103: 11974 | D103: 0 | E103: 11974
B104: Кызылский муниципальный район | C104: 36340 | D104: 20142 | E104: 16198
B105: Монгун-Тайгинский муниципальный район | C105: 6055 | D105: 0 | E105: 6055
B106: Овюрский кожуун муниципальный район | C106: 7259 | D106: 0 | E106: 7259
B107: Пий-Хемский муниципальный район | C107: 10364 | D107: 4925 | E107: 5439
B108: Сут-Хольский муниципальный район | C108: 8043 | D108: 0 | E108: 8043
B109: Тандинский муниципальный район | C109: 15098 | D109: 0 | E109: 15098
B110: Тере-Хольский муниципальный район | C110: 1930 | D110: 0 | E110: 1930
B111: Тес-Хемский муниципальный район | C111: 8858 | D111: 0 | E111: 8858
B112: Тоджинский муниципальный район | C112: 6694 | D112: 0 | E112: 6694
B113: Улуг-Хемский муниципальный район | C113: 19940 | D113: 11644 | E113: 8296
B114: Чаа-Хольский муниципальный район | C114: 5941 | D114: 0 | E114: 5941
B115: Чеди-Хольский муниципальный район | C115: 7592 | D115: 0 | E115: 7592
B116: Эрзинский муниципальный район | C116: 8464 | D116: 0 | E116: 8464
B117: Забайкальский край | C117: =C118+C119+C120 -> 17813 | D117: =D118+D119+D120 -> 8791 | E117: 9022
B118: Каларский муниципальный округ | C118: 7207 | D118: 4025 | E118: 3182
B119: Тунгокоченский муниципальный округ | C119: 9508 | D119: 4766 | E119: 4742
B120: Муниципальный район "Тунгиро-Олекминский район" | C120: 1098 | D120: 0 | E120: 1098
A121: * | B121: Камчатский край | C121: 288947 | D121: 225925 | E121: 63022
B122: Петропавловск-Камчатский городской округ | C122: 163152 | D122: 163152 | E122: 0
B123: Вилючинский городской округ | C123: 22386 | D123: 22386 | E123: 0
B124: Городской округ поселок Палана | C124: 2688 | D124: 2688 | E124: 0
B125: Алеутский муниципальный округ | C125: 615 | D125: 0 | E125: 615
B126: Быстринский муниципальный район | C126: 2391 | D126: 0 | E126: 2391
B127: Елизовский муниципальный район | C127: 59889 | D127: 37699 | E127: 22190
B128: Карагинский муниципальный район | C128: 3457 | D128: 0 | E128: 3457
B129: Олюторский муниципальный район | C129: 3523 | D129: 0 | E129: 3523
B130: Мильковский муниципальный район | C130: 8727 | D130: 0 | E130: 8727
B131: Пенжинский муниципальный район | C131: 1959 | D131: 0 | E131: 1959
B132: Соболевский муниципальный район | C132: 1979 | D132: 0 | E132: 1979
B133: Тигильский муниципальный район | C133: 3662 | D133: 0 | E133: 3662
B134: Усть-Большерецкий муниципальный район | C134: 6069 | D134: 0 | E134: 6069
B135: Усть-Камчатский муниципальный район | C135: 8450 | D135: 0 | E135: 8450
B136: Красноярский край | C136: =SUM(C137:C147) -> 409874 | D136: =SUM(D137:D147) -> 306209 | E136: 103665
B137: Городской округ город Енисейск | C137: 17843 | D137: 17843 | E137: 0
B138: Городской округ город Лесосибирск | C138: 58714 | D138: 58713 | E138: 1
B139: Городской округ город Норильск | C139: 177427 | D139: 177427 | E139: 0
B140: Богучанский муниципальный район | C140: 42225 | D140: 0 | E140: 42225
B141: Енисейский муниципальный район | C141: 21238 | D141: 3499 | E141: 17739
B142: Кежемский муниципальный район | C142: 16559 | D142: 12871 | E142: 3688
B143: Мотыгинский муниципальный район | C143: 12009 | D143: 6723 | E143: 5286
B144: Северо-Енисейский муниципальный район | C144: 8308 | D144: 5959 | E144: 2349
B145: Таймырский Долгано-Ненецкий муниципальный район | C145: 29609 | D145: 19615 | E145: 9994
B146: Туруханский муниципальный район | C146: 12684 | D146: 3559 | E146: 9125
B147: Эвенкийский муниципальный район | C147: 13258 | D147: 0 | E147: 13258
B148: Пермский край | C148: =C149+C150+C151 -> 26481 | D148: =D149+D150+D151 -> 0 | E148: 26481
B149: Гайнский муниципальный округ | C149: 11679 | D149: 0 | E149: 11679
B150: Косинский муниципальный округ | C150: 5543 | D150: 0 | E150: 5543
B151: Кочевский муниципальный округ | C151: 9259 | D151: 0 | E151: 9259
B152: Приморский край | C152: =SUM(C153:C157) -> 86213 | D152: =SUM(D153:D157) -> 62409 | E152: 23804
B153: Дальнегорский городской округ | C153: 38543 | D153: 32720 | E153: 5823
B154: Кавалеровский муниципальный округ | C154: 20727 | D154: 15593 | E154: 5134
B155: Красноармейский муниципальный округ (кроме Лукьяновского и Новопокровского сельских поселений) | C155: 10006 | D155: 3159 | E155: 6847
B156: Ольгинский муниципальный округ | C156: 7209 | D156: 3041 | E156: 4168
B157: Тернейский муниципальный округ | C157: 9728 | D157: 7896 | E157: 1832
B158: Хабаровский край | C158: =SUM(C159:C171) -> 484870 | D158: =SUM(D159:D171) -> 398012 | E158: =SUM(E159:E171) -> 86858
B159: Городской округ "Город Комсомольск-на-Амуре" | C159: 235488 | D159: 235488 | E159: 0
B160: Амурский муниципальный район (кроме Литовского, Санболинского и Болоньского сельских поселений) | C160: 52790 | D160: 47492 | E160: 5298
B161: Аяно-Майский муниципальный район | C161: 1786 | D161: 0 | E161: 1786
B162: Ванинский муниципальный район | C162: 33535 | D162: 25227 | E162: 8308
B163: Верхнебуреинский муниципальный район | C163: 24441 | D163: 18696 | E163: 5745
B164: Комсомольский муниципальный район | C164: 24386 | D164: 0 | E164: 24386
B165: Николаевский муниципальный район | C165: 23555 | D165: 20033 | E165: 3522
B166: Охотский муниципальный район | C166: 6326 | D166: 3212 | E166: 3114
B167: Им. Полины Осипенко муниципальный район | C167: 3532 | D167: 0 | E167: 3532
B168: Советско-Гаванский муниципальный район | C168: 36352 | D168: 35668 | E168: 684
B169: Солнечный муниципальный район | C169: 26843 | D169: 12196 | E169: 14647
B170: Тугуро-Чумиканский муниципальный район | C170: 1859 | D170: 0 | E170: 1859
B171: Ульчский муниципальный район | C171: 13977 | D171: 0 | E171: 13977
B172: Амурская область | C172: =C173+C174+C175+C176+C177 -> 78229 | D172: =D173+D174+D175+D176+D177 -> 51173 | E172: 27056
B173: Городской округ город Зея | C173: 18669 | D173: 18669 | E173: 0
B174: Городской округ город Тында | C174: 27796 | D174: 27796 | E174: 0
B175: Зейский муниципальный округ | C175: 11287 | D175: 0 | E175: 11287
B176: Тындинский муниципальный округ | C176: 13370 | D176: 0 | E176: 13370
B177: Селемджинский муниципальный район | C177: 7107 | D177: 4708 | E177: 2399
A178: * | B178: Архангельская область включая Ненецкий автономный округ | C178: 998072 | D178: 778127 | E178: 219945
A179: * | B179: Ненецкий автономный округ | C179: 42224 | D179: 31582 | E179: 10642
B180: Городской округ город Нарьян -Мар | C180: 24266 | D180: 24266 | E180: 0
B181: Заполярный муниципальный район | C181: 17958 | D181: 7316 | E181: 10642
A182: * | B182: Архангельская область без Ненецкого автономного округа | C182: 955848 | D182: 746545 | E182: 209303
B183: Городской округ "Архангельск" | C183: 301376 | D183: 296665 | E183: 4711
B184: Городской округ "Коряжма" | C184: 33663 | D184: 33663 | E184: 0
B185: Городской округ "Котлас" | C185: 66838 | D185: 66754 | E185: 84
B186: Городской округ "Мирный" ЗАТО | C186: 27022 | D186: 27022 | E186: 0
B187: Городской округ "Новая Земля" | C187: 2427 | D187: 2148 | E187: 279
B188: Городской округ "Новодвинск" | C188: 32639 | D188: 32638 | E188: 1
B189: Городской округ "Северодвинск" | C189: 156310 | D189: 155647 | E189: 663
B190: Вельский муниципальный район | C190: 44862 | D190: 25945 | E190: 18917
B191: Верхнетоемский муниципальный округ | C191: 10925 | D191: 0 | E191: 10925
B192: Вилегодский муниципальный округ | C192: 8586 | D192: 0 | E192: 8586
B193: Виноградовский муниципальный округ | C193: 12371 | D193: 0 | E193: 12371
B194: Каргопольский муниципальный округ | C194: 14660 | D194: 8709 | E194: 5951
B195: Котласский муниципальный округ | C195: 17119 | D195: 8602 | E195: 8517
B196: Коношский муниципальный район | C196: 17807 | D196: 10142 | E196: 7665
B197: Красноборский муниципальный округ | C197: 10008 | D197: 0 | E197: 10008
B198: Лешуконский муниципальный округ | C198: 5084 | D198: 0 | E198: 5084
B199: Мезенский муниципальный округ | C199: 7098 | D199: 2835 | E199: 4263
B200: Няндомский муниципальный округ | C200: 22613 | D200: 18074 | E200: 4539
B201: Плесецкий муниципальный округ | C201: 33077 | D201: 22110 | E201: 10967
... 128 more rows

Sheet Таб_4
B1: Содержание
A2: 4. Оценка численности постоянного населения сухопутных территорий
A3: Арктической зоны Российской Федерации на 1 января 2024 года и в среднем за 2023 год
A4: (человек)
C6: На 1 января 2024 года | F6: В среднем за 2023 год
C7: Все | D7: в том числе | F7: Все | G7: в том числе
C8: население | D8: городское | E8: сельское | F8: население | G8: городское | H8: сельское
A9: Арктическая зона Российской Федерации | C9: 2361226 | D9: 2048847 | E9: 312379 | F9: 2361909 | G9: 2047899 | H9: 314010
B10: Республика Карелия | C10: 98467 | D10: 81886 | E10: 16581 | F10: 99048 | G10: 82257 | H10: 16791
A11: * | B11: Городской округ г Костомукша | C11: 26470 | D11: 25878 | E11: 592 | F11: 26500 | G11: 25903 | H11: 597
A12: * | B12: Беломорский муниципальный округ | C12: 12305 | D12: 7260 | E12: 5045 | F12: 12425 | G12: 7333 | H12: 5092
A13: * | B13: Сегежский муниципальный округ | C13: 31219 | D13: 28672 | E13: 2547 | F13: 31414 | G13: 28829 | H13: 2585
A14: * | B14: Калевальский муниципальный район | C14: 5888 | D14: 3404 | E14: 2484 | F14: 5914 | G14: 3411 | H14: 2503
A15: * | B15: Кемский муниципальный район | C15: 12493 | D15: 9580 | E15: 2913 | F15: 12604 | G15: 9646 | H15: 2958
A16: * | B16: Лоухский муниципальный район | C16: 10092 | D16: 7092 | E16: 3000 | F16: 10191 | G16: 7135 | H16: 3056
B17: Республика Коми | C17: 134584 | D17: 118897 | E17: 15687 | F17: 134941 | G17: 119158 | H17: 15783
B18: Городской округ Воркута | C18: 67547 | D18: 67249 | E18: 298 | F18: 67625 | G18: 67330 | H18: 295
B19: Городской округ Инта | C19: 20870 | D19: 19764 | E19: 1106 | F19: 20981 | G19: 19855 | H19: 1126
B20: Муниципальный округ Усинск | C20: 35807 | D20: 31884 | E20: 3923 | F20: 35916 | G20: 31973 | H20: 3943
B21: Усть-Цилемский муниципальный район | C21: 10360 | D21: 0 | E21: 10360 | F21: 10419 | G21: 0 | H21: 10419
B22: Республика Саха (Якутия) | C22: 64154 | D22: 24544 | E22: 39610 | F22: 64218 | G22: 24571 | H22: 39647
B23: Абыйский муниципальный район | C23: 3737 | D23: 1849 | E23: 1888 | F23: 3762 | G23: 1877 | H23: 1885
B24: Аллаиховский муниципальный район | C24: 2351 | D24: 1850 | E24: 501 | F24: 2350 | G24: 1841 | H24: 509
B25: Анабарский национальный (долгано-эвенкийский) муниципальный район | C25: 3456 | D25: 0 | E25: 3456 | F25: 3455 | G25: 0 | H25: 3455
B26: Булунский муниципальный район | C26: 8126 | D26: 4600 | E26: 3526 | F26: 8061 | G26: 4520 | H26: 3541
B27: Верхнеколымский муниципальный район | C27: 3687 | D27: 2406 | E27: 1281 | F27: 3718 | G27: 2431 | H27: 1287
B28: Верхоянский муниципальный район | C28: 9998 | D28: 4655 | E28: 5343 | F28: 10003 | G28: 4669 | H28: 5334
B29: Жиганский национальный муниципальный район | C29: 4023 | D29: 0 | E29: 4023 | F29: 4055 | G29: 0 | H29: 4055
B30: Момский муниципальный район | C30: 3836 | D30: 0 | E30: 3836 | F30: 3809 | G30: 0 | H30: 3809
B31: Нижнеколымский муниципальный район | C31: 4175 | D31: 2613 | E31: 1562 | F31: 4193 | G31: 2627 | H31: 1566
B32: Оленекский эвенкийский национальный муниципальный район | C32: 4364 | D32: 0 | E32: 4364 | F32: 4363 | G32: 0 | H32: 4363
B33: Среднеколымский муниципальный район | C33: 6714 | D33: 3120 | E33: 3594 | F33: 6727 | G33: 3119 | H33: 3608
B34: Усть-Янский муниципальный район | C34: 6725 | D34: 3451 | E34: 3274 | F34: 6767 | G34: 3487 | H34: 3280
B35: Эвено-Бытантайский национальный муниципальный район | C35: 2962 | D35: 0 | E35: 2962 | F35: 2955 | G35: 0 | H35: 2955
B36: Красноярский край | C36: 226392 | D36: 200601 | E36: 25791 | F36: 225443 | G36: 199658 | H36: 25785
B37: Городской округ город Норильск | C37: 177427 | D37: 177427 | E37: 0 | F37: 176446 | G37: 176446 | H37: 0
B38: Таймырский Долгано-Ненецкий муниципальный район | C38: 29609 | D38: 19615 | E38: 9994 | F38: 29749 | G38: 19699 | H38: 10050
B39: Туруханский муниципальный район | C39: 12684 | D39: 3559 | E39: 9125 | F39: 12587 | G39: 3513 | H39: 9074
B40: Эвенкийский муниципальный район | F40: 0 | G40: 0 | H40: 0
B41: Сельское поселение поселок Ессей | C41: 747 | D41: 0 | E41: 747 | F41: 750 | G41: 0 | H41: 750
B42: Сельское поселение поселок Кислокан | C42: 125 | D42: 0 | E42: 125 | F42: 128 | G42: 0 | H42: 128
B43: Сельское поселение поселок Нидым | C43: 137 | D43: 0 | E43: 137 | F43: 139 | G43: 0 | H43: 139
B44: Сельское поселение поселок Суринда | C44: 325 | D44: 0 | E44: 325 | F44: 331 | G44: 0 | H44: 331
B45: Сельское поселение поселок Тура | C45: 4416 | D45: 0 | E45: 4416 | F45: 4392 | G45: 0 | H45: 4392
B46: Сельское поселение поселок Тутончаны | C46: 200 | D46: 0 | E46: 200 | F46: 197 | G46: 0 | H46: 197
B47: Сельское поселение поселок Учами | C47: 78 | D47: 0 | E47: 78 | F47: 80 | G47: 0 | H47: 80
B48: Сельское поселение поселок Чиринда | C48: 226 | D48: 0 | E48: 226 | F48: 226 | G48: 0 | H48: 226
B49: Сельское поселение поселок Эконда | C49: 333 | D49: 0 | E49: 333 | F49: 332 | G49: 0 | H49: 332
B50: Сельское поселение поселок Юкта | C50: 85 | D50: 0 | E50: 85 | F50: 86 | G50: 0 | H50: 86
B51: Архангельская область, включая Ненецкий автономный округ | C51: 617202 | D51: 539458 | E51: 77744 | F51: 618582 | G51: 540536 | H51: 78046
B52: Архангельская область без Ненецкого автономного округа | C52: 574978 | D52: 507876 | E52: 67102 | F52: 576778 | G52: 509329 | H52: 67449
B53: Городской округ "Архангельск" | C53: 301376 | D53: 296665 | E53: 4711 | F53: 302367 | G53: 297641 | H53: 4726
B54: Городской округ "Новая Земля" | C54: 2427 | D54: 2148 | E54: 279 | F54: 2393 | G54: 2104 | H54: 289
B55: Городской округ "Новодвинск" | C55: 32639 | D55: 32638 | E55: 1 | F55: 32733 | G55: 32732 | H55: 1
B56: Городской округ "Северодвинск" | C56: 156310 | D56: 155647 | E56: 663 | F56: 156520 | G56: 155851 | H56: 669
A57: * | B57: Лешуконский муниципальный округ | C57: 5084 | D57: 0 | E57: 5084 | F57: 5157 | G57: 0 | H57: 5157
B58: Мезенский муниципальный округ | C58: 7098 | D58: 2835 | E58: 4263 | F58: 7173 | G58: 2834 | H58: 4339
A59: * | B59: Пинежский муниципальный округ | C59: 17680 | D59: 0 | E59: 17680 | F59: 17823 | G59: 0 | H59: 17823
B60: Приморский муниципальный округ | C60: 28908 | D60: 0 | E60: 28908 | F60: 28850 | G60: 0 | H60: 28850
B61: Онежский муниципальный район | C61: 23456 | D61: 17943 | E61: 5513 | F61: 23762 | G61: 18167 | H61: 5595
A62: * | B62: Ненецкий авт. округ | C62: 42224 | D62: 31582 | E62: 10642 | F62: 41804 | G62: 31207 | H62: 10597
A63: * | B63: Мурманская область | C63: 656438 | D63: 610635 | E63: 45803 | F63: 657568 | G63: 611746 | H63: 45822
A64: * | B64: Чукотский автономный округ | C64: 48029 | D64: 33318 | E64: 14711 | F64: 47935 | G64: 33183 | H64: 14752
A65: * | B65: Ямало-Ненецкий автономный округ | C65: 515960 | D65: 439508 | E65: 76452 | F65: 514174 | G65: 436790 | H65: 77384
A67: * | B67: Вся территория субъекта Российской Федерации включена в сухопутную территорию Арктической зоны Российской Федерации.
B69: 1) Территории муниципальных образований "Городской округ г.Костомукша", "Калевальский муниципальный район" и "Сегежский муниципальный район" Республики Карелия включены в Перечень сухопутных территорий Арктической зоны Российской Федерации ФЗ "О государственной поддержке предпринимательской деятельности в Арктической зоне Российской Федерации"от 13.07.2020 № 193.
B71: 2) Территории муниципальных образований "Городской округ Инта", "Городской округ Усинск", "Усть-Цилемский муниципальный район" Республики Коми включены в Перечень сухопутных территорий Арктической зоны Российской Федерации ФЗ "О государственной поддержке предпринимательской деятельности в Арктической зоне Российской Федерации"от 13.07.2020 № 193.
B73: 3) Территории муниципальных образований "Сельское поселение поселок Суринда", "Сельское поселение поселок Тура", "Сельское поселение поселок Нидым", "Сельское поселение поселок Учами", "Сельское поселение поселок Тутончаны", "Сельское поселение поселок Ессей", "Сельское поселение поселок Чиринда", "Сельское поселение поселок Эконда", "Сельское поселение поселок Кислокан", "Сельское поселение поселок Юкта" Эвенкийского муниципального района Красноярского края включены в Перечень сухопутных территорий Арктической зоны Российской Федерации ФЗ "О государственной поддержке предпринимательской деятельности в Арктической зоне Российской Федерации"от 13.07.2020 № 193.
B75: 4) Территории муниципальных образований "Лешуконский муниципальный район", "Пинежский муниципальный район" Архангельской области включены в Перечень сухопутных территорий Арктической зоны Российской Федерации ФЗ "О государственной поддержке предпринимательской деятельности в Арктической зоне Российской Федерации"от 13.07.2020 № 193.

Sheet Таб_5.1
B1: Содержание
B2: 5.1. Оценка численности постоянного населения монопрофильных муниципальных образований Российской Федерации
B3: Муниципальные образования моногорода с наиболее сложным социально-экономическим положением
C4: Субъект Российской Федерации | D4: Муниципальное образование, городской населенный пункт (моногорода с наиболее сложным социально-экономическим положением) | E4: На 1 января 2024 г.; человек
A5: 1072000000 | B5: 1 | C5: Амурская область | D5: Городской округ г Райчихинск | E5: 17229
A6: 107200000011000 | C6: Амурская область | D6: г Райчихинск | E6: 15721
A7: 1073000000 | B7: 2 | C7: Амурская область | D7: Городской округ г Свободный | E7: 48637
A8: 107300000011000 | C8: Амурская область | D8: г Свободный | E8: 48637
A9: 1165441420 | B9: 3 | C9: Архангельская область | D9: Устьянский муниципальный округ | E9: 23280
A10: 116544141012200 | C10: Архангельская область | D10: п Кизема (снп) | E10: 0
A11: 1164610120 | B11: 4 | C11: Архангельская область | D11: Городское поселение Онежское | E11: 16037
A12: 116461010011200 | C12: Архангельская область | D12: г Онега | E12: 16037
A13: 1565615500 | B13: 5 | C13: Брянская область | D13: Белоберезковское городское поселение | E13: 5655
A14: 156561550511000 | C14: Брянская область | D14: п Белая Березка | E14: 5655
A15: 1561615300 | B15: 6 | C15: Брянская область | D15: Бытошское городское поселение | E15: 4217
A16: 156161530511000 | C16: Брянская область | D16: п Бытошь | E16: 3859
A17: 1561615600 | B17: 7 | C17: Брянская область | D17: Ивотское городское поселение | E17: 6599
A18: 156161560511000 | C18: Брянская область | D18: п Ивот | E18: 5661
A19: 1561615900 | B19: 8 | C19: Брянская область | D19: Любохонское городское поселение | E19: 4819
A20: 156161590511000 | C20: Брянская область | D20: п Любохна | E20: 4819
A21: 1761510100 | B21: 9 | C21: Владимирская область | D21: Городское поселение город Гороховец | E21: 12104
A22: 176151010011000 | C22: Владимирская область | D22: г Гороховец | E22: 12104
A23: 1762510100 | B23: 10 | C23: Владимирская область | D23: Городское поселение город Камешково | E23: 11776
A24: 176251010011000 | C24: Владимирская область | D24: г Камешково | E24: 11776
A25: 1762011500 | B25: 11 | C25: Владимирская область | D25: Городское поселение город Курлово | E25: 5985
A26: 176201150011000 | C26: Владимирская область | D26: г Курлово | E26: 5985
A27: 1961410500 | B27: 12 | C27: Вологодская область | D27: Великоустюгский муниципальный округ | E27: …
A28: 196141050011000 | C28: Вологодская область | D28: г Красавино | E28: 5403
A29: 1965416200 | B29: 13 | C29: Вологодская область | D29: Чагодощенский муниципальный округ | E29: …
A30: 196541620511000 | C30: Вологодская область | D30: пгт Сазоново | E30: 2657
A31: 1973000000 | B31: 14 | C31: Вологодская область | D31: Городской округ город Череповец | E31: 298790
A32: 197300000011002 | C32: Вологодская область | D32: г Череповец | E32: 298790
A33: 7664815800 | B33: 15 | C33: Забайкальский край | D33: Городское поселение Жирекенское | E33: 3431
A34: 766481580511000 | C34: Забайкальский край | D34: пгт Жирекен | E34: 3418
A35: 7680215300 | B35: 16 | C35: Забайкальский край | D35: Городское поселение Новоорловск | E35: 3053
A36: 766021530511000 | C36: Забайкальский край | D36: пгт Новоорловск | E36: 3053
A37: 7665415800 | B37: 17 | C37: Забайкальский край | D37: Городское поселение Первомайское | E37: 11329
A38: 766541580511000 | C38: Забайкальский край | D38: пгт Первомайский | E38: 10942
A39: 7662110100 | B39: 18 | C39: Забайкальский край | D39: Городское поселение г Краснокаменск | E39: 51576
A40: 766211010011000 | C40: Забайкальский край | D40: г Краснокаменск | E40: 51576
A41: 7663615600 | B41: 19 | C41: Забайкальский край | D41: Городское поселение Новопавловское | E41: 3033
A42: 766361560511000 | C42: Забайкальский край | D42: пгт Новопавловка | E42: 2708
A43: 2460315600 | B43: 20 | C43: Ивановская область | D43: Петровское городское поселение | E43: 2894
A44: 246031560511000 | C44: Ивановская область | D44: пгт Петровский | E44: 1819
A45: 2460115400 | B45: 21 | C45: Ивановская область | D45: Каменское городское поселение | E45: 3527
A46: 246011540511000 | C46: Ивановская область | D46: пгт Каменка | E46: 3527
A47: 2462515100 | B47: 22 | C47: Ивановская область | D47: Савинское городское поселение | E47: 4507
A48: 246251510511000 | C48: Ивановская область | D48: пгт Савино | E48: 4507
A49: 2463510100 | B49: 23 | C49: Ивановская область | D49: Южское городское поселение | E49: 12987
A50: 246351010011000 | C50: Ивановская область | D50: г Южа | E50: 12544
A51: 2563410800 | B51: 24 | C51: Иркутская область | D51: Байкальское городское поселение | E51: 13419
A52: 256341080011000 | C52: Иркутская область | D52: г Байкальск | E52: 12809
A53: 2573600000 | B53: 25 | C53: Иркутская область | D53: Городской округ г Усолье-Сибирское | E53: 72594
A54: 257360000011000 | C54: Иркутская область | D54: г Усолье-Сибирское | E54: 72594
A55: 2573200000 | B55: 26 | C55: Иркутская область | D55: Городской округ г Тулун | E55: 37583
A56: 257320000011000 | C56: Иркутская область | D56: г Тулун | E56: 37583
A57: 3270400000 | B57: 27 | C57: Кемеровская область | D57: Анжеро-Судженский городской округ | E57: 69293
A58: 327040000011000 | C58: Кемеровская область | D58: г Анжеро-Судженск | E58: 64534
A59: 3260210100 | B59: 28 | C59: Кемеровская область | D59: Гурьевский муниципальный округ | E59: …
A60: 326021010011000 | C60: Кемеровская область | D60: г Гурьевск | E60: 21708
A61: 3273700000 | B61: 29 | C61: Кемеровская область | D61: Прокопьевский городской округ | E61: 172618
A62: 327370000011002 | C62: Кемеровская область | D62: г Прокопьевск | E62: 172618
A63: 3271500000 | B63: 30 | C63: Кемеровская область | D63: Калтанский городской округ | E63: 29026
A64: 327150000011000 | C64: Кемеровская область | D64: г Калтан | E64: 21047
A65: 3271600000 | B65: 31 | C65: Кемеровская область | D65: Киселевский городской округ | E65: 85300
A66: 327160000011000 | C66: Кемеровская область | D66: г Киселевск | E66: 81055
A67: 3262715700 | B67: 31-1 | C67: Кемеровская область | D67: Мундыбашское городское поселение | E67: 4023
A68: 326271570511000 | C68: Кемеровская область | D68: пгт Мундыбаш | E68: 3989
A69: 3274900000 | B69: 32 | C69: Кемеровская область | D69: Юргинский городской округ | E69: 78009
A70: 327490000011000 | C70: Кемеровская область | D70: г Юрга | E70: 78009
A71: 3260210400 | B71: 33 | C71: Кемеровская область | D71: Гурьевский муниципальный округ | E71: …
A72: 326021040011000 | C72: Кемеровская область | D72: г Салаир | E72: 6827
A73: 3262710100 | B73: 34 | C73: Кемеровская область | D73: Таштагольское городское поселение | E73: 21383
A74: 326271010011000 | C74: Кемеровская область | D74: г Таштагол | E74: 21383
A75: 3370400000 | B75: 35 | C75: Кировская область | D75: Городской округ г Вятские Поляны | E75: 28922
A76: 337040000011000 | C76: Кировская область | D76: г Вятские Поляны | E76: 28922
A77: 3364915400 | B77: 36 | C77: Кировская область | D77: Мурыгинское городское поселение | E77: 5998
A78: 336491540511000 | C78: Кировская область | D78: пгт Мурыгино | E78: 5998
A79: 3360510100 | B79: 37 | C79: Кировская область | D79: Белохолуницкое городское поселение | E79: 10271
A80: 336051010011000 | C80: Кировская область | D80: г Белая Холуница | E80: 9368
A81: 3362210100 | B81: 38 | C81: Кировская область | D81: Лузский муниципальный округ | E81: …
A82: 336221010011000 | C82: Кировская область | D82: г Луза | E82: 8633
A83: 4160310200 | B83: 39 | C83: Ленинградская область | D83: Городское поселение Пикалёвское | E83: 20161
A84: 416031020011000 | C84: Ленинградская область | D84: г Пикалёво | E84: 20161
A85: 4771200010 | B85: 40 | C85: Мурманская область | D85: Муниципальный округ город Кировск | E85: …
A86: 477120000011100 | C86: Мурманская область | D86: г Кировск | E86: 23906
A87: 4770300011 | B87: 41 | C87: Мурманская область | D87: Ковдорский муниципальный округ | E87: …
A88: 477030000011110 | C88: Мурманская область | D88: г Ковдор | E88: 15489
A89: 4761015411 | B89: 42 | C89: Мурманская область | D89: Городское поселение Ревда | E89: 6443
A90: 476101540511110 | C90: Мурманская область | D90: пгт Ревда | E90: 6443
A91: 4965040200 | B91: 43 | C91: Новгородская область | D91: Грузинское сельское поселение | E91: 2349
A92: 496504020512000 | C92: Новгородская область | D92: поселок Краснофарфорный (снп) | E92: 0
A93: 4963210100 | B93: 44 | C93: Новгородская область | D93: Пестовский муниципальный округ | E93: …
A94: 496321010011000 | C94: Новгородская область | D94: г Пестово | E94: 13616
A95: 5372000000 | B95: 45 | C95: Оренбургская область | D95: Городской округ город Новотроицк | E95: 79410
A96: 537200000011000 | C96: Оренбургская область | D96: г Новотроицк | E96: 74469
A97: 5371400000 | B97: 46 | C97: Оренбургская область | D97: Кувандыкский городской округ | E97: 40357
A98: 537140000011000 | C98: Оренбургская область | D98: г Кувандык | E98: 26398
A99: 5364042800 | B99: 47 | C99: Оренбургская область | D99: Сельское поселение Светлинский поссовет | E99: 7024
A100: 536404281012000 | C100: Оренбургская область | D100: посёлок Светлый (снп) | E100: 0
A101: 5762610100 | B101: 48 | C101: Пермский край | D101: Красновишерский городской округ | E101: 17217
A102: 576261010011000 | C102: Пермский край | D102: г Красновишерск | E102: 13976
A103: 5764410100 | B103: 49 | C103: Пермский край | D103: Очерский городской округ | E103: 22301
A104: 576441010011000 | C104: Пермский край | D104: г Очер | E104: 14194
A105: 5761440600 | B105: 51 | C105: Пермский край | D105: Чусовской городской округ | E105: 63686
A106: 576144060511000 | C106: Пермский край | D106: г Чусовой | E106: 44366
A107: 5765810100 | B107: 54 | C107: Приморский край | D107: Дальнегорский городской округ | E107: 38543
A108: 576581010011000 | C108: Приморский край | D108: г Дальнегорск | E108: 32720
A109: 5763410100 | B109: 55 | C109: Приморский край | D109: Пожарский муниципальный округ | E109: …
A110: 576341010011000 | C110: Приморский край | D110: с. Светлогорье (снп) | E110: …
A111: 5763415700 | B111: 56 | C111: Приморский край | D111: Хорольский муниципальный округ | E111: …
A112: 576341570511000 | C112: Приморский край | D112: пгт Ярославский | E112: 8074
A113: 0570700020 | B113: 57 | C113: Республика Башкортостан | D113: Городское поселение г Белебей | E113: 58818
A114: 057070000011200 | C114: Республика Башкортостан | D114: г Белебей | E114: 58818
A115: 0563442101 | B115: 58 | C115: Республика Башкортостан | D115: Городской округ г Кумертау | E115: 61143
A116: 56344211012010 | C116: Республика Башкортостан | D116: г Кумертау | E116: 57289
A117: 0565015600 | B117: 59 | C117: Республика Бурятия | D117: Городское поселение Селенгинское | E117: 13130
A118: 056501560511000 | C118: Республика Бурятия | D118: пгт Селенгинск | E118: 13130
A119: 8060910100 | B119: 60 | C119: Республика Дагестан | D119: Городской округ город Каспийск | E119: 129833
A120: 806091010011000 | C120: Республика Дагестан | D120: г Каспийск | E120: 129833
A121: 8072300000 | B121: 61 | C121: Республика Дагестан | D121: Городской округ город Дагестанские Огни | E121: 32330
A122: 807230000011000 | C122: Республика Дагестан | D122: г Дагестанские Огни | E122: 32330
A123: 8162416300 | B123: 62 | C123: Республика Карелия | D123: Суоярвский муниципальный округ | E123: …
A124: 816241630511000 | C124: Республика Карелия | D124: г Суоярви | E124: 6697
A125: 8272000000 | B125: 63 | C125: Республика Карелия | D125: Кондопожское городское поселение | E125: 25583
A126: 827200000011002 | C126: Республика Карелия | D126: г Кондопога | E126: 25040
A127: 8270800000 | B127: 64 | C127: Республика Карелия | D127: Муезерское городское поселение | E127: 2445
A128: 827080000011000 | C128: Республика Карелия | D128: пгт Муезерский | E128: 2445
A129: 8665010120 | B129: 65 | C129: Республика Карелия | D129: Сегежский муниципальный округ | E129: …
A130: 866501010011200 | C130: Республика Карелия | D130: пгт Надвоицы | E130: 5857
A131: 8661510120 | B131: 66 | C131: Республика Карелия | D131: Питкярантский муниципальный округ | E131: …
A132: 866151010011200 | C132: Республика Карелия | D132: г Питкяранта | E132: 7973
A133: 8662715120 | B133: 67 | C133: Республика Карелия | D133: Пудожское городское поселение | E133: 7938
A134: 866271510511200 | C134: Республика Карелия | D134: г Пудож | E134: 7104
A135: 8664516020 | B135: 68 | C135: Республика Коми | D135: Городское поселение Емва | E135: 10710
A136: 866451600511200 | C136: Республика Коми | D136: г Емва | E136: 10620
A137: 8663310120 | B137: 69 | C137: Республика Крым | D137: Городской округ Красноперекопск | E137: 25171
A138: 866331010011200 | C138: Республика Крым | D138: г Красноперекопск | E138: 25171
A139: 8664210120 | B139: 70 | C139: Республика Татарстан | D139: Городское поселение г Зеленодольск | E139: 98888
A140: 866421010011200 | C140: Республика Татарстан | D140: г Зеленодольск | E140: 98888
A141: 8760810120 | B141: 71 | C141: Республика Татарстан | D141: Городской округ - город Набережные Челны | E141: 544383
A142: 876081010011200 | C142: Республика Татарстан | D142: г Набережные Челны | E142: 544383
A143: 3571800000 | B143: 72 | C143: Республика Хакасия | D143: Сельское поселение Туимский сельсовет | E143: 3687
A144: 357180000011000 | C144: Республика Хакасия | D144: с Туим (снп) | E144: 3618
A145: 9262810100 | B145: 72-1 | C145: Республика Хакасия | D145: Городской округ г Абаза | E145: 11962
A146: 926281010011000 | C146: Республика Хакасия | D146: г Абаза | E146: 11962
A147: 9273000000 | B147: 72-2 | C147: Республика Хакасия | D147: Городское поселение Вершино-Тёйский поссовет | E147: 2950
A148: 927300000011002 | C148: Республика Хакасия | D148: рп Вершина Тёи | E148: 2950
A149: 9563540300 | B149: 73 | C149: Ростовская область | D149: Городской округ Город Гуково | E149: 58965
A150: 956354031012000 | C150: Ростовская область | D150: г Гуково | E150: 58965
A151: 9570200000 | B151: 73-1 | C151: Самарская область | D151: Городской округ Тольятти | E151: 667956
A152: 957020000011000 | C152: Самарская область | D152: г Тольятти | E152: 667956
A153: 9560816900 | B153: 74 | C153: Свердловская область | D153: Волчанский городской округ | E153: 8570
A154: 956081690511000 | C154: Свердловская область | D154: г Волчанск | E154: 8376
A155: 6071500000 | B155: 75 | C155: Свердловская область | D155: Городской округ Первоуральск | E155: 130039
A156: 607150000011000 | C156: Свердловская область | D156: г Первоуральск | E156: 111751
A157: 3674000000 | B157: 76 | C157: Свердловская область | D157: Североуральский городской округ | E157: 35125
A158: 367400000011002 | C158: Свердловская область | D158: г Североуральск | E158: 23871
A159: 6573500000 | B159: 77 | C159: Свердловская область | D159: Городской округ Карпинск | E159: 26968
A160: 657350000011000 | C160: Свердловская область | D160: г Карпинск | E160: 25214
A161: 6575300000 | B161: 78 | C161: Свердловская область | D161: Городской округ Краснотурьинск | E161: 58850
A162: 657530000011002 | C162: Свердловская область | D162: г Краснотурьинск | E162: 55487
A163: 6575500000 | B163: 78-1 | C163: Смоленская область | D163: Дорогобужское городское поселение | E163: 9086
A164: 657550000011000 | C164: Смоленская область | D164: г Дорогобуж | E164: 9086
A165: 6574200000 | B165: 79 | C165: Тверская область | D165: Фировский муниципальный округ | E165: …
A166: 657420000011000 | C166: Тверская область | D166: пгт Великооктябрьский | E166: 1999
A167: 6574500000 | B167: 80 | C167: Тверская область | D167: Кувшиновский муниципальный округ | E167: …
A168: 657450000011000 | C168: Тверская область | D168: г Кувшиново | E168: 8963
A169: 6661410100 | B169: 81 | C169: Тверская область | D169: Жарковский муниципальный округ | E169: …
A170: 666141010011000 | C170: Тверская область | D170: пгт Жарковский | E170: 2737
A171: 2865715700 | B171: 82 | C171: Тверская область | D171: Спировский муниципальный округ | E171: …
A172: 286571570511000 | C172: Тверская область | D172: пгт Спирово | E172: 5078
A173: 2863410100 | B173: 82-1 | C173: Ульяновская область | D173: Городской округ г Димитровград | E173: 108804
A174: 286341010011000 | C174: Ульяновская область | D174: г Димитровград | E174: 108804
A175: 2861415100 | B175: 83 | C175: Хабаровский край | D175: Городское поселение рп Чегдомын | E175: 12414
A176: 286141510511000 | C176: Хабаровский край | D176: пгт Чегдомын | E176: 11522
A177: 2865215100 | B177: 84 | C177: Челябинская область | D177: Усть-Катавский городской округ | E177: 23326
A178: 286521510511000 | C178: Челябинская область | D178: г Усть-Катав | E178: 20822
A179: 7370500000 | B179: 85 | C179: Челябинская область | D179: Карабашский городской округ | E179: 10372
A180: 737050000011002 | C180: Челябинская область | D180: г Карабаш | E180: 10131
A181: 0861415121 | B181: 86 | C181: Челябинская область | D181: Нязепетровское городское поселение | E181: 10114
A182: 086141510511210 | C182: Челябинская область | D182: г Нязепетровск | E182: 10112
A183: 7575500000 | B183: 87 | C183: Челябинская область | D183: Ашинское городское поселение | E183: 27049
A184: 757550000011000 | C184: Челябинская область | D184: г Аша | E184: 27049
A185: 7571500000 | B185: 88 | C185: Челябинская область | D185: Миньярское городское поселение | E185: 8315
A186: 757150000011000 | C186: Челябинская область | D186: г Миньяр | E186: 8211
A187: 7564410100 | B187: 89 | C187: Челябинская область | D187: Верхнеуфалейский городской округ | E187: 25205
A188: 756441010011000 | C188: Челябинская область | D188: г Верхний Уфалей | E188: 22223
A189: 7560910100 | B189: 90 | C189: Челябинская область | D189: Бакальское городское поселение | E189: 16091
A190: 756091010011000 | C190: Челябинская область | D190: г Бакал | E190: 16025
A191: 7560910300 | B191: 91 | C191: Чувашская Республика | D191: Канашский городской округ | E191: 43508
A192: 756091030011000 | C192: Чувашская Республика | D192: г Канаш | E192: 43508
A193: 7570600000 | B193: 92 | C193: Чувашская Республика | D193: Мариинско-Посадский муниципальный округ | E193: …
A194: 757060000011000 | C194: Чувашская Республика | D194: г Мариинский Посад | E194: 7570
A195: 7564910300 | B195: 93 | C195: Ярославская область | D195: Сельское поселение Песочное | E195: 2481
A196: 756491030011000 | C196: Ярославская область | D196: поселок Песочное (снп) | E196: 0
A197: 9770700000 | B197: 94 | C197: Ярославская область | D197: Городское поселение Гаврилов-Ям | E197: 15576
C198: Ярославская область | D198: г Гаврилов-Ям | E198: 15576
B200: Позиция 31-1 введена распоряжением Правительства Российской Федерации от 24.11.2015 № 2388-р
B201: Позиции 72-1, 72-2, 73-1 введены распоряжением Правительства Российской Федерации от 28.10.2015 № 2190-р
... 5 more rows

Sheet Таб_5.2
B1: Содержание
B2: 5.2. Муниципальные образования, в которых имеются риски ухудшения социально-экономического положения
C4: Субъект Российской Федерации | D4: Муниципальное образование, городской населенный пункт (моногорода, в которых имеются риски ухудшения социально-экономического положения) | E4: На 1 января 2024 г.; человек
A5: 0173000000 | B5: 95 | C5: Алтайский край | D5: Городской округ г Яровое | E5: 16528
A6: 017300000011000 | C6: Алтайский край | D6: г Яровое | E6: 16528
A7: 0170600000 | B7: 96 | C7: Алтайский край | D7: Городской округ г Заринск | E7: 40255
A8: 017060000011000 | C8: Алтайский край | D8: г Заринск | E8: 40255
A9: 0170300000 | B9: 97 | C9: Алтайский край | D9: Городской округ г Алейск | E9: 24604
A10: 017030000011000 | C10: Алтайский край | D10: г Алейск | E10: 24604
A11: 0171300000 | B11: 98 | C11: Алтайский край | D11: Городской округ г Новоалтайск | E11: 73511
A12: 017130000011000 | C12: Алтайский край | D12: г Новоалтайск | E12: 73511
A13: 0160515700 | B13: 99 | C13: Алтайский край | D13: Городское поселение Степноозёрский поссовет | E13: 5501
A14: 016051570511000 | C14: Алтайский край | D14: пгт Степное Озеро | E14: 5501
A15: 1073200020 | B15: 100 | C15: Амурская область | D15: Городской округ г Тында | E15: 27796
A16: 107320000011200 | C16: Амурская область | D16: г Тында | E16: 27796
A17: 1071000000 | B17: 101 (1) | C17: Амурская область | D17: Городской округ - пгт Прогресс | E17: 10872
A18: 107100000011000 | C18: Амурская область | D18: пгт Прогресс | E18: 9762
A19: 1165415120 | B19: 102 | C19: Архангельская область | D19: Устьянский муниципальный округ | E19: …
A20: 116541510511200 | C20: Архангельская область | D20: рп Октябрьский | E20: 9337
A21: 1170800020 | B21: 103 | C21: Архангельская область | D21: Городской округ Коряжма | E21: 33663
A22: 117080000011200 | C22: Архангельская область | D22: г Коряжма | E22: 33663
A23: 1171500020 | B23: 104 | C23: Архангельская область | D23: Городской округ Новодвинск | E23: 32639
A24: 117150000011200 | C24: Архангельская область | D24: г Новодвинск | E24: 32638
A25: 1565410100 | B25: 105 | C25: Брянская область | D25: Суражское городское поселение | E25: 10932
A26: 156541010011000 | C26: Брянская область | D26: г Сураж | E26: 10932
A27: 1571000000 | B27: 106 | C27: Брянская область | D27: Городской округ город Фокино | E27: 12104
A28: 157100000011000 | C28: Брянская область | D28: г Фокино | E28: 12104
A29: 1764210100 | B29: 107 | C29: Владимирская область | D29: Городское поселение город Меленки | E29: 12902
A30: 176421010011000 | C30: Владимирская область | D30: г Меленки | E30: 12902
A31: 1761010100 | B31: 108 | C31: Владимирская область | D31: Городское поселение город Вязники | E31: 38680
A32: 176101010011000 | C32: Владимирская область | D32: г Вязники | E32: 34373
A33: 1872000000 | B33: 109 | C33: Волгоградская область | D33: Городской округ город Михайловка | E33: 82402
A34: 187200000011000 | C34: Волгоградская область | D34: г Михайловка | E34: 54772
A35: 1872800000 | B35: 110 | C35: Волгоградская область | D35: Городской округ город Фролово | E35: 34173
A36: 187280000011000 | C36: Волгоградская область | D36: г Фролово | E36: 34173
A37: 1963810100 | B37: 111 | C37: Вологодская область | D37: Сокольский муниципальный округ | E37: …
A38: 196381010011000 | C38: Вологодская область | D38: г Сокол | E38: 33954
A39: 2062716000 | B39: 112 | C39: Воронежская область | D39: Елань-Коленовское городское поселение | E39: 3157
A40: 206271600511000 | C40: Воронежская область | D40: пгт Елань-Коленовский рп | E40: 3156
A41: 2064910100 | B41: 113 | C41: Воронежская область | D41: Городское поселение город Семилуки | E41: 28015
A42: 206491010011000 | C42: Воронежская область | D42: г Семилуки | E42: 28015
A43: 2063310100 | B43: 114 | C43: Воронежская область | D43: Городское поселение город Павловск | E43: 21636
A44: 206331010011000 | C44: Воронежская область | D44: г Павловск | E44: 21636
A45: 9962017000 | B45: 115 | C45: Еврейская автономная область | D45: Теплоозерское городское поселение | E45: 4585
A46: 996201700511000 | C46: Еврейская автономная область | D46: пгт Теплоозерск | E46: 3426
A47: 7664415420 | B47: 116 | C47: Забайкальский край | D47: Тунгокоченский муниципальный округ | E47: …
A48: 766441540511200 | C48: Забайкальский край | D48: пгт Вершино-Дарасунский | E48: 4766
A49: 7660915400 | B49: 117 | C49: Забайкальский край | D49: Городское поселение Шерловогорское | E49: 9910
A50: 766091540511000 | C50: Забайкальский край | D50: пгт Шерловая Гора | E50: 9910
A51: 7664015400 | B51: 118 | C51: Забайкальский край | D51: Городское поселение Кокуйское | E51: 5536
A52: 766401540511000 | C52: Забайкальский край | D52: пгт Кокуй | E52: 5412
A53: 2461110400 | B53: 119 | C53: Ивановская область | D53: Наволокское городское поселение | E53: 10040
A54: 246111040011000 | C54: Ивановская область | D54: г Наволоки | E54: 7780
A55: 2463315400 | B55: 120 | C55: Ивановская область | D55: Колобовское городское поселение | E55: 3217
A56: 246331540511000 | C56: Ивановская область | D56: пгт Колобово | E56: 2284
A57: 2470300000 | B57: 121 | C57: Ивановская область | D57: Городской округ Вичуга | E57: 29623
A58: 247030000011000 | C58: Ивановская область | D58: г Вичуга | E58: 29623
A59: 2462010600 | B59: 122 | C59: Ивановская область | D59: Приволжское городское поселение | E59: 14047
A60: 246201060011000 | C60: Ивановская область | D60: г Приволжск | E60: 14047
A61: 2574500000 | B61: 123 | C61: Иркутская область | D61: Городской округ Черемховское | E61: 53160
A62: 257450000011000 | C62: Иркутская область | D62: г Черемхово | E62: 53160
A63: 2572600000 | B63: 124 | C63: Иркутская область | D63: Городской округ г Саянск | E63: 35724
A64: 257260000011000 | C64: Иркутская область | D64: г Саянск | E64: 35724
A65: 2573800020 | B65: 125 | C65: Иркутская область | D65: Городской округ г Усть-Илимск | E65: 77762
A66: 257380000011200 | C66: Иркутская область | D66: г Усть-Илимск | E66: 77762
A67: 2562610120 | B67: 126 | C67: Иркутская область | D67: Железногорское городское поселение | E67: 20869
A68: 256261010011200 | C68: Иркутская область | D68: г Железногорск-Илимский | E68: 20869
A69: 2961610400 | B69: 126(1) | C69: Калининградская область | D69: Янтарный городской округ | E69: 7206
A70: 296161040011000 | C70: Калининградская область | D70: пгт Янтарный | E70: 6534
A71: 2960810100 | B71: 127 | C71: Калужская область | D71: Городское поселение город Сосенский | E71: 11469
A72: 296081010011000 | C72: Калужская область | D72: г Сосенский | E72: 11243
A73: 9163015800 | B73: 128 | C73: Калужская область | D73: Городское поселение город Кондрово | E73: 15572
A74: 916301580511000 | C74: Калужская область | D74: г Кондрово | E74: 15572
A75: 3261610100 | B75: 129 | C75: Карачаево-Черкесская Республика | D75: Медногорское городское поселение | E75: 5481
A76: 326161010011000 | C76: Карачаево-Черкесская Республика | D76: пгт Медногорский (рп) | E76: 5481
A77: 3263110100 | B77: 130 | C77: Кемеровская область | D77: Мариинский муниципальный округ | E77: …
A78: 326311010011000 | C78: Кемеровская область | D78: г Мариинск | E78: 40266
A79: 3264615100 | B79: 131 | C79: Кемеровская область | D79: Топкинский муниципальный округ | E79: …
A80: 326461510511000 | C80: Кемеровская область | D80: г Топки | E80: 26877
A81: 3272800000 | B81: 132 | C81: Кемеровская область | D81: Яшкинский муниципальный округ | E81: …
A82: 327280000011000 | C82: Кемеровская область | D82: пгт Яшкино | E82: 12744
A83: 3272500000 | B83: 134 | C83: Кемеровская область | D83: Мысковский городской округ | E83: 41229
A84: 327250000011000 | C84: Кемеровская область | D84: г Мыски | E84: 39218
A85: 3271000000 | B85: 135 | C85: Кемеровская область | D85: Междуреченский городской округ | E85: 96216
A86: 327100000011000 | C86: Кемеровская область | D86: г Междуреченск | E86: 95080
A87: 3274000000 | B87: 136 | C87: Кемеровская область | D87: Березовский городской округ | E87: 45757
A88: 327400000011000 | C88: Кемеровская область | D88: г Березовский | E88: 43649
A89: 3271900000 | B89: 137 | C89: Кемеровская область | D89: Тайгинский городской округ | E89: 23065
A90: 327190000011000 | C90: Кемеровская область | D90: г Тайга | E90: 21938
A91: 3273400000 | B91: 138 | C91: Кемеровская область | D91: Ленинск-Кузнецкий городской округ | E91: 90570
A92: 327340000011000 | C92: Кемеровская область | D92: г Ленинск-Кузнецкий | E92: 89284
A93: 3273200000 | B93: 139 | C93: Кемеровская область | D93: Осинниковский городской округ | E93: 43655
A94: 327320000011000 | C94: Кемеровская область | D94: г Осинники | E94: 39223
A95: 3270700000 | B95: 140 | C95: Кемеровская область | D95: Полысаевский городской округ | E95: 27901
A96: 327070000011000 | C96: Кемеровская область | D96: г Полысаево | E96: 25378
A97: 3360710100 | B97: 141 | C97: Кемеровская область | D97: Беловский городской округ | E97: 119175
A98: 336071010011000 | C98: Кемеровская область | D98: г Белово | E98: 67504
A99: 3363215400 | B99: 142 | C99: Кировская область | D99: Верхнекамский муниципальный округ | E99: …
A100: 336321540511000 | C100: Кировская область | D100: г Кирс | E100: 8169
A101: 3364110100 | B101: 143 | C101: Кировская область | D101: Демьяновское городское поселение | E101: 4806
A102: 336411010011000 | C102: Кировская область | D102: пгт Демьяново | E102: 4222
A103: 3471400000 | B103: 144 | C103: Кировская область | D103: Уржумское городское поселение | E103: 8245
A104: 347140000011000 | C104: Кировская область | D104: г Уржум | E104: 8245
A105: 3470800000 | B105: 145 | C105: Костромская область | D105: Мантуровский муниципальный округ | E105: …
A106: 347080000011000 | C106: Костромская область | D106: г Мантурово | E106: 12576
A107: 0470700000 | B107: 146 | C107: Костромская область | D107: Городской округ город Галич | E107: 12488
A108: 047070000011000 | C108: Костромская область | D108: г Галич | E108: 12488
A109: 0473700000 | B109: 147 | C109: Красноярский край | D109: Городской округ г Бородино | E109: 14967
A110: 047370000011000 | C110: Красноярский край | D110: г Бородино | E110: 14967
A111: 3761210100 | B111: 148 | C111: Красноярский край | D111: Городской округ ЗАТО г Зеленогорск | E111: 52913
A112: 376121010011000 | C112: Красноярский край | D112: г Зеленогорск | E112: 52913
A113: 3762610100 | B113: 149 | C113: Курганская область | D113: Катайский муниципальный округ | E113: …
A114: 376261010011000 | C114: Курганская область | D114: г Катайск | E114: 11494
A115: 3760810100 | B115: 150 | C115: Курганская область | D115: Петуховский муниципальный округ | E115: …
A116: 376081010011000 | C116: Курганская область | D116: г Петухово | E116: 8342
A117: 3870500000 | B117: 151 | C117: Курганская область | D117: Далматовский муниципальный округ | E117: …
A118: 387050000012000 | C118: Курганская область | D118: г Далматово | E118: 11249
A119: 4164210100 | B119: 152 | C119: Курская область | D119: Городской округ город Железногорск | E119: 95578
A120: 416421010011000 | C120: Курская область | D120: г Железногорск | E120: 95578
A121: 4761515110 | B121: 153 | C121: Ленинградская область | D121: Городское поселение Сланцевское | E121: 34648
A122: 476151510511100 | C122: Ленинградская область | D122: г Сланцы | E122: 33514
A123: 4771500010 | B123: 154 | C123: Мурманская область | D123: Печенгский муниципальный округ | E123: …
A124: 477150000011100 | C124: Мурманская область | D124: пгт Никель | E124: 9210
A125: 4761510310 | B125: 155 | C125: Мурманская область | D125: Муниципальный округ город Мончегорск | E125: …
A126: 476151030011100 | C126: Мурманская область | D126: г Мончегорск | E126: 39203
A127: 4771700010 | B127: 156 | C127: Мурманская область | D127: Печенгский муниципальный округ | E127: …
A128: 477170000011100 | C128: Мурманская область | D128: г Заполярный | E128: 13948
A129: 2262810300 | B129: 157 | C129: Мурманская область | D129: Муниципальный округ город Оленегорск | E129: …
A130: 226281030011000 | C130: Мурманская область | D130: г Оленегорск | E130: 20695
A131: 2260215500 | B131: 158 | C131: Нижегородская область | D131: Городецкий муниципальный округ | E131: …
A132: 226021550511000 | C132: Нижегородская область | D132: г Заволжье | E132: 36166
A133: 2273000000 | B133: 159 | C133: Нижегородская область | D133: Ардатовский муниципальный округ | E133: …
A134: 227300000011000 | C134: Нижегородская область | D134: пгт Мухтолово | E134: 4152
A135: 2272700000 | B135: 160 | C135: Нижегородская область | D135: Городской округ Навашинский | E135: 20671
A136: 227270000011000 | C136: Нижегородская область | D136: г Навашино | E136: 14180
A137: 2264210300 | B137: 161 | C137: Нижегородская область | D137: Городской округ г Кулебаки | E137: 45056
A138: 226421030011000 | C138: Нижегородская область | D138: г Кулебаки | E138: 31412
A139: 4963015100 | B139: 162 | C139: Нижегородская область | D139: Павловский муниципальный округ | E139: …
A140: 496301510511000 | C140: Нижегородская область | D140: г Ворсма | E140: 9920
A141: 4960610100 | B141: 163 | C141: Новгородская область | D141: Парфинское городское поселение | E141: 6329
A142: 496061010011000 | C142: Новгородская область | D142: пгт Парфино рп | E142: 6228
A143: 4962816200 | B143: 164 | C143: Новгородская область | D143: Городское поселение город Боровичи | E143: 46918
A144: 496281620511000 | C144: Новгородская область | D144: г Боровичи | E144: 46918
A145: 5061515200 | B145: 165 | C145: Новгородская область | D145: Угловское городское поселение | E145: 2623
A146: 506151520511000 | C146: Новгородская область | D146: пгт Угловка рп | E146: 2176
A147: 5262915700 | B147: 166 | C147: Новосибирская область | D147: Городское поселение рабочий посёлок Линево | E147: 17610
A148: 526291570511000 | C148: Новосибирская область | D148: пгт Линево рп | E148: 17610
A149: 5371500000 | B149: 167 | C149: Омская область | D149: Красноярское городское поселение | E149: 5453
A150: 537150000011000 | C150: Омская область | D150: пгт Красный Яр рп | E150: 5453
A151: 5371300000 | B151: 168 | C151: Оренбургская область | D151: Городской округ город Медногорск | E151: 24149
A152: 537130000011000 | C152: Оренбургская область | D152: г Медногорск | E152: 23013
A153: 5471000000 | B153: 169 | C153: Оренбургская область | D153: Гайский городской округ | E153: 39040
A154: 547100000011000 | C154: Оренбургская область | D154: г Гай | E154: 32363
A155: 5665610100 | B155: 170 | C155: Орловская область | D155: Городской округ город Мценск | E155: 35554
A156: 566561010011000 | C156: Орловская область | D156: г Мценск | E156: 35554
A157: 5665310100 | B157: 171 | C157: Пензенская область | D157: Городское поселение город Сердобск | E157: 29472
A158: 566531010011000 | C158: Пензенская область | D158: г Сердобск | E158: 29472
A159: 5760510500 | B159: 172 | C159: Пензенская область | D159: Городское поселение город Никольск | E159: 19329
A160: 576051050011000 | C160: Пензенская область | D160: г Никольск | E160: 19329
A161: 5761440400 | B161: 173 | C161: Пермский край | D161: Александровский муниципальный округ | E161: …
A162: 576144040511000 | C162: Пермский край | D162: г Александровск | E162: 10316
A163: 5761410100 | B163: 175 | C163: Пермский край | D163: Горнозаводской городской округ | E163: 21697
A164: 576141010011000 | C164: Пермский край | D164: г Горнозаводск | E164: 10818
A165: 5764647200 | B165: 175(1) | C165: Пермский край | D165: Нытвенский городской округ | E165: 37780
A166: 576464721012000 | C166: Пермский край | D166: г Нытва | E166: 16283
A167: 0561415421 | B167: 176 | C167: Пермский край | D167: Пермский муниципальный округ | E167: …
A168: 056141540511210 | C168: Пермский край | D168: поселок Юго-Камский (снп) | E168: …
A169: 0572000000 | B169: 177 | C169: Приморский край | D169: Красноармейский муниципальный округ | E169: …
A170: 057200000011000 | C170: Приморский край | D170: пгт Восток | E170: 3159
A171: 0563415101 | B171: 178 | C171: Приморский край | D171: Спасск-Дальний городской округ | E171: 34822
A172: 056341510511010 | C172: Приморский край | D172: г Спасск-Дальний | E172: 34822
A173: 0570300000 | B173: 179 | C173: Приморский край | D173: Пожарский муниципальный округ | E173: …
A174: 057030000011000 | C174: Приморский край | D174: пгт Лучегорск | E174: 16967
A175: 0562015400 | B175: 180 | C175: Приморский край | D175: Арсеньевский городской округ | E175: 47015
A176: 056201540511000 | C176: Приморский край | D176: г Арсеньев | E176: 47015
A177: 0562615400 | B177: 181 | C177: Приморский край | D177: Новошахтинское городское поселение | E177: 7369
A178: 056261540511000 | C178: Приморский край | D178: пгт Новошахтинский | E178: 7025
A179: 8061110100 | B179: 182 | C179: Приморский край | D179: Октябрьский муниципальный округ | E179: …
A180: 806111010011000 | C180: Приморский край | D180: пгт Липовцы | E180: 5225
A181: 8072700000 | B181: 183 | C181: Республика Башкортостан | D181: Городское поселение г Белорецк | E181: 63743
A182: 807270000011000 | C182: Республика Башкортостан | D182: г Белорецк | E182: 63743
A183: 8162415800 | B183: 184 | C183: Республика Башкортостан | D183: Городской округ г Нефтекамск | E183: 144598
A184: 816241580511000 | C184: Республика Башкортостан | D184: г Нефтекамск | E184: 133960
A185: 8164810100 | B185: 185 | C185: Республика Бурятия | D185: Городское поселение Каменское | E185: 6947
A186: 816481010011000 | C186: Республика Бурятия | D186: пгт Каменск | E186: 6298
A187: 8172000020 | B187: 186 | C187: Республика Бурятия | D187: Городское поселение Город Гусиноозерск | E187: 24398
A188: 817200000011200 | C188: Республика Бурятия | D188: г Гусиноозерск | E188: 24310
A189: 8163644200 | B189: 187 | C189: Республика Бурятия | D189: Городской округ г Северобайкальск | E189: 24340
A190: 816364421012000 | C190: Республика Бурятия | D190: г Северобайкальск | E190: 24340
A191: 8664510120 | B191: 188 | C191: Республика Бурятия | D191: Сельское поселение Саганнурское | E191: 4033
A192: 866451010011200 | C192: Республика Бурятия | D192: поселок Саган-Нур снп | E192: …
A193: 8662415520 | B193: 189 | C193: Республика Карелия | D193: Сегежский муниципальный округ | E193: …
A194: 866241550511200 | C194: Республика Карелия | D194: г Сегежа | E194: 22815
A195: 8670600010 | B195: 190 | C195: Республика Карелия | D195: Пиндушское городское поселение | E195: 4214
A196: 867060000011100 | C196: Республика Карелия | D196: пгт Пиндуши | E196: 3818
A197: 8661810120 | B197: 191 | C197: Республика Карелия | D197: Городской округ г Костомукша | E197: 26470
A198: 866181010011200 | C198: Республика Карелия | D198: г Костомукша | E198: 25878
A199: 8661016020 | B199: 192 | C199: Республика Карелия | D199: Лахденпохское городское поселение | E199: 5725
A200: 866101600511200 | C200: Республика Карелия | D200: г Лахденпохья | E200: 5725
A201: 8771500010 | B201: 193 | C201: Республика Карелия | D201: Вяртсильское городское поселение | E201: 2061
... 113 more rows

Sheet Таб_5.3
B1: Содержание
B2: 5.3. Муниципальные образования со стабильной социально-экономической ситуацией
C4: Субъект Российской Федерации | D4: Муниципальное образование, городской населенный пункт (моногорода со стабильной социально-экономической ситуацией) | E4: На 1 января 2024 г.; человек
A5: 1165018820 | B5: 249 | C5: Архангельская область | D5: Плесецкий муниципальный округ | E5: …
A6: 116501880511200 | C6: Архангельская область | D6: рп Североонежск | E6: 4597
A7: 1173000010 | B7: 250 | C7: Архангельская область | D7: Городской округ Северодвинск | E7: 156310
A8: 117300000011102 | C8: Архангельская область | D8: г Северодвинск | E8: 155647
A9: 1473000000 | B9: 251 | C9: Белгородская область | D9: Губкинский городской округ | E9: 112690
A10: 147300000011000 | C10: Белгородская область | D10: г Губкин | E10: 83766
A11: 1562410100 | B11: 252 | C11: Брянская область | D11: Карачевское городское поселение | E11: 23199
A12: 156241010011000 | C12: Брянская область | D12: г Карачев | E12: 16770
A13: 1564215100 | B13: 253 | C13: Брянская область | D13: Погарское городское поселение | E13: 9439
A14: 156421510511000 | C14: Брянская область | D14: п Погар | E14: 9439
A15: 1571500000 | B15: 254 | C15: Брянская область | D15: Городской округ город Клинцы | E15: 68896
A16: 157150000011000 | C16: Брянская область | D16: г Клинцы | E16: 61627
A17: 1572500000 | B17: 255 | C17: Брянская область | D17: Городской округ город Сельцо | E17: 15397
A18: 157250000011000 | C18: Брянская область | D18: г Сельцо | E18: 15397
A19: 1764010100 | B19: 256 | C19: Владимирская область | D19: Городское поселение город Кольчугино | E19: 38466
A20: 176401010011000 | C20: Владимирская область | D20: г Кольчугино | E20: 37741
A21: 1765015700 | B21: 257 | C21: Владимирская область | D21: Городское поселение поселок Ставрово | E21: 6671
A22: 176501570511000 | C22: Владимирская область | D22: п Ставрово | E22: 6671
A23: 2064710100 | B23: 258 | C23: Воронежская область | D23: Городское поселение город Россошь | E23: 59977
A24: 206471010011000 | C24: Воронежская область | D24: г Россошь | E24: 59977
A25: 2463110100 | B25: 259 | C25: Ивановская область | D25: Фурмановское городское поселение | E25: 28926
A26: 246311010011000 | C26: Ивановская область | D26: г Фурманов | E26: 28926
A27: 2470700000 | B27: 260 | C27: Ивановская область | D27: Городской округ Тейково | E27: 30506
A28: 247070000011000 | C28: Ивановская область | D28: г Тейково | E28: 30506
A29: 2565510100 | B29: 261 | C29: Иркутская область | D29: Городское поселение город Шелехов | E29: 40666
A30: 256551010011000 | C30: Иркутская область | D30: г Шелехов | E30: 40666
A31: 3262717500 | B31: 261(1) | C31: Калужская область | D31: Городское поселение город Ермолино | E31: 11411
A32: 326271750511000 | C32: Калужская область | D32: г Ермолино | E32: 11411
A33: 3275100000 | B33: 262 | C33: Кемеровская область | D33: Шерегешское городское поселение | E33: 9942
A34: 327510000511000 | C34: Кемеровская область | D34: пгт Шерегеш | E34: 9702
A35: 3262815400 | B35: 263 | C35: Кемеровская область | D35: Прокопьевский муниципальный округ | E35: …
A36: 326281540511000 | C36: Кемеровская область | D36: пгт Краснобродский | E36: 11233
A37: 3273100001 | B37: 264 | C37: Кемеровская область | D37: Тисульский муниципальный округ | E37: …
A38: 327310000011012 | C38: Кемеровская область | D38: пгт Белогорск | E38: 2158
A39: 3361015400 | B39: 265 | C39: Кемеровская область | D39: Новокузнецкий городской округ | E39: 531186
A40: 336101540511000 | C40: Кемеровская область | D40: г Новокузнецк | E40: 531186
A41: 3362810100 | B41: 266 | C41: Кировская область | D41: Краснополянское городское поселение | E41: 5068
A42: 336281010011000 | C42: Кировская область | D42: пгт Красная Поляна | E42: 5068
A43: 3363015700 | B43: 267 | C43: Кировская область | D43: Омутнинское городское поселение | E43: 19472
A44: 336301570511000 | C44: Кировская область | D44: г Омутнинск | E44: 19095
A45: 3370700000 | B45: 268 | C45: Кировская область | D45: Стрижевское городское поселение | E45: 3137
A46: 337070000011000 | C46: Кировская область | D46: пгт Стрижи | E46: 3137
A47: 0472900010 | B47: 269 | C47: Кировская область | D47: Городской округ г Кирово-Чепецк | E47: 64571
A48: 047290000011102 | C48: Кировская область | D48: г Кирово-Чепецк | E48: 64571
A49: 0473500000 | B49: 270 | C49: Красноярский край | D49: Городской округ г Норильск | E49: 177427
A50: 047350000011000 | C50: Красноярский край | D50: г Норильск | E50: 176735
A51: 0472200020 | B51: 271 | C51: Красноярский край | D51: Городской округ ЗАТО г Железногорск | E51: 88213
A52: 047220000011200 | C52: Красноярский край | D52: г Железногорск | E52: 80914
A53: 3760615100 | B53: 272 | C53: Красноярский край | D53: Городской округ г Лесосибирск | E53: 58714
A54: 376061510511000 | C54: Красноярский край | D54: г Лесосибирск | E54: 54818
A55: 4160910800 | B55: 273 | C55: Курганская область | D55: Варгашинский муниципальный округ | E55: …
A56: 416091080011000 | C56: Курганская область | D56: пгт Варгаши | E56: 8323
A57: 4263310100 | B57: 274 | C57: Ленинградская область | D57: Городское поселение Сясьстройское | E57: 12916
A58: 426331010011000 | C58: Ленинградская область | D58: г Сясьстрой | E58: 12283
A59: 2273400000 | B59: 275 | C59: Липецкая область | D59: Городское поселение город Лебедянь | E59: 19020
A60: 227340000011000 | C60: Липецкая область | D60: г Лебедянь | E60: 19020
A61: 2264210100 | B61: 276 | C61: Нижегородская область | D61: Городской округ г Первомайск | E61: 17117
A62: 226421010011000 | C62: Нижегородская область | D62: г Первомайск | E62: 12988
A63: 2263110300 | B63: 277 | C63: Нижегородская область | D63: Павловский муниципальный округ | E63: …
A64: 226311030011000 | C64: Нижегородская область | D64: г Павлово | E64: 55872
A65: 2263310100 | B65: 278 | C65: Нижегородская область | D65: Володарский муниципальный округ | E65: …
A66: 226331010011000 | C66: Нижегородская область | D66: г Володарск | E66: 9588
A67: 2263116800 | B67: 279 | C67: Нижегородская область | D67: Княгининский муниципальный округ | E67: …
A68: 226311680511000 | C68: Нижегородская область | D68: г Княгинино | E68: 6409
A69: 2260510100 | B69: 280 | C69: Нижегородская область | D69: Володарский муниципальный округ | E69: …
A70: 226051010011000 | C70: Нижегородская область | D70: пгт Решетиха | E70: 6395
A71: 2271500000 | B71: 281 | C71: Нижегородская область | D71: Балахнинский муниципальный округ | E71: …
A72: 227150000011000 | C72: Нижегородская область | D72: г Балахна | E72: 47379
A73: 5065215300 | B73: 282 | C73: Нижегородская область | D73: Городской округ г Выкса | E73: 72393
A74: 506521530511000 | C74: Нижегородская область | D74: г Выкса | E74: 44060
A75: 5372500000 | B75: 283 | C75: Новосибирская область | D75: Городское поселение рабочий посёлок Горный | E75: 8981
A76: 537250000011000 | C76: Новосибирская область | D76: пгт Горный рп | E76: 8712
A77: 5373200000 | B77: 284 | C77: Оренбургская область | D77: Соль-Илецкий городской округ | E77: 45181
A78: 537320000011000 | C78: Оренбургская область | D78: г Соль-Илецк | E78: 25416
A79: 5664515100 | B79: 285 | C79: Оренбургская область | D79: Ясненский городской округ | E79: 17793
A80: 566451510511000 | C80: Оренбургская область | D80: г Ясный | E80: 15394
A81: 5673400000 | B81: 286 | C81: Пензенская область | D81: Городское поселение рабочий поселок Мокшан | E81: 11185
A82: 567340000011000 | C82: Пензенская область | D82: пгт Мокшан рп | E82: 10518
A83: 8065310100 | B83: 287 | C83: Пензенская область | D83: Городской округ город Заречный | E83: 58753
A84: 806531010011000 | C84: Пензенская область | D84: г Заречный | E84: 58753
A85: 8061510100 | B85: 287(1) | C85: Псковская область | D85: Печорский муниципальный округ | E85: …
A86: 806151010011000 | C86: Псковская область | D86: г Печоры | E86: 9547
A87: 8162110100 | B87: 288 | C87: Республика Башкортостан | D87: Городское поселение г Учалы | E87: 36121
A88: 816211010011000 | C88: Республика Башкортостан | D88: г Учалы | E88: 36121
A89: 8960715100 | B89: 289 | C89: Республика Башкортостан | D89: Городское поселение г Благовещенск | E89: 35238
A90: 896071510511000 | C90: Республика Башкортостан | D90: г Благовещенск | E90: 35238
A91: 9860317010 | B91: 290 | C91: Республика Бурятия | D91: Городское поселение г Закаменск | E91: 11508
A92: 986031700511100 | C92: Республика Бурятия | D92: г Закаменск | E92: 10928
A93: 9864415710 | B93: 291(1) | C93: Республика Марий Эл | D93: Городской округ город Козьмодемьянск | E93: 19054
A94: 986441570511100 | C94: Республика Марий Эл | D94: г Козьмодемьянск | E94: 19054
A95: 9863110110 | B95: 291 | C95: Республика Мордовия | D95: Атяшевское городское поселение | E95: 6781
A96: 986311010011100 | C96: Республика Мордовия | D96: пгт Атяшево | E96: 5969
A97: 9264410100 | B97: 292 | C97: Республика Саха (Якутия) | D97: Городское поселение Поселок Нижний Куранах | E97: 6012
A98: 926441010011002 | C98: Республика Саха (Якутия) | D98: пгт Нижний Куранах | E98: 5427
A99: 6160815600 | B99: 293 | C99: Республика Саха (Якутия) | D99: Городское поселение Поселок Мохсоголлох | E99: 5185
A100: 616081560511000 | C100: Республика Саха (Якутия) | D100: пгт Мохсоголлох | E100: 5185
A101: 6165815700 | B101: 294 | C101: Республика Саха (Якутия) | D101: Городское поселение г Мирный | E101: 34114
A102: 616581570511000 | C102: Республика Саха (Якутия) | D102: г Мирный | E102: 34114
A103: 3675000000 | B103: 295 | C103: Республика Татарстан | D103: Городское поселение г Нижнекамск | E103: 240588
A104: 367500000011000 | C104: Республика Татарстан | D104: г Нижнекамск | E104: 240379
A105: 6575100000 | B105: 296 | C105: Рязанская область | D105: Елатомское городское поселение | E105: 3284
A106: 657510000011002 | C106: Рязанская область | D106: пгт Елатьма | E106: 3178
A107: 6570800000 | B107: 297 | C107: Рязанская область | D107: Лесновское городское поселение | E107: 8116
A108: 657080000011000 | C108: Рязанская область | D108: пгт Лесной | E108: 7671
A109: 6575600000 | B109: 297(1) | C109: Рязанская область | D109: Новомичуринское городское поселение | E109: 16619
A110: 657560000011000 | C110: Рязанская область | D110: г Новомичуринск | E110: 16619
A111: 6571900000 | B111: 297(2) | C111: Самарская область | D111: Городской округ Новокуйбышевск | E111: 98550
A112: 657190000011000 | C112: Самарская область | D112: г. Новокуйбышевск | E112: 96489
A113: 6575400000 | B113: 298 | C113: Самарская область | D113: Городской округ Чапаевск | E113: 68824
A114: 657540000011000 | C114: Самарская область | D114: г Чапаевск | E114: 68815
A115: 6576200000 | B115: 299 | C115: Свердловская область | D115: Город Нижний Тагил | E115: 333179
A116: 657620000511000 | C116: Свердловская область | D116: г Нижний Тагил | E116: 330507
A117: 6871000000 | B117: 300 | C117: Свердловская область | D117: Верхнесалдинский городской округ | E117: 41952
A118: 687100000011000 | C118: Свердловская область | D118: г Верхняя Салда | E118: 40132
A119: 6860615100 | B119: 301 | C119: Свердловская область | D119: Серовский городской округ | E119: 98415
A120: 686061510511000 | C120: Свердловская область | D120: г Серов | E120: 92349
A121: 2875100000 | B121: 302 | C121: Свердловская область | D121: Городской округ Ревда | E121: 60262
A122: 287510000011000 | C122: Свердловская область | D122: г Ревда | E122: 59036
A123: 6974100000 | B123: 303 | C123: Свердловская область | D123: Полевской городской округ | E123: 59979
A124: 697410000011002 | C124: Свердловская область | D124: г Полевской | E124: 53748
A125: 7060610100 | B125: 304 | C125: Свердловская область | D125: Малышевский городской округ | E125: 9499
A126: 706061010011000 | C126: Свердловская область | D126: пгт Малышева | E126: 8385
A127: 7064815400 | B127: 305 | C127: Тамбовская область | D127: Городской округ город Котовск | E127: 26128
A128: 706481540511000 | C128: Тамбовская область | D128: г Котовск | E128: 26128
A129: 7064010100 | B129: 306 | C129: Тамбовская область | D129: Знаменский муниципальный округ | E129: …
A130: 706401010011000 | C130: Тамбовская область | D130: пгт Знаменка рп | E130: 5333
A131: 9471000000 | B131: 307 | C131: Тверская область | D131: Удомельский городской округ | E131: 29515
A132: 947100000011000 | C132: Тверская область | D132: г Удомля | E132: 25146
A133: 9472000000 | B133: 308 | C133: Томская область | D133: Городской округ г Северск | E133: 111494
A134: 947200000011000 | C134: Томская область | D134: г Северск | E134: 105304
A135: 7363615700 | B135: 309 | C135: Тульская область | D135: Городское поселение город Белев | E135: 12382
A136: 736361570511000 | C136: Тульская область | D136: г Белев | E136: 12382
A137: 7574300000 | B137: 310 | C137: Тульская область | D137: Городское поселение рабочий поселок Первомайский | E137: 9868
A138: 757430000011000 | C138: Тульская область | D138: пгт Первомайский рп | E138: 9868
A139: 7570700000 | B139: 311 | C139: Тульская область | D139: Городское поселение город Суворов | E139: 17388
A140: 757070000011000 | C140: Тульская область | D140: г Суворов | E140: 17388
A141: 7574600000 | B141: 312 | C141: Удмуртская Республика | D141: Городской округ Воткинск | E141: 96037
A142: 757460000011000 | C142: Удмуртская Республика | D142: г Воткинск | E142: 96037
A143: 7573800000 | B143: 313 | C143: Удмуртская Республика | D143: Городской округ Глазов | E143: 85870
A144: 757380000011002 | C144: Удмуртская Республика | D144: г Глазов | E144: 85870
A145: 9771000000 | B145: 314 | C145: Ульяновская область | D145: Силикатненское городское поселение | E145: 2958
A146: 977100000011002 | C146: Ульяновская область | D146: пгт Силикатный рп | E146: 2653
B147: 315 | C147: Челябинская область | D147: Озерский городской округ | E147: 86472
C148: Челябинская область | D148: г Озерск | E148: 76243
B149: 316 | C149: Челябинская область | D149: Трехгорный городской округ | E149: 32540
C150: Челябинская область | D150: г Трехгорный | E150: 32540
B151: 317 | C151: Челябинская область | D151: Снежинский городской округ | E151: 50994
C152: Челябинская область | D152: г Снежинск | E152: 50805
B153: 318 | C153: Челябинская область | D153: Магнитогорский городской округ | E153: 408715
C154: Челябинская область | D154: г Магнитогорск | E154: 408715
B155: 319 | C155: Чувашская Республика | D155: Новочебоксарский городской округ | E155: 120767
C156: Чувашская Республика | D156: г Новочебоксарск | E156: 120499
B158: Позиция 285 в ред. распоряжения Правительства Российской Федерации от 18.03.2019 № 453-р
B159: Позиция 287 (1) введена распоряжением Правительства Российской Федерации от 08.08.2019 № 1762-р
B160: Позиция 290 (1) введена распоряжением Правительства Российской Федерации от 08.08.2019 № 1762-р
B161: Позиция 297 (1) введена распоряжением Правительства Российской Федерации от 08.08.2019 № 1762-р
B162: Позиция 297 (2) введена распоряжением Правительства Российской Федерации от 08.08.2019 № 1762-р
B163: Позиция 307 в ред. распоряжения Правительства Российской Федерации от 18.03.2019 № 453-р

Sheet Таб_6
A1: Содержание
A2: Оценка численности населения в местах традиционного проживания коренных малочисленных народов Российской Федерации; (человек)
B4: На 1 января 2024 года
B5: Все | C5: в том числе
B6: население | C6: городское | D6: сельское
A7: Российская Федерация | B7: 3376806 | C7: 2538778 | D7: 838028
A8: Республика Алтай | B8: 57116 | C8: 0 | D8: 57116
A9: Кош-Агачский муниципальный район | B9: 18620 | C9: 0 | D9: 18620
A10: Майминский муниципальный район | B10: 8337 | C10: 0 | D10: 8337
A11: Кызыл-Озекское сельское поселение | B11: 6981 | C11: 0 | D11: 6981
A12: Бирюлинское сельское поселение | B12: 1356 | C12: 0 | D12: 1356
A13: Турочакский муниципальный район | B13: 10794 | C13: 0 | D13: 10794
A14: Улаганский муниципальный район | B14: 11926 | C14: 0 | D14: 11926
A15: Чойский муниципальный район | B15: 7439 | C15: 0 | D15: 7439
A16: Республика Бурятия | B16: 37691 | C16: 7465 | D16: 30226
A17: Баргузинский муниципальный район | B17: 6218 | C17: 0 | D17: 6218
A18: Сельское поселение Баргузинское | B18: 5076 | C18: 0 | D18: 5076
A19: Сельское поселение Сувинское | B19: 418 | C19: 0 | D19: 418
A20: Сельское поселение Юбилейное | B20: 724 | C20: 0 | D20: 724
A21: Баунтовский эвенкийский муниципальный район | B21: 7945 | C21: 0 | D21: 7945
A22: Закаменский муниципальный район | B22: 582 | C22: 0 | D22: 582
A23: Сельское поселение Мылинское*) | B23: 582 | C23: 0 | D23: 582
A24: Курумканский муниципальный район | B24: 7157 | C24: 0 | D24: 7157
A25: Сельское поселение Дырен эвенкийское | B25: 779 | C25: 0 | D25: 779
A26: Сельское поселение Улюнхан эвенкийское | B26: 732 | C26: 0 | D26: 732
A27: Сельское поселение Курумкан | B27: 5646 | C27: 0 | D27: 5646
A28: Муйский муниципальный район | B28: 366 | C28: 0 | D28: 366
A29: Сельское поселение Муйская сельская администрация | B29: 366 | C29: 0 | D29: 366
A30: Окинский муниципальный район | B30: 5349 | C30: 0 | D30: 5349
A31: Северо-Байкальский муниципальный район | B31: 10074 | C31: 7465 | D31: 2609
A32: Республика Карелия | B32: 2360 | C32: 0 | D32: 2360
A33: Прионежский муниципальный район | B33: 2360 | C33: 0 | D33: 2360
A34: Шокшинское вепсское сельское поселение | B34: 815 | C34: 0 | D34: 815
A35: Шелтозерское вепсское сельское поселение | B35: 1013 | C35: 0 | D35: 1013
A36: Рыборецкое вепсское сельское поселение | B36: 532 | C36: 0 | D36: 532
A37: Республика Коми | B37: 100199 | C37: 68325 | D37: 31874
A38: Городской округ Воркута | B38: 67547 | C38: 67249 | D38: 298
A39: Городской округ Инта без г Инты | B39: 1498 | C39: 392 | D39: 1106
A40: Городской округ Усинск без г Усинска | B40: 4607 | C40: 684 | D40: 3923
A41: Муниципальный район Ижемский | B41: 16187 | C41: 0 | D41: 16187
A42: Муниципальный район Усть-Цилемский | B42: 10360 | C42: 0 | D42: 10360
A43: Республика Саха (Якутия) | B43: 41115 | C43: 0 | D43: 41115
A44: Абыйский муниципальный район | B44: 483 | C44: 0 | D44: 483
A45: Сельское поселение Майорский национальный наслег | B45: 483 | C45: 0 | D45: 483
A46: Алданский муниципальный район | B46: 2088 | C46: 0 | D46: 2088
A47: Сельское поселение Беллетский эвенкийский национальный наслег | B47: 1669 | C47: 0 | D47: 1669
A48: Сельское поселение Национальный наслег Анамы | B48: 419 | C48: 0 | D48: 419
A49: Аллаиховский муниципальный район | B49: 501 | C49: 0 | D49: 501
A50: Сельское поселение Берелехский наслег | B50: 76 | C50: 0 | D50: 76
A51: Сельское поселение Быягнырский наслег | B51: 128 | C51: 0 | D51: 128
A52: Сельское поселение Русско-Устьинский наслег | B52: 111 | C52: 0 | D52: 111
A53: Сельское поселение Юкагирский национальный наслег*) | B53: 186 | C53: 0 | D53: 186
A54: с Оленегорск | B54: 0 | C54: 0 | D54: 0
A55: Межселенные территории Аллаиховского муниципального района | B55: 0 | C55: 0 | D55: 0
A56: Анабарский национальный (долгано-эвенкийский) муниципальный район | B56: 3456 | C56: 0 | D56: 3456
A57: Сельское поселение Саскылахский национальный (эвенкийский) наслег | B57: 2330 | C57: 0 | D57: 2330
A58: с Саскылах | B58: 0 | C58: 0 | D58: 0
A59: Сельское поселение Юрюнг-Хаинский национальный (долганский) наслег | B59: 1126 | C59: 0 | D59: 1126
A60: Булунский муниципальный район | B60: 3526 | C60: 0 | D60: 3526
A61: Сельское поселение Борогонский наслег | B61: 515 | C61: 0 | D61: 515
A62: Сельское поселение Булунский национальный (эвенкийский) наслег | B62: 1068 | C62: 0 | D62: 1068
A63: с Кюсюр | B63: 0 | C63: 0 | D63: 0
A64: Сельское поселение Быковский национальный (эвенкийский) наслег | B64: 426 | C64: 0 | D64: 426
A65: Сельское поселение Сиктяхский наслег | B65: 288 | C65: 0 | D65: 288
A66: Сельское поселение Тюметинский наслег*) | B66: 783 | C66: 0 | D66: 783
A67: с Таймылыр | B67: 0 | C67: 0 | D67: 0
A68: с Усть-Оленек | B68: 0 | C68: 0 | D68: 0
A69: Сельское поселение Хара-Улахский наслег | B69: 446 | C69: 0 | D69: 446
A70: Верхнеколымский муниципальный район | B70: 1072 | C70: 0 | D70: 1072
A71: Сельское поселение Арылахский наслег | B71: 402 | C71: 0 | D71: 402
A72: Сельское поселение Верхнеколымский наслег | B72: 315 | C72: 0 | D72: 315
A73: Сельское поселение Нелемнский юкагирский наслег | B73: 262 | C73: 0 | D73: 262
A74: Сельское поселение Утаинский эвенский национальный наслег | B74: 93 | C74: 0 | D74: 93
A75: Верхоянский муниципальный район | B75: 768 | C75: 0 | D75: 768
A76: Сельское поселение Табалахский наслег | B76: 768 | C76: 0 | D76: 768
A77: с Улахан-Кюель | B77: 0 | C77: 0 | D77: 0
A78: Жиганский национальный муниципальный район | B78: 4023 | C78: 0 | D78: 4023
A79: Сельское поселение Бестяхский наслег | B79: 201 | C79: 0 | D79: 201
A80: Сельское поселение Жиганский эвенкийский национальный наслег | B80: 3198 | C80: 0 | D80: 3198
A81: Сельское поселение Кыстатыам | B81: 368 | C81: 0 | D81: 368
A82: Сельское поселение Линдинский национальный эвенкийский наслег | B82: 256 | C82: 0 | D82: 256
A83: Кобяйский муниципальный район | B83: 1188 | C83: 0 | D83: 1188
A84: Сельское поселение Кировский эвенский национальный наслег | B84: 442 | C84: 0 | D84: 442
A85: с Сегян-Кюель | B85: 0 | C85: 0 | D85: 0
A86: Сельское поселение Ламынхинский национальный наслег | B86: 746 | C86: 0 | D86: 746
A87: Мирнинский муниципальный район | B87: 381 | C87: 0 | D87: 381
A88: Сельское поселение Садынский национальный эвенкийский наслег | B88: 381 | C88: 0 | D88: 381
A89: Момский муниципальный район | B89: 3836 | C89: 0 | D89: 3836
A90: Сельское поселение Индигирский национальный наслег | B90: 268 | C90: 0 | D90: 268
A91: Сельское поселение Момский национальный наслег | B91: 2252 | C91: 0 | D91: 2252
A92: с Хонуу | B92: 0 | C92: 0 | D92: 0
A93: Сельское поселение Соболохский национальный наслег | B93: 197 | C93: 0 | D93: 197
A94: Сельское поселение Тебюляхский национальный наслег | B94: 190 | C94: 0 | D94: 190
A95: Сельское поселение Улахан-Чистайский национальный наслег | B95: 722 | C95: 0 | D95: 722
A96: Сельское поселение Чыбагалахский национальный наслег | B96: 207 | C96: 0 | D96: 207
A97: Нерюнгринский муниципальный район | B97: 1027 | C97: 0 | D97: 1027
A98: Сельское поселение Иенгринский эвенкийский национальный наслег (сельский округ) | B98: 1027 | C98: 0 | D98: 1027
A99: Нижнеколымский муниципальный район | B99: 1562 | C99: 0 | D99: 1562
A100: Сельское национальное юкагирское поселение Олеринский Суктул | B100: 742 | C100: 0 | D100: 742
A101: Сельское поселение Походский наслег | B101: 209 | C101: 0 | D101: 209
A102: с Походок | B102: 0 | C102: 0 | D102: 0
A103: Сельское поселение Халарчинский чукотский национальный наслег | B103: 611 | C103: 0 | D103: 611
A104: Оймяконский муниципальный район | B104: 1879 | C104: 0 | D104: 1879
A105: Сельское поселение Борогонский 2-й наслег | B105: 1116 | C105: 0 | D105: 1116
A106: с Томтор | B106: 0 | C106: 0 | D106: 0
A107: Сельское поселение Сордоннохский наслег | B107: 396 | C107: 0 | D107: 396
A108: с Орто-Балаган | B108: 0 | C108: 0 | D108: 0
A109: Сельское поселение Ючюгейский наслег | B109: 367 | C109: 0 | D109: 367
A110: с Ючюгей | B110: 0 | C110: 0 | D110: 0
A111: Олекминский муниципальный район | B111: 1756 | C111: 0 | D111: 1756
A112: Сельское поселение Жарханский национальный наслег | B112: 1025 | C112: 0 | D112: 1025
A113: с Токко | B113: 0 | C113: 0 | D113: 0
A114: с Уолбут | B114: 0 | C114: 0 | D114: 0
A115: Сельское поселение Киндигирский национальный наслег | B115: 209 | C115: 0 | D115: 209
A116: с Куду-Кюель | B116: 0 | C116: 0 | D116: 0
A117: Сельское поселение Тянский национальный наслег | B117: 406 | C117: 0 | D117: 406
A118: с Тяня | B118: 0 | C118: 0 | D118: 0
A119: Сельское поселение Чаринский национальный наслег | B119: 116 | C119: 0 | D119: 116
A120: Оленекский эвенкийский национальный муниципальный район | B120: 4364 | C120: 0 | D120: 4364
A121: Сельское поселение Жилиндинский национальный наслег | B121: 752 | C121: 0 | D121: 752
A122: Сельское поселение Кирбейский национальный наслег | B122: 856 | C122: 0 | D122: 856
A123: Сельское поселение Оленекский национальный наслег | B123: 2414 | C123: 0 | D123: 2414
A124: Сельское поселение Шологонский национальный наслег | B124: 342 | C124: 0 | D124: 342
A125: Среднеколымский муниципальный район | B125: 291 | C125: 0 | D125: 291
A126: Сельское поселение Березовский национальный (кочевой) наслег | B126: 291 | C126: 0 | D126: 291
A127: Томпонский муниципальный район | B127: 823 | C127: 0 | D127: 823
A128: Сельское поселение Томпонский национальный (эвенский) наслег | B128: 823 | C128: 0 | D128: 823
A129: Усть-Майский муниципальный район | B129: 1855 | C129: 0 | D129: 1855
A130: Сельское поселение Кюпский национальный наслег | B130: 538 | C130: 0 | D130: 538
A131: Сельское поселение Петропавловский национальный наслег | B131: 949 | C131: 0 | D131: 949
A132: Сельское поселение Эжанский национальный наслег | B132: 368 | C132: 0 | D132: 368
A133: Усть-Янский муниципальный район | B133: 3274 | C133: 0 | D133: 3274
A134: Сельское поселение Казачинский национальный наслег | B134: 1244 | C134: 0 | D134: 1244
A135: Сельское поселение Омолойский национальный наслег | B135: 405 | C135: 0 | D135: 405
A136: Сельское поселение Силянняхский национальный наслег | B136: 520 | C136: 0 | D136: 520
A137: Сельское поселение Туматский национальный наслег | B137: 515 | C137: 0 | D137: 515
A138: Сельское поселение Усть-Янский национальный наслег | B138: 362 | C138: 0 | D138: 362
A139: Сельское поселение Уяндинский национальный наслег | B139: 110 | C139: 0 | D139: 110
A140: Сельское поселение Юкагирский национальный (кочевой) наслег | B140: 118 | C140: 0 | D140: 118
A141: Эвено-Бытантайский национальный муниципальный район | B141: 2962 | C141: 0 | D141: 2962
A142: Сельское поселение Верхне-Бытантайский наслег | B142: 243 | C142: 0 | D142: 243
A143: Сельское поселение Нижне-Бытантайский наслег | B143: 737 | C143: 0 | D143: 737
A144: с Кустур | B144: 0 | C144: 0 | D144: 0
A145: Сельское поселение Тюгясирский наслег | B145: 1982 | C145: 0 | D145: 1982
A146: Республика Тыва | B146: 7455 | C146: 0 | D146: 7455
A147: Монгун-Тайгинский муниципальный район | B147: 1558 | C147: 0 | D147: 1558
A148: Сельское поселение Моген-Буренский | B148: 1423 | C148: 0 | D148: 1423
A149: Сельское поселение Тоолайлыг | B149: 135 | C149: 0 | D149: 135
A150: Тере-Хольский муниципальный район | B150: 1930 | C150: 0 | D150: 1930
A151: Сельское поселение Шынаанский | B151: 1624 | C151: 0 | D151: 1624
A152: Сельское поселение Каргы | B152: 93 | C152: 0 | D152: 93
A153: Сельское поселение Балыктыг | B153: 163 | C153: 0 | D153: 163
A154: Сельское поселение Эми | B154: 50 | C154: 0 | D154: 50
A155: Тоджинский муниципальный район | B155: 2655 | C155: 0 | D155: 2655
A156: Сельское поселение Азасский | B156: 1334 | C156: 0 | D156: 1334
A157: Сельское поселение Ийский | B157: 1142 | C157: 0 | D157: 1142
A158: Сельское поселение Сыстыг-Хемский | B158: 84 | C158: 0 | D158: 84
A159: Сельское поселение Чазыларский | B159: 95 | C159: 0 | D159: 95
A160: Эрзинский муниципальный район | B160: 1312 | C160: 0 | D160: 1312
A161: Сельское поселение Бай-Дагский | B161: 1312 | C161: 0 | D161: 1312
A162: Республика Хакасия | B162: 4949 | C162: 1144 | D162: 3805
A163: Аскизский муниципальный район | B163: 3040 | C163: 1144 | D163: 1896
A164: Сельское поселение Балыксинский сельсовет | B164: 1869 | C164: 0 | D164: 1869
A165: Городское поселение Бискамжинский поссовет*) - сельское население | B165: 1171 | C165: 1144 | D165: 27
A166: Таштыпский муниципальный район | B166: 1909 | C166: 0 | D166: 1909
A167: Сельское поселение Анчулский сельсовет | B167: 758 | C167: 0 | D167: 758
A168: Сельское поселение Матурский сельсовет | B168: 1151 | C168: 0 | D168: 1151
A169: Алтайский край | B169: 24953 | C169: 0 | D169: 24953
A170: Городской округ город Бийск | B170: 6223 | C170: 0 | D170: 6223
A171: п Нагорный | B171: 0 | C171: 0 | D171: 0
A172: Красногорский муниципальный район | B172: 12685 | C172: 0 | D172: 12685
A173: Солтонский муниципальный район | B173: 6045 | C173: 0 | D173: 6045
A174: Забайкальский край | B174: 17813 | C174: 8791 | D174: 9022
A175: Каларский муниципальный округ*) | B175: 7207 | C175: 4025 | D175: 3182
A176: с Кюсть-Кемда | B176: … | C176: … | D176: …
A177: с Чапо-Олого | B177: … | C177: … | D177: …
A178: с Неляты | B178: … | C178: … | D178: …
A179: с Средний Калар | B179: … | C179: … | D179: …
A180: Муниципальный район Тунгиро-Олекминский район | B180: 1098 | C180: 0 | D180: 1098
A181: Сельское поселение Тупикское | B181: 804 | C181: 0 | D181: 804
A182: Сельское поселение Зареченское | B182: 190 | C182: 0 | D182: 190
A183: Межселенная территория муниципального района Тунгиро-Олекминский район | B183: 104 | C183: 0 | D183: 104
A184: Тунгокоченский муниципальный округ*) | B184: 9508 | C184: 4766 | D184: 4742
A185: село Верх-Усугли | B185: … | C185: … | D185: …
A186: село Тунгокочен | B186: … | C186: … | D186: …
A187: село Усть-Каренга | B187: … | C187: … | D187: …
A188: Межселенная территория муниципального района Тунгокоченский | B188: … | C188: … | D188: …
A189: Камчатский край | B189: 288947 | C189: 225925 | D189: 63022
A190: Алеутский муниципальный округ | B190: 22386 | C190: 22386 | D190: 0
A191: Вилючинский городской округ | B191: 2688 | C191: 2688 | D191: 0
A192: Городской округ поселок Палана | B192: 163152 | C192: 163152 | D192: 0
A193: Петропавловск-Камчатский городской округ | B193: 615 | C193: 0 | D193: 615
A194: Быстринский муниципальный район | B194: 2391 | C194: 0 | D194: 2391
A195: Елизовский муниципальный район | B195: 59889 | C195: 37699 | D195: 22190
A196: Карагинский муниципальный район | B196: 3457 | C196: 0 | D196: 3457
A197: Мильковский муниципальный район | B197: 8727 | C197: 0 | D197: 8727
A198: Олюторский муниципальный район | B198: 3523 | C198: 0 | D198: 3523
A199: Пенжинский муниципальный район | B199: 1959 | C199: 0 | D199: 1959
A200: Тигильский муниципальный район | B200: 3662 | C200: 0 | D200: 3662
A201: Соболевский муниципальный район | B201: 1979 | C201: 0 | D201: 1979
... 268 more rows

Sheet Таб_7
A1: Содержание
A2: 7. Группировка числа городских округов по численности населения, проживающего в них, на 1 января 2024 года
B4: Число городских округов - всего | C4: в том числе с числом жителей, человек
A5: Группировка числа городских округов по численности населения, проживающего в них | C5: до 10000 | D5: 10000 - 14999 | E5: 15000 - 19999 | F5: 20000 - 29999 | G5: 30000 - 49999 | H5: 50000 - 99999 | I5: 100000 - 149999 | J5: 150000 - 199999 | K5: 200000 - 249999 | L5: 250000 - 499999 | M5: 500000 - 999999 | N5: 1000000 и более
A6: Российская Федерация | B6: 577 | C6: 47 | D6: 33 | E6: 39 | F6: 73 | G6: 94 | H6: 113 | I6: 51 | J6: 24 | K6: 21 | L6: 46 | M6: 22 | N6: 14
A7: Центральный федеральный округ | B7: 135 | C7: 6 | D7: 5 | E7: 6 | F7: 17 | G7: 15 | H7: 30 | I7: 15 | J7: 7 | K7: 7 | L7: 22 | M7: 4 | N7: 1
A8: Белгородская область | B8: 9 | C8: 0 | D8: 0 | E8: 0 | F8: 1 | G8: 1 | H8: 4 | I8: 1 | J8: 0 | K8: 0 | L8: 2 | M8: 0 | N8: 0
A9: Брянская область | B9: 5 | C9: 0 | D9: 1 | E9: 1 | F9: 0 | G9: 1 | H9: 1 | I9: 0 | J9: 0 | K9: 0 | L9: 1 | M9: 0 | N9: 0
A10: Владимирская область | B10: 5 | C10: 0 | D10: 0 | E10: 1 | F10: 0 | G10: 0 | H10: 1 | I10: 2 | J10: 0 | K10: 0 | L10: 1 | M10: 0 | N10: 0
A11: Воронежская область | B11: 3 | C11: 0 | D11: 0 | E11: 0 | F11: 0 | G11: 1 | H11: 1 | I11: 0 | J11: 0 | K11: 0 | L11: 0 | M11: 0 | N11: 1
A12: Ивановская область | B12: 6 | C12: 0 | D12: 0 | E12: 0 | F12: 1 | G12: 2 | H12: 2 | I12: 0 | J12: 0 | K12: 0 | L12: 1 | M12: 0 | N12: 0
A13: Калужская область | B13: 2 | C13: 0 | D13: 0 | E13: 0 | F13: 0 | G13: 0 | H13: 0 | I13: 1 | J13: 0 | K13: 0 | L13: 1 | M13: 0 | N13: 0
A14: Костромская область | B14: 5 | C14: 0 | D14: 2 | E14: 1 | F14: 0 | G14: 1 | H14: 0 | I14: 0 | J14: 0 | K14: 0 | L14: 1 | M14: 0 | N14: 0
A15: Курская область | B15: 5 | C15: 0 | D15: 1 | E15: 1 | F15: 0 | G15: 1 | H15: 1 | I15: 0 | J15: 0 | K15: 0 | L15: 1 | M15: 0 | N15: 0
A16: Липецкая область | B16: 2 | C16: 0 | D16: 0 | E16: 0 | F16: 0 | G16: 0 | H16: 1 | I16: 0 | J16: 0 | K16: 0 | L16: 1 | M16: 0 | N16: 0
A17: Московская область | B17: 59 | C17: 3 | D17: 0 | E17: 1 | F17: 6 | G17: 3 | H17: 13 | I17: 10 | J17: 6 | K17: 7 | L17: 9 | M17: 1 | N17: 0
A18: Орловская область | B18: 3 | C18: 0 | D18: 0 | E18: 0 | F18: 0 | G18: 2 | H18: 0 | I18: 0 | J18: 0 | K18: 0 | L18: 1 | M18: 0 | N18: 0
A19: Рязанская область | B19: 3 | C19: 0 | D19: 0 | E19: 0 | F19: 2 | G19: 0 | H19: 0 | I19: 0 | J19: 0 | K19: 0 | L19: 0 | M19: 1 | N19: 0
A20: Смоленская область | B20: 2 | C20: 0 | D20: 0 | E20: 0 | F20: 1 | G20: 0 | H20: 0 | I20: 0 | J20: 0 | K20: 0 | L20: 1 | M20: 0 | N20: 0
A21: Тамбовская область | B21: 7 | C21: 0 | D21: 0 | E21: 1 | F21: 2 | G21: 2 | H21: 1 | I21: 0 | J21: 0 | K21: 0 | L21: 1 | M21: 0 | N21: 0
A22: Тверская область | B22: 9 | C22: 1 | D22: 1 | E22: 0 | F22: 4 | G22: 1 | H22: 1 | I22: 0 | J22: 0 | K22: 0 | L22: 1 | M22: 0 | N22: 0
A23: Тульская область | B23: 7 | C23: 2 | D23: 0 | E23: 0 | F23: 0 | G23: 0 | H23: 3 | I23: 1 | J23: 0 | K23: 0 | L23: 0 | M23: 1 | N23: 0
A24: Ярославская область | B24: 3 | C24: 0 | D24: 0 | E24: 0 | F24: 0 | G24: 0 | H24: 1 | I24: 0 | J24: 1 | K24: 0 | L24: 0 | M24: 1 | N24: 0
A25: г.Москва | B25: 0 | C25: 0 | D25: 0 | E25: 0 | F25: 0 | G25: 0 | H25: 0 | I25: 0 | J25: 0 | K25: 0 | L25: 0 | M25: 0 | N25: 0
A26: Северо-Западный федеральный округ | B26: 36 | C26: 7 | D26: 1 | E26: 0 | F26: 7 | G26: 5 | H26: 6 | I26: 0 | J26: 2 | K26: 3 | L26: 5 | M26: 0 | N26: 0
A27: Республика Карелия | B27: 2 | C27: 0 | D27: 0 | E27: 0 | F27: 1 | G27: 0 | H27: 0 | I27: 0 | J27: 0 | K27: 1 | L27: 0 | M27: 0 | N27: 0
A28: Республика Коми | B28: 4 | C28: 0 | D28: 0 | E28: 0 | F28: 1 | G28: 0 | H28: 2 | I28: 0 | J28: 0 | K28: 1 | L28: 0 | M28: 0 | N28: 0
A29: Архангельская область, включая Ненецкий автономный округ | B29: 8 | C29: 1 | D29: 0 | E29: 0 | F29: 2 | G29: 2 | H29: 1 | I29: 0 | J29: 1 | K29: 0 | L29: 1 | M29: 0 | N29: 0
A30: Ненецкий автономный округ | B30: 1 | C30: 0 | D30: 0 | E30: 0 | F30: 1 | G30: 0 | H30: 0 | I30: 0 | J30: 0 | K30: 0 | L30: 0 | M30: 0 | N30: 0
A31: Архангельская область без Ненецкого автономного округа | B31: 7 | C31: 1 | D31: 0 | E31: 0 | F31: 1 | G31: 2 | H31: 1 | I31: 0 | J31: 1 | K31: 0 | L31: 1 | M31: 0 | N31: 0
A32: Вологодская область | B32: 2 | C32: 0 | D32: 0 | E32: 0 | F32: 0 | G32: 0 | H32: 0 | I32: 0 | J32: 0 | K32: 0 | L32: 2 | M32: 0 | N32: 0
A33: Калининградская область | B33: 10 | C33: 3 | D33: 1 | E33: 0 | F33: 3 | G33: 2 | H33: 0 | I33: 0 | J33: 0 | K33: 0 | L33: 1 | M33: 0 | N33: 0
A34: Ленинградская область | B34: 1 | C34: 0 | D34: 0 | E34: 0 | F34: 0 | G34: 0 | H34: 1 | I34: 0 | J34: 0 | K34: 0 | L34: 0 | M34: 0 | N34: 0
A35: Мурманская область | B35: 6 | C35: 3 | D35: 0 | E35: 0 | F35: 0 | G35: 1 | H35: 1 | I35: 0 | J35: 0 | K35: 0 | L35: 1 | M35: 0 | N35: 0
A36: Новгородская область | B36: 1 | C36: 0 | D36: 0 | E36: 0 | F36: 0 | G36: 0 | H36: 0 | I36: 0 | J36: 0 | K36: 1 | L36: 0 | M36: 0 | N36: 0
A37: Псковская область | B37: 2 | C37: 0 | D37: 0 | E37: 0 | F37: 0 | G37: 0 | H37: 1 | I37: 0 | J37: 1 | K37: 0 | L37: 0 | M37: 0 | N37: 0
A38: г.Санкт-Петербург
A39: Южный федеральный округ | B39: 42 | C39: 0 | D39: 1 | E39: 2 | F39: 4 | G39: 5 | H39: 7 | I39: 7 | J39: 4 | K39: 4 | L39: 4 | M39: 1 | N39: 3
A40: Республика Адыгея | B40: 2 | C40: 0 | D40: 0 | E40: 1 | F40: 0 | G40: 0 | H40: 0 | I40: 0 | J40: 1 | K40: 0 | L40: 0 | M40: 0 | N40: 0
A41: Республика Калмыкия | B41: 1 | C41: 0 | D41: 0 | E41: 0 | F41: 0 | G41: 0 | H41: 0 | I41: 1 | J41: 0 | K41: 0 | L41: 0 | M41: 0 | N41: 0
A42: Республика Крым | B42: 11 | C42: 0 | D42: 0 | E42: 0 | F42: 3 | G42: 2 | H42: 2 | I42: 2 | J42: 1 | K42: 0 | L42: 1 | M42: 0 | N42: 0
A43: Краснодарский край | B43: 8 | C43: 0 | D43: 1 | E43: 0 | F43: 0 | G43: 0 | H43: 1 | I43: 1 | J43: 0 | K43: 2 | L43: 1 | M43: 1 | N43: 1
A44: Астраханская область | B44: 2 | C44: 0 | D44: 0 | E44: 0 | F44: 1 | G44: 0 | H44: 0 | I44: 0 | J44: 0 | K44: 0 | L44: 1 | M44: 0 | N44: 0
A45: Волгоградская область | B45: 6 | C45: 0 | D45: 0 | E45: 0 | F45: 0 | G45: 2 | H45: 1 | I45: 1 | J45: 0 | K45: 0 | L45: 1 | M45: 0 | N45: 1
A46: Ростовская область | B46: 12 | C46: 0 | D46: 0 | E46: 1 | F46: 0 | G46: 1 | H46: 3 | I46: 2 | J46: 2 | K46: 2 | L46: 0 | M46: 0 | N46: 1
A47: г. Севастополь | B47: 0 | C47: 0 | D47: 0 | E47: 0 | F47: 0 | G47: 0 | H47: 0 | I47: 0 | J47: 0 | K47: 0 | L47: 0 | M47: 0 | N47: 0
A48: Северо-Кавказский федеральный округ | B48: 30 | C48: 0 | D48: 1 | E48: 1 | F48: 1 | G48: 4 | H48: 9 | I48: 7 | J48: 1 | K48: 1 | L48: 3 | M48: 2 | N48: 0
A49: Республика Дагестан | B49: 10 | C49: 0 | D49: 1 | E49: 0 | F49: 0 | G49: 1 | H49: 4 | I49: 2 | J49: 1 | K49: 0 | L49: 0 | M49: 1 | N49: 0
A50: Республика Ингушетия | B50: 5 | C50: 0 | D50: 0 | E50: 1 | F50: 0 | G50: 2 | H50: 1 | I50: 1 | J50: 0 | K50: 0 | L50: 0 | M50: 0 | N50: 0
A51: Кабардино-Балкарская Республика | B51: 3 | C51: 0 | D51: 0 | E51: 0 | F51: 0 | G51: 0 | H51: 2 | I51: 0 | J51: 0 | K51: 0 | L51: 1 | M51: 0 | N51: 0
A52: Карачаево-Черкесская Республика | B52: 2 | C52: 0 | D52: 0 | E52: 0 | F52: 0 | G52: 1 | H52: 0 | I52: 1 | J52: 0 | K52: 0 | L52: 0 | M52: 0 | N52: 0
A53: Республика Северная Осетия-Алания | B53: 1 | C53: 0 | D53: 0 | E53: 0 | F53: 0 | G53: 0 | H53: 0 | I53: 0 | J53: 0 | K53: 0 | L53: 1 | M53: 0 | N53: 0
A54: Чеченская Республика | B54: 2 | C54: 0 | D54: 0 | E54: 0 | F54: 0 | G54: 0 | H54: 1 | I54: 0 | J54: 0 | K54: 0 | L54: 1 | M54: 0 | N54: 0
A55: Ставропольский край | B55: 7 | C55: 0 | D55: 0 | E55: 0 | F55: 1 | G55: 0 | H55: 1 | I55: 3 | J55: 0 | K55: 1 | L55: 0 | M55: 1 | N55: 0
A56: Приволжский федеральный округ | B56: 101 | C56: 5 | D56: 6 | E56: 13 | F56: 12 | G56: 14 | H56: 23 | I56: 8 | J56: 2 | K56: 1 | L56: 4 | M56: 8 | N56: 5
A57: Республика Башкортостан | B57: 9 | C57: 0 | D57: 1 | E57: 1 | F57: 0 | G57: 0 | H57: 2 | I57: 3 | J57: 0 | K57: 0 | L57: 1 | M57: 0 | N57: 1
A58: Республика Марий Эл | B58: 3 | C58: 0 | D58: 0 | E58: 1 | F58: 0 | G58: 0 | H58: 1 | I58: 0 | J58: 0 | K58: 0 | L58: 1 | M58: 0 | N58: 0
A59: Республика Мордовия | B59: 1 | C59: 0 | D59: 0 | E59: 0 | F59: 0 | G59: 0 | H59: 0 | I59: 0 | J59: 0 | K59: 0 | L59: 1 | M59: 0 | N59: 0
A60: Республика Татарстан | B60: 2 | C60: 0 | D60: 0 | E60: 0 | F60: 0 | G60: 0 | H60: 0 | I60: 0 | J60: 0 | K60: 0 | L60: 0 | M60: 1 | N60: 1
A61: Удмуртская Республика | B61: 5 | C61: 0 | D61: 0 | E61: 0 | F61: 0 | G61: 1 | H61: 3 | I61: 0 | J61: 0 | K61: 0 | L61: 0 | M61: 1 | N61: 0
A62: Чувашская Республика | B62: 5 | C62: 0 | D62: 0 | E62: 0 | F62: 1 | G62: 2 | H62: 0 | I62: 1 | J62: 0 | K62: 0 | L62: 0 | M62: 1 | N62: 0
A63: Пермский край | B63: 22 | C63: 1 | D63: 2 | E63: 4 | F63: 4 | G63: 3 | H63: 6 | I63: 1 | J63: 0 | K63: 0 | L63: 0 | M63: 0 | N63: 1
A64: Кировская область | B64: 6 | C64: 1 | D64: 0 | E64: 1 | F64: 2 | G64: 0 | H64: 1 | I64: 0 | J64: 0 | K64: 0 | L64: 0 | M64: 1 | N64: 0
A65: Нижегородская область | B65: 15 | C65: 0 | D65: 2 | E65: 3 | F65: 2 | G65: 2 | H65: 2 | I65: 2 | J65: 0 | K65: 1 | L65: 0 | M65: 0 | N65: 1
A66: Оренбургская область | B66: 13 | C66: 1 | D66: 0 | E66: 1 | F66: 2 | G66: 5 | H66: 2 | I66: 0 | J66: 1 | K66: 0 | L66: 0 | M66: 1 | N66: 0
A67: Пензенская область | B67: 3 | C67: 0 | D67: 0 | E67: 0 | F67: 0 | G67: 0 | H67: 2 | I67: 0 | J67: 0 | K67: 0 | L67: 1 | M67: 0 | N67: 0
A68: Самарская область | B68: 10 | C68: 0 | D68: 0 | E68: 1 | F68: 1 | G68: 1 | H68: 4 | I68: 0 | J68: 1 | K68: 0 | L68: 0 | M68: 1 | N68: 1
A69: Саратовская область | B69: 4 | C69: 2 | D69: 1 | E69: 0 | F69: 0 | G69: 0 | H69: 0 | I69: 0 | J69: 0 | K69: 0 | L69: 0 | M69: 1 | N69: 0
A70: Ульяновская область | B70: 3 | C70: 0 | D70: 0 | E70: 1 | F70: 0 | G70: 0 | H70: 0 | I70: 1 | J70: 0 | K70: 0 | L70: 0 | M70: 1 | N70: 0
A71: Уральский федеральный округ | B71: 111 | C71: 13 | D71: 6 | E71: 8 | F71: 18 | G71: 30 | H71: 18 | I71: 7 | J71: 3 | K71: 0 | L71: 5 | M71: 1 | N71: 2
A72: Курганская область | B72: 2 | C72: 0 | D72: 0 | E72: 0 | F72: 0 | G72: 0 | H72: 1 | I72: 0 | J72: 0 | K72: 0 | L72: 1 | M72: 0 | N72: 0
A73: Свердловская область | B73: 68 | C73: 12 | D73: 5 | E73: 7 | F73: 14 | G73: 16 | H73: 10 | I73: 1 | J73: 1 | K73: 0 | L73: 1 | M73: 0 | N73: 1
A74: Тюменская область включая автономные округа | B74: 25 | C74: 0 | D74: 0 | E74: 1 | F74: 2 | G74: 10 | H74: 4 | I74: 5 | J74: 0 | K74: 0 | L74: 2 | M74: 1 | N74: 0
A75: Ханты-Мансийский автономный округ - Югра | B75: 13 | C75: 0 | D75: 0 | E75: 1 | F75: 0 | G75: 5 | H75: 3 | I75: 2 | J75: 0 | K75: 0 | L75: 2 | M75: 0 | N75: 0
A76: Ямало-Ненецкий автономный округ | B76: 6 | C76: 0 | D76: 0 | E76: 0 | F76: 1 | G76: 3 | H76: 0 | I76: 2 | J76: 0 | K76: 0 | L76: 0 | M76: 0 | N76: 0
A77: Тюменская область без автономных округов | B77: 6 | C77: 0 | D77: 0 | E77: 0 | F77: 1 | G77: 2 | H77: 1 | I77: 1 | J77: 0 | K77: 0 | L77: 0 | M77: 1 | N77: 0
A78: Челябинская область | B78: 16 | C78: 1 | D78: 1 | E78: 0 | F78: 2 | G78: 4 | H78: 3 | I78: 1 | J78: 2 | K78: 0 | L78: 1 | M78: 0 | N78: 1
A79: Сибирский федеральный округ | B79: 64 | C79: 5 | D79: 5 | E79: 3 | F79: 5 | G79: 12 | H79: 17 | I79: 5 | J79: 3 | K79: 2 | L79: 0 | M79: 4 | N79: 3
A80: Республика Алтай | B80: 1 | C80: 0 | D80: 0 | E80: 0 | F80: 0 | G80: 0 | H80: 1 | I80: 0 | J80: 0 | K80: 0 | L80: 0 | M80: 0 | N80: 0
A81: Республика Тыва | B81: 2 | C81: 0 | D81: 1 | E81: 0 | F81: 0 | G81: 0 | H81: 0 | I81: 1 | J81: 0 | K81: 0 | L81: 0 | M81: 0 | N81: 0
A82: Республика Хакасия | B82: 5 | C82: 0 | D82: 2 | E82: 0 | F82: 0 | G82: 0 | H82: 2 | I82: 0 | J82: 1 | K82: 0 | L82: 0 | M82: 0 | N82: 0
A83: Алтайский край | B83: 4 | C83: 2 | D83: 1 | E83: 0 | F83: 0 | G83: 1 | H83: 0 | I83: 0 | J83: 0 | K83: 0 | L83: 0 | M83: 0 | N83: 0
A84: Красноярский край | B84: 17 | C84: 2 | D84: 1 | E84: 2 | F84: 0 | G84: 4 | H84: 5 | I84: 1 | J84: 1 | K84: 0 | L84: 0 | M84: 0 | N84: 1
A85: Иркутская область | B85: 10 | C85: 0 | D85: 0 | E85: 1 | F85: 1 | G85: 2 | H85: 3 | I85: 0 | J85: 0 | K85: 2 | L85: 0 | M85: 1 | N85: 0
A86: Кемеровская область | B86: 15 | C86: 0 | D86: 0 | E86: 0 | F86: 3 | G86: 3 | H86: 5 | I86: 1 | J86: 1 | K86: 0 | L86: 0 | M86: 2 | N86: 0
A87: Новосибирская область | B87: 5 | C87: 0 | D87: 0 | E87: 0 | F87: 1 | G87: 1 | H87: 1 | I87: 1 | J87: 0 | K87: 0 | L87: 0 | M87: 0 | N87: 1
A88: Омская область | B88: 1 | C88: 0 | D88: 0 | E88: 0 | F88: 0 | G88: 0 | H88: 0 | I88: 0 | J88: 0 | K88: 0 | L88: 0 | M88: 0 | N88: 1
A89: Томская область | B89: 4 | C89: 1 | D89: 0 | E89: 0 | F89: 0 | G89: 1 | H89: 0 | I89: 1 | J89: 0 | K89: 0 | L89: 0 | M89: 1 | N89: 0
A90: Дальневосточный федеральный округ | B90: 58 | C90: 11 | D90: 8 | E90: 6 | F90: 9 | G90: 9 | H90: 3 | I90: 2 | J90: 2 | K90: 3 | L90: 3 | M90: 2 | N90: 0
A91: Республика Бурятия | B91: 2 | C91: 0 | D91: 0 | E91: 0 | F91: 1 | G91: 0 | H91: 0 | I91: 0 | J91: 0 | K91: 0 | L91: 1 | M91: 0 | N91: 0
A92: Республика Саха (Якутия) | B92: 2 | C92: 0 | D92: 1 | E92: 0 | F92: 0 | G92: 0 | H92: 0 | I92: 0 | J92: 0 | K92: 0 | L92: 1 | M92: 0 | N92: 0
A93: Забайкальский край | B93: 4 | C93: 1 | D93: 1 | E93: 1 | F93: 0 | G93: 0 | H93: 0 | I93: 0 | J93: 0 | K93: 0 | L93: 1 | M93: 0 | N93: 0
A94: Камчатский край | B94: 3 | C94: 1 | D94: 0 | E94: 0 | F94: 1 | G94: 0 | H94: 0 | I94: 0 | J94: 1 | K94: 0 | L94: 0 | M94: 0 | N94: 0
A95: Приморский край | B95: 12 | C95: 0 | D95: 0 | E95: 0 | F95: 2 | G95: 6 | H95: 0 | I95: 2 | J95: 0 | K95: 1 | L95: 0 | M95: 1 | N95: 0
A96: Хабаровский край | B96: 2 | C96: 0 | D96: 0 | E96: 0 | F96: 0 | G96: 0 | H96: 0 | I96: 0 | J96: 0 | K96: 1 | L96: 0 | M96: 1 | N96: 0
A97: Амурская область | B97: 9 | C97: 1 | D97: 1 | E97: 3 | F97: 1 | G97: 1 | H97: 1 | I97: 0 | J97: 0 | K97: 1 | L97: 0 | M97: 0 | N97: 0
A98: Магаданская область | B98: 1 | C98: 0 | D98: 0 | E98: 0 | F98: 0 | G98: 0 | H98: 1 | I98: 0 | J98: 0 | K98: 0 | L98: 0 | M98: 0 | N98: 0
A99: Сахалинская область | B99: 18 | C99: 5 | D99: 4 | E99: 2 | F99: 4 | G99: 2 | H99: 0 | I99: 0 | J99: 1 | K99: 0 | L99: 0 | M99: 0 | N99: 0
A100: Еврейская автономная область | B100: 1 | C100: 0 | D100: 0 | E100: 0 | F100: 0 | G100: 0 | H100: 1 | I100: 0 | J100: 0 | K100: 0 | L100: 0 | M100: 0 | N100: 0
A101: Чукотский автономный округ | B101: 4 | C101: 3 | D101: 1 | E101: 0 | F101: 0 | G101: 0 | H101: 0 | I101: 0 | J101: 0 | K101: 0 | L101: 0 | M101: 0 | N101: 0

Sheet Таб_8
A1: Содержание
A2: 8. Группировка численности населения, проживающего в городских округах, на 1 января 2024 года
B4: Численность населения, проживающего в городских округах - всего | C4: в том числе с числом жителей, человек
A5: Группировка численности населения, проживающего в городских округах | C5: до 10000 | D5: 10000 - 14999 | E5: 15000 - 19999 | F5: 20000 - 29999 | G5: 30000 - 49999 | H5: 50000 - 99999 | I5: 100000 - 149999 | J5: 150000 - 199999 | K5: 200000 - 249999 | L5: 250000 - 499999 | M5: 500000 - 999999 | N5: 1000000 и более
A6: Российская Федерация | B6: 76162580 | C6: 250615 | D6: 404716 | E6: 686562 | F6: 1810537 | G6: 3693536 | H6: 7929803 | I6: 6082484 | J6: 4192650 | K6: 4690760 | L6: 15986282 | M6: 13363269 | N6: 17071366
A7: Центральный федеральный округ | B7: 18674375 | C7: 19709 | D7: 63409 | E7: 104662 | F7: 424146 | G7: 568811 | H7: 2071109 | I7: 1841001 | J7: 1197776 | K7: 1552772 | L7: 7604058 | M7: 2180497 | N7: 1046425
A8: Белгородская область | B8: 1016764 | C8: 0 | D8: 0 | E8: 0 | F8: 26027 | G8: 38749 | H8: 260113 | I8: 112690 | J8: 0 | K8: 0 | L8: 579185 | M8: 0 | N8: 0
A9: Брянская область | B9: 534159 | C9: 0 | D9: 12104 | E9: 15397 | F9: 0 | G9: 48469 | H9: 68896 | I9: 0 | J9: 0 | K9: 0 | L9: 389293 | M9: 0 | N9: 0
A10: Владимирская область | B10: 656216 | C10: 0 | D10: 0 | E10: 17379 | F10: 0 | G10: 0 | H10: 51182 | I10: 240970 | J10: 0 | K10: 0 | L10: 346685 | M10: 0 | N10: 0
A11: Воронежская область | B11: 1144246 | C11: 0 | D11: 0 | E11: 0 | F11: 0 | G11: 30557 | H11: 67264 | I11: 0 | J11: 0 | K11: 0 | L11: 0 | M11: 0 | N11: 1046425
A12: Ивановская область | B12: 576863 | C12: 0 | D12: 0 | E12: 0 | F12: 29623 | G12: 60687 | H12: 128116 | I12: 0 | J12: 0 | K12: 0 | L12: 358437 | M12: 0 | N12: 0
A13: Калужская область | B13: 483580 | C13: 0 | D13: 0 | E13: 0 | F13: 0 | G13: 0 | H13: 0 | I13: 132477 | J13: 0 | K13: 0 | L13: 351103 | M13: 0 | N13: 0
A14: Костромская область | B14: 342225 | C14: 0 | D14: 26518 | E14: 19938 | F14: 0 | G14: 30008 | H14: 0 | I14: 0 | J14: 0 | K14: 0 | L14: 265761 | M14: 0 | N14: 0
A15: Курская область | B15: 602588 | C15: 0 | D15: 14386 | E15: 16779 | F15: 0 | G15: 39167 | H15: 95578 | I15: 0 | J15: 0 | K15: 0 | L15: 436678 | M15: 0 | N15: 0
A16: Липецкая область | B16: 580162 | C16: 0 | D16: 0 | E16: 0 | F16: 0 | G16: 0 | H16: 94902 | I16: 0 | J16: 0 | K16: 0 | L16: 485260 | M16: 0 | N16: 0
A17: Московская область | B17: 8651260 | C17: 12494 | D17: 0 | E17: 19342 | F17: 145775 | G17: 118496 | H17: 910278 | I17: 1225225 | J17: 1025966 | K17: 1552772 | L17: 3086664 | M17: 554248 | N17: 0
A18: Орловская область | B18: 370654 | C18: 0 | D18: 0 | E18: 0 | F18: 0 | G18: 78248 | H18: 0 | I18: 0 | J18: 0 | K18: 0 | L18: 292406 | M18: 0 | N18: 0
A19: Рязанская область | B19: 573470 | C19: 0 | D19: 0 | E19: 0 | F19: 52961 | G19: 0 | H19: 0 | I19: 0 | J19: 0 | K19: 0 | L19: 0 | M19: 520509 | N19: 0
A20: Смоленская область | B20: 335329 | C20: 0 | D20: 0 | E20: 0 | F20: 24684 | G20: 0 | H20: 0 | I20: 0 | J20: 0 | K20: 0 | L20: 310645 | M20: 0 | N20: 0
A21: Тамбовская область | B21: 527600 | C21: 0 | D21: 0 | E21: 15827 | F21: 49114 | G21: 84927 | H21: 88785 | I21: 0 | J21: 0 | K21: 0 | L21: 288947 | M21: 0 | N21: 0
A22: Тверская область | B22: 624490 | C22: 1797 | D22: 10401 | E22: 0 | F22: 95962 | G22: 39503 | H22: 63833 | I22: 0 | J22: 0 | K22: 0 | L22: 412994 | M22: 0 | N22: 0
A23: Тульская область | B23: 861477 | C23: 5418 | D23: 0 | E23: 0 | F23: 0 | G23: 0 | H23: 188123 | I23: 129639 | J23: 0 | K23: 0 | L23: 0 | M23: 538297 | N23: 0
A24: Ярославская область | B24: 793292 | C24: 0 | D24: 0 | E24: 0 | F24: 0 | G24: 0 | H24: 54039 | I24: 0 | J24: 171810 | K24: 0 | L24: 0 | M24: 567443 | N24: 0
A25: г.Москва | B25: 0 | C25: 0 | D25: 0 | E25: 0 | F25: 0 | G25: 0 | H25: 0 | I25: 0 | J25: 0 | K25: 0 | L25: 0 | M25: 0 | N25: 0
A26: Северо-Западный федеральный округ | B26: 3537101 | C26: 35262 | D26: 12928 | E26: 0 | F26: 176568 | G26: 174943 | H26: 428398 | I26: 0 | J26: 343439 | K26: 690845 | L26: 1674718 | M26: 0 | N26: 0
A27: Республика Карелия | B27: 262164 | C27: 0 | D27: 0 | E27: 0 | F27: 26470 | G27: 0 | H27: 0 | I27: 0 | J27: 0 | K27: 235694 | L27: 0 | M27: 0 | N27: 0
A28: Республика Коми | B28: 414324 | C28: 0 | D28: 0 | E28: 0 | F28: 20870 | G28: 0 | H28: 160643 | I28: 0 | J28: 0 | K28: 232811 | L28: 0 | M28: 0 | N28: 0
A29: Архангельская область, включая Ненецкий автономный округ | B29: 644541 | C29: 2427 | D29: 0 | E29: 0 | F29: 51288 | G29: 66302 | H29: 66838 | I29: 0 | J29: 156310 | K29: 0 | L29: 301376 | M29: 0 | N29: 0
A30: Ненецкий автономный округ | B30: 24266 | C30: 0 | D30: 0 | E30: 0 | F30: 24266 | G30: 0 | H30: 0 | I30: 0 | J30: 0 | K30: 0 | L30: 0 | M30: 0 | N30: 0
A31: Архангельская область без Ненецкого автономного округа | B31: 620275 | C31: 2427 | D31: 0 | E31: 0 | F31: 27022 | G31: 66302 | H31: 66838 | I31: 0 | J31: 156310 | K31: 0 | L31: 301376 | M31: 0 | N31: 0
A32: Вологодская область | B32: 617077 | C32: 0 | D32: 0 | E32: 0 | F32: 0 | G32: 0 | H32: 0 | I32: 0 | J32: 0 | K32: 0 | L32: 617077 | M32: 0 | N32: 0
A33: Калининградская область | B33: 675807 | C33: 19409 | D33: 12928 | E33: 0 | F33: 77940 | G33: 75946 | H33: 0 | I33: 0 | J33: 0 | K33: 0 | L33: 489584 | M33: 0 | N33: 0
A34: Ленинградская область | B34: 63462 | C34: 0 | D34: 0 | E34: 0 | F34: 0 | G34: 0 | H34: 63462 | I34: 0 | J34: 0 | K34: 0 | L34: 0 | M34: 0 | N34: 0
A35: Мурманская область | B35: 364815 | C35: 13426 | D35: 0 | E35: 0 | F35: 0 | G35: 32695 | H35: 52013 | I35: 0 | J35: 0 | K35: 0 | L35: 266681 | M35: 0 | N35: 0
A36: Новгородская область | B36: 222340 | C36: 0 | D36: 0 | E36: 0 | F36: 0 | G36: 0 | H36: 0 | I36: 0 | J36: 0 | K36: 222340 | L36: 0 | M36: 0 | N36: 0
A37: Псковская область | B37: 272571 | C37: 0 | D37: 0 | E37: 0 | F37: 0 | G37: 0 | H37: 85442 | I37: 0 | J37: 187129 | K37: 0 | L37: 0 | M37: 0 | N37: 0
A38: г Санкт-Петербург | B38: 0 | C38: 0 | D38: 0 | E38: 0 | F38: 0 | G38: 0 | H38: 0 | I38: 0 | J38: 0 | K38: 0 | L38: 0 | M38: 0 | N38: 0
A39: Южный федеральный округ | B39: 8623431 | C39: 0 | D39: 14344 | E39: 34993 | F39: 94263 | G39: 184162 | H39: 526769 | I39: 811781 | J39: 638718 | K39: 874851 | L39: 1480335 | M39: 559991 | N39: 3403224
A40: Республика Адыгея | B40: 177559 | C40: 0 | D40: 0 | E40: 15661 | F40: 0 | G40: 0 | H40: 0 | I40: 0 | J40: 161898 | K40: 0 | L40: 0 | M40: 0 | N40: 0
A41: Республика Калмыкия | B41: 107615 | C41: 0 | D41: 0 | E41: 0 | F41: 0 | G41: 0 | H41: 0 | I41: 107615 | J41: 0 | K41: 0 | L41: 0 | M41: 0 | N41: 0
A42: Республика Крым | B42: 1056172 | C42: 0 | D42: 0 | E42: 0 | F42: 70637 | G42: 69167 | H42: 153250 | I42: 255170 | J42: 152328 | K42: 0 | L42: 355620 | M42: 0 | N42: 0
A43: Краснодарский край | B43: 2760461 | C43: 0 | D43: 14344 | E43: 0 | F43: 0 | G43: 0 | H43: 68485 | I43: 117339 | J43: 0 | K43: 412492 | L43: 343971 | M43: 559991 | N43: 1243839
A44: Астраханская область | B44: 489150 | C44: 0 | D44: 0 | E44: 0 | F44: 23626 | G44: 0 | H44: 0 | I44: 0 | J44: 0 | K44: 0 | L44: 465524 | M44: 0 | N44: 0
A45: Волгоградская область | B45: 1590965 | C45: 0 | D45: 0 | E45: 0 | F45: 0 | G45: 69258 | H45: 82402 | I45: 105187 | J45: 0 | K45: 0 | L45: 315220 | M45: 0 | N45: 1018898
A46: Ростовская область | B46: 2441509 | C46: 0 | D46: 0 | E46: 19332 | F46: 0 | G46: 45737 | H46: 222632 | I46: 226470 | J46: 324492 | K46: 462359 | L46: 0 | M46: 0 | N46: 1140487
A47: г. Севастополь | B47: 0 | C47: 0 | D47: 0 | E47: 0 | F47: 0 | G47: 0 | H47: 0 | I47: 0 | J47: 0 | K47: 0 | L47: 0 | M47: 0 | N47: 0
A48: Северо-Кавказский федеральный округ | B48: 4206803 | C48: 0 | D48: 10618 | E48: 18521 | F48: 24717 | G48: 155802 | H48: 527679 | I48: 867136 | J48: 159252 | K48: 211692 | L48: 914494 | M48: 1316892 | N48: 0
A49: Республика Дагестан | B49: 1450327 | C49: 0 | D49: 10618 | E49: 0 | F49: 0 | G49: 32330 | H49: 231720 | I49: 256917 | J49: 159252 | K49: 0 | L49: 0 | M49: 759490 | N49: 0
A50: Республика Ингушетия | B50: 289978 | C50: 0 | D50: 0 | E50: 18521 | F50: 0 | G50: 82322 | H50: 62843 | I50: 126292 | J50: 0 | K50: 0 | L50: 0 | M50: 0 | N50: 0
A51: Кабардино-Балкарская Республика | B51: 392530 | C51: 0 | D51: 0 | E51: 0 | F51: 0 | G51: 0 | H51: 121066 | I51: 0 | J51: 0 | K51: 0 | L51: 271464 | M51: 0 | N51: 0
A52: Карачаево-Черкесская Республика | B52: 153932 | C52: 0 | D52: 0 | E52: 0 | F52: 0 | G52: 41150 | H52: 0 | I52: 112782 | J52: 0 | K52: 0 | L52: 0 | M52: 0 | N52: 0
A53: Республика Северная Осетия-Алания | B53: 309358 | C53: 0 | D53: 0 | E53: 0 | F53: 0 | G53: 0 | H53: 0 | I53: 0 | J53: 0 | K53: 0 | L53: 309358 | M53: 0 | N53: 0
A54: Чеченская Республика | B54: 395640 | C54: 0 | D54: 0 | E54: 0 | F54: 0 | G54: 0 | H54: 61968 | I54: 0 | J54: 0 | K54: 0 | L54: 333672 | M54: 0 | N54: 0
A55: Ставропольский край | B55: 1215038 | C55: 0 | D55: 0 | E55: 0 | F55: 24717 | G55: 0 | H55: 50082 | I55: 371145 | J55: 0 | K55: 211692 | L55: 0 | M55: 557402 | N55: 0
A56: Приволжский федеральный округ | B56: 16819160 | C56: 25978 | D56: 79729 | E56: 230315 | F56: 301944 | G56: 586693 | H56: 1687578 | I56: 1046816 | J56: 352690 | K56: 225251 | L56: 1403658 | M56: 4958531 | N56: 5919977
A57: Республика Башкортостан | B57: 2021687 | C57: 0 | D57: 13728 | E57: 15476 | F57: 0 | G57: 0 | H57: 117613 | I57: 407658 | J57: 0 | K57: 0 | L57: 280497 | M57: 0 | N57: 1186715
A58: Республика Марий Эл | B58: 366399 | C58: 0 | D58: 0 | E58: 19054 | F58: 0 | G58: 0 | H58: 51634 | I58: 0 | J58: 0 | K58: 0 | L58: 295711 | M58: 0 | N58: 0
A59: Республика Мордовия | B59: 339151 | C59: 0 | D59: 0 | E59: 0 | F59: 0 | G59: 0 | H59: 0 | I59: 0 | J59: 0 | K59: 0 | L59: 339151 | M59: 0 | N59: 0
A60: Республика Татарстан | B60: 1862987 | C60: 0 | D60: 0 | E60: 0 | F60: 0 | G60: 0 | H60: 0 | I60: 0 | J60: 0 | K60: 0 | L60: 0 | M60: 544383 | N60: 1318604
A61: Удмуртская Республика | B61: 933682 | C61: 0 | D61: 0 | E61: 0 | F61: 0 | G61: 43557 | H61: 271349 | I61: 0 | J61: 0 | K61: 0 | L61: 0 | M61: 618776 | N61: 0
A62: Чувашская Республика | B62: 728067 | C62: 0 | D62: 0 | E62: 0 | F62: 26008 | G62: 74812 | H62: 0 | I62: 120767 | J62: 0 | K62: 0 | L62: 0 | M62: 506480 | N62: 0
A63: Пермский край | B63: 1934195 | C63: 7512 | D63: 28760 | E63: 69654 | F63: 94138 | G63: 124441 | H63: 435413 | I63: 147365 | J63: 0 | K63: 0 | L63: 0 | M63: 0 | N63: 1026912
A64: Кировская область | B64: 646876 | C64: 4993 | D64: 0 | E64: 19454 | F64: 57401 | G64: 0 | H64: 64571 | I64: 0 | J64: 0 | K64: 0 | L64: 0 | M64: 500457 | N64: 0
A65: Нижегородская область | B65: 2098707 | C65: 0 | D65: 24206 | E65: 52206 | F65: 49182 | G65: 90461 | H65: 166477 | I65: 262222 | J65: 0 | K65: 225251 | L65: 0 | M65: 0 | N65: 1228702
A66: Оренбургская область | B66: 1186956 | C66: 6280 | D66: 0 | E66: 17793 | F66: 47530 | G66: 206942 | H66: 167749 | I66: 0 | J66: 190318 | K66: 0 | L66: 0 | M66: 550344 | N66: 0
A67: Пензенская область | B67: 623805 | C67: 0 | D67: 0 | E67: 0 | F67: 0 | G67: 0 | H67: 135506 | I67: 0 | J67: 0 | K67: 0 | L67: 488299 | M67: 0 | N67: 0
A68: Самарская область | B68: 2360690 | C68: 0 | D68: 0 | E68: 19887 | F68: 27685 | G68: 46480 | H68: 277266 | I68: 0 | J68: 162372 | K68: 0 | L68: 0 | M68: 667956 | N68: 1159044
A69: Саратовская область | B69: 957592 | C69: 7193 | D69: 13035 | E69: 0 | F69: 0 | G69: 0 | H69: 0 | I69: 0 | J69: 0 | K69: 0 | L69: 0 | M69: 937364 | N69: 0
A70: Ульяновская область | B70: 758366 | C70: 0 | D70: 0 | E70: 16791 | F70: 0 | G70: 0 | H70: 0 | I70: 108804 | J70: 0 | K70: 0 | L70: 0 | M70: 632771 | N70: 0
A71: Уральский федеральный округ | B71: 9846452 | C71: 76903 | D71: 75830 | E71: 135688 | F71: 447441 | G71: 1193641 | H71: 1230678 | I71: 828171 | J71: 484705 | K71: 0 | L71: 1755130 | M71: 861098 | N71: 2757167
A72: Курганская область | B72: 370238 | C72: 0 | D72: 0 | E72: 0 | F72: 0 | G72: 0 | H72: 67884 | I72: 0 | J72: 0 | K72: 0 | L72: 302354 | M72: 0 | N72: 0
A73: Свердловская область | B73: 4136039 | C73: 68329 | D73: 65458 | E73: 119132 | F73: 345943 | G73: 629339 | H73: 701010 | I73: 130039 | J73: 163501 | K73: 0 | L73: 333179 | M73: 0 | N73: 1580109
A74: Тюменская область включая автономные округа | B74: 2859702 | C74: 0 | D74: 0 | E74: 16556 | F74: 52967 | G74: 412703 | H74: 254473 | I74: 551023 | J74: 0 | K74: 0 | L74: 710882 | M74: 861098 | N74: 0
A75: Ханты-Мансийский автономный округ - Югра | B75: 1363894 | C75: 0 | D75: 0 | E75: 16556 | F75: 0 | G75: 210850 | H75: 187144 | I75: 238462 | J75: 0 | K75: 0 | L75: 710882 | M75: 0 | N75: 0
A76: Ямало-Ненецкий автономный округ | B76: 354898 | C76: 0 | D76: 0 | E76: 0 | F76: 29581 | G76: 115489 | H76: 0 | I76: 209828 | J76: 0 | K76: 0 | L76: 0 | M76: 0 | N76: 0
A77: Тюменская область без автономных округов | B77: 1140910 | C77: 0 | D77: 0 | E77: 0 | F77: 23386 | G77: 86364 | H77: 67329 | I77: 102733 | J77: 0 | K77: 0 | L77: 0 | M77: 861098 | N77: 0
A78: Челябинская область | B78: 2480473 | C78: 8574 | D78: 10372 | E78: 0 | F78: 48531 | G78: 151599 | H78: 207311 | I78: 147109 | J78: 321204 | K78: 0 | L78: 408715 | M78: 0 | N78: 1177058
A79: Сибирский федеральный округ | B79: 9712945 | C79: 27325 | D79: 49053 | E79: 62599 | F79: 130752 | G79: 466719 | H79: 1234471 | I79: 434472 | J79: 665891 | K79: 449182 | L79: 0 | M79: 2247908 | N79: 3944573
A80: Республика Алтай | B80: 64508 | C80: 0 | D80: 0 | E80: 0 | F80: 0 | G80: 0 | H80: 64508 | I80: 0 | J80: 0 | K80: 0 | L80: 0 | M80: 0 | N80: 0
A81: Республика Тыва | B81: 142019 | C81: 0 | D81: 0 | E81: 11977 | F81: 0 | G81: 0 | H81: 0 | I81: 0 | J81: 130042 | K81: 0 | L81: 0 | M81: 0 | N81: 0
A82: Республика Хакасия | B82: 342269 | C82: 0 | D82: 22805 | E82: 0 | F82: 0 | G82: 0 | H82: 133660 | I82: 0 | J82: 185804 | K82: 0 | L82: 0 | M82: 0 | N82: 0
A83: Алтайский край | B83: 60582 | C83: 12532 | D83: 11281 | E83: 0 | F83: 0 | G83: 36769 | H83: 0 | I83: 0 | J83: 0 | K83: 0 | L83: 0 | M83: 0 | N83: 0
A84: Красноярский край | B84: 2061412 | C84: 12167 | D84: 14967 | E84: 35352 | F84: 0 | G84: 157474 | H84: 356745 | I84: 101043 | J84: 177427 | K84: 0 | L84: 0 | M84: 0 | N84: 1206237
A85: Иркутская область | B85: 1377521 | C85: 0 | D85: 0 | E85: 15270 | F85: 29877 | G85: 73307 | H85: 203516 | I85: 0 | J85: 0 | K85: 449182 | L85: 0 | M85: 606369 | N85: 0
A86: Кемеровская область | B86: 1997600 | C86: 0 | D86: 0 | E86: 0 | F86: 79992 | G86: 130641 | H86: 419388 | I86: 119175 | J86: 172618 | K86: 0 | L86: 0 | M86: 1075786 | N86: 0
A87: Новосибирская область | B87: 1845198 | C87: 0 | D87: 0 | E87: 0 | F87: 20883 | G87: 31050 | H87: 56654 | I87: 102760 | J87: 0 | K87: 0 | L87: 0 | M87: 0 | N87: 1633851
A88: Омская область | B88: 1104485 | C88: 0 | D88: 0 | E88: 0 | F88: 0 | G88: 0 | H88: 0 | I88: 0 | J88: 0 | K88: 0 | L88: 0 | M88: 0 | N88: 1104485
A89: Томская область | B89: 717351 | C89: 2626 | D89: 0 | E89: 0 | F89: 0 | G89: 37478 | H89: 0 | I89: 111494 | J89: 0 | K89: 0 | L89: 0 | M89: 565753 | N89: 0
A90: Дальневосточный федеральный округ | B90: 4742313 | C90: 65438 | D90: 98805 | E90: 99784 | F90: 210706 | G90: 362765 | H90: 223121 | I90: 253107 | J90: 350179 | K90: 686167 | L90: 1153889 | M90: 1238352 | N90: 0
A91: Республика Бурятия | B91: 460091 | C91: 0 | D91: 0 | E91: 0 | F91: 24340 | G91: 0 | H91: 0 | I91: 0 | J91: 0 | K91: 0 | L91: 435751 | M91: 0 | N91: 0
A92: Республика Саха (Якутия) | B92: 396751 | C92: 0 | D92: 11772 | E92: 0 | F92: 0 | G92: 0 | H92: 0 | I92: 0 | J92: 0 | K92: 0 | L92: 384979 | M92: 0 | N92: 0
A93: Забайкальский край | B93: 371698 | C93: 7335 | D93: 14473 | E93: 16731 | F93: 0 | G93: 0 | H93: 0 | I93: 0 | J93: 0 | K93: 0 | L93: 333159 | M93: 0 | N93: 0
A94: Камчатский край | B94: 188226 | C94: 2688 | D94: 0 | E94: 0 | F94: 22386 | G94: 0 | H94: 0 | I94: 0 | J94: 163152 | K94: 0 | L94: 0 | M94: 0 | N94: 0
A95: Приморский край | B95: 1374625 | C95: 0 | D95: 0 | E95: 0 | F95: 51602 | G95: 241699 | H95: 0 | I95: 253107 | J95: 0 | K95: 205435 | L95: 0 | M95: 622782 | N95: 0
A96: Хабаровский край | B96: 851058 | C96: 0 | D96: 0 | E96: 0 | F96: 0 | G96: 0 | H96: 0 | I96: 0 | J96: 0 | K96: 235488 | L96: 0 | M96: 615570 | N96: 0
A97: Амурская область | B97: 452673 | C97: 7625 | D97: 10872 | E97: 51934 | F97: 27796 | G97: 48637 | H97: 60565 | I97: 0 | J97: 0 | K97: 245244 | L97: 0 | M97: 0 | N97: 0
A98: Магаданская область | B98: 94768 | C98: 0 | D98: 0 | E98: 0 | F98: 0 | G98: 0 | H98: 94768 | I98: 0 | J98: 0 | K98: 0 | L98: 0 | M98: 0 | N98: 0
A99: Сахалинская область | B99: 457590 | C99: 34157 | D99: 48276 | E99: 31119 | F99: 84582 | G99: 72429 | H99: 0 | I99: 0 | J99: 187027 | K99: 0 | L99: 0 | M99: 0 | N99: 0
A100: Еврейская автономная область | B100: 67788 | C100: 0 | D100: 0 | E100: 0 | F100: 0 | G100: 0 | H100: 67788 | I100: 0 | J100: 0 | K100: 0 | L100: 0 | M100: 0 | N100: 0
A101: Чукотский автономный округ | B101: 27045 | C101: 13633 | D101: 13412 | E101: 0 | F101: 0 | G101: 0 | H101: 0 | I101: 0 | J101: 0 | K101: 0 | L101: 0 | M101: 0 | N101: 0

Sheet Таб_9
A1: Содержание
A2: 9. Группировка числа муниципальных округов по численности населения, проживающего в них, на 1 января 2024 года
B4: Число муниципаль-ных округов - всего | C4: в том числе с числом жителей, человек
A5: Группировка числа городских округов по численности населения, проживающего в них | C5: до 10000 | D5: 10000 - 14999 | E5: 15000 - 19999 | F5: 20000 - 29999 | G5: 30000 - 49999 | H5: 50000 - 99999 | I5: 100000 - 149999 | J5: 150000 - 199999 | K5: 200000 - 249999 | L5: 250000 - 499999 | M5: 500000 - 999999 | N5: 1000000 и более
A6: Российская Федерация | B6: 410 | C6: 108 | D6: 91 | E6: 58 | F6: 62 | G6: 50 | H6: 30 | I6: 9 | J6: 2 | K6: 0 | L6: 0 | M6: 0 | N6: 0
A7: Центральный федеральный округ | B7: 85 | C7: 28 | D7: 15 | E7: 9 | F7: 8 | G7: 16 | H7: 8 | I7: 1 | J7: 0 | K7: 0 | L7: 0 | M7: 0 | N7: 0
A8: Белгородская область | B8: 0 | C8: 0 | D8: 0 | E8: 0 | F8: 0 | G8: 0 | H8: 0 | I8: 0 | J8: 0 | K8: 0 | L8: 0 | M8: 0 | N8: 0
A9: Брянская область | B9: 2 | C9: 0 | D9: 0 | E9: 0 | F9: 0 | G9: 2 | H9: 0 | I9: 0 | J9: 0 | K9: 0 | L9: 0 | M9: 0 | N9: 0
A10: Владимирская область | B10: 16 | C10: 0 | D10: 1 | E10: 2 | F10: 1 | G10: 9 | H10: 2 | I10: 1 | J10: 0 | K10: 0
A11: Воронежская область | B11: 0 | C11: 0 | D11: 0 | E11: 0 | F11: 0 | G11: 0 | H11: 0 | I11: 0 | J11: 0 | K11: 0 | L11: 0 | M11: 0 | N11: 0
A12: Ивановская область | B12: 0 | C12: 0 | D12: 0 | E12: 0 | F12: 0 | G12: 0 | H12: 0 | I12: 0 | J12: 0 | K12: 0 | L12: 0 | M12: 0 | N12: 0
A13: Калужская область | B13: 0 | C13: 0 | D13: 0 | E13: 0 | F13: 0 | G13: 0 | H13: 0 | I13: 0 | J13: 0 | K13: 0 | L13: 0 | M13: 0 | N13: 0
A14: Костромская область | B14: 10 | C14: 9 | D14: 0 | E14: 1 | F14: 0 | G14: 0 | H14: 0 | I14: 0 | J14: 0 | K14: 0 | L14: 0 | M14: 0 | N14: 0
A15: Курская область | B15: 0 | C15: 0 | D15: 0 | E15: 0 | F15: 0 | G15: 0 | H15: 0 | I15: 0 | J15: 0 | K15: 0 | L15: 0 | M15: 0 | N15: 0
A16: Липецкая область | B16: 0 | C16: 0 | D16: 0 | E16: 0 | F16: 0 | G16: 0 | H16: 0 | I16: 0 | J16: 0 | K16: 0 | L16: 0 | M16: 0 | N16: 0
A17: Московская область | B17: 0 | C17: 0 | D17: 0 | E17: 0 | F17: 0 | G17: 0 | H17: 0 | I17: 0 | J17: 0 | K17: 0 | L17: 0 | M17: 0 | N17: 0
A18: Орловская область | B18: 1 | C18: 0 | D18: 0 | E18: 0 | F18: 0 | G18: 0 | H18: 1 | I18: 0 | J18: 0 | K18: 0 | L18: 0 | M18: 0 | N18: 0
A19: Рязанская область | B19: 3 | C19: 1 | D19: 0 | E19: 0 | F19: 1 | G19: 1 | H19: 0 | I19: 0 | J19: 0 | K19: 0 | L19: 0 | M19: 0 | N19: 0
A20: Смоленская область | B20: 0 | C20: 0 | D20: 0 | E20: 0 | F20: 0 | G20: 0 | H20: 0 | I20: 0 | J20: 0 | K20: 0 | L20: 0 | M20: 0 | N20: 0
A21: Тамбовская область | B21: 23 | C21: 4 | D21: 8 | E21: 4 | F21: 4 | G21: 2 | H21: 1 | I21: 0 | J21: 0 | K21: 0 | L21: 0 | M21: 0 | N21: 0
A22: Тверская область | B22: 30 | C22: 14 | D22: 6 | E22: 2 | F22: 2 | G22: 2 | H22: 4 | I22: 0 | J22: 0 | K22: 0 | L22: 0 | M22: 0 | N22: 0
A23: Тульская область | B23: 0 | C23: 0 | D23: 0 | E23: 0 | F23: 0 | G23: 0 | H23: 0 | I23: 0 | J23: 0 | K23: 0 | L23: 0 | M23: 0 | N23: 0
A24: Ярославская область | B24: 0 | C24: 0 | D24: 0 | E24: 0 | F24: 0 | G24: 0 | H24: 0 | I24: 0 | J24: 0 | K24: 0 | L24: 0 | M24: 0 | N24: 0
A25: г.Москва | B25: 0 | C25: 0 | D25: 0 | E25: 0 | F25: 0 | G25: 0 | H25: 0 | I25: 0 | J25: 0 | K25: 0 | L25: 0 | M25: 0 | N25: 0
A26: Северо-Западный федеральный округ | B26: 79 | C26: 18 | D26: 24 | E26: 15 | F26: 9 | G26: 11 | H26: 1 | I26: 1 | J26: 0 | K26: 0 | L26: 0 | M26: 0 | N26: 0
A27: Республика Карелия | B27: 4 | C27: 0 | D27: 3 | E27: 0 | F27: 0 | G27: 1 | H27: 0 | I27: 0 | J27: 0 | K27: 0 | L27: 0 | M27: 0 | N27: 0
A28: Республика Коми | B28: 2 | C28: 0 | D28: 1 | E28: 0 | F28: 0 | G28: 1 | H28: 0 | I28: 0 | J28: 0 | K28: 0 | L28: 0 | M28: 0 | N28: 0
A29: Архангельская область, включая Ненецкий автономный округ | B29: 15 | C29: 3 | D29: 5 | E29: 3 | F29: 3 | G29: 1 | H29: 0 | I29: 0 | J29: 0 | K29: 0 | L29: 0 | M29: 0 | N29: 0
A30: Ненецкий автономный округ | B30: 0 | C30: 0 | D30: 0 | E30: 0 | F30: 0 | G30: 0 | H30: 0 | I30: 0 | J30: 0 | K30: 0 | L30: 0 | M30: 0 | N30: 0
A31: Архангельская область без Ненецкого автономного округа | B31: 15 | C31: 3 | D31: 5 | E31: 3 | F31: 3 | G31: 1 | H31: 0 | I31: 0 | J31: 0 | K31: 0 | L31: 0 | M31: 0 | N31: 0
A32: Вологодская область | B32: 23 | C32: 6 | D32: 8 | E32: 4 | F32: 1 | G32: 3 | H32: 1 | I32: 0 | J32: 0 | K32: 0 | L32: 0 | M32: 0 | N32: 0
A33: Калининградская область | B33: 12 | C33: 0 | D33: 3 | E33: 4 | F33: 1 | G33: 3 | H33: 0 | I33: 1 | J33: 0 | K33: 0 | L33: 0 | M33: 0 | N33: 0
A34: Ленинградская область | B34: 0 | C34: 0 | D34: 0 | E34: 0 | F34: 0 | G34: 0 | H34: 0 | I34: 0 | J34: 0 | K34: 0 | L34: 0 | M34: 0 | N34: 0
A35: Мурманская область | B35: 7 | C35: 0 | D35: 0 | E35: 2 | F35: 3 | G35: 2 | H35: 0 | I35: 0 | J35: 0 | K35: 0 | L35: 0 | M35: 0 | N35: 0
A36: Новгородская область | B36: 8 | C36: 4 | D36: 3 | E36: 1 | F36: 0 | G36: 0 | H36: 0 | I36: 0 | J36: 0 | K36: 0 | L36: 0 | M36: 0 | N36: 0
A37: Псковская область | B37: 8 | C37: 5 | D37: 1 | E37: 1 | F37: 1 | G37: 0 | H37: 0 | I37: 0 | J37: 0 | K37: 0 | L37: 0 | M37: 0 | N37: 0
A38: г.Санкт-Петербург | B38: 0 | C38: 0 | D38: 0 | E38: 0 | F38: 0 | G38: 0 | H38: 0 | I38: 0 | J38: 0 | K38: 0 | L38: 0 | M38: 0 | N38: 0
A39: Южный федеральный округ | B39: 0 | C39: 0 | D39: 0 | E39: 0 | F39: 0 | G39: 0 | H39: 0 | I39: 0 | J39: 0 | K39: 0 | L39: 0 | M39: 0 | N39: 0
A40: Республика Адыгея | B40: 0 | C40: 0 | D40: 0 | E40: 0 | F40: 0 | G40: 0 | H40: 0 | I40: 0 | J40: 0 | K40: 0 | L40: 0 | M40: 0 | N40: 0
A41: Республика Калмыкия | B41: 0 | C41: 0 | D41: 0 | E41: 0 | F41: 0 | G41: 0 | H41: 0 | I41: 0 | J41: 0 | K41: 0 | L41: 0 | M41: 0 | N41: 0
A42: Республика Крым | B42: 0 | C42: 0 | D42: 0 | E42: 0 | F42: 0 | G42: 0 | H42: 0 | I42: 0 | J42: 0 | K42: 0 | L42: 0 | M42: 0 | N42: 0
A43: Краснодарский край | B43: 0 | C43: 0 | D43: 0 | E43: 0 | F43: 0 | G43: 0 | H43: 0 | I43: 0 | J43: 0 | K43: 0 | L43: 0 | M43: 0 | N43: 0
A44: Астраханская область | B44: 0 | C44: 0 | D44: 0 | E44: 0 | F44: 0 | G44: 0 | H44: 0 | I44: 0 | J44: 0 | K44: 0 | L44: 0 | M44: 0 | N44: 0
A45: Волгоградская область | B45: 0 | C45: 0 | D45: 0 | E45: 0 | F45: 0 | G45: 0 | H45: 0 | I45: 0 | J45: 0 | K45: 0 | L45: 0 | M45: 0 | N45: 0
A46: Ростовская область | B46: 0 | C46: 0 | D46: 0 | E46: 0 | F46: 0 | G46: 0 | H46: 0 | I46: 0 | J46: 0 | K46: 0 | L46: 0 | M46: 0 | N46: 0
A47: г. Севастополь | B47: 0 | C47: 0 | D47: 0 | E47: 0 | F47: 0 | G47: 0 | H47: 0 | I47: 0 | J47: 0 | K47: 0 | L47: 0 | M47: 0 | N47: 0
A48: Северо-Кавказский федеральный округ | B48: 26 | C48: 0 | D48: 0 | E48: 0 | F48: 5 | G48: 6 | H48: 9 | I48: 4 | J48: 2 | K48: 0 | L48: 0 | M48: 0 | N48: 0
A49: Республика Дагестан | B49: 0 | C49: 0 | D49: 0 | E49: 0 | F49: 0 | G49: 0 | H49: 0 | I49: 0 | J49: 0 | K49: 0 | L49: 0 | M49: 0 | N49: 0
A50: Республика Ингушетия | B50: 0 | C50: 0 | D50: 0 | E50: 0 | F50: 0 | G50: 0 | H50: 0 | I50: 0 | J50: 0 | K50: 0 | L50: 0 | M50: 0 | N50: 0
A51: Кабардино-Балкарская Республика | B51: 0 | C51: 0 | D51: 0 | E51: 0 | F51: 0 | G51: 0 | H51: 0 | I51: 0 | J51: 0 | K51: 0 | L51: 0 | M51: 0 | N51: 0
A52: Карачаево-Черкесская Республика | B52: 0 | C52: 0 | D52: 0 | E52: 0 | F52: 0 | G52: 0 | H52: 0 | I52: 0 | J52: 0 | K52: 0 | L52: 0 | M52: 0 | N52: 0
A53: Республика Северная Осетия-Алания | B53: 0 | C53: 0 | D53: 0 | E53: 0 | F53: 0 | G53: 0 | H53: 0 | I53: 0 | J53: 0 | K53: 0 | L53: 0 | M53: 0 | N53: 0
A54: Чеченская Республика | B54: 0 | C54: 0 | D54: 0 | E54: 0 | F54: 0 | G54: 0 | H54: 0 | I54: 0 | J54: 0 | K54: 0 | L54: 0 | M54: 0 | N54: 0
A55: Ставропольский край | B55: 26 | C55: 0 | D55: 0 | E55: 0 | F55: 5 | G55: 6 | H55: 9 | I55: 4 | J55: 2 | K55: 0 | L55: 0 | M55: 0 | N55: 0
A56: Приволжский федеральный округ | B56: 118 | C56: 28 | D56: 34 | E56: 18 | F56: 18 | G56: 10 | H56: 7 | I56: 3 | J56: 0 | K56: 0 | L56: 0 | M56: 0 | N56: 0
A57: Республика Башкортостан | B57: 0 | C57: 0 | D57: 0 | E57: 0 | F57: 0 | G57: 0 | H57: 0 | I57: 0 | J57: 0 | K57: 0 | L57: 0 | M57: 0 | N57: 0
A58: Республика Марий Эл | B58: 0 | C58: 0 | D58: 0 | E58: 0 | F58: 0 | G58: 0 | H58: 0 | I58: 0 | J58: 0 | K58: 0 | L58: 0 | M58: 0 | N58: 0
A59: Республика Мордовия | B59: 0 | C59: 0 | D59: 0 | E59: 0 | F59: 0 | G59: 0 | H59: 0 | I59: 0 | J59: 0 | K59: 0 | L59: 0 | M59: 0 | N59: 0
A60: Республика Татарстан | B60: 0 | C60: 0 | D60: 0 | E60: 0 | F60: 0 | G60: 0 | H60: 0 | I60: 0 | J60: 0 | K60: 0 | L60: 0 | M60: 0 | N60: 0
A61: Удмуртская Республика | B61: 25 | C61: 5 | D61: 5 | E61: 7 | F61: 4 | G61: 3 | H61: 1 | I61: 0 | J61: 0 | K61: 0 | L61: 0 | M61: 0 | N61: 0
A62: Чувашская Республика | B62: 21 | C62: 1 | D62: 9 | E62: 2 | F62: 4 | G62: 4 | H62: 1 | I62: 0 | J62: 0 | K62: 0 | L62: 0 | M62: 0 | N62: 0
A63: Пермский край | B63: 21 | C63: 5 | D63: 7 | E63: 2 | F63: 3 | G63: 1 | H63: 1 | I63: 2 | J63: 0 | K63: 0 | L63: 0 | M63: 0 | N63: 0
A64: Кировская область | B64: 15 | C64: 12 | D64: 2 | E64: 1 | F64: 0 | G64: 0 | H64: 0 | I64: 0 | J64: 0 | K64: 0 | L64: 0 | M64: 0 | N64: 0
A65: Нижегородская область | B65: 36 | C65: 5 | D65: 11 | E65: 6 | F65: 7 | G65: 2 | H65: 4 | I65: 1 | J65: 0 | K65: 0 | L65: 0 | M65: 0 | N65: 0
A66: Оренбургская область | B66: 0 | C66: 0 | D66: 0 | E66: 0 | F66: 0 | G66: 0 | H66: 0 | I66: 0 | J66: 0 | K66: 0 | L66: 0 | M66: 0 | N66: 0
A67: Пензенская область | B67: 0 | C67: 0 | D67: 0 | E67: 0 | F67: 0 | G67: 0 | H67: 0 | I67: 0 | J67: 0 | K67: 0 | L67: 0 | M67: 0 | N67: 0
A68: Самарская область | B68: 0 | C68: 0 | D68: 0 | E68: 0 | F68: 0 | G68: 0 | H68: 0 | I68: 0 | J68: 0 | K68: 0 | L68: 0 | M68: 0 | N68: 0
A69: Саратовская область | B69: 0 | C69: 0 | D69: 0 | E69: 0 | F69: 0 | G69: 0 | H69: 0 | I69: 0 | J69: 0 | K69: 0 | L69: 0 | M69: 0 | N69: 0
A70: Ульяновская область | B70: 0 | C70: 0 | D70: 0 | E70: 0 | F70: 0 | G70: 0 | H70: 0 | I70: 0 | J70: 0 | K70: 0 | L70: 0 | M70: 0 | N70: 0
A71: Уральский федеральный округ | B71: 32 | C71: 8 | D71: 9 | E71: 6 | F71: 5 | G71: 1 | H71: 3 | I71: 0 | J71: 0 | K71: 0 | L71: 0 | M71: 0 | N71: 0
A72: Курганская область | B72: 24 | C72: 6 | D72: 8 | E72: 4 | F72: 5 | G72: 0 | H72: 1 | I72: 0 | J72: 0 | K72: 0 | L72: 0 | M72: 0 | N72: 0
A73: Свердловская область | B73: 0 | C73: 0 | D73: 0 | E73: 0 | F73: 0 | G73: 0 | H73: 0 | I73: 0 | J73: 0 | K73: 0 | L73: 0 | M73: 0 | N73: 0
A74: Тюменская область включая автономные округа | B74: 7 | C74: 2 | D74: 1 | E74: 2 | F74: 0 | G74: 1 | H74: 1 | I74: 0 | J74: 0 | K74: 0 | L74: 0 | M74: 0 | N74: 0
A75: Ханты-Мансийский автономный округ - Югра | B75: 0 | C75: 0 | D75: 0 | E75: 0 | F75: 0 | G75: 0 | H75: 0 | I75: 0 | J75: 0 | K75: 0 | L75: 0 | M75: 0 | N75: 0
A76: Ямало-Ненецкий автономный округ | B76: 7 | C76: 2 | D76: 1 | E76: 2 | F76: 0 | G76: 1 | H76: 1 | I76: 0 | J76: 0 | K76: 0 | L76: 0 | M76: 0 | N76: 0
A77: Тюменская область без автономных округов | B77: 0 | C77: 0 | D77: 0 | E77: 0 | F77: 0 | G77: 0 | H77: 0 | I77: 0 | J77: 0 | K77: 0 | L77: 0 | M77: 0 | N77: 0
A78: Челябинская область | B78: 1 | C78: 0 | D78: 0 | E78: 0 | F78: 0 | G78: 0 | H78: 1 | I78: 0 | J78: 0 | K78: 0 | L78: 0 | M78: 0 | N78: 0
A79: Сибирский федеральный округ | B79: 20 | C79: 3 | D79: 2 | E79: 4 | F79: 4 | G79: 5 | H79: 2 | I79: 0 | J79: 0 | K79: 0 | L79: 0 | M79: 0 | N79: 0
A80: Республика Алтай | B80: 0 | C80: 0 | D80: 0 | E80: 0 | F80: 0 | G80: 0 | H80: 0 | I80: 0 | J80: 0 | K80: 0 | L80: 0 | M80: 0 | N80: 0
A81: Республика Тыва | B81: 0 | C81: 0 | D81: 0 | E81: 0 | F81: 0 | G81: 0 | H81: 0 | I81: 0 | J81: 0 | K81: 0 | L81: 0 | M81: 0 | N81: 0
A82: Республика Хакасия | B82: 0 | C82: 0 | D82: 0 | E82: 0 | F82: 0 | G82: 0 | H82: 0 | I82: 0 | J82: 0 | K82: 0 | L82: 0 | M82: 0 | N82: 0
A83: Алтайский край | B83: 0 | C83: 0 | D83: 0 | E83: 0 | F83: 0 | G83: 0 | H83: 0 | I83: 0 | J83: 0 | K83: 0 | L83: 0 | M83: 0 | N83: 0
A84: Красноярский край | B84: 3 | C84: 2 | D84: 1 | E84: 0 | F84: 0 | G84: 0 | H84: 0 | I84: 0 | J84: 0 | K84: 0 | L84: 0 | M84: 0 | N84: 0
A85: Иркутская область | B85: 0 | C85: 0 | D85: 0 | E85: 0 | F85: 0 | G85: 0 | H85: 0 | I85: 0 | J85: 0 | K85: 0 | L85: 0 | M85: 0 | N85: 0
A86: Кемеровская область | B86: 17 | C86: 1 | D86: 1 | E86: 4 | F86: 4 | G86: 5 | H86: 2 | I86: 0 | J86: 0 | K86: 0 | L86: 0 | M86: 0 | N86: 0
A87: Новосибирская область | B87: 0 | C87: 0 | D87: 0 | E87: 0 | F87: 0 | G87: 0 | H87: 0 | I87: 0 | J87: 0 | K87: 0 | L87: 0 | M87: 0 | N87: 0
A88: Омская область | B88: 0 | C88: 0 | D88: 0 | E88: 0 | F88: 0 | G88: 0 | H88: 0 | I88: 0 | J88: 0 | K88: 0 | L88: 0 | M88: 0 | N88: 0
A89: Томская область | B89: 0 | C89: 0 | D89: 0 | E89: 0 | F89: 0 | G89: 0 | H89: 0 | I89: 0 | J89: 0 | K89: 0 | L89: 0 | M89: 0 | N89: 0
A90: Дальневосточный федеральный округ | B90: 50 | C90: 23 | D90: 7 | E90: 6 | F90: 13 | G90: 1 | H90: 0 | I90: 0 | J90: 0 | K90: 0 | L90: 0 | M90: 0 | N90: 0
A91: Республика Бурятия | B91: 0 | C91: 0 | D91: 0 | E91: 0 | F91: 0 | G91: 0 | H91: 0 | I91: 0 | J91: 0 | K91: 0 | L91: 0 | M91: 0 | N91: 0
A92: Республика Саха (Якутия) | B92: 10 | C92: 8 | D92: 0 | E92: 1 | F92: 1 | G92: 0 | H92: 0 | I92: 0 | J92: 0 | K92: 0 | L92: 0 | M92: 0 | N92: 0
A93: Забайкальский край | B93: 0 | C93: 0 | D93: 0 | E93: 0 | F93: 0 | G93: 0 | H93: 0 | I93: 0 | J93: 0 | K93: 0 | L93: 0 | M93: 0 | N93: 0
A94: Камчатский край | B94: 2 | C94: 2 | D94: 0 | E94: 0 | F94: 0 | G94: 0 | H94: 0 | I94: 0 | J94: 0 | K94: 0 | L94: 0 | M94: 0 | N94: 0
A95: Приморский край | B95: 17 | C95: 2 | D95: 4 | E95: 2 | F95: 9 | G95: 0 | H95: 0 | I95: 0 | J95: 0 | K95: 0 | L95: 0 | M95: 0 | N95: 0
A96: Хабаровский край | B96: 1 | C96: 1 | D96: 0 | E96: 0 | F96: 0 | G96: 0 | H96: 0 | I96: 0 | J96: 0 | K96: 0 | L96: 0 | M96: 0 | N96: 0
A97: Амурская область | B97: 12 | C97: 2 | D97: 3 | E97: 3 | F97: 3 | G97: 1 | H97: 0 | I97: 0 | J97: 0 | K97: 0 | L97: 0 | M97: 0 | N97: 0
A98: Магаданская область | B98: 8 | C98: 8 | D98: 0 | E98: 0 | F98: 0 | G98: 0 | H98: 0 | I98: 0 | J98: 0 | K98: 0 | L98: 0 | M98: 0 | N98: 0
A99: Сахалинская область | B99: 0 | C99: 0 | D99: 0 | E99: 0 | F99: 0 | G99: 0 | H99: 0 | I99: 0 | J99: 0 | K99: 0 | L99: 0 | M99: 0 | N99: 0
A100: Еврейская автономная область | B100: 0 | C100: 0 | D100: 0 | E100: 0 | F100: 0 | G100: 0 | H100: 0 | I100: 0 | J100: 0 | K100: 0 | L100: 0 | M100: 0 | N100: 0
A101: Чукотский автономный округ | B101: 0 | C101: 0 | D101: 0 | E101: 0 | F101: 0 | G101: 0 | H101: 0 | I101: 0 | J101: 0 | K101: 0 | L101: 0 | M101: 0 | N101: 0

Sheet Таб_10
A1: Содержание
A2: 10. Группировка численности населения, проживающего в муниципальных округах, на 1 января 2024 года
B4: Численность населения, проживающего в муниципальных округах - всего | C4: в том числе с числом жителей, человек
A5: Группировка численности населения, проживающего в городских округах | C5: до 10000 | D5: 10000 - 14999 | E5: 15000 - 19999 | F5: 20000 - 29999 | G5: 30000 - 49999 | H5: 50000 - 99999 | I5: 100000 - 149999 | J5: 150000 - 199999 | K5: 200000 - 249999 | L5: 250000 - 499999 | M5: 500000 - 999999 | N5: 1000000 и более
A6: Российская Федерация | B6: =B7+B26+B39+B48+B56+B71+B79+B90 -> 8798447 | C6: =C7+C26+C39+C48+C56+C71+C79+C90 -> 745897 | D6: 1108445 | E6: 967531 | F6: 1456367 | G6: 1510095 | H6: 1772186 | I6: 914799 | J6: 323127 | K6: 0 | L6: 0 | M6: 0 | N6: 0
A7: Центральный федеральный округ | B7: =SUM(B8:B25) -> 1255082 | C7: =SUM(C8:C25) -> 184442 | D7: 177269 | E7: 115425 | F7: 165087 | G7: 226470 | H7: 386389 | I7: 0 | J7: 0 | K7: 0 | L7: 0 | M7: 0 | N7: 0
A8: Белгородская область | B8: 0 | C8: 0 | D8: 0 | E8: 0 | F8: 0 | G8: 0 | H8: 0 | I8: 0 | J8: 0 | K8: 0 | L8: 0 | M8: 0 | N8: 0
A9: Брянская область | B9: 67492 | C9: 0 | D9: 0 | E9: 0 | F9: 0 | G9: 67492 | H9: 0 | I9: 0 | J9: 0 | K9: 0 | L9: 0 | M9: 0 | N9: 0
A10: Владимирская область | B10: 0 | C10: 0 | D10: 0 | E10: 0 | F10: 0 | G10: 0 | H10: 0 | I10: 0 | J10: 0 | K10: 0 | L10: 0 | M10: 0 | N10: 0
A11: Воронежская область | B11: 0 | C11: 0 | D11: 0 | E11: 0 | F11: 0 | G11: 0 | H11: 0 | I11: 0 | J11: 0 | K11: 0 | L11: 0 | M11: 0 | N11: 0
A12: Ивановская область | B12: 0 | C12: 0 | D12: 0 | E12: 0 | F12: 0 | G12: 0 | H12: 0 | I12: 0 | J12: 0 | K12: 0 | L12: 0 | M12: 0 | N12: 0
A13: Калужская область | B13: 0 | C13: 0 | D13: 0 | E13: 0 | F13: 0 | G13: 0 | H13: 0 | I13: 0 | J13: 0 | K13: 0 | L13: 0 | M13: 0 | N13: 0
A14: Костромская область | B14: 63074 | C14: 47927 | D14: 0 | E14: 15147 | F14: 0 | G14: 0 | H14: 0 | I14: 0 | J14: 0 | K14: 0 | L14: 0 | M14: 0 | N14: 0
A15: Курская область | B15: 0 | C15: 0 | D15: 0 | E15: 0 | F15: 0 | G15: 0 | H15: 0 | I15: 0 | J15: 0 | K15: 0 | L15: 0 | M15: 0 | N15: 0
A16: Липецкая область | B16: 0 | C16: 0 | D16: 0 | E16: 0 | F16: 0 | G16: 0 | H16: 0 | I16: 0 | J16: 0 | K16: 0 | L16: 0 | M16: 0 | N16: 0
A17: Московская область | B17: 0 | C17: 0 | D17: 0 | E17: 0 | F17: 0 | G17: 0 | H17: 0 | I17: 0 | J17: 0 | K17: 0 | L17: 0 | M17: 0 | N17: 0
A18: Орловская область | B18: 69588 | C18: 0 | D18: 0 | E18: 0 | F18: 0 | G18: 0 | H18: 69588 | I18: 0 | J18: 0 | K18: 0 | L18: 0 | M18: 0 | N18: 0
A19: Рязанская область | B19: 69740 | C19: 6799 | D19: 0 | E19: 0 | F19: 26812 | G19: 36129 | H19: 0 | I19: 0 | J19: 0 | K19: 0 | L19: 0 | M19: 0 | N19: 0
A20: Смоленская область | B20: 0 | C20: 0 | D20: 0 | E20: 0 | F20: 0 | G20: 0 | H20: 0 | I20: 0 | J20: 0 | K20: 0 | L20: 0 | M20: 0 | N20: 0
A21: Тамбовская область | B21: 428692 | C21: 35949 | D21: 98568 | E21: 65147 | F21: 93097 | G21: 62009 | H21: 73922 | I21: 0 | J21: 0 | K21: 0 | L21: 0 | M21: 0 | N21: 0
A22: Тверская область | B22: 556496 | C22: 93767 | D22: 78701 | E22: 35131 | F22: 45178 | G22: 60840 | H22: 242879 | I22: 0 | J22: 0 | K22: 0 | L22: 0 | M22: 0 | N22: 0
A23: Тульская область | B23: 0 | C23: 0 | D23: 0 | E23: 0 | F23: 0 | G23: 0 | H23: 0 | I23: 0 | J23: 0 | K23: 0 | L23: 0 | M23: 0 | N23: 0
A24: Ярославская область | B24: 0 | C24: 0 | D24: 0 | E24: 0 | F24: 0 | G24: 0 | H24: 0 | I24: 0 | J24: 0 | K24: 0 | L24: 0 | M24: 0 | N24: 0
A25: г. Москва | B25: 0 | C25: 0 | D25: 0 | E25: 0 | F25: 0 | G25: 0 | H25: 0 | I25: 0 | J25: 0 | K25: 0 | L25: 0 | M25: 0 | N25: 0
A26: Северо-Западный федеральный округ | B26: =SUM(B27+B28+B30,B30:B37) -> 1503262 | C26: =SUM(C27+C28+C30,C30:C37) -> 127660 | D26: 293946 | E26: 256458 | F26: 229555 | G26: 433136 | H26: 52112 | I26: 110395 | J26: 0 | K26: 0 | L26: 0 | M26: 0 | N26: 0
A27: Республика Карелия | B27: 70089 | C27: 0 | D27: 38870 | E27: 0 | F27: 0 | G27: 31219 | H27: 0 | I27: 0 | J27: 0 | K27: 0 | L27: 0 | M27: 0 | N27: 0
A28: Республика Коми | B28: 45932 | C28: 0 | D28: 10125 | E28: 0 | F28: 0 | G28: 35807 | H28: 0 | I28: 0 | J28: 0 | K28: 0 | L28: 0 | M28: 0 | N28: 0
A29: Архангельская область, включая Ненецкий автономный округ | B29: 239802 | C29: 20768 | D29: 58400 | E29: 52756 | F29: 74801 | G29: 33077 | H29: 0 | I29: 0 | J29: 0 | K29: 0 | L29: 0 | M29: 0 | N29: 0
A30: Ненецкий автономный округ | B30: 0 | C30: 0 | D30: 0 | E30: 0 | F30: 0 | G30: 0 | H30: 0 | I30: 0 | J30: 0 | K30: 0 | L30: 0 | M30: 0 | N30: 0
A31: Архангельская область без Ненецкого автономного округа | B31: =B29-B30 -> 239802 | C31: =C29-C30 -> 20768 | D31: 58400 | E31: 52756 | F31: 74801 | G31: 33077 | H31: 0 | I31: 0 | J31: 0 | K31: 0 | L31: 0 | M31: 0 | N31: 0
A32: Вологодская область | B32: 414387 | C32: 44096 | D32: 101777 | E32: 69031 | F32: 21923 | G32: 125448 | H32: 52112 | I32: 0 | J32: 0 | K32: 0 | L32: 0 | M32: 0 | N32: 0
A33: Калининградская область | B33: 358107 | C33: 0 | D33: 35008 | E33: 65892 | F33: 28931 | G33: 117881 | H33: 0 | I33: 110395 | J33: 0 | K33: 0 | L33: 0 | M33: 0 | N33: 0
A34: Ленинградская область | B34: 0 | C34: 0 | D34: 0 | E34: 0 | F34: 0 | G34: 0 | H34: 0 | I34: 0 | J34: 0 | K34: 0 | L34: 0 | M34: 0 | N34: 0
A35: Мурманская область | B35: 205624 | C35: 0 | D35: 0 | E35: 32437 | F35: 83483 | G35: 89704 | H35: 0 | I35: 0 | J35: 0 | K35: 0 | L35: 0 | M35: 0 | N35: 0
A36: Новгородская область | B36: 75602 | C36: 22368 | D36: 35076 | E36: 18158 | F36: 0 | G36: 0 | H36: 0 | I36: 0 | J36: 0 | K36: 0 | L36: 0 | M36: 0 | N36: 0
A37: Псковская область | B37: 93719 | C37: 40428 | D37: 14690 | E37: 18184 | F37: 20417 | G37: 0 | H37: 0 | I37: 0 | J37: 0 | K37: 0 | L37: 0 | M37: 0 | N37: 0
A38: г.Санкт-Петербург | B38: 0 | C38: 0 | D38: 0 | E38: 0 | F38: 0 | G38: 0 | H38: 0 | I38: 0 | J38: 0 | K38: 0 | L38: 0 | M38: 0 | N38: 0
A39: Южный федеральный округ | B39: =SUM(B40:B47) -> 0 | C39: =SUM(C40:C47) -> 0 | D39: 0 | E39: 0 | F39: 0 | G39: 0 | H39: 0 | I39: 0 | J39: 0 | K39: 0 | L39: 0 | M39: 0 | N39: 0
A40: Республика Адыгея | B40: 0 | C40: 0 | D40: 0 | E40: 0 | F40: 0 | G40: 0 | H40: 0 | I40: 0 | J40: 0 | K40: 0 | L40: 0 | M40: 0 | N40: 0
A41: Республика Калмыкия | B41: 0 | C41: 0 | D41: 0 | E41: 0 | F41: 0 | G41: 0 | H41: 0 | I41: 0 | J41: 0 | K41: 0 | L41: 0 | M41: 0 | N41: 0
A42: Республика Крым | B42: 0 | C42: 0 | D42: 0 | E42: 0 | F42: 0 | G42: 0 | H42: 0 | I42: 0 | J42: 0 | K42: 0 | L42: 0 | M42: 0 | N42: 0
A43: Краснодарский край | B43: 0 | C43: 0 | D43: 0 | E43: 0 | F43: 0 | G43: 0 | H43: 0 | I43: 0 | J43: 0 | K43: 0 | L43: 0 | M43: 0 | N43: 0
A44: Астраханская область | B44: 0 | C44: 0 | D44: 0 | E44: 0 | F44: 0 | G44: 0 | H44: 0 | I44: 0 | J44: 0 | K44: 0 | L44: 0 | M44: 0 | N44: 0
A45: Волгоградская область | B45: 0 | C45: 0 | D45: 0 | E45: 0 | F45: 0 | G45: 0 | H45: 0 | I45: 0 | J45: 0 | K45: 0 | L45: 0 | M45: 0 | N45: 0
A46: Ростовская область | B46: 0 | C46: 0 | D46: 0 | E46: 0 | F46: 0 | G46: 0 | H46: 0 | I46: 0 | J46: 0 | K46: 0 | L46: 0 | M46: 0 | N46: 0
A47: г. Севастополь | B47: 0 | C47: 0 | D47: 0 | E47: 0 | F47: 0 | G47: 0 | H47: 0 | I47: 0 | J47: 0 | K47: 0 | L47: 0 | M47: 0 | N47: 0
A48: Северо-Кавказский федеральный округ | B48: =SUM(B49:B55) -> 1671070 | C48: =SUM(C49:C55) -> 0 | D48: 0 | E48: 0 | F48: 118829 | G48: 220084 | H48: 558013 | I48: 451017 | J48: 323127 | K48: 0 | L48: 0 | M48: 0 | N48: 0
A49: Республика Дагестан | B49: 0 | C49: 0 | D49: 0 | E49: 0 | F49: 0 | G49: 0 | H49: 0 | I49: 0 | J49: 0 | K49: 0 | L49: 0 | M49: 0 | N49: 0
A50: Республика Ингушетия | B50: 0 | C50: 0 | D50: 0 | E50: 0 | F50: 0 | G50: 0 | H50: 0 | I50: 0 | J50: 0 | K50: 0 | L50: 0 | M50: 0 | N50: 0
A51: Кабардино-Балкарская Республика | B51: 0 | C51: 0 | D51: 0 | E51: 0 | F51: 0 | G51: 0 | H51: 0 | I51: 0 | J51: 0 | K51: 0 | L51: 0 | M51: 0 | N51: 0
A52: Карачаево-Черкесская Республика | B52: 0 | C52: 0 | D52: 0 | E52: 0 | F52: 0 | G52: 0 | H52: 0 | I52: 0 | J52: 0 | K52: 0 | L52: 0 | M52: 0 | N52: 0
A53: Республика Северная Осетия-Алания | B53: 0 | C53: 0 | D53: 0 | E53: 0 | F53: 0 | G53: 0 | H53: 0 | I53: 0 | J53: 0 | K53: 0 | L53: 0 | M53: 0 | N53: 0
A54: Чеченская Республика | B54: 0 | C54: 0 | D54: 0 | E54: 0 | F54: 0 | G54: 0 | H54: 0 | I54: 0 | J54: 0 | K54: 0 | L54: 0 | M54: 0 | N54: 0
A55: Ставропольский край | B55: 1671070 | C55: 0 | D55: 0 | E55: 0 | F55: 118829 | G55: 220084 | H55: 558013 | I55: 451017 | J55: 323127 | K55: 0 | L55: 0 | M55: 0 | N55: 0
A56: Приволжский федеральный округ | B56: =SUM(B57:B70) -> 2578554 | C56: =SUM(C57:C70) -> 208548 | D56: 419048 | E56: 321146 | F56: 432035 | G56: 347052 | H56: 497338 | I56: 353387 | J56: 0 | K56: 0 | L56: 0 | M56: 0 | N56: 0
A57: Республика Башкортостан | B57: 0 | C57: 0 | D57: 0 | E57: 0 | F57: 0 | G57: 0 | H57: 0 | I57: 0 | J57: 0 | K57: 0 | L57: 0 | M57: 0 | N57: 0
A58: Республика Марий Эл | B58: 0 | C58: 0 | D58: 0 | E58: 0 | F58: 0 | G58: 0 | H58: 0 | I58: 0 | J58: 0 | K58: 0 | L58: 0 | M58: 0 | N58: 0
A59: Республика Мордовия | B59: 0 | C59: 0 | D59: 0 | E59: 0 | F59: 0 | G59: 0 | H59: 0 | I59: 0 | J59: 0 | K59: 0 | L59: 0 | M59: 0 | N59: 0
A60: Республика Татарстан | B60: 0 | C60: 0 | D60: 0 | E60: 0 | F60: 0 | G60: 0 | H60: 0 | I60: 0 | J60: 0 | K60: 0 | L60: 0 | M60: 0 | N60: 0
A61: Удмуртская Республика | B61: 500875 | C61: 41823 | D61: 55923 | E61: 124269 | F61: 98130 | G61: 97270 | H61: 83460 | I61: 0 | J61: 0 | K61: 0 | L61: 0 | M61: 0 | N61: 0
A62: Чувашская Республика | B62: 438994 | C62: 7407 | D62: 116419 | E62: 38421 | F62: 91173 | G62: 124087 | H62: 61487 | I62: 0 | J62: 0 | K62: 0 | L62: 0 | M62: 0 | N62: 0
A63: Пермский край | B63: 561071 | C63: 41496 | D63: 85377 | E63: 36149 | F63: 71853 | G63: 43671 | H63: 50562 | I63: 231963 | J63: 0 | K63: 0 | L63: 0 | M63: 0 | N63: 0
A64: Кировская область | B64: 115986 | C64: 73442 | D64: 22944 | E64: 19600 | F64: 0 | G64: 0 | H64: 0 | I64: 0 | J64: 0 | K64: 0 | L64: 0 | M64: 0 | N64: 0
A65: Нижегородская область | B65: 961628 | C65: 44380 | D65: 138385 | E65: 102707 | F65: 170879 | G65: 82024 | H65: 301829 | I65: 121424 | J65: 0 | K65: 0 | L65: 0 | M65: 0 | N65: 0
A66: Оренбургская область | B66: 0 | C66: 0 | D66: 0 | E66: 0 | F66: 0 | G66: 0 | H66: 0 | I66: 0 | J66: 0 | K66: 0 | L66: 0 | M66: 0 | N66: 0
A67: Пензенская область | B67: 0 | C67: 0 | D67: 0 | E67: 0 | F67: 0 | G67: 0 | H67: 0 | I67: 0 | J67: 0 | K67: 0 | L67: 0 | M67: 0 | N67: 0
A68: Самарская область | B68: 0 | C68: 0 | D68: 0 | E68: 0 | F68: 0 | G68: 0 | H68: 0 | I68: 0 | J68: 0 | K68: 0 | L68: 0 | M68: 0 | N68: 0
A69: Саратовская область | B69: 0 | C69: 0 | D69: 0 | E69: 0 | F69: 0 | G69: 0 | H69: 0 | I69: 0 | J69: 0 | K69: 0 | L69: 0 | M69: 0 | N69: 0
A70: Ульяновская область | B70: 0 | C70: 0 | D70: 0 | E70: 0 | F70: 0 | G70: 0 | H70: 0 | I70: 0 | J70: 0 | K70: 0 | L70: 0 | M70: 0 | N70: 0
A71: Уральский федеральный округ | B71: =SUM(B72:B73,B75:B78) -> 599243 | C71: =SUM(C72:C73,C75:C78) -> 59637 | D71: 107634 | E71: 99754 | F71: 119678 | G71: 36676 | H71: 175864 | I71: 0 | J71: 0 | K71: 0 | L71: 0 | M71: 0 | N71: 0
A72: Курганская область | B72: 382764 | C72: 44835 | D72: 97539 | E72: 65610 | F72: 119678 | G72: 0 | H72: 55102 | I72: 0 | J72: 0 | K72: 0 | L72: 0 | M72: 0 | N72: 0
A73: Свердловская область | B73: 0 | C73: 0 | D73: 0 | E73: 0 | F73: 0 | G73: 0 | H73: 0 | I73: 0 | J73: 0 | K73: 0 | L73: 0 | M73: 0 | N73: 0
A74: Тюменская область включая автономные округа | B74: 161062 | C74: 14802 | D74: 10095 | E74: 34144 | F74: 0 | G74: 36676 | H74: 65345 | I74: 0 | J74: 0 | K74: 0 | L74: 0 | M74: 0 | N74: 0
A75: Ханты-Мансийский автономный округ - Югра | B75: 0 | C75: 0 | D75: 0 | E75: 0 | F75: 0 | G75: 0 | H75: 0 | I75: 0 | J75: 0 | K75: 0 | L75: 0 | M75: 0 | N75: 0
A76: Ямало-Ненецкий автономный округ | B76: 161062 | C76: 14802 | D76: 10095 | E76: 34144 | F76: 0 | G76: 36676 | H76: 65345 | I76: 0 | J76: 0 | K76: 0 | L76: 0 | M76: 0 | N76: 0
A77: Тюменская область без автономных округов | B77: 0 | C77: 0 | D77: 0 | E77: 0 | F77: 0 | G77: 0 | H77: 0 | I77: 0 | J77: 0 | K77: 0 | L77: 0 | M77: 0 | N77: 0
A78: Челябинская область | B78: 55417 | C78: 0 | D78: 0 | E78: 0 | F78: 0 | G78: 0 | H78: 55417 | I78: 0 | J78: 0 | K78: 0 | L78: 0 | M78: 0 | N78: 0
A79: Сибирский федеральный округ | B79: =SUM(B80:B89) -> 525881 | C79: =SUM(C80:C89) -> 22972 | D79: 24387 | E79: 71161 | F79: 94024 | G79: 210867 | H79: 102470 | I79: 0 | J79: 0 | K79: 0 | L79: 0 | M79: 0 | N79: 0
A80: Республика Алтай | B80: 0 | C80: 0 | D80: 0 | E80: 0 | F80: 0 | G80: 0 | H80: 0 | I80: 0 | J80: 0 | K80: 0 | L80: 0 | M80: 0 | N80: 0
A81: Республика Тыва | B81: 0 | C81: 0 | D81: 0 | E81: 0 | F81: 0 | G81: 0 | H81: 0 | I81: 0 | J81: 0 | K81: 0 | L81: 0 | M81: 0 | N81: 0
A82: Республика Хакасия | B82: 0 | C82: 0 | D82: 0 | E82: 0 | F82: 0 | G82: 0 | H82: 0 | I82: 0 | J82: 0 | K82: 0 | L82: 0 | M82: 0 | N82: 0
A83: Алтайский край | B83: 0 | C83: 0 | D83: 0 | E83: 0 | F83: 0 | G83: 0 | H83: 0 | I83: 0 | J83: 0 | K83: 0 | L83: 0 | M83: 0 | N83: 0
A84: Красноярский край | B84: 24673 | C84: 13283 | D84: 11390 | E84: 0 | F84: 0 | G84: 0 | H84: 0 | I84: 0 | J84: 0 | K84: 0 | L84: 0 | M84: 0 | N84: 0
A85: Иркутская область | B85: 0 | C85: 0 | D85: 0 | E85: 0 | F85: 0 | G85: 0 | H85: 0 | I85: 0 | J85: 0 | K85: 0 | L85: 0 | M85: 0 | N85: 0
A86: Кемеровская область | B86: 501208 | C86: 9689 | D86: 12997 | E86: 71161 | F86: 94024 | G86: 210867 | H86: 102470 | I86: 0 | J86: 0 | K86: 0 | L86: 0 | M86: 0 | N86: 0
A87: Новосибирская область | B87: 0 | C87: 0 | D87: 0 | E87: 0 | F87: 0 | G87: 0 | H87: 0 | I87: 0 | J87: 0 | K87: 0 | L87: 0 | M87: 0 | N87: 0
A88: Омская область | B88: 0 | C88: 0 | D88: 0 | E88: 0 | F88: 0 | G88: 0 | H88: 0 | I88: 0 | J88: 0 | K88: 0 | L88: 0 | M88: 0 | N88: 0
A89: Томская область | B89: 0 | C89: 0 | D89: 0 | E89: 0 | F89: 0 | G89: 0 | H89: 0 | I89: 0 | J89: 0 | K89: 0 | L89: 0 | M89: 0 | N89: 0
A90: Дальневосточный федеральный округ | B90: =SUM(B91:B101) -> 665355 | C90: =SUM(C91:C101) -> 142638 | D90: 86161 | E90: 103587 | F90: 297159 | G90: 35810 | H90: 0 | I90: 0 | J90: 0 | K90: 0 | L90: 0 | M90: 0 | N90: 0
A91: Республика Бурятия | B91: 0 | C91: 0 | D91: 0 | E91: 0 | F91: 0 | G91: 0 | H91: 0 | I91: 0 | J91: 0 | K91: 0 | L91: 0 | M91: 0 | N91: 0
A92: Республика Саха (Якутия) | B92: 95051 | C92: 59202 | D92: 0 | E92: 15082 | F92: 20767 | G92: 0 | H92: 0 | I92: 0 | J92: 0 | K92: 0 | L92: 0 | M92: 0 | N92: 0
A93: Забайкальский край | B93: 0 | C93: 0 | D93: 0 | E93: 0 | F93: 0 | G93: 0 | H93: 0 | I93: 0 | J93: 0 | K93: 0 | L93: 0 | M93: 0 | N93: 0
A94: Камчатский край | B94: 9342 | C94: 9342 | D94: 0 | E94: 0 | F94: 0 | G94: 0 | H94: 0 | I94: 0 | J94: 0 | K94: 0 | L94: 0 | M94: 0 | N94: 0
A95: Приморский край | B95: 316359 | C95: 16937 | D95: 49914 | E95: 35145 | F95: 214363 | G95: 0 | H95: 0 | I95: 0 | J95: 0 | K95: 0 | L95: 0 | M95: 0 | N95: 0
A96: Хабаровский край | B96: 6326 | C96: 6326 | D96: 0 | E96: 0 | F96: 0 | G96: 0 | H96: 0 | I96: 0 | J96: 0 | K96: 0 | L96: 0 | M96: 0 | N96: 0
A97: Амурская область | B97: 199658 | C97: 12212 | D97: 36247 | E97: 53360 | F97: 62029 | G97: 35810 | H97: 0 | I97: 0 | J97: 0 | K97: 0 | L97: 0 | M97: 0 | N97: 0
A98: Магаданская область | B98: 38619 | C98: 38619 | D98: 0 | E98: 0 | F98: 0 | G98: 0 | H98: 0 | I98: 0 | J98: 0 | K98: 0 | L98: 0 | M98: 0 | N98: 0
A99: Сахалинская область | B99: 0 | C99: 0 | D99: 0 | E99: 0 | F99: 0 | G99: 0 | H99: 0 | I99: 0 | J99: 0 | K99: 0 | L99: 0 | M99: 0 | N99: 0
A100: Еврейская автономная область | B100: 0 | C100: 0 | D100: 0 | E100: 0 | F100: 0 | G100: 0 | H100: 0 | I100: 0 | J100: 0 | K100: 0 | L100: 0 | M100: 0 | N100: 0
A101: Чукотский автономный округ | B101: 0 | C101: 0 | D101: 0 | E101: 0 | F101: 0 | G101: 0 | H101: 0 | I101: 0 | J101: 0 | K101: 0 | L101: 0 | M101: 0 | N101: 0

Sheet Таб_11
B1: Содержание
B2: 11. Группировка числа муниципальных районов по численности населения, проживающего в них, на 1 января 2024 года
C4: Число муниципальных районов - всего | D4: в том числе с числом жителей, человек
B5: Группировка числа муниципальных районов по численности населения, проживающего в них | D5: до 10000 | E5: 10000 - 14999 | F5: 15000 - 19999 | G5: 20000 - 29999 | H5: 30000 - 49999 | I5: 50000 - 99999 | J5: 100000 - 149999 | K5: 150000 - 199999 | L5: 200000 и более
B6: Российская Федерация | C6: 1346 | D6: 219 | E6: 244 | F6: 200 | G6: 251 | H6: 227 | I6: 156 | J6: 34 | K6: 9 | L6: 6
B7: Центральный федеральный округ | C7: 295 | D7: 69 | E7: 59 | F7: 38 | G7: 51 | H7: 50 | I7: 25 | J7: 2 | K7: 1 | L7: 0
B8: Белгородская область | C8: 13 | D8: 0 | E8: 2 | F8: 0 | G8: 7 | H8: 3 | I8: 0 | J8: 0 | K8: 1 | L8: 0
B9: Брянская область | C9: 24 | D9: 4 | E9: 4 | F9: 6 | G9: 4 | H9: 4 | I9: 2 | J9: 0 | K9: 0 | L9: 0
B10: Владимирская область | C10: 16 | D10: 0 | E10: 1 | F10: 2 | G10: 1 | H10: 9 | I10: 2 | J10: 1 | K10: 0 | L10: 0
B11: Воронежская область | C11: 31 | D11: 0 | E11: 1 | F11: 6 | G11: 8 | H11: 11 | I11: 5 | J11: 0 | K11: 0 | L11: 0
B12: Ивановская область | C12: 21 | D12: 7 | E12: 5 | F12: 5 | G12: 2 | H12: 2 | I12: 0 | J12: 0 | K12: 0 | L12: 0
B13: Калужская область | C13: 24 | D13: 8 | E13: 5 | F13: 2 | G13: 2 | H13: 3 | I13: 4 | J13: 0 | K13: 0 | L13: 0
B14: Костромская область | C14: 14 | D14: 10 | E14: 1 | F14: 1 | G14: 1 | H14: 1 | I14: 0 | J14: 0 | K14: 0 | L14: 0
B15: Курская область | C15: 28 | D15: 5 | E15: 12 | F15: 5 | G15: 5 | H15: 0 | I15: 1 | J15: 0 | K15: 0 | L15: 0
B16: Липецкая область | C16: 18 | D16: 0 | E16: 3 | F16: 4 | G16: 4 | H16: 5 | I16: 2 | J16: 0 | K16: 0 | L16: 0
B17: Московская область | C17: 0 | D17: 0 | E17: 0 | F17: 0 | G17: 0 | H17: 0 | I17: 0 | J17: 0 | K17: 0 | L17: 0
B18: Орловская область | C18: 23 | D18: 11 | E18: 8 | F18: 2 | G18: 2 | H18: 0 | I18: 0 | J18: 0 | K18: 0 | L18: 0
B19: Рязанская область | C19: 22 | D19: 7 | E19: 3 | F19: 1 | G19: 7 | H19: 3 | I19: 1 | J19: 0 | K19: 0 | L19: 0
B20: Смоленская область | C20: 25 | D20: 10 | E20: 6 | F20: 0 | G20: 3 | H20: 3 | I20: 3 | J20: 0 | K20: 0 | L20: 0
B21: Тамбовская область | C21: 0 | D21: 0 | E21: 0 | F21: 0 | G21: 0 | H21: 0 | I21: 0 | J21: 0 | K21: 0 | L21: 0
B22: Тверская область | C22: 1 | D22: 0 | E22: 0 | F22: 1 | G22: 0 | H22: 0 | I22: 0 | J22: 0 | K22: 0 | L22: 0
B23: Тульская область | C23: 19 | D23: 2 | E23: 5 | F23: 2 | G23: 2 | H23: 5 | I23: 2 | J23: 1 | K23: 0 | L23: 0
B24: Ярославская область | C24: 16 | D24: 5 | E24: 3 | F24: 1 | G24: 3 | H24: 1 | I24: 3 | J24: 0 | K24: 0 | L24: 0
B25: г.Москва | C25: 0 | D25: 0 | E25: 0 | F25: 0 | G25: 0 | H25: 0 | I25: 0 | J25: 0 | K25: 0 | L25: 0
B26: Северо-Западный федеральный округ | C26: 84 | D26: 20 | E26: 15 | F26: 10 | G26: 13 | H26: 10 | I26: 11 | J26: 2 | K26: 1 | L26: 2
B27: Республика Карелия | C27: 12 | D27: 2 | E27: 5 | F27: 1 | G27: 3 | H27: 1 | I27: 0 | J27: 0 | K27: 0 | L27: 0
B28: Республика Коми | C28: 14 | D28: 2 | E28: 4 | F28: 3 | G28: 3 | H28: 2 | I28: 0 | J28: 0 | K28: 0 | L28: 0
B29: Архангельская область, включая Ненецкий автономный округ | C29: 5 | D29: 1 | E29: 0 | F29: 2 | G29: 1 | H29: 1 | I29: 0 | J29: 0 | K29: 0 | L29: 0
B30: Ненецкий автономный округ | C30: 1 | D30: 0 | E30: 0 | F30: 1 | G30: 0 | H30: 0 | I30: 0 | J30: 0 | K30: 0 | L30: 0
B31: Архангельская область без Ненецкого автономного округа | C31: 4 | D31: 1 | E31: 0 | F31: 1 | G31: 1 | H31: 1 | I31: 0 | J31: 0 | K31: 0 | L31: 0
B32: Вологодская область | C32: 3 | D32: 0 | E32: 0 | F32: 0 | G32: 2 | H32: 1 | I32: 0 | J32: 0 | K32: 0 | L32: 0
B33: Калининградская область | C33: 0 | D33: 0 | E33: 0 | F33: 0 | G33: 0 | H33: 0 | I33: 0 | J33: 0 | K33: 0 | L33: 0
B34: Ленинградская область | C34: 17 | D34: 0 | E34: 0 | F34: 0 | G34: 2 | H34: 1 | I34: 9 | J34: 2 | K34: 1 | L34: 2
B35: Мурманская область | C35: 4 | D35: 2 | E35: 0 | F35: 0 | G35: 0 | H35: 2 | I35: 0 | J35: 0 | K35: 0 | L35: 0
B36: Новгородская область | C36: 13 | D36: 5 | E36: 2 | F36: 2 | G36: 1 | H36: 1 | I36: 2 | J36: 0 | K36: 0 | L36: 0
B37: Псковская область | C37: 16 | D37: 8 | E37: 4 | F37: 2 | G37: 1 | H37: 1 | I37: 0 | J37: 0 | K37: 0 | L37: 0
B38: г.Санкт-Петербург | C38: 0 | D38: 0 | E38: 0 | F38: 0 | G38: 0 | H38: 0 | I38: 0 | J38: 0 | K38: 0 | L38: 0
B39: Южный федеральный округ | C39: 157 | D39: 7 | E39: 14 | F39: 14 | G39: 26 | H39: 43 | I39: 35 | J39: 17 | K39: 1 | L39: 0
B40: Республика Адыгея | C40: 7 | D40: 0 | E40: 0 | F40: 1 | G40: 1 | H40: 3 | I40: 1 | J40: 1 | K40: 0 | L40: 0
B41: Республика Калмыкия | C41: 13 | D41: 6 | E41: 4 | F41: 2 | G41: 1 | H41: 0 | I41: 0 | J41: 0 | K41: 0 | L41: 0
B42: Республика Крым | C42: 14 | D42: 0 | E42: 0 | F42: 0 | G42: 2 | H42: 4 | I42: 7 | J42: 0 | K42: 1 | L42: 0
B43: Краснодарский край | C43: 37 | D43: 0 | E43: 0 | F43: 0 | G43: 1 | H43: 8 | I43: 15 | J43: 13 | K43: 0 | L43: 0
B44: Астраханская область | C44: 11 | D44: 0 | E44: 0 | F44: 1 | G44: 2 | H44: 6 | I44: 2 | J44: 0 | K44: 0 | L44: 0
B45: Волгоградская область | C45: 32 | D45: 0 | E45: 7 | F45: 5 | G45: 9 | H45: 8 | I45: 3 | J45: 0 | K45: 0 | L45: 0
B46: Ростовская область | C46: 43 | D46: 1 | E46: 3 | F46: 5 | G46: 10 | H46: 14 | I46: 7 | J46: 3 | K46: 0 | L46: 0
B47: г. Севастополь | C47: 0 | D47: 0 | E47: 0 | F47: 0 | G47: 0 | H47: 0 | I47: 0 | J47: 0 | K47: 0 | L47: 0
B48: Северо-Кавказский федеральный округ | C48: 88 | D48: 3 | E48: 5 | F48: 7 | G48: 14 | H48: 20 | I48: 30 | J48: 6 | K48: 3 | L48: 0
B49: Республика Дагестан | C49: 41 | D49: 0 | E49: 5 | F49: 2 | G49: 10 | H49: 9 | I49: 12 | J49: 2 | K49: 1 | L49: 0
B50: Республика Ингушетия | C50: 4 | D50: 1 | E50: 0 | F50: 0 | G50: 0 | H50: 0 | I50: 2 | J50: 1 | K50: 0 | L50: 0
B51: Кабардино-Балкарская Республика | C51: 10 | D51: 0 | E51: 0 | F51: 0 | G51: 0 | H51: 4 | I51: 6 | J51: 0 | K51: 0 | L51: 0
B52: Карачаево-Черкесская Республика | C52: 10 | D52: 0 | E52: 0 | F52: 3 | G52: 1 | H52: 4 | I52: 2 | J52: 0 | K52: 0 | L52: 0
B53: Республика Северная Осетия-Алания | C53: 8 | D53: 0 | E53: 0 | F53: 2 | G53: 1 | H53: 2 | I53: 2 | J53: 1 | K53: 0 | L53: 0
B54: Чеченская Республика | C54: 15 | D54: 2 | E54: 0 | F54: 0 | G54: 2 | H54: 1 | I54: 6 | J54: 2 | K54: 2 | L54: 0
B55: Ставропольский край | C55: 0 | D55: 0 | E55: 0 | F55: 0 | G55: 0 | H55: 0 | I55: 0 | J55: 0 | K55: 0 | L55: 0
B56: Приволжский федеральный округ | C56: 298 | D56: 30 | E56: 58 | F56: 61 | G56: 62 | H56: 45 | I56: 33 | J56: 4 | K56: 1 | L56: 4
B57: Республика Башкортостан | C57: 54 | D57: 0 | E57: 2 | F57: 10 | G57: 21 | H57: 8 | I57: 11 | J57: 2 | K57: 0 | L57: 0
B58: Республика Марий Эл | C58: 14 | D58: 1 | E58: 5 | F58: 2 | G58: 4 | H58: 1 | I58: 1 | J58: 0 | K58: 0 | L58: 0
B59: Республика Мордовия | C59: 22 | D59: 6 | E59: 5 | F59: 4 | G59: 3 | H59: 3 | I59: 1 | J59: 0 | K59: 0 | L59: 0
B60: Республика Татарстан | C60: 43 | D60: 0 | E60: 5 | F60: 8 | G60: 6 | H60: 9 | I60: 12 | J60: 0 | K60: 1 | L60: 2
B61: Удмуртская Республика | C61: 0 | D61: 0 | E61: 0 | F61: 0 | G61: 0 | H61: 0 | I61: 0 | J61: 0 | K61: 0 | L61: 0
B62: Чувашская Республика | C62: 0 | D62: 0 | E62: 0 | F62: 0 | G62: 0 | H62: 0 | I62: 0 | J62: 0 | K62: 0 | L62: 0
B63: Пермский край | C63: 0 | D63: 0 | E63: 0 | F63: 0 | G63: 0 | H63: 0 | I63: 0 | J63: 0 | K63: 0 | L63: 0
B64: Кировская область | C64: 24 | D64: 9 | E64: 2 | F64: 8 | G64: 3 | H64: 2 | I64: 0 | J64: 0 | K64: 0 | L64: 0
B65: Нижегородская область | C65: 0 | D65: 0 | E65: 0 | F65: 0 | G65: 0 | H65: 0 | I65: 0 | J65: 0 | K65: 0 | L65: 0
B66: Оренбургская область | C66: 29 | D66: 2 | E66: 9 | F66: 8 | G66: 6 | H66: 3 | I66: 0 | J66: 1 | K66: 0 | L66: 0
B67: Пензенская область | C67: 27 | D67: 5 | E67: 8 | F67: 3 | G67: 4 | H67: 6 | I67: 1 | J67: 0 | K67: 0 | L67: 0
B68: Самарская область | C68: 27 | D68: 1 | E68: 8 | F68: 5 | G68: 5 | H68: 5 | I68: 2 | J68: 1 | K68: 0 | L68: 0
B69: Саратовская область | C69: 37 | D69: 4 | E69: 8 | F69: 7 | G69: 6 | H69: 5 | I69: 5 | J69: 0 | K69: 0 | L69: 2
B70: Ульяновская область | C70: 21 | D70: 2 | E70: 6 | F70: 6 | G70: 4 | H70: 3 | I70: 0 | J70: 0 | K70: 0 | L70: 0
B71: Уральский федеральный округ | C71: 60 | D71: 3 | E71: 8 | F71: 12 | G71: 19 | H71: 13 | I71: 3 | J71: 2 | K71: 0 | L71: 0
B72: Курганская область | C72: 0 | D72: 0 | E72: 0 | F72: 0 | G72: 0 | H72: 0 | I72: 0 | J72: 0 | K72: 0 | L72: 0
B73: Свердловская область | C73: 5 | D73: 1 | E73: 2 | F73: 0 | G73: 1 | H73: 1 | I73: 0 | J73: 0 | K73: 0 | L73: 0
B74: Тюменская область включая автономные округа | C74: 29 | D74: 2 | E74: 5 | F74: 8 | G74: 7 | H74: 5 | I74: 0 | J74: 2 | K74: 0 | L74: 0 | Q74: 0
B75: Ханты-Мансийский автономный округ - Югра | C75: 9 | D75: 0 | E75: 0 | F75: 1 | G75: 2 | H75: 5 | I75: 0 | J75: 1 | K75: 0 | L75: 0
B76: Ямало-Ненецкий автономный округ | C76: 0 | D76: 0 | E76: 0 | F76: 0 | G76: 0 | H76: 0 | I76: 0 | J76: 0 | K76: 0 | L76: 0
B77: Тюменская область без автономных округов | C77: 20 | D77: 2 | E77: 5 | F77: 7 | G77: 5 | H77: 0 | I77: 0 | J77: 1 | K77: 0 | L77: 0
B78: Челябинская область | C78: 26 | D78: 0 | E78: 1 | F78: 4 | G78: 11 | H78: 7 | I78: 3 | J78: 0 | K78: 0 | L78: 0
B79: Сибирский федеральный округ | C79: 243 | D79: 47 | E79: 72 | F79: 41 | G79: 38 | H79: 33 | I79: 9 | J79: 1 | K79: 2 | L79: 0
B80: Республика Алтай | C80: 10 | D80: 1 | E80: 6 | F80: 2 | G80: - | H80: 1 | I80: - | J80: - | K80: - | L80: 0
B81: Республика Тыва | C81: 17 | D81: 9 | E81: 4 | F81: 3 | G81: 0 | H81: 1 | I81: 0 | J81: 0 | K81: 0 | L81: 0
B82: Республика Хакасия | C82: 8 | D82: 1 | E82: 1 | F82: 2 | G82: 2 | H82: 2 | I82: 0 | J82: 0 | K82: 0 | L82: 0
B83: Алтайский край | C83: 56 | D83: 15 | E83: 20 | F83: 11 | G83: 5 | H83: 4 | I83: 1 | J83: 0 | K83: 0 | L83: 0
B84: Красноярский край | C84: 41 | D84: 8 | E84: 13 | F84: 6 | G84: 9 | H84: 4 | I84: 1 | J84: 0 | K84: 0 | L84: 0
B85: Иркутская область | C85: 32 | D85: 4 | E85: 8 | F85: 3 | G85: 8 | H85: 5 | I85: 3 | J85: 0 | K85: 1 | L85: 0
B86: Кемеровская область | C86: 1 | D86: 0 | E86: 0 | F86: 0 | G86: 0 | H86: 1 | I86: 0 | J86: 0 | K86: 0 | L86: 0
B87: Новосибирская область | C87: 30 | D87: 2 | E87: 9 | F87: 1 | G87: 6 | H87: 8 | I87: 3 | J87: 0 | K87: 1 | L87: 0
B88: Омская область | C88: 32 | D88: 5 | E88: 4 | F88: 10 | G88: 7 | H88: 5 | I88: 0 | J88: 1 | K88: 0 | L88: 0
B89: Томская область | C89: 16 | D89: 2 | E89: 7 | F89: 3 | G89: 1 | H89: 2 | I89: 1 | J89: 0 | K89: 0 | L89: 0
B90: Дальневосточный федеральный округ | C90: 121 | D90: 40 | E90: 13 | F90: 17 | G90: 28 | H90: 13 | I90: 10 | J90: 0 | K90: 0 | L90: 0
B91: Республика Бурятия | C91: 21 | D91: 3 | E91: 3 | F91: 3 | G91: 7 | H91: 2 | I91: 3 | J91: 0 | K91: 0 | L91: 0
B92: Республика Саха (Якутия) | C92: 34 | D92: 15 | E92: 3 | F92: 2 | G92: 8 | H92: 4 | I92: 2 | J92: 0 | K92: 0 | L92: 0
B93: Забайкальский край | C93: 21 | D93: 3 | E93: 2 | F93: 6 | G93: 5 | H93: 3 | I93: 2 | J93: 0 | K93: 0 | L93: 0
B94: Камчатский край | C94: 9 | D94: 8 | E94: 0 | F94: 0 | G94: 0 | H94: 0 | I94: 1 | J94: 0 | K94: 0 | L94: 0
B95: Приморский край | C95: 5 | D95: 1 | E95: 0 | F95: 2 | G95: 1 | H95: 1 | I95: 0 | J95: 0 | K95: 0 | L95: 0
B96: Хабаровский край | C96: 16 | D96: 3 | E96: 2 | F96: 1 | G96: 5 | H96: 3 | I96: 2 | J96: 0 | K96: 0 | L96: 0
B97: Амурская область | C97: 7 | D97: 2 | E97: 3 | F97: 2 | G97: 0 | H97: 0 | I97: 0 | J97: 0 | K97: 0 | L97: 0
B98: Магаданская область | C98: 0 | D98: 0 | E98: 0 | F98: 0 | G98: 0 | H98: 0 | I98: 0 | J98: 0 | K98: 0 | L98: 0
B99: Сахалинская область | C99: 0 | D99: 0 | E99: 0 | F99: 0 | G99: 0 | H99: 0 | I99: 0 | J99: 0 | K99: 0 | L99: 0
B100: Еврейская автономная область | C100: 5 | D100: 2 | E100: 0 | F100: 1 | G100: 2 | H100: 0 | I100: 0 | J100: 0 | K100: 0 | L100: 0
B101: Чукотский автономный округ | C101: 3 | D101: 3 | E101: 0 | F101: 0 | G101: 0 | H101: 0 | I101: 0 | J101: 0 | K101: 0 | L101: 0

Sheet Таб_12
A1: Содержание
A2: 12. Группировка численности населения, проживающего в муниципальных районах, на 1 января 2024 года
B4: Численность населения, проживающего в муниципальных районах - всего | C4: в том числе с числом жителей, человек
A5: Группировка численности населения, проживающего в муниципальных районах | C5: до 10000 | D5: 10000 - 14999 | E5: 15000 - 19999 | F5: 20000 - 29999 | G5: 30000 - 49999 | H5: 50000 - 99999 | I5: 100000 - 149999 | J5: 150000 - 199999 | K5: 200000 и более
A6: Российская Федерация | B6: 40777994 | C6: 1555571 | D6: 3046422 | E6: 3492267 | F6: 6146577 | G6: 8491891 | H6: 10617477 | I6: 4009720 | J6: 1591678 | K6: 1826391
A7: Центральный федеральный округ | B7: 7119399 | C7: 499910 | D7: 735544 | E7: 651204 | F7: 1257468 | G7: 1889725 | H7: 1690130 | I7: 204356 | J7: 191062 | K7: 0
A8: Белгородская область | B8: 483895 | C8: 0 | D8: 24782 | E8: 0 | F8: 170205 | G8: 97846 | H8: 0 | I8: 0 | J8: 191062 | K8: 0
A9: Брянская область | B9: 540753 | C9: 31872 | D9: 54220 | E9: 98001 | F9: 101634 | G9: 130460 | H9: 124566 | I9: 0 | J9: 0 | K9: 0
A10: Владимирская область | B10: 653726 | C10: 0 | D10: 14536 | E10: 36659 | F10: 29511 | G10: 345414 | H10: 124949 | I10: 102657 | J10: 0 | K10: 0
A11: Воронежская область | B11: 1129171 | C11: 0 | D11: 14825 | E11: 100747 | F11: 191305 | G11: 428946 | H11: 393348 | I11: 0 | J11: 0 | K11: 0
A12: Ивановская область | B12: 329037 | C12: 51647 | D12: 60925 | E12: 90961 | F12: 51396 | G12: 74108 | H12: 0 | I12: 0 | J12: 0 | K12: 0
A13: Калужская область | B13: 584830 | C13: 61900 | D13: 63749 | E13: 34487 | F13: 42892 | G13: 113803 | H13: 267999 | I13: 0 | J13: 0 | K13: 0
A14: Костромская область | B14: 160967 | C14: 65709 | D14: 10748 | E14: 16012 | F14: 27921 | G14: 40577 | H14: 0 | I14: 0 | J14: 0 | K14: 0
A15: Курская область | B15: 458304 | C15: 42449 | D15: 153241 | E15: 83408 | F15: 123735 | G15: 0 | H15: 55471 | I15: 0 | J15: 0 | K15: 0
A16: Липецкая область | B16: 536103 | C16: 0 | D16: 40266 | E16: 66677 | F16: 106636 | G16: 185045 | H16: 137479 | I16: 0 | J16: 0 | K16: 0
A17: Московская область | B17: 0 | C17: 0 | D17: 0 | E17: 0 | F17: 0 | G17: 0 | H17: 0 | I17: 0 | J17: 0 | K17: 0
A18: Орловская область | B18: 252244 | C18: 72914 | D18: 99239 | E18: 33766 | F18: 46325 | G18: 0 | H18: 0 | I18: 0 | J18: 0 | K18: 0
A19: Рязанская область | B19: 439021 | C19: 49616 | D19: 35403 | E19: 15533 | F19: 170451 | G19: 104579 | H19: 63439 | I19: 0 | J19: 0 | K19: 0
A20: Смоленская область | B20: 528658 | C20: 64904 | D20: 68119 | E20: 0 | F20: 68376 | G20: 135971 | H20: 191288 | I20: 0 | J20: 0 | K20: 0
A21: Тамбовская область | B21: 0 | C21: 0 | D21: 0 | E21: 0 | F21: 0 | G21: 0 | H21: 0 | I21: 0 | J21: 0 | K21: 0
A22: Тверская область | B22: 18761 | C22: 0 | D22: 0 | E22: 18761 | F22: 0 | G22: 0 | H22: 0 | I22: 0 | J22: 0 | K22: 0
A23: Тульская область | B23: 609663 | C23: 17300 | D23: 62035 | E23: 36712 | F23: 56366 | G23: 186761 | H23: 148790 | I23: 101699 | J23: 0 | K23: 0
A24: Ярославская область | B24: 394266 | C24: 41599 | D24: 33456 | E24: 19480 | F24: 70715 | G24: 46215 | H24: 182801 | I24: 0 | J24: 0 | K24: 0
A25: г. Москва | B25: 0 | C25: 0 | D25: 0 | E25: 0 | F25: 0 | G25: 0 | H25: 0 | I25: 0 | J25: 0 | K25: 0
A26: Северо-Западный федеральный округ | B26: 3292105 | C26: 140529 | D26: 180898 | E26: 179446 | F26: 310629 | G26: 390662 | H26: 823856 | I26: 238732 | J26: 194689 | K26: 832664
A27: Республика Карелия | B27: 191603 | C27: 13583 | D27: 59017 | E27: 18460 | F27: 69175 | G27: 31368 | H27: 0 | I27: 0 | J27: 0 | K27: 0
A28: Республика Коми | B28: 260354 | C28: 16931 | D28: 49194 | E28: 51437 | F28: 66756 | G28: 76036 | H28: 0 | I28: 0 | J28: 0 | K28: 0
A29: Архангельская область, включая Ненецкий автономный округ | B29: 113729 | C29: 9646 | D29: 0 | E29: 35765 | F29: 23456 | G29: 44862 | H29: 0 | I29: 0 | J29: 0 | K29: 0
A30: Ненецкий автономный округ | B30: 17958 | C30: 0 | D30: 0 | E30: 17958 | F30: 0 | G30: 0 | H30: 0 | I30: 0 | J30: 0 | K30: 0
A31: Архангельская область без Ненецкого автономного округа | B31: 95771 | C31: 9646 | D31: 0 | E31: 17807 | F31: 23456 | G31: 44862 | H31: 0 | I31: 0 | J31: 0 | K31: 0
A32: Вологодская область | B32: 179758 | C32: 0 | D32: 0 | E32: 0 | F32: 50677 | G32: 39202 | H32: 89879 | I32: 0 | J32: 0 | K32: 0
A33: Калининградская область | B33: 0 | C33: 0 | D33: 0 | E33: 0 | F33: 0 | G33: 0 | H33: 0 | I33: 0 | J33: 0 | K33: 0
A34: Ленинградская область | B34: 1972300 | C34: 0 | D34: 0 | E34: 0 | F34: 52235 | G34: 44406 | H34: 609574 | I34: 238732 | J34: 194689 | K34: 832664
A35: Мурманская область | B35: 85999 | C35: 13468 | D35: 0 | E35: 0 | F35: 0 | G35: 72531 | H35: 0 | I35: 0 | J35: 0 | K35: 0 | N35: 0
A36: Новгородская область | B36: 273505 | C36: 28839 | D36: 24627 | E36: 36416 | F36: 21712 | G36: 37508 | H36: 124403 | I36: 0 | J36: 0 | K36: 0
A37: Псковская область | B37: 214857 | C37: 58062 | D37: 48060 | E37: 37368 | F37: 26618 | G37: 44749 | H37: 0 | I37: 0 | J37: 0 | K37: 0
A38: г. Санкт-Петербург | B38: 0 | C38: 0 | D38: 0 | E38: 0 | F38: 0 | G38: 0 | H38: 0 | I38: 0 | J38: 0 | K38: 0
A39: Южный федеральный округ | B39: 7439276 | C39: 59644 | D39: 184938 | E39: 239231 | F39: 671492 | G39: 1595928 | H39: 2503596 | I39: 2015098 | J39: 169349 | K39: 0
A40: Республика Адыгея | B40: 323032 | C40: 0 | D40: 0 | E40: 16287 | F40: 22260 | G40: 94286 | H40: 59156 | I40: 131043 | J40: 0 | K40: 0
A41: Республика Калмыкия | B41: 159155 | C41: 53861 | D41: 51291 | E41: 33707 | F41: 20296 | G41: 0 | H41: 0 | I41: 0 | J41: 0 | K41: 0
A42: Республика Крым | B42: 853327 | C42: 0 | D42: 0 | E42: 0 | F42: 54886 | G42: 134999 | H42: 494093 | I42: 0 | J42: 169349 | K42: 0
A43: Краснодарский край | B43: 3072541 | C43: 0 | D43: 0 | E43: 0 | F43: 29336 | G43: 329456 | H43: 1163796 | I43: 1549953 | J43: 0 | K43: 0
A44: Астраханская область | B44: 457279 | C44: 0 | D44: 0 | E44: 19298 | F44: 52756 | G44: 261526 | H44: 123699 | I44: 0 | J44: 0 | K44: 0
A45: Волгоградская область | B45: 862933 | C45: 0 | D45: 95072 | E45: 85277 | F45: 230597 | G45: 280027 | H45: 171960 | I45: 0 | J45: 0 | K45: 0
A46: Ростовская область | B46: 1711009 | C46: 5783 | D46: 38575 | E46: 84662 | F46: 261361 | G46: 495634 | H46: 490892 | I46: 334102 | J46: 0 | K46: 0
A47: г. Севастополь | B47: 0 | C47: 0 | D47: 0 | E47: 0 | F47: 0 | G47: 0 | H47: 0 | I47: 0 | J47: 0 | K47: 0
A48: Северо-Кавказский федеральный округ | B48: 4373210 | C48: 13678 | D48: 62396 | E48: 117703 | F48: 341850 | G48: 682552 | H48: 1945711 | I48: 680660 | J48: 528660 | K48: 0
A49: Республика Дагестан | B49: 1781897 | C49: 0 | D49: 62396 | E49: 32658 | F49: 237005 | G49: 296857 | H49: 772612 | I49: 204055 | J49: 176314 | K49: 0
A50: Республика Ингушетия | B50: 237242 | C50: 4118 | D50: 0 | E50: 0 | F50: 0 | G50: 0 | H50: 122445 | I50: 110679 | J50: 0 | K50: 0
A51: Кабардино-Балкарская Республика | B51: 512934 | C51: 0 | D51: 0 | E51: 0 | F51: 0 | G51: 139004 | H51: 373930 | I51: 0 | J51: 0 | K51: 0
A52: Карачаево-Черкесская Республика | B52: 314390 | C52: 0 | D52: 0 | E52: 50885 | F52: 24072 | G52: 135008 | H52: 104425 | I52: 0 | J52: 0 | K52: 0
A53: Республика Северная Осетия-Алания | B53: 369521 | C53: 0 | D53: 0 | E53: 34160 | F53: 27871 | G53: 69533 | H53: 137584 | I53: 100373 | J53: 0 | K53: 0
A54: Чеченская Республика | B54: 1157226 | C54: 9560 | D54: 0 | E54: 0 | F54: 52902 | G54: 42150 | H54: 434715 | I54: 265553 | J54: 352346 | K54: 0
A55: Ставропольский край | B55: 0 | C55: 0 | D55: 0 | E55: 0 | F55: 0 | G55: 0 | H55: 0 | I55: 0 | J55: 0 | K55: 0
A56: Приволжский федеральный округ | B56: 9143118 | C56: 248332 | D56: 738724 | E56: 1078810 | F56: 1497831 | G56: 1671866 | H56: 2247304 | I56: 496726 | J56: 169798 | K56: 993727
A57: Республика Башкортостан | B57: 2042674 | C57: 0 | D57: 28600 | E57: 173073 | F57: 508097 | G57: 314879 | H57: 770167 | I57: 247858 | J57: 0 | K57: 0
A58: Республика Марий Эл | B58: 303455 | C58: 5947 | D58: 61056 | E58: 36624 | F58: 93588 | G58: 38471 | H58: 67769 | I58: 0 | J58: 0 | K58: 0
A59: Республика Мордовия | B59: 426740 | C59: 49717 | D59: 58503 | E59: 71231 | F59: 73583 | G59: 114886 | H59: 58820 | I59: 0 | J59: 0 | K59: 0
A60: Республика Татарстан | B60: 2140029 | C60: 0 | D60: 64888 | E60: 148213 | F60: 148437 | G60: 322305 | H60: 797615 | I60: 0 | J60: 169798 | K60: 488773
A61: Удмуртская Республика | B61: 0 | C61: 0 | D61: 0 | E61: 0 | F61: 0 | G61: 0 | H61: 0 | I61: 0 | J61: 0 | K61: 0
A62: Чувашская Республика | B62: 0 | C62: 0 | D62: 0 | E62: 0 | F62: 0 | G62: 0 | H62: 0 | I62: 0 | J62: 0 | K62: 0
A63: Пермский край | B63: 0 | C63: 0 | D63: 0 | E63: 0 | F63: 0 | G63: 0 | H63: 0 | I63: 0 | J63: 0 | K63: 0
A64: Кировская область | B64: 367073 | C64: 67215 | D64: 25233 | E64: 140909 | F64: 68466 | G64: 65250 | H64: 0 | I64: 0 | J64: 0 | K64: 0
A65: Нижегородская область | B65: 0 | C65: 0 | D65: 0 | E65: 0 | F65: 0 | G65: 0 | H65: 0 | I65: 0 | J65: 0 | K65: 0
A66: Оренбургская область | B66: 641700 | C66: 18515 | D66: 114656 | E66: 140981 | F66: 147618 | G66: 101557 | H66: 0 | I66: 118373 | J66: 0 | K66: 0
A67: Пензенская область | B67: 612308 | C67: 43031 | D67: 102204 | E67: 53317 | F67: 95274 | G67: 252073 | H67: 66409 | I67: 0 | J67: 0 | K67: 0
A68: Самарская область | B68: 767152 | C68: 9128 | D68: 101788 | E68: 85790 | F68: 113358 | G68: 182307 | H68: 144286 | I68: 130495 | J68: 0 | K68: 0
A69: Саратовская область | B69: 1427571 | C69: 37959 | D69: 104113 | E69: 116879 | F69: 150135 | G69: 171293 | H69: 342238 | I69: 0 | J69: 0 | K69: 504954
A70: Ульяновская область | B70: 414416 | C70: 16820 | D70: 77683 | E70: 111793 | F70: 99275 | G70: 108845 | H70: 0 | I70: 0 | J70: 0 | K70: 0
A71: Уральский федеральный округ | B71: 1816600 | C71: 21213 | D71: 97209 | E71: 217403 | F71: 479492 | G71: 506523 | H71: 221188 | I71: 273572 | J71: 0 | K71: 0
A72: Курганская область | B72: 0 | C72: 0 | D72: 0 | E72: 0 | F72: 0 | G72: 0 | H72: 0 | I72: 0 | J72: 0 | K72: 0
A73: Свердловская область | B73: 86656 | C73: 2677 | D73: 26086 | E73: 0 | F73: 20537 | G73: 37356 | H73: 0 | I73: 0 | J73: 0 | K73: 0
A74: Тюменская область включая автономные округа | B74: 870036 | C74: 18536 | D74: 57457 | E74: 147923 | F74: 177370 | G74: 195178 | H74: 0 | I74: 273572 | J74: 0 | K74: 0 | O74: =B74-B75-B76-B77 -> 0
A75: Ханты-Мансийский автономный округ - Югра | B75: 395492 | C75: 0 | D75: 0 | E75: 19022 | F75: 51300 | G75: 195178 | H75: 0 | I75: 129992 | J75: 0 | K75: 0
A76: Ямало-Ненецкий автономный округ | B76: 0 | C76: 0 | D76: 0 | E76: 0 | F76: 0 | G76: 0 | H76: 0 | I76: 0 | J76: 0 | K76: 0
A77: Тюменская область без автономных округов | B77: 474544 | C77: 18536 | D77: 57457 | E77: 128901 | F77: 126070 | G77: 0 | H77: 0 | I77: 143580 | J77: 0 | K77: 0
A78: Челябинская область | B78: 859908 | C78: 0 | D78: 13666 | E78: 69480 | F78: 281585 | G78: 273989 | H78: 221188 | I78: 0 | J78: 0 | K78: 0
A79: Сибирский федеральный округ | B79: 5147982 | C79: 353579 | D79: 885436 | E79: 715803 | F79: 922765 | G79: 1282821 | H79: 548882 | I79: 100576 | J79: 338120 | K79: 0
A80: Республика Алтай | B80: 146257 | C80: 7439 | D80: 73623 | E80: 34254 | F80: 0 | G80: 30941 | H80: 0 | J80: 0 | K80: 0
A81: Республика Тыва | B81: 195525 | C81: 60836 | D81: 44395 | E81: 53954 | F81: 0 | G81: 36340 | H81: 0 | I81: 0 | J81: 0 | K81: 0
A82: Республика Хакасия | B82: 185906 | C82: 9604 | D82: 11030 | E82: 32232 | F82: 48405 | G82: 84635 | H82: 0 | I82: 0 | J82: 0 | K82: 0
A83: Алтайский край | B83: 874391 | C83: 113396 | D83: 246239 | E83: 192672 | F83: 116400 | G83: 152325 | H83: 53359 | I83: 0 | J83: 0 | K83: 0
A84: Красноярский край | B84: 760035 | C84: 66127 | D84: 160685 | E84: 106422 | F84: 219032 | G84: 152197 | H84: 55572 | I84: 0 | J84: 0 | K84: 0
A85: Иркутская область | B85: 953016 | C85: 24506 | D85: 102630 | E85: 50117 | F85: 205604 | G85: 217016 | H85: 185154 | I85: 0 | J85: 167989 | K85: 0
A86: Кемеровская область | B86: 48876 | C86: 0 | D86: 0 | E86: 0 | F86: 0 | G86: 48876 | H86: 0 | I86: 0 | J86: 0 | K86: 0
A87: Новосибирская область | B87: 944334 | C87: 16303 | D87: 114318 | E87: 18959 | F87: 146184 | G87: 312940 | H87: 165499 | I87: 0 | J87: 170131 | K87: 0
A88: Омская область | B88: 713608 | C88: 41672 | D88: 48699 | E88: 173638 | F88: 166957 | G88: 182066 | H88: 0 | I88: 100576 | J88: 0 | K88: 0
A89: Томская область | B89: 326034 | C89: 13696 | D89: 83817 | E89: 53555 | F89: 20183 | G89: 65485 | H89: 89298 | I89: 0 | J89: 0 | K89: 0
A90: Дальневосточный федеральный округ | B90: 2446304 | C90: 218686 | D90: 161277 | E90: 292667 | F90: 665050 | G90: 471814 | H90: 636810 | I90: 0 | J90: 0 | K90: 0
A91: Республика Бурятия | B91: 511831 | C91: 21864 | D91: 37051 | E91: 52024 | F91: 158207 | G91: 71692 | H91: 170993 | I91: 0 | J91: 0 | K91: 0
A92: Республика Саха (Якутия) | B92: 604913 | C92: 79063 | D92: 33886 | E92: 33455 | F92: 180280 | G92: 138094 | H92: 140135 | I92: 0 | J92: 0 | K92: 0
A93: Забайкальский край | B93: 517646 | C93: 16593 | D93: 28209 | E93: 100611 | F93: 132470 | G93: 112320 | H93: 127443 | I93: 0 | J93: 0 | K93: 0
A94: Камчатский край | B94: 91379 | C94: 31490 | D94: 0 | E94: 0 | F94: 0 | G94: 0 | H94: 59889 | I94: 0 | J94: 0 | K94: 0
A95: Приморский край | B95: 115409 | C95: 7793 | D95: 0 | E95: 37182 | F95: 28474 | G95: 41960 | H95: 0 | I95: 0 | J95: 0 | K95: 0
A96: Хабаровский край | B96: 420748 | C96: 7177 | D96: 27899 | E96: 19202 | F96: 120372 | G96: 107748 | H96: 138350 | I96: 0 | J96: 0 | K96: 0
A97: Амурская область | B97: 85380 | C97: 16280 | D97: 34232 | E97: 34868 | F97: 0 | G97: 0 | H97: 0 | I97: 0 | J97: 0 | K97: 0
A98: Магаданская область | B98: 0 | C98: 0 | D98: 0 | E98: 0 | F98: 0 | G98: 0 | H98: 0 | I98: 0 | J98: 0 | K98: 0
A99: Сахалинская область | B99: 0 | C99: 0 | D99: 0 | E99: 0 | F99: 0 | G99: 0 | H99: 0 | I99: 0 | J99: 0 | K99: 0
A100: Еврейская автономная область | B100: 78014 | C100: 17442 | D100: 0 | E100: 15325 | F100: 45247 | G100: 0 | H100: 0 | I100: 0 | J100: 0 | K100: 0
A101: Чукотский автономный округ | B101: 20984 | C101: 20984 | D101: 0 | E101: 0 | F101: 0 | G101: 0 | H101: 0 | I101: 0 | J101: 0 | K101: 0

Sheet Таб_13
A1: Содержание
A2: 13. Группировка числа городских поселений по численности населения, проживающего в них, на 1 января 2024 года
B4: Число городских поселений - всего | C4: в том числе с числом жителей, человек
A5: Группировка числа городских поселений по численности населения, проживающего в них | C5: до 3000 | D5: 3000 - 4999 | E5: 5000 - 9999 | F5: 10000 - 19999 | G5: 20000 - 29999 | H5: 30000 - 39999 | I5: 40000 - 49999 | J5: 50000 - 59999 | K5: 60000 - 69999 | L5: 70000 - 79999 | M5: 80000 - 89999 | N5: 90000 - 99999 | O5: 100000 и более
A6: Российская Федерация | B6: 1142 | C6: 193 | D6: 175 | E6: 333 | F6: 241 | G6: 91 | H6: 44 | I6: 21 | J6: 19 | K6: 9 | L6: 7 | M6: 0 | N6: 4 | O6: 5
A7: Центральный федеральный округ | B7: 291 | C7: 35 | D7: 62 | E7: 91 | F7: 66 | G7: 19 | H7: 8 | I7: 5 | J7: 5 | K7: 0 | L7: 0 | M7: 0 | N7: 0 | O7: 0
A8: Белгородская область | B8: 16 | C8: 0 | D8: 1 | E8: 7 | F8: 6 | G8: 2 | H8: 0 | I8: 0 | J8: 0 | K8: 0 | L8: 0 | M8: 0 | N8: 0 | O8: 0
A9: Брянская область | B9: 29 | C9: 5 | D9: 3 | E9: 12 | F9: 6 | G9: 3 | H9: 0 | I9: 0 | J9: 0 | K9: 0 | L9: 0 | M9: 0 | N9: 0 | O9: 0
A10: Владимирская область | B10: 27 | C10: 1 | D10: 1 | E10: 10 | F10: 11 | G10: 1 | H10: 2 | I10: 0 | J10: 1 | K10: 0 | L10: 0 | M10: 0 | N10: 0 | O10: 0
A11: Воронежская область | B11: 28 | C11: 0 | D11: 4 | E11: 6 | F11: 11 | G11: 4 | H11: 1 | I11: 0 | J11: 2 | K11: 0 | L11: 0 | M11: 0 | N11: 0 | O11: 0
A12: Ивановская область | B12: 24 | C12: 7 | D12: 6 | E12: 6 | F12: 3 | G12: 2 | H12: 0 | I12: 0 | J12: 0 | K12: 0 | L12: 0 | M12: 0 | N12: 0 | O12: 0
A13: Калужская область | B13: 26 | C13: 2 | D13: 3 | E13: 6 | F13: 11 | G13: 1 | H13: 2 | I13: 1 | J13: 0 | K13: 0 | L13: 0 | M13: 0 | N13: 0 | O13: 0
A14: Костромская область | B14: 8 | C14: 2 | D14: 3 | E14: 2 | F14: 1 | G14: 0 | H14: 0 | I14: 0 | J14: 0 | K14: 0 | L14: 0 | M14: 0 | N14: 0 | O14: 0
A15: Курская область | B15: 27 | C15: 6 | D15: 13 | E15: 6 | F15: 2 | G15: 0 | H15: 0 | I15: 0 | J15: 0 | K15: 0 | L15: 0 | M15: 0 | N15: 0 | O15: 0
A16: Липецкая область | B16: 6 | C16: 0 | D16: 0 | E16: 1 | F16: 4 | G16: 0 | H16: 0 | I16: 1 | J16: 0 | K16: 0 | L16: 0 | M16: 0 | N16: 0 | O16: 0
A17: Московская область | B17: 0 | C17: 0 | D17: 0 | E17: 0 | F17: 0 | G17: 0 | H17: 0 | I17: 0 | J17: 0 | K17: 0 | L17: 0 | M17: 0 | N17: 0 | O17: 0
A18: Орловская область | B18: 16 | C18: 2 | D18: 8 | E18: 6 | F18: 0 | G18: 0 | H18: 0 | I18: 0 | J18: 0 | K18: 0 | L18: 0 | M18: 0 | N18: 0 | O18: 0
A19: Рязанская область | B19: 28 | C19: 5 | D19: 9 | E19: 10 | F19: 3 | G19: 1 | H19: 0 | I19: 0 | J19: 0 | K19: 0 | L19: 0 | M19: 0 | N19: 0 | O19: 0
A20: Смоленская область | B20: 23 | C20: 3 | D20: 7 | E20: 7 | F20: 1 | G20: 1 | H20: 1 | I20: 2 | J20: 1 | K20: 0 | L20: 0 | M20: 0 | N20: 0 | O20: 0
A21: Тамбовская область | B21: 0 | C21: 0 | D21: 0 | E21: 0 | F21: 0 | G21: 0 | H21: 0 | I21: 0 | J21: 0 | K21: 0 | L21: 0 | M21: 0 | N21: 0 | O21: 0
A22: Тверская область | B22: 0 | C22: 0 | D22: 0 | E22: 0 | F22: 0 | G22: 0 | H22: 0 | I22: 0 | J22: 0 | K22: 0 | L22: 0 | M22: 0 | N22: 0 | O22: 0
A23: Тульская область | B23: 23 | C23: 1 | D23: 3 | E23: 9 | F23: 5 | G23: 3 | H23: 0 | I23: 1 | J23: 1 | K23: 0 | L23: 0 | M23: 0 | N23: 0 | O23: 0
A24: Ярославская область | B24: 10 | C24: 1 | D24: 1 | E24: 3 | F24: 2 | G24: 1 | H24: 2 | I24: 0 | J24: 0 | K24: 0 | L24: 0 | M24: 0 | N24: 0 | O24: 0
A25: г.Москва | B25: 0 | C25: 0 | D25: 0 | E25: 0 | F25: 0 | G25: 0 | H25: 0 | I25: 0 | J25: 0 | K25: 0 | L25: 0 | M25: 0 | N25: 0 | O25: 0
A26: Северо-Западный федеральный округ | B26: 147 | C26: 29 | D26: 22 | E26: 39 | F26: 29 | G26: 13 | H26: 5 | I26: 3 | J26: 1 | K26: 0 | L26: 3 | M26: 0 | N26: 2 | O26: 1
A27: Республика Карелия | B27: 16 | C27: 5 | D27: 4 | E27: 4 | F27: 2 | G27: 1 | H27: 0 | I27: 0 | J27: 0 | K27: 0 | L27: 0 | M27: 0 | N27: 0 | O27: 0
A28: Республика Коми | B28: 14 | C28: 5 | D28: 1 | E28: 5 | F28: 1 | G28: 1 | H28: 1 | I28: 0 | J28: 0 | K28: 0 | L28: 0 | M28: 0 | N28: 0 | O28: 0
A29: Архангельская область, включая Ненецкий автономный округ | B29: 7 | C29: 1 | D29: 2 | E29: 1 | F29: 2 | G29: 1 | H29: 0 | I29: 0 | J29: 0 | K29: 0 | L29: 0 | M29: 0 | N29: 0 | O29: 0
A30: Ненецкий автономный округ | B30: 1 | C30: 0 | D30: 0 | E30: 1 | F30: 0 | G30: 0 | H30: 0 | I30: 0 | J30: 0 | K30: 0 | L30: 0 | M30: 0 | N30: 0 | O30: 0
A31: Архангельская область без Ненецкого автономного округа | B31: 6 | C31: 1 | D31: 2 | E31: 0 | F31: 2 | G31: 1 | H31: 0 | I31: 0 | J31: 0 | K31: 0 | L31: 0 | M31: 0 | N31: 0 | O31: 0
A32: Вологодская область | B32: 2 | C32: 0 | D32: 0 | E32: 0 | F32: 2 | G32: 0 | H32: 0 | I32: 0 | J32: 0 | K32: 0 | L32: 0 | M32: 0 | N32: 0 | O32: 0
A33: Калининградская область | B33: 0 | C33: 0 | D33: 0 | E33: 0 | F33: 0 | G33: 0 | H33: 0 | I33: 0 | J33: 0 | K33: 0 | L33: 0 | M33: 0 | N33: 0 | O33: 0
A34: Ленинградская область | B34: 67 | C34: 8 | D34: 5 | E34: 15 | F34: 19 | G34: 7 | H34: 4 | I34: 2 | J34: 1 | K34: 0 | L34: 3 | M34: 0 | N34: 2 | O34: 1
A35: Мурманская область | B35: 10 | C35: 2 | D35: 4 | E35: 3 | F35: 0 | G35: 1 | H35: 0 | I35: 0 | J35: 0 | K35: 0 | L35: 0 | M35: 0 | N35: 0 | O35: 0
A36: Новгородская область | B36: 14 | C36: 3 | D36: 2 | E36: 4 | F36: 3 | G36: 1 | H36: 0 | I36: 1 | J36: 0 | K36: 0 | L36: 0 | M36: 0 | N36: 0 | O36: 0
A37: Псковская область | B37: 17 | C37: 5 | D37: 4 | E37: 7 | F37: 0 | G37: 1 | H37: 0 | I37: 0 | J37: 0 | K37: 0 | L37: 0 | M37: 0 | N37: 0 | O37: 0
A38: г.Санкт-Петербург
A39: Южный федеральный округ | B39: 96 | C39: 6 | D39: 2 | E39: 20 | F39: 29 | G39: 13 | H39: 10 | I39: 5 | J39: 6 | K39: 3 | L39: 1 | M39: 0 | N39: 1 | O39: 0
A40: Республика Адыгея | B40: 3 | C40: 0 | D40: 0 | E40: 1 | F40: 0 | G40: 0 | H40: 1 | I40: 0 | J40: 0 | K40: 1 | L40: 0 | M40: 0 | N40: 0 | O40: 0
A41: Республика Калмыкия | B41: 2 | C41: 0 | D41: 0 | E41: 1 | F41: 1 | G41: 0 | H41: 0 | I41: 0 | J41: 0 | K41: 0 | L41: 0 | M41: 0 | N41: 0 | O41: 0
A42: Республика Крым | B42: 4 | C42: 0 | D42: 0 | E42: 1 | F42: 2 | G42: 1 | H42: 0 | I42: 0 | J42: 0 | K42: 0 | L42: 0 | M42: 0 | N42: 0 | O42: 0
A43: Краснодарский край | B43: 30 | C43: 0 | D43: 0 | E43: 3 | F43: 4 | G43: 5 | H43: 5 | I43: 4 | J43: 5 | K43: 2 | L43: 1 | M43: 0 | N43: 1 | O43: 0
A44: Астраханская область | B44: 11 | C44: 3 | D44: 0 | E44: 3 | F44: 4 | G44: 0 | H44: 1 | I44: 0 | J44: 0 | K44: 0 | L44: 0 | M44: 0 | N44: 0 | O44: 0
A45: Волгоградская область | B45: 29 | C45: 1 | D45: 2 | E45: 9 | F45: 13 | G45: 4 | H45: 0 | I45: 0 | J45: 0 | K45: 0 | L45: 0 | M45: 0 | N45: 0 | O45: 0
A46: Ростовская область | B46: 17 | C46: 2 | D46: 0 | E46: 2 | F46: 5 | G46: 3 | H46: 3 | I46: 1 | J46: 1 | K46: 0 | L46: 0 | M46: 0 | N46: 0 | O46: 0
A47: г. Севастополь | B47: 0 | C47: 0 | D47: 0 | E47: 0 | F47: 0 | G47: 0 | H47: 0 | I47: 0 | J47: 0 | K47: 0 | L47: 0 | M47: 0 | N47: 0
A48: Северо-Кавказский федеральный округ | B48: 29 | C48: 2 | D48: 2 | E48: 7 | F48: 4 | G48: 6 | H48: 5 | I48: 0 | J48: 1 | K48: 2 | L48: 0 | M48: 0 | N48: 0 | O48: 0
A49: Республика Дагестан | B49: 7 | C49: 1 | D49: 0 | E49: 4 | F49: 2 | G49: 0 | H49: 0 | I49: 0 | J49: 0 | K49: 0 | L49: 0 | M49: 0 | N49: 0 | O49: 0
A50: Республика Ингушетия | B50: 0 | C50: 0 | D50: 0 | E50: 0 | F50: 0 | G50: 0 | H50: 0 | I50: 0 | J50: 0 | K50: 0 | L50: 0 | M50: 0 | N50: 0 | O50: 0
A51: Кабардино-Балкарская Республика | B51: 7 | C51: 0 | D51: 0 | E51: 2 | F51: 0 | G51: 4 | H51: 1 | I51: 0 | J51: 0 | K51: 0 | L51: 0 | M51: 0 | N51: 0 | O51: 0
A52: Карачаево-Черкесская Республика | B52: 5 | C52: 1 | D52: 2 | E52: 1 | F52: 0 | G52: 0 | H52: 1 | I52: 0 | J52: 0 | K52: 0 | L52: 0 | M52: 0 | N52: 0 | O52: 0
A53: Республика Северная Осетия-Алания | B53: 5 | C53: 0 | D53: 0 | E53: 0 | F53: 2 | G53: 1 | H53: 2 | I53: 0 | J53: 0 | K53: 0 | L53: 0 | M53: 0 | N53: 0 | O53: 0
A54: Чеченская Республика | B54: 5 | C54: 0 | D54: 0 | E54: 0 | F54: 0 | G54: 1 | H54: 1 | I54: 0 | J54: 1 | K54: 2 | L54: 0 | M54: 0 | N54: 0 | O54: 0
A55: Ставропольский край | B55: 0 | C55: 0 | D55: 0 | E55: 0 | F55: 0 | G55: 0 | H55: 0 | I55: 0 | J55: 0 | K55: 0 | L55: 0 | M55: 0 | N55: 0
A56: Приволжский федеральный округ | B56: 222 | C56: 21 | D56: 34 | E56: 83 | F56: 42 | G56: 14 | H56: 9 | I56: 3 | J56: 4 | K56: 4 | L56: 3 | M56: 0 | N56: 1 | O56: 4
A57: Республика Башкортостан | B57: 14 | C57: 0 | D57: 0 | E57: 0 | F57: 2 | G57: 3 | H57: 3 | I57: 1 | J57: 2 | K57: 3 | L57: 0 | M57: 0 | N57: 0 | O57: 0
A58: Республика Марий Эл | B58: 16 | C58: 1 | D58: 4 | E58: 7 | F58: 3 | G58: 1 | H58: 0 | I58: 0 | J58: 0 | K58: 0 | L58: 0 | M58: 0 | N58: 0 | O58: 0
A59: Республика Мордовия | B59: 16 | C59: 1 | D59: 3 | E59: 8 | F59: 3 | G59: 0 | H59: 0 | I59: 1 | J59: 0 | K59: 0 | L59: 0 | M59: 0 | N59: 0 | O59: 0
A60: Республика Татарстан | B60: 39 | C60: 2 | D60: 3 | E60: 8 | F60: 13 | G60: 3 | H60: 3 | I60: 0 | J60: 1 | K60: 1 | L60: 2 | M60: 0 | N60: 1 | O60: 2
A61: Удмуртская Республика | B61: 0 | C61: 0 | D61: 0 | E61: 0 | F61: 0 | G61: 0 | H61: 0 | I61: 0 | J61: 0 | K61: 0 | L61: 0 | M61: 0 | N61: 0 | O61: 0
A62: Чувашская Республика | B62: 0 | C62: 0 | D62: 0 | E62: 0 | F62: 0 | G62: 0 | H62: 0 | I62: 0 | J62: 0 | K62: 0 | L62: 0 | M62: 0 | N62: 0 | O62: 0
A63: Пермский край | B63: 0 | C63: 0 | D63: 0 | E63: 0 | F63: 0 | G63: 0 | H63: 0 | I63: 0 | J63: 0 | K63: 0 | L63: 0 | M63: 0 | N63: 0 | O63: 0
A64: Кировская область | B64: 33 | C64: 5 | D64: 11 | E64: 13 | F64: 4 | G64: 0 | H64: 0 | I64: 0 | J64: 0 | K64: 0 | L64: 0 | M64: 0 | N64: 0 | O64: 0
A65: Нижегородская область | B65: 0 | C65: 0 | D65: 0 | E65: 0 | F65: 0 | G65: 0 | H65: 0 | I65: 0 | J65: 0 | K65: 0 | L65: 0 | M65: 0 | N65: 0 | O65: 0
A66: Оренбургская область | B66: 0 | C66: 0 | D66: 0 | E66: 0 | F66: 0 | G66: 0 | H66: 0 | I66: 0 | J66: 0 | K66: 0 | L66: 0 | M66: 0 | N66: 0 | O66: 0
A67: Пензенская область | B67: 24 | C67: 3 | D67: 1 | E67: 15 | F67: 2 | G67: 2 | H67: 1 | I67: 0 | J67: 0 | K67: 0 | L67: 0 | M67: 0 | N67: 0 | O67: 0
A68: Самарская область | B68: 12 | C68: 2 | D68: 1 | E68: 4 | F68: 3 | G68: 1 | H68: 1 | I68: 0 | J68: 0 | K68: 0 | L68: 0 | M68: 0 | N68: 0 | O68: 0
A69: Саратовская область | B69: 37 | C69: 1 | D69: 5 | E69: 14 | F69: 7 | G69: 4 | H69: 1 | I69: 1 | J69: 1 | K69: 0 | L69: 1 | M69: 0 | N69: 0 | O69: 2
A70: Ульяновская область | B70: 31 | C70: 6 | D70: 6 | E70: 14 | F70: 5 | G70: 0 | H70: 0 | I70: 0 | J70: 0 | K70: 0 | L70: 0 | M70: 0 | N70: 0 | O70: 0
A71: Уральский федеральный округ | B71: 55 | C71: 12 | D71: 10 | E71: 11 | F71: 13 | G71: 6 | H71: 1 | I71: 2 | J71: 0 | K71: 0 | L71: 0 | M71: 0 | N71: 0 | O71: 0
A72: Курганская область | B72: 0 | C72: 0 | D72: 0 | E72: 0 | F72: 0 | G72: 0 | H72: 0 | I72: 0 | J72: 0 | K72: 0 | L72: 0 | M72: 0 | N72: 0 | O72: 0
A73: Свердловская область | B73: 5 | C73: 1 | D73: 1 | E73: 2 | F73: 1 | G73: 0 | H73: 0 | I73: 0 | J73: 0 | K73: 0 | L73: 0 | M73: 0 | N73: 0 | O73: 0
A74: Тюменская область включая автономные округа | B74: 26 | C74: 9 | D74: 4 | E74: 5 | F74: 3 | G74: 3 | H74: 1 | I74: 1 | J74: 0 | K74: 0 | L74: 0 | M74: 0 | N74: 0 | O74: 0
A75: Ханты-Мансийский автономный округ - Югра | B75: 26 | C75: 9 | D75: 4 | E75: 5 | F75: 3 | G75: 3 | H75: 1 | I75: 1 | J75: 0 | K75: 0 | L75: 0 | M75: 0 | N75: 0 | O75: 0
A76: Ямало-Ненецкий автономный округ | B76: 0 | C76: 0 | D76: 0 | E76: 0 | F76: 0 | G76: 0 | H76: 0 | I76: 0 | J76: 0 | K76: 0 | L76: 0 | M76: 0 | N76: 0 | O76: 0
A77: Тюменская область без автономных округов | B77: 0 | C77: 0 | D77: 0 | E77: 0 | F77: 0 | G77: 0 | H77: 0 | I77: 0 | J77: 0 | K77: 0 | L77: 0 | M77: 0 | N77: 0 | O77: 0
A78: Челябинская область | B78: 24 | C78: 2 | D78: 5 | E78: 4 | F78: 9 | G78: 3 | H78: 0 | I78: 1 | J78: 0 | K78: 0 | L78: 0 | M78: 0 | N78: 0 | O78: 0
A79: Сибирский федеральный округ | B79: 158 | C79: 32 | D79: 21 | E79: 53 | F79: 31 | G79: 15 | H79: 3 | I79: 3 | J79: 0 | K79: 0 | L79: 0 | M79: 0 | N79: 0 | O79: 0
A80: Республика Алтай | B80: 0 | C80: 0 | D80: 0 | E80: 0 | F80: 0 | G80: 0 | H80: 0 | I80: 0 | J80: 0 | K80: 0 | L80: 0 | M80: 0 | N80: 0 | O80: 0
A81: Республика Тыва | B81: 4 | C81: 0 | D81: 0 | E81: 2 | F81: 1 | G81: 1 | H81: 0 | I81: 0 | J81: 0 | K81: 0 | L81: 0 | M81: 0 | N81: 0 | O81: 0
A82: Республика Хакасия | B82: 4 | C82: 2 | D82: 0 | E82: 1 | F82: 1 | G82: 0 | H82: 0 | I82: 0 | J82: 0 | K82: 0 | L82: 0 | M82: 0 | N82: 0 | O82: 0
A83: Алтайский край | B83: 7 | C83: 1 | D83: 0 | E83: 3 | F83: 2 | G83: 0 | H83: 1 | I83: 0 | J83: 0 | K83: 0 | L83: 0 | M83: 0 | N83: 0 | O83: 0
A84: Красноярский край | B84: 26 | C84: 5 | D84: 6 | E84: 5 | F84: 9 | G84: 1 | H84: 0 | I84: 0 | J84: 0 | K84: 0 | L84: 0 | M84: 0 | N84: 0 | O84: 0
A85: Иркутская область | B85: 56 | C85: 21 | D85: 8 | E85: 15 | F85: 5 | G85: 3 | H85: 2 | I85: 2 | J85: 0 | K85: 0 | L85: 0 | M85: 0 | N85: 0 | O85: 0
A86: Кемеровская область | B86: 6 | C86: 1 | D86: 3 | E86: 1 | F86: 0 | G86: 1 | H86: 0 | I86: 0 | J86: 0 | K86: 0 | L86: 0 | M86: 0 | N86: 0 | O86: 0
A87: Новосибирская область | B87: 26 | C87: 0 | D87: 2 | E87: 9 | F87: 9 | G87: 5 | H87: 0 | I87: 1 | J87: 0 | K87: 0 | L87: 0 | M87: 0 | N87: 0 | O87: 0
A88: Омская область | B88: 26 | C88: 2 | D88: 2 | E88: 16 | F88: 4 | G88: 2 | H88: 0 | I88: 0 | J88: 0 | K88: 0 | L88: 0 | M88: 0 | N88: 0 | O88: 0
A89: Томская область | B89: 3 | C89: 0 | D89: 0 | E89: 1 | F89: 0 | G89: 2 | H89: 0 | I89: 0 | J89: 0 | K89: 0 | L89: 0 | M89: 0 | N89: 0 | O89: 0
A90: Дальневосточный федеральный округ | B90: 144 | C90: 56 | D90: 22 | E90: 29 | F90: 27 | G90: 5 | H90: 3 | I90: 0 | J90: 2 | K90: 0 | L90: 0 | M90: 0 | N90: 0 | O90: 0
A91: Республика Бурятия | B91: 16 | C91: 5 | D91: 3 | E91: 3 | F91: 4 | G91: 1 | H91: 0 | I91: 0 | J91: 0 | K91: 0 | L91: 0 | M91: 0 | N91: 0 | O91: 0
A92: Республика Саха (Якутия) | B92: 48 | C92: 23 | D92: 9 | E92: 7 | F92: 5 | G92: 2 | H92: 1 | I92: 0 | J92: 1 | K92: 0 | L92: 0 | M92: 0 | N92: 0 | O92: 0
A93: Забайкальский край | B93: 33 | C93: 10 | D93: 4 | E93: 8 | F93: 9 | G93: 1 | H93: 0 | I93: 0 | J93: 1 | K93: 0 | L93: 0 | M93: 0 | N93: 0 | O93: 0
A94: Камчатский край | B94: 4 | C94: 3 | D94: 0 | E94: 0 | F94: 0 | G94: 0 | H94: 1 | I94: 0 | J94: 0 | K94: 0 | L94: 0 | M94: 0 | N94: 0 | O94: 0
A95: Приморский край | B95: 3 | C95: 0 | D95: 1 | E95: 1 | F95: 1 | G95: 0 | H95: 0 | I95: 0 | J95: 0 | K95: 0 | L95: 0 | M95: 0 | N95: 0 | O95: 0
A96: Хабаровский край | B96: 21 | C96: 6 | D96: 0 | E96: 5 | F96: 8 | G96: 1 | H96: 1 | I96: 0 | J96: 0 | K96: 0 | L96: 0 | M96: 0 | N96: 0 | O96: 0
A97: Амурская область | B97: 6 | C97: 4 | D97: 1 | E97: 1 | F97: 0 | G97: 0 | H97: 0 | I97: 0 | J97: 0 | K97: 0 | L97: 0 | M97: 0 | N97: 0 | O97: 0
A98: Магаданская область | B98: 0 | C98: 0 | D98: 0 | E98: 0 | F98: 0 | G98: 0 | H98: 0 | I98: 0 | J98: 0 | K98: 0 | L98: 0 | M98: 0 | N98: 0 | O98: 0
A99: Сахалинская область | B99: 0 | C99: 0 | D99: 0 | E99: 0 | F99: 0 | G99: 0 | H99: 0 | I99: 0 | J99: 0 | K99: 0 | L99: 0 | M99: 0 | N99: 0 | O99: 0
A100: Еврейская автономная область | B100: 10 | C100: 4 | D100: 3 | E100: 3 | F100: 0 | G100: 0 | H100: 0 | I100: 0 | J100: 0 | K100: 0 | L100: 0 | M100: 0 | N100: 0 | O100: 0
A101: Чукотский автономный округ | B101: 3 | C101: 1 | D101: 1 | E101: 1 | F101: 0 | G101: 0 | H101: 0 | I101: 0 | J101: 0 | K101: 0 | L101: 0 | M101: 0 | N101: 0 | O101: 0

Sheet Таб_14
A1: Содержание
A2: 14. Группировка численности населения, проживающего в городских поселениях, на 1 января 2024 года
B4: Численность населения, проживающего в городских поселениях - всего | C4: в том числе с числом жителей, человек
A5: Группировка численности населения, проживающего в городских поселениях | C5: до 3000 | D5: 3000 - 4999 | E5: 5000 - 9999 | F5: 10000 - 19999 | G5: 20000 - 29999 | H5: 30000 - 39999 | I5: 40000 - 49999 | J5: 50000 - 59999 | K5: 60000 - 69999 | L5: 70000 - 79999 | M5: 80000 - 89999 | N5: 90000 - 99999 | O5: 100000 и более
A6: Российская Федерация | B6: =B7+B26+B39+B48+B56+B71+B79+B90 -> 14950698 | C6: =C7+C26+C39+C48+C56+C71+C79+C90 -> 356981 | D6: 698861 | E6: 2397981 | F6: 3347324 | G6: 2211500 | H6: 1538243 | I6: 927428 | J6: 1049719 | K6: 567823 | L6: 522732 | M6: 0 | N6: 373035 | O6: 959071 | Q6: =B6-SUM(C6:O6) -> 0
A7: Центральный федеральный округ | B7: =SUM(B8:B25) -> 3119222 | C7: =SUM(C8:C25) -> 76502 | D7: 250320 | E7: 638819 | F7: 898229 | G7: 484122 | H7: 282439 | I7: 217819 | J7: 270972 | K7: 0 | L7: 0 | M7: 0 | N7: 0 | O7: 0 | Q7: =B7-SUM(C7:O7) -> 0
A8: Белгородская область | B8: 181091 | C8: 0 | D8: 4200 | E8: 53254 | F8: 70032 | G8: 53605 | H8: 0 | I8: 0 | J8: 0 | K8: 0 | L8: 0 | M8: 0 | N8: 0 | O8: 0 | Q8: 0
A9: Брянская область | B9: 260589 | C9: 9693 | D9: 13018 | E9: 86666 | F9: 79498 | G9: 71714 | H9: 0 | I9: 0 | J9: 0 | K9: 0 | L9: 0 | M9: 0 | N9: 0 | O9: 0 | Q9: 0
A10: Владимирская область | B10: 380793 | C10: 453 | D10: 4164 | E10: 71594 | F10: 146218 | G10: 26266 | H10: 77146 | I10: 0 | J10: 54952 | K10: 0 | L10: 0 | M10: 0 | N10: 0 | O10: 0 | Q10: 0
A11: Воронежская область | B11: 449372 | C11: 0 | D11: 13827 | E11: 45936 | F11: 150727 | G11: 94757 | H11: 31617 | I11: 0 | J11: 112508 | K11: 0 | L11: 0 | M11: 0 | N11: 0 | O11: 0 | Q11: 0
A12: Ивановская область | B12: 174976 | C12: 18128 | D12: 23940 | E12: 43305 | F12: 37074 | G12: 52529 | H12: 0 | I12: 0 | J12: 0 | K12: 0 | L12: 0 | M12: 0 | N12: 0 | O12: 0 | Q12: 0
A13: Калужская область | B13: 340987 | C13: 4514 | D13: 13797 | E13: 41735 | F13: 145836 | G13: 27422 | H13: 65611 | I13: 42072 | J13: 0 | K13: 0 | L13: 0 | M13: 0 | N13: 0 | O13: 0 | Q13: 0
A14: Костромская область | B14: 49681 | C14: 5934 | D14: 12177 | E14: 12429 | F14: 19141 | G14: 0 | H14: 0 | I14: 0 | J14: 0 | K14: 0 | L14: 0 | M14: 0 | N14: 0 | O14: 0 | Q14: 0
A15: Курская область | B15: 127192 | C15: 12790 | D15: 53160 | E15: 34728 | F15: 26514 | G15: 0 | H15: 0 | I15: 0 | J15: 0 | K15: 0 | L15: 0 | M15: 0 | N15: 0 | O15: 0 | Q15: 0
A16: Липецкая область | B16: 121496 | C16: 0 | D16: 0 | E16: 9474 | F16: 68251 | G16: 0 | H16: 0 | I16: 43771 | J16: 0 | K16: 0 | L16: 0 | M16: 0 | N16: 0 | O16: 0 | Q16: 0
A17: Московская область | B17: 0 | C17: 0 | D17: 0 | E17: 0 | F17: 0 | G17: 0 | H17: 0 | I17: 0 | J17: 0 | K17: 0 | L17: 0 | M17: 0 | N17: 0 | O17: 0 | Q17: 0
A18: Орловская область | B18: 80556 | C18: 5631 | D18: 31987 | E18: 42938 | F18: 0 | G18: 0 | H18: 0 | I18: 0 | J18: 0 | K18: 0 | L18: 0 | M18: 0 | N18: 0 | O18: 0 | Q18: 0
A19: Рязанская область | B19: 170072 | C19: 9003 | D19: 35939 | E19: 62441 | F19: 41421 | G19: 21268 | H19: 0 | I19: 0 | J19: 0 | K19: 0 | L19: 0 | M19: 0 | N19: 0 | O19: 0 | Q19: 0
A20: Смоленская область | B20: 294413 | C20: 7046 | D20: 26762 | E20: 53181 | F20: 10363 | G20: 25384 | H20: 37055 | I20: 84011 | J20: 50611 | K20: 0 | L20: 0 | M20: 0 | N20: 0 | O20: 0 | Q20: 0
A21: Тамбовская область | B21: 0 | C21: 0 | D21: 0 | E21: 0 | F21: 0 | G21: 0 | H21: 0 | I21: 0 | J21: 0 | K21: 0 | L21: 0 | M21: 0 | N21: 0 | O21: 0 | Q21: 0
A22: Тверская область | B22: 0 | C22: 0 | D22: 0 | E22: 0 | F22: 0 | G22: 0 | H22: 0 | I22: 0 | J22: 0 | K22: 0 | L22: 0 | M22: 0 | N22: 0 | O22: 0 | Q22: 0
A23: Тульская область | B23: 336823 | C23: 884 | D23: 12964 | E23: 64247 | F23: 73983 | G23: 83879 | H23: 0 | I23: 47965 | J23: 52901 | K23: 0 | L23: 0 | M23: 0 | N23: 0 | O23: 0 | Q23: 0
A24: Ярославская область | B24: 151181 | C24: 2426 | D24: 4385 | E24: 16891 | F24: 29171 | G24: 27298 | H24: 71010 | I24: 0 | J24: 0 | K24: 0 | L24: 0 | M24: 0 | N24: 0 | O24: 0 | Q24: 0
A25: г.Москва | B25: 0 | C25: 0 | D25: 0 | E25: 0 | F25: 0 | G25: 0 | H25: 0 | I25: 0 | J25: 0 | K25: 0 | L25: 0 | M25: 0 | N25: 0 | O25: 0 | Q25: 0
A26: Северо-Западный федеральный округ | B26: =SUM(B27:B28,B30:B38) -> 2069339 | C26: =SUM(C27:C28,C30:C38) -> 59234 | D26: 86763 | E26: 288152 | F26: 413368 | G26: 323645 | H26: 179527 | I26: 145536 | J26: 56131 | K26: 0 | L26: 222098 | M26: 0 | N26: 182063 | O26: 112822 | Q26: 0
A27: Республика Карелия | B27: 113631 | C27: 10851 | D27: 14391 | E27: 33224 | F27: 29582 | G27: 25583 | H27: 0 | I27: 0 | J27: 0 | K27: 0 | L27: 0 | M27: 0 | N27: 0 | O27: 0 | Q27: 0
A28: Республика Коми | B28: 114952 | C28: 8891 | D28: 3201 | E28: 33306 | F28: 10710 | G28: 24843 | H28: 34001 | I28: 0 | J28: 0 | K28: 0 | L28: 0 | M28: 0 | N28: 0 | O28: 0 | Q28: 0
A29: Архангельская область, включая Ненецкий автономный округ | B29: 66671 | C29: 2055 | D29: 8842 | E29: 7316 | F29: 26740 | G29: 21718 | H29: 0 | I29: 0 | J29: 0 | K29: 0 | L29: 0 | M29: 0 | N29: 0 | O29: 0 | Q29: 0
A30: Ненецкий автономный округ | B30: 7316 | C30: 0 | D30: 0 | E30: 7316 | F30: 0 | G30: 0 | H30: 0 | I30: 0 | J30: 0 | K30: 0 | L30: 0 | M30: 0 | N30: 0 | O30: 0 | Q30: 0
A31: Архангельская область без Ненецкого автономного округа | B31: =B29-B30 -> 59355 | C31: =C29-C30 -> 2055 | D31: 8842 | E31: 0 | F31: 26740 | G31: 21718 | H31: 0 | I31: 0 | J31: 0 | K31: 0 | L31: 0 | M31: 0 | N31: 0 | O31: 0 | Q31: 0
A32: Вологодская область | B32: 26133 | C32: 0 | D32: 0 | E32: 0 | F32: 26133 | G32: 0 | H32: 0 | I32: 0 | J32: 0 | K32: 0 | L32: 0 | M32: 0 | N32: 0 | O32: 0 | Q32: 0
A33: Калининградская область | B33: 0 | C33: 0 | D33: 0 | E33: 0 | F33: 0 | G33: 0 | H33: 0 | I33: 0 | J33: 0 | K33: 0 | L33: 0 | M33: 0 | N33: 0 | O33: 0 | Q33: 0
A34: Ленинградская область | B34: 1422450 | C34: 18144 | D34: 21239 | E34: 110906 | F34: 281616 | G34: 173287 | H34: 145526 | I34: 98618 | J34: 56131 | K34: 0 | L34: 222098 | M34: 0 | N34: 182063 | O34: 112822 | Q34: 0
A35: Мурманская область | B35: 72116 | C35: 1619 | D35: 16237 | E35: 24600 | F35: 0 | G35: 29660 | H35: 0 | I35: 0 | J35: 0 | K35: 0 | L35: 0 | M35: 0 | N35: 0 | O35: 0 | Q35: 0
A36: Новгородская область | B36: 158084 | C36: 5956 | D36: 7716 | E36: 31126 | F36: 38587 | G36: 27781 | H36: 0 | I36: 46918 | J36: 0 | K36: 0 | L36: 0 | M36: 0 | N36: 0 | O36: 0 | Q36: 0
A37: Псковская область | B37: 95302 | C37: 11718 | D37: 15137 | E37: 47674 | F37: 0 | G37: 20773 | H37: 0 | I37: 0 | J37: 0 | K37: 0 | L37: 0 | M37: 0 | N37: 0 | O37: 0 | Q37: 0
A38: г Санкт-Петербург | B38: 0 | C38: 0 | D38: 0 | E38: 0 | F38: 0 | G38: 0 | H38: 0 | I38: 0 | J38: 0 | K38: 0 | L38: 0 | M38: 0 | N38: 0 | Q38: 0
A39: Южный федеральный округ | B39: =SUM(B40:B47) -> 2144255 | C39: =SUM(C40:C47) -> 12664 | D39: 8150 | E39: 144420 | F39: 411344 | G39: 310779 | H39: 356864 | I39: 222023 | J39: 330223 | K39: 181337 | L39: 74367 | M39: 0 | N39: 92084 | O39: 0 | Q39: 0
A40: Республика Адыгея | B40: 98796 | C40: 0 | D40: 0 | E40: 7718 | F40: 0 | G40: 0 | H40: 31044 | I40: 0 | J40: 0 | K40: 60034 | L40: 0 | M40: 0 | N40: 0 | O40: 0 | Q40: 0
A41: Республика Калмыкия | B41: 22056 | C41: 0 | D41: 0 | E41: 8137 | F41: 13919 | G41: 0 | H41: 0 | I41: 0 | J41: 0 | K41: 0 | L41: 0 | M41: 0 | N41: 0 | O41: 0 | Q41: 0
A42: Республика Крым | B42: 66317 | C42: 0 | D42: 0 | E42: 9508 | F42: 28029 | G42: 28780 | H42: 0 | I42: 0 | J42: 0 | K42: 0 | L42: 0 | M42: 0 | N42: 0 | O42: 0 | Q42: 0
A43: Краснодарский край | B43: 1105971 | C43: 0 | D43: 0 | E43: 21560 | F43: 48100 | G43: 120770 | H43: 181439 | I43: 173113 | J43: 273235 | K43: 121303 | L43: 74367 | M43: 0 | N43: 92084 | O43: 0 | Q43: 0
A44: Астраханская область | B44: 123853 | C44: 6859 | D44: 0 | E44: 20041 | F44: 61839 | G44: 0 | H44: 35114 | I44: 0 | J44: 0 | K44: 0 | L44: 0 | M44: 0 | N44: 0 | O44: 0 | Q44: 0
A45: Волгоградская область | B45: 343888 | C45: 1090 | D45: 8150 | E45: 61624 | F45: 184243 | G45: 88781 | H45: 0 | I45: 0 | J45: 0 | K45: 0 | L45: 0 | M45: 0 | N45: 0 | O45: 0 | Q45: 0
A46: Ростовская область | B46: 383374 | C46: 4715 | D46: 0 | E46: 15832 | F46: 75214 | G46: 72448 | H46: 109267 | I46: 48910 | J46: 56988 | K46: 0 | L46: 0 | M46: 0 | N46: 0 | O46: 0 | Q46: 0
A47: г. Севастополь | B47: 0 | C47: 0 | D47: 0 | E47: 0 | F47: 0 | G47: 0 | H47: 0 | I47: 0 | J47: 0 | K47: 0 | L47: 0 | M47: 0 | N47: 0 | Q47: 0
A48: Северо-Кавказский федеральный округ | B48: =SUM(B49:B55) -> 600061 | C48: =SUM(C49:C55) -> 2959 | D48: 6504 | E48: 46053 | F48: 51970 | G48: 136241 | H48: 167224 | I48: 0 | J48: 57060 | K48: 132050 | L48: 0 | M48: 0 | N48: 0 | O48: 0 | Q48: 0
A49: Республика Дагестан | B49: 48896 | C49: 1950 | D49: 0 | E49: 24163 | F49: 22783 | G49: 0 | H49: 0 | I49: 0 | J49: 0 | K49: 0 | L49: 0 | M49: 0 | N49: 0 | O49: 0 | Q49: 0
A50: Республика Ингушетия | B50: 0 | C50: 0 | D50: 0 | E50: 0 | F50: 0 | G50: 0 | H50: 0 | I50: 0 | J50: 0 | K50: 0 | L50: 0 | M50: 0 | N50: 0 | O50: 0 | Q50: 0
A51: Кабардино-Балкарская Республика | B51: 139497 | C51: 0 | D51: 0 | E51: 16409 | F51: 0 | G51: 90036 | H51: 33052 | I51: 0 | J51: 0 | K51: 0 | L51: 0 | M51: 0 | N51: 0 | O51: 0 | Q51: 0
A52: Карачаево-Черкесская Республика | B52: 44517 | C52: 1009 | D52: 6504 | E52: 5481 | F52: 0 | G52: 0 | H52: 31523 | I52: 0 | J52: 0 | K52: 0 | L52: 0 | M52: 0 | N52: 0 | O52: 0 | Q52: 0
A53: Республика Северная Осетия-Алания | B53: 121953 | C53: 0 | D53: 0 | E53: 0 | F53: 29187 | G53: 21403 | H53: 71363 | I53: 0 | J53: 0 | K53: 0 | L53: 0 | M53: 0 | N53: 0 | O53: 0 | Q53: 0
A54: Чеченская Республика | B54: 245198 | C54: 0 | D54: 0 | E54: 0 | F54: 0 | G54: 24802 | H54: 31286 | I54: 0 | J54: 57060 | K54: 132050 | L54: 0 | M54: 0 | N54: 0 | O54: 0 | Q54: 0
A55: Ставропольский край | B55: 0 | C55: 0 | D55: 0 | E55: 0 | F55: 0 | G55: 0 | H55: 0 | I55: 0 | J55: 0 | K55: 0 | L55: 0 | M55: 0 | N55: 0 | Q55: 0
A56: Приволжский федеральный округ | B56: =SUM(B57:B70) -> 3802022 | C56: =SUM(C57:C70) -> 44270 | D56: 139483 | E56: 594822 | F56: 600558 | G56: 325365 | H56: 311733 | I56: 129337 | J56: 230614 | K56: 254436 | L56: 226267 | M56: 0 | N56: 98888 | O56: 846249 | Q56: 0
A57: Республика Башкортостан | B57: 563673 | C57: 0 | D57: 0 | E57: 0 | F57: 36740 | G57: 69020 | H57: 102742 | I57: 46957 | J57: 113992 | K57: 194222 | L57: 0 | M57: 0 | N57: 0 | O57: 0 | Q57: 0
A58: Республика Марий Эл | B58: 120771 | C58: 2468 | D58: 15922 | E58: 46990 | F58: 33163 | G58: 22228 | H58: 0 | I58: 0 | J58: 0 | K58: 0 | L58: 0 | M58: 0 | N58: 0 | O58: 0 | Q58: 0
A59: Республика Мордовия | B59: 164815 | C59: 2425 | D59: 11688 | E59: 65844 | F59: 42734 | G59: 0 | H59: 0 | I59: 42124 | J59: 0 | K59: 0 | L59: 0 | M59: 0 | N59: 0 | O59: 0 | Q59: 0
A60: Республика Татарстан | B60: 1215161 | C60: 3202 | D60: 13481 | E60: 63952 | F60: 187357 | G60: 65878 | H60: 106086 | I60: 0 | J60: 58074 | K60: 60214 | L60: 153694 | M60: 0 | N60: 98888 | O60: 404335 | Q60: 0
A61: Удмуртская Республика | B61: 0 | C61: 0 | D61: 0 | E61: 0 | F61: 0 | G61: 0 | H61: 0 | I61: 0 | J61: 0 | K61: 0 | L61: 0 | M61: 0 | N61: 0 | O61: 0 | Q61: 0
A62: Чувашская Республика | B62: 0 | C62: 0 | D62: 0 | E62: 0 | F62: 0 | G62: 0 | H62: 0 | I62: 0 | J62: 0 | K62: 0 | L62: 0 | M62: 0 | N62: 0 | O62: 0 | Q62: 0
A63: Пермский край | B63: 0 | C63: 0 | D63: 0 | E63: 0 | F63: 0 | G63: 0 | H63: 0 | I63: 0 | J63: 0 | K63: 0 | L63: 0 | M63: 0 | N63: 0 | O63: 0 | Q63: 0
A64: Кировская область | B64: 202365 | C64: 8601 | D64: 45099 | E64: 90367 | F64: 58298 | G64: 0 | H64: 0 | I64: 0 | J64: 0 | K64: 0 | L64: 0 | M64: 0 | N64: 0 | O64: 0 | Q64: 0
A65: Нижегородская область | B65: 0 | C65: 0 | D65: 0 | E65: 0 | F65: 0 | G65: 0 | H65: 0 | I65: 0 | J65: 0 | K65: 0 | L65: 0 | M65: 0 | N65: 0 | O65: 0 | Q65: 0
A66: Оренбургская область | B66: 0 | C66: 0 | D66: 0 | E66: 0 | F66: 0 | G66: 0 | H66: 0 | I66: 0 | J66: 0 | K66: 0 | L66: 0 | M66: 0 | N66: 0 | O66: 0 | Q66: 0
A67: Пензенская область | B67: 231043 | C67: 5986 | D67: 4824 | E67: 107296 | F67: 30514 | G67: 49602 | H67: 32821 | I67: 0 | J67: 0 | K67: 0 | L67: 0 | M67: 0 | N67: 0 | O67: 0 | Q67: 0
A68: Самарская область | B68: 133845 | C68: 5234 | D68: 3177 | E68: 30203 | F68: 42152 | G68: 20115 | H68: 32964 | I68: 0 | J68: 0 | K68: 0 | L68: 0 | M68: 0 | N68: 0 | O68: 0 | Q68: 0
A69: Саратовская область | B69: 967080 | C69: 2736 | D69: 19979 | E69: 95332 | F69: 100100 | G69: 98522 | H69: 37120 | I69: 40256 | J69: 58548 | K69: 0 | L69: 72573 | M69: 0 | N69: 0 | O69: 441914 | Q69: 0
A70: Ульяновская область | B70: 203269 | C70: 13618 | D70: 25313 | E70: 94838 | F70: 69500 | G70: 0 | H70: 0 | I70: 0 | J70: 0 | K70: 0 | L70: 0 | M70: 0 | N70: 0 | O70: 0 | Q70: 0
A71: Уральский федеральный округ | B71: =SUM(B72:B73,B75:B78) -> 605456 | C71: =SUM(C72:C73,C75:C78) -> 24667 | D71: 40081 | E71: 81905 | F71: 188429 | G71: 153725 | H71: 31264 | I71: 85385 | J71: 0 | K71: 0 | L71: 0 | M71: 0 | N71: 0 | O71: 0 | Q71: =B71-SUM(C71:O71) -> 0
A72: Курганская область | B72: 0 | C72: 0 | D72: 0 | E72: 0 | F72: 0 | G72: 0 | H72: 0 | I72: 0 | J72: 0 | K72: 0 | L72: 0 | M72: 0 | N72: 0 | O72: 0 | Q72: 0
A73: Свердловская область | B73: 34382 | C73: 2892 | D73: 3631 | E73: 13236 | F73: 14623 | G73: 0 | H73: 0 | I73: 0 | J73: 0 | K73: 0 | L73: 0 | M73: 0 | N73: 0 | O73: 0 | Q73: 0
A74: Тюменская область включая автономные округа | B74: 265206 | C74: 17534 | D74: 15324 | E74: 38276 | F74: 48753 | G74: 71726 | H74: 31264 | I74: 42329 | J74: 0 | K74: 0 | L74: 0 | M74: 0 | N74: 0 | O74: 0 | Q74: 0
A75: Ханты-Мансийский автономный округ - Югра | B75: 265206 | C75: 17534 | D75: 15324 | E75: 38276 | F75: 48753 | G75: 71726 | H75: 31264 | I75: 42329 | J75: 0 | K75: 0 | L75: 0 | M75: 0 | N75: 0 | O75: 0 | Q75: 0
A76: Ямало-Ненецкий автономный округ | B76: 0 | C76: 0 | D76: 0 | E76: 0 | F76: 0 | G76: 0 | H76: 0 | I76: 0 | J76: 0 | K76: 0 | L76: 0 | M76: 0 | N76: 0 | O76: 0 | Q76: 0
A77: Тюменская область без автономных округов | B77: 0 | C77: 0 | D77: 0 | E77: 0 | F77: 0 | G77: 0 | H77: 0 | I77: 0 | J77: 0 | K77: 0 | L77: 0 | M77: 0 | N77: 0 | O77: 0 | Q77: 0
A78: Челябинская область | B78: 305868 | C78: 4241 | D78: 21126 | E78: 30393 | F78: 125053 | G78: 81999 | H78: 0 | I78: 43056 | J78: 0 | K78: 0 | L78: 0 | M78: 0 | N78: 0 | O78: 0 | Q78: 0
A79: Сибирский федеральный округ | B79: =SUM(B80:B89) -> 1557245 | C79: =SUM(C80:C89) -> 50013 | D79: 83167 | E79: 395524 | F79: 442007 | G79: 357924 | H79: 101282 | I79: 127328 | J79: 0 | K79: 0 | L79: 0 | M79: 0 | N79: 0 | O79: 0 | Q79: 0
A80: Республика Алтай | B80: 0 | C80: 0 | D80: 0 | E80: 0 | F80: 0 | G80: 0 | H80: 0 | I80: 0 | J80: 0 | K80: 0 | L80: 0 | M80: 0 | N80: 0 | O80: 0 | Q80: 0
A81: Республика Тыва | B81: 46809 | C81: 0 | D81: 0 | E81: 15016 | F81: 11644 | G81: 20149 | H81: 0 | I81: 0 | J81: 0 | K81: 0 | L81: 0 | M81: 0 | N81: 0 | O81: 0 | Q81: 0
A82: Республика Хакасия | B82: 22701 | C82: 4121 | D82: 0 | E82: 5123 | F82: 13457 | G82: 0 | H82: 0 | I82: 0 | J82: 0 | K82: 0 | L82: 0 | M82: 0 | N82: 0 | O82: 0 | Q82: 0
A83: Алтайский край | B83: 87647 | C83: 2575 | D83: 0 | E83: 24444 | F83: 28416 | G83: 0 | H83: 32212 | I83: 0 | J83: 0 | K83: 0 | L83: 0 | M83: 0 | N83: 0 | O83: 0 | Q83: 0
A84: Красноярский край | B84: 215080 | C84: 7618 | D84: 22606 | E84: 34355 | F84: 130169 | G84: 20332 | H84: 0 | I84: 0 | J84: 0 | K84: 0 | L84: 0 | M84: 0 | N84: 0 | O84: 0 | Q84: 0
A85: Иркутская область | B85: 457502 | C85: 29671 | D85: 30567 | E85: 103870 | F85: 66839 | G85: 71651 | H85: 69070 | I85: 85834 | J85: 0 | K85: 0 | L85: 0 | M85: 0 | N85: 0 | O85: 0 | Q85: 0
A86: Кемеровская область | B86: 44525 | C86: 1537 | D86: 11663 | E86: 9942 | F86: 0 | G86: 21383 | H86: 0 | I86: 0 | J86: 0 | K86: 0 | L86: 0 | M86: 0 | N86: 0 | O86: 0 | Q86: 0
A87: Новосибирская область | B87: 384554 | C87: 0 | D87: 8690 | E87: 69996 | F87: 138388 | G87: 125986 | H87: 0 | I87: 41494 | J87: 0 | K87: 0 | L87: 0 | M87: 0 | N87: 0 | O87: 0 | Q87: 0
A88: Омская область | B88: 239891 | C88: 4491 | D88: 9641 | E88: 124960 | F88: 53094 | G88: 47705 | H88: 0 | I88: 0 | J88: 0 | K88: 0 | L88: 0 | M88: 0 | N88: 0 | O88: 0 | Q88: 0
A89: Томская область | B89: 58536 | C89: 0 | D89: 0 | E89: 7818 | F89: 0 | G89: 50718 | H89: 0 | I89: 0 | J89: 0 | K89: 0 | L89: 0 | M89: 0 | N89: 0 | O89: 0 | Q89: 0
A90: Дальневосточный федеральный округ | B90: =SUM(B91:B101) -> 1053098 | C90: =SUM(C91:C101) -> 86672 | D90: 84393 | E90: 208286 | F90: 341419 | G90: 119699 | H90: 107910 | I90: 0 | J90: 104719 | K90: 0 | L90: 0 | M90: 0 | N90: 0 | O90: 0 | Q90: 0
A91: Республика Бурятия | B91: 117655 | C91: 6889 | D91: 12735 | E91: 20845 | F91: 52788 | G91: 24398 | H91: 0 | I91: 0 | J91: 0 | K91: 0 | L91: 0 | M91: 0 | N91: 0 | O91: 0 | Q91: 0
A92: Республика Саха (Якутия) | B92: 300264 | C92: 32641 | D92: 32898 | E92: 45137 | F92: 59757 | G92: 42574 | H92: 34114 | I92: 0 | J92: 53143 | K92: 0 | L92: 0 | M92: 0 | N92: 0 | O92: 0 | Q92: 0
A93: Забайкальский край | B93: 284417 | C93: 18785 | D93: 13475 | E93: 62111 | F93: 109230 | G93: 29240 | H93: 0 | I93: 0 | J93: 51576 | K93: 0 | L93: 0 | M93: 0 | N93: 0 | O93: 0 | Q93: 0
A94: Камчатский край | B94: 40416 | C94: 4121 | D94: 0 | E94: 0 | F94: 0 | G94: 0 | H94: 36295 | I94: 0 | J94: 0 | K94: 0 | L94: 0 | M94: 0 | N94: 0 | O94: 0 | Q94: 0
A95: Приморский край | B95: 23120 | C95: 0 | D95: 4686 | E95: 7369 | F95: 11065 | G95: 0 | H95: 0 | I95: 0 | J95: 0 | K95: 0 | L95: 0 | M95: 0 | N95: 0 | O95: 0 | Q95: 0
A96: Хабаровский край | B96: 218330 | C96: 11849 | D96: 0 | E96: 36914 | F96: 108579 | G96: 23487 | H96: 37501 | I96: 0 | J96: 0 | K96: 0 | L96: 0 | M96: 0 | N96: 0 | O96: 0 | Q96: 0
A97: Амурская область | B97: 16661 | C97: 4116 | D97: 3666 | E97: 8879 | F97: 0 | G97: 0 | H97: 0 | I97: 0 | J97: 0 | K97: 0 | L97: 0 | M97: 0 | N97: 0 | O97: 0 | Q97: 0
A98: Магаданская область | B98: 0 | C98: 0 | D98: 0 | E98: 0 | F98: 0 | G98: 0 | H98: 0 | I98: 0 | J98: 0 | K98: 0 | L98: 0 | M98: 0 | N98: 0 | O98: 0 | Q98: 0
A99: Сахалинская область | B99: 0 | C99: 0 | D99: 0 | E99: 0 | F99: 0 | G99: 0 | H99: 0 | I99: 0 | J99: 0 | K99: 0 | L99: 0 | M99: 0 | N99: 0 | O99: 0 | Q99: 0
A100: Еврейская автономная область | B100: 41448 | C100: 7056 | D100: 13147 | E100: 21245 | F100: 0 | G100: 0 | H100: 0 | I100: 0 | J100: 0 | K100: 0 | L100: 0 | M100: 0 | N100: 0 | O100: 0 | Q100: 0
A101: Чукотский автономный округ | B101: 10787 | C101: 1215 | D101: 3786 | E101: 5786 | F101: 0 | G101: 0 | H101: 0 | I101: 0 | J101: 0 | K101: 0 | L101: 0 | M101: 0 | N101: 0 | O101: 0 | Q101: 0
B103: =B6-B7-B26-B39-B48-B56-B71-B79-B90 -> 0 | C103: =C6-C7-C26-C39-C48-C56-C71-C79-C90 -> 0 | D103: 0 | E103: 0 | F103: 0 | G103: 0 | H103: 0 | I103: 0 | J103: 0 | K103: 0 | L103: =L6-L7-L26-L39-L48-L56-L71-L79-L90 -> 0 | M103: =M6-M7-M26-M39-M48-M56-M71-M79-M90 -> 0 | N103: 0 | O103: 0
B104: =B7-SUM(B8:B25) -> 0 | C104: =C7-SUM(C8:C25) -> 0 | D104: 0 | E104: 0 | F104: 0 | G104: 0 | H104: 0 | I104: 0 | J104: 0 | K104: 0 | L104: =L7-SUM(L8:L25) -> 0 | M104: =M7-SUM(M8:M25) -> 0 | N104: 0 | O104: 0
B105: =B26-SUM(B27:B29,B32:B38) -> 0 | C105: =C26-SUM(C27:C29,C32:C38) -> 0 | D105: 0 | E105: 0 | F105: 0 | G105: 0 | H105: 0 | I105: 0 | J105: 0 | K105: 0 | L105: =L26-SUM(L27:L29,L32:L38) -> 0 | M105: =M26-SUM(M27:M29,M32:M38) -> 0 | N105: 0 | O105: 0
B106: =B39-SUM(B40:B47) -> 0 | C106: =C39-SUM(C40:C47) -> 0 | D106: 0 | E106: 0 | F106: 0 | G106: 0 | H106: 0 | I106: 0 | J106: 0 | K106: 0 | L106: =L39-SUM(L40:L47) -> 0 | M106: =M39-SUM(M40:M47) -> 0 | N106: 0 | O106: 0
B107: =B48-SUM(B49:B55) -> 0 | C107: =C48-SUM(C49:C55) -> 0 | D107: 0 | E107: 0 | F107: 0 | G107: 0 | H107: 0 | I107: 0 | J107: 0 | K107: 0 | L107: =L48-SUM(L49:L55) -> 0 | M107: =M48-SUM(M49:M55) -> 0 | N107: 0 | O107: 0
B108: =B56-SUM(B57:B70) -> 0 | C108: =C56-SUM(C57:C70) -> 0 | D108: 0 | E108: 0 | F108: 0 | G108: 0 | H108: 0 | I108: 0 | J108: 0 | K108: 0 | L108: =L56-SUM(L57:L70) -> 0 | M108: =M56-SUM(M57:M70) -> 0 | N108: 0 | O108: 0
B109: =B71-SUM(B72:B74,B78) -> 0 | C109: =C71-SUM(C72:C74,C78) -> 0 | D109: 0 | E109: 0 | F109: 0 | G109: 0 | H109: 0 | I109: 0 | J109: 0 | K109: 0 | L109: =L71-SUM(L72:L74,L78) -> 0 | M109: =M71-SUM(M72:M74,M78) -> 0 | N109: 0 | O109: 0
B110: =B79-SUM(B80:B89) -> 0 | C110: =C79-SUM(C80:C89) -> 0 | D110: 0 | E110: 0 | F110: 0 | G110: 0 | H110: 0 | I110: 0 | J110: 0 | K110: 0 | L110: =L79-SUM(L80:L89) -> 0 | M110: =M79-SUM(M80:M89) -> 0 | N110: 0 | O110: 0
B111: =B90-SUM(B91:B101) -> 0 | C111: =C90-SUM(C91:C101) -> 0 | D111: 0 | E111: 0 | F111: 0 | G111: 0 | H111: 0 | I111: 0 | J111: 0 | K111: 0 | L111: =L90-SUM(L91:L101) -> 0 | M111: =M90-SUM(M91:M101) -> 0 | N111: 0 | O111: 0

Sheet Таб_15
A1: Содержание
A2: 15. Группировка числа сельских поселений по численности населения, проживающего в них, на 1 января 2024 года
B4: Число сельских поселений - всего | C4: в том числе с числом жителей, человек
A5: Группировка числа сельских поселений по численности населения, проживающего в них | C5: до 500 | D5: 500 - 999 | E5: 1000 - 1999 | F5: 2000 - 2999 | G5: 3000 - 4999 | H5: 5000 - 6999 | I5: 7000 - 9999 | J5: 10000 - 19999 | K5: 20000 и более
A6: Российская Федерация1),2) | B6: 13993 | C6: 2789 | D6: 4143 | E6: 3742 | F6: 1231 | G6: 1015 | H6: 486 | I6: 296 | J6: 252 | K6: 37
A7: Центральный федеральный округ | B7: 2518 | C7: 459 | D7: 800 | E7: 719 | F7: 224 | G7: 194 | H7: 69 | I7: 30 | J7: 22 | K7: 1
A8: Белгородская область | B8: 174 | C8: 18 | D8: 64 | E8: 60 | F8: 13 | G8: 10 | H8: 3 | I8: 1 | J8: 5 | K8: 0
A9: Брянская область | B9: 176 | C9: 15 | D9: 62 | E9: 62 | F9: 19 | G9: 12 | H9: 4 | I9: 0 | J9: 2 | K9: 0
A10: Владимирская область | B10: 79 | C10: 0 | D10: 6 | E10: 13 | F10: 21 | G10: 25 | H10: 8 | I10: 4 | J10: 2 | K10: 0
A11: Воронежская область | B11: 414 | C11: 60 | D11: 135 | E11: 131 | F11: 39 | G11: 29 | H11: 13 | I11: 5 | J11: 1 | K11: 1
A12: Ивановская область | B12: 92 | C12: 7 | D12: 18 | E12: 47 | F12: 8 | G12: 9 | H12: 2 | I12: 0 | J12: 1 | K12: 0
A13: Калужская область | B13: 252 | C13: 110 | D13: 72 | E13: 46 | F13: 6 | G13: 14 | H13: 3 | I13: 0 | J13: 1 | K13: 0
A14: Костромская область | B14: 77 | C14: 25 | D14: 14 | E14: 20 | F14: 7 | G14: 8 | H14: 3 | I14: 0 | J14: 0 | K14: 0
A15: Курская область | B15: 287 | C15: 63 | D15: 121 | E15: 66 | F15: 20 | G15: 14 | H15: 1 | I15: 2 | J15: 0 | K15: 0
A16: Липецкая область | B16: 286 | C16: 53 | D16: 100 | E16: 83 | F16: 17 | G16: 18 | H16: 8 | I16: 7 | J16: 0 | K16: 0
A17: Московская область | B17: 0 | C17: 0 | D17: 0 | E17: 0 | F17: 0 | G17: 0 | H17: 0 | I17: 0 | J17: 0 | K17: 0
A18: Орловская область | B18: 207 | C18: 81 | D18: 70 | E18: 40 | F18: 13 | G18: 3 | H18: 0 | I18: 0 | J18: 0 | K18: 0
A19: Рязанская область | B19: 206 | C19: 19 | D19: 86 | E19: 65 | F19: 25 | G19: 9 | H19: 1 | I19: 1 | J19: 0 | K19: 0
A20: Смоленская область | B20: 133 | C20: 7 | D20: 44 | E20: 48 | F20: 13 | G20: 15 | H20: 5 | I20: 0 | J20: 1 | K20: 0
A21: Тамбовская область | B21: 0 | C21: 0 | D21: 0 | E21: 0 | F21: 0 | G21: 0 | H21: 0 | I21: 0 | J21: 0 | K21: 0
A22: Тверская область | B22: 14 | C22: 1 | D22: 4 | E22: 7 | F22: 2 | G22: 0 | H22: 0 | I22: 0 | J22: 0 | K22: 0
A23: Тульская область | B23: 54 | C23: 0 | D23: 0 | E23: 6 | F23: 9 | G23: 15 | H23: 13 | I23: 8 | J23: 3 | K23: 0
A24: Ярославская область | B24: 67 | C24: 0 | D24: 4 | E24: 25 | F24: 12 | G24: 13 | H24: 5 | I24: 2 | J24: 6 | K24: 0
A25: г.Москва | B25: 0 | C25: 0 | D25: 0 | E25: 0 | F25: 0 | G25: 0 | H25: 0 | I25: 0 | J25: 0 | K25: 0
A26: Северо-Западный федеральный округ1) | B26: 541 | C26: 103 | D26: 144 | E26: 140 | F26: 61 | G26: 39 | H26: 23 | I26: 14 | J26: 13 | K26: 3
A27: Республика Карелия | B27: 70 | C27: 13 | D27: 28 | E27: 19 | F27: 6 | G27: 4 | H27: 0 | I27: 0 | J27: 0 | K27: 0
A28: Республика Коми 1) | B28: 143 | C28: 56 | D28: 49 | E28: 24 | F28: 4 | G28: 5 | H28: 2 | I28: 1 | J28: 1 | K28: 0
A29: Архангельская область, включая Ненецкий автономный округ | B29: 53 | C29: 17 | D29: 23 | E29: 9 | F29: 2 | G29: 2 | H29: 0 | I29: 0 | J29: 0 | K29: 0
A30: Ненецкий автономный округ | B30: 18 | C30: 9 | D30: 7 | E30: 2 | F30: 0 | G30: 0 | H30: 0 | I30: 0 | J30: 0 | K30: 0
A31: Архангельская область без Ненецкого автономного округа | B31: 35 | C31: 8 | D31: 16 | E31: 7 | F31: 2 | G31: 2 | H31: 0 | I31: 0 | J31: 0 | K31: 0
A32: Вологодская область | B32: 28 | C32: 1 | D32: 3 | E32: 9 | F32: 8 | G32: 5 | H32: 2 | I32: 0 | J32: 0 | K32: 0
A33: Калининградская область | B33: 0 | C33: 0 | D33: 0 | E33: 0 | F33: 0 | G33: 0 | H33: 0 | I33: 0 | J33: 0 | K33: 0
A34: Ленинградская область | B34: 120 | C34: 1 | D34: 10 | E34: 34 | F34: 22 | G34: 15 | H34: 14 | I34: 12 | J34: 9 | K34: 3
A35: Мурманская область | B35: 9 | C35: 2 | D35: 2 | E35: 3 | F35: 1 | G35: 0 | H35: 1 | I35: 0 | J35: 0 | K35: 0
A36: Новгородская область | B36: 58 | C36: 6 | D36: 14 | E36: 21 | F36: 11 | G36: 3 | H36: 0 | I36: 1 | J36: 2 | K36: 0
A37: Псковская область | B37: 60 | C37: 7 | D37: 15 | E37: 21 | F37: 7 | G37: 5 | H37: 4 | I37: 0 | J37: 1 | K37: 0
A38: г.Санкт-Петербург | B38: 0 | C38: 0 | D38: 0 | E38: 0 | F38: 0 | G38: 0 | H38: 0 | I38: 0 | J38: 0 | K38: 0
A39: Южный федеральный округ | B39: 1666 | C39: 90 | D39: 273 | E39: 523 | F39: 262 | G39: 236 | H39: 125 | I39: 67 | J39: 71 | K39: 19
A40: Республика Адыгея | B40: 48 | C40: 0 | D40: 0 | E40: 10 | F40: 10 | G40: 12 | H40: 8 | I40: 3 | J40: 4 | K40: 1
A41: Республика Калмыкия | B41: 111 | C41: 35 | D41: 48 | E41: 13 | F41: 3 | G41: 6 | H41: 4 | I41: 1 | J41: 1 | K41: 0
A42: Республика Крым | B42: 250 | C42: 1 | D42: 14 | E42: 91 | F42: 71 | G42: 39 | H42: 14 | I42: 9 | J42: 9 | K42: 2
A43: Краснодарский край | B43: 351 | C43: 4 | D43: 13 | E43: 69 | F43: 61 | G43: 74 | H43: 55 | I43: 29 | J43: 32 | K43: 14
A44: Астраханская область | B44: 116 | C44: 4 | D44: 23 | E44: 37 | F44: 18 | G44: 19 | H44: 7 | I44: 3 | J44: 4 | K44: 1
A45: Волгоградская область | B45: 399 | C45: 42 | D45: 134 | E45: 169 | F45: 29 | G45: 17 | H45: 7 | I45: 1 | J45: 0 | K45: 0
A46: Ростовская область | B46: 391 | C46: 4 | D46: 41 | E46: 134 | F46: 70 | G46: 69 | H46: 30 | I46: 21 | J46: 21 | K46: 1
A47: г. Севастополь | B47: 0 | C47: 0 | D47: 0 | E47: 0 | F47: 0 | G47: 0 | H47: 0 | I47: 0 | J47: 0 | K47: 0
A48: Северо-Кавказский федеральный округ | B48: 1241 | C48: 129 | D48: 197 | E48: 336 | F48: 195 | G48: 157 | H48: 100 | I48: 59 | J48: 64 | K48: 3
A49: Республика Дагестан2) | B49: 701 | C49: 74 | D49: 129 | E49: 209 | F49: 114 | G49: 94 | H49: 38 | I49: 25 | J49: 16 | K49: 1
A50: Республика Ингушетия | B50: 36 | C50: 4 | D50: 5 | E50: 4 | F50: 3 | G50: 3 | H50: 4 | I50: 5 | J50: 6 | K50: 2
A51: Кабардино-Балкарская Республика | B51: 112 | C51: 3 | D51: 17 | E51: 34 | F51: 14 | G51: 16 | H51: 16 | I51: 7 | J51: 5 | K51: 0
A52: Карачаево-Черкесская Республика | B52: 83 | C52: 1 | D52: 10 | E52: 24 | F52: 17 | G52: 16 | H52: 9 | I52: 3 | J52: 3 | K52: 0
A53: Республика Северная Осетия-Алания | B53: 97 | C53: 19 | D53: 13 | E53: 30 | F53: 13 | G53: 6 | H53: 6 | I53: 4 | J53: 6 | K53: 0
A54: Чеченская Республика | B54: 212 | C54: 28 | D54: 23 | E54: 35 | F54: 34 | G54: 22 | H54: 27 | I54: 15 | J54: 28 | K54: 0
A55: Ставропольский край | B55: 0 | C55: 0 | D55: 0 | E55: 0 | F55: 0 | G55: 0 | H55: 0 | I55: 0 | J55: 0 | K55: 0
A56: Приволжский федеральный округ | B56: 3593 | C56: 752 | D56: 1296 | E56: 954 | F56: 250 | G56: 174 | H56: 66 | I56: 58 | J56: 38 | K56: 5
A57: Республика Башкортостан | B57: 818 | C57: 78 | D57: 311 | E57: 270 | F57: 62 | G57: 39 | H57: 16 | I57: 24 | J57: 17 | K57: 1
A58: Республика Марий Эл | B58: 102 | C58: 6 | D58: 12 | E58: 50 | F58: 24 | G58: 9 | H58: 1 | I58: 0 | J58: 0 | K58: 0
A59: Республика Мордовия | B59: 233 | C59: 64 | D59: 95 | E59: 48 | F59: 9 | G59: 11 | H59: 4 | I59: 2 | J59: 0 | K59: 0
A60: Республика Татарстан | B60: 872 | C60: 271 | D60: 384 | E60: 144 | F60: 27 | G60: 29 | H60: 6 | I60: 6 | J60: 3 | K60: 2
A61: Удмуртская Республика | B61: 0 | C61: 0 | D61: 0 | E61: 0 | F61: 0 | G61: 0 | H61: 0 | I61: 0 | J61: 0 | K61: 0
A62: Чувашская Республика | B62: 0 | C62: 0 | D62: 0 | E62: 0 | F62: 0 | G62: 0 | H62: 0 | I62: 0 | J62: 0 | K62: 0
A63: Пермский край | B63: 0 | C63: 0 | D63: 0 | E63: 0 | F63: 0 | G63: 0 | H63: 0 | I63: 0 | J63: 0 | K63: 0
A64: Кировская область | B64: 208 | C64: 89 | D64: 72 | E64: 33 | F64: 7 | G64: 6 | H64: 1 | I64: 0 | J64: 0 | K64: 0
A65: Нижегородская область | B65: 0 | C65: 0 | D65: 0 | E65: 0 | F65: 0 | G65: 0 | H65: 0 | I65: 0 | J65: 0 | K65: 0
A66: Оренбургская область | B66: 444 | C66: 158 | D66: 144 | E66: 77 | F66: 16 | G66: 16 | H66: 13 | I66: 12 | J66: 8 | K66: 0
A67: Пензенская область | B67: 264 | C67: 60 | D67: 85 | E67: 77 | F67: 19 | G67: 16 | H67: 3 | I67: 2 | J67: 1 | K67: 1
A68: Самарская область | B68: 284 | C68: 13 | D68: 89 | E68: 102 | F68: 29 | G68: 22 | H68: 15 | I68: 8 | J68: 5 | K68: 1
A69: Саратовская область | B69: 256 | C69: 11 | D69: 83 | E69: 99 | F69: 37 | G69: 15 | H69: 4 | I69: 3 | J69: 4 | K69: 0
A70: Ульяновская область | B70: 112 | C70: 2 | D70: 21 | E70: 54 | F70: 20 | G70: 11 | H70: 3 | I70: 1 | J70: 0 | K70: 0
A71: Уральский федеральный округ | B71: 588 | C71: 84 | D71: 166 | E71: 178 | F71: 62 | G71: 42 | H71: 24 | I71: 17 | J71: 12 | K71: 3
A72: Курганская область | B72: 0 | C72: 0 | D72: 0 | E72: 0 | F72: 0 | G72: 0 | H72: 0 | I72: 0 | J72: 0 | K72: 0
A73: Свердловская область | B73: 16 | C73: 1 | D73: 1 | E73: 4 | F73: 4 | G73: 3 | H73: 1 | I73: 2 | J73: 0 | K73: 0
A74: Тюменская область включая автономные округа | B74: 330 | C74: 59 | D74: 120 | E74: 85 | F74: 21 | G74: 13 | H74: 15 | I74: 10 | J74: 5 | K74: 2
A75: Ханты-Мансийский автономный округ - Югра | B75: 57 | C75: 2 | D75: 10 | E75: 29 | F75: 8 | G75: 2 | H75: 3 | I75: 1 | J75: 2 | K75: 0
A76: Ямало-Ненецкий автономный округ
A77: Тюменская область без автономных округов | B77: 273 | C77: 57 | D77: 110 | E77: 56 | F77: 13 | G77: 11 | H77: 12 | I77: 9 | J77: 3 | K77: 2
A78: Челябинская область | B78: 242 | C78: 24 | D78: 45 | E78: 89 | F78: 37 | G78: 26 | H78: 8 | I78: 5 | J78: 7 | K78: 1
A79: Сибирский федеральный округ | B79: 2628 | C79: 704 | D79: 856 | E79: 688 | F79: 135 | G79: 128 | H79: 55 | I79: 37 | J79: 24 | K79: 1
A80: Республика Алтай | B80: 91 | C80: 13 | D80: 37 | E80: 27 | F80: 4 | G80: 3 | H80: 5 | I80: 1 | J80: 1 | K80: 0
A81: Республика Тыва | B81: 120 | C81: 23 | D81: 43 | E81: 39 | F81: 0 | G81: 14 | H81: 1 | I81: 0 | J81: 0 | K81: 0
A82: Республика Хакасия | B82: 82 | C82: 9 | D82: 20 | E82: 34 | F82: 7 | G82: 6 | H82: 2 | I82: 2 | J82: 2 | K82: 0
A83: Алтайский край | B83: 618 | C83: 170 | D83: 241 | E83: 130 | F83: 18 | G83: 35 | H83: 7 | I83: 13 | J83: 4 | K83: 0
A84: Красноярский край | B84: 457 | C84: 176 | D84: 115 | E84: 97 | F84: 33 | G84: 20 | H84: 9 | I84: 5 | J84: 2 | K84: 0
A85: Иркутская область | B85: 354 | C85: 88 | D85: 106 | E85: 115 | F85: 19 | G85: 11 | H85: 7 | I85: 2 | J85: 5 | K85: 1
A86: Кемеровская область | B86: 4 | C86: 0 | D86: 3 | E86: 0 | F86: 1 | G86: 0 | H86: 0 | I86: 0 | J86: 0 | K86: 0
A87: Новосибирская область | B87: 427 | C87: 124 | D87: 150 | E87: 102 | F87: 16 | G87: 13 | H87: 10 | I87: 6 | J87: 6 | K87: 0
A88: Омская область | B88: 363 | C88: 81 | D88: 118 | E88: 112 | F88: 23 | G88: 20 | H88: 5 | I88: 3 | J88: 1 | K88: 0
A89: Томская область | B89: 112 | C89: 20 | D89: 23 | E89: 32 | F89: 14 | G89: 6 | H89: 9 | I89: 5 | J89: 3 | K89: 0
A90: Дальневосточный федеральный округ | B90: 1218 | C90: 468 | D90: 411 | E90: 204 | F90: 42 | G90: 45 | H90: 24 | I90: 14 | J90: 8 | K90: 2
A91: Республика Бурятия | B91: 247 | C91: 61 | D91: 94 | E91: 53 | F91: 12 | G91: 9 | H91: 10 | I91: 3 | J91: 4 | K91: 1
A92: Республика Саха (Якутия) | B92: 361 | C92: 159 | D92: 134 | E92: 46 | F92: 10 | G92: 3 | H92: 3 | I92: 4 | J92: 2 | K92: 0
A93: Забайкальский край | B93: 240 | C93: 99 | D93: 79 | E93: 41 | F93: 8 | G93: 7 | H93: 5 | I93: 0 | J93: 1 | K93: 0
A94: Камчатский край | B94: 44 | C94: 20 | D94: 8 | E94: 8 | F94: 2 | G94: 6 | H94: 0 | I94: 0 | J94: 0 | K94: 0
A95: Приморский край | B95: 27 | C95: 2 | D95: 7 | E95: 9 | F95: 1 | G95: 3 | H95: 0 | I95: 4 | J95: 0 | K95: 1
A96: Хабаровский край | B96: 184 | C96: 79 | D96: 49 | E96: 32 | F96: 5 | G96: 13 | H96: 3 | I96: 2 | J96: 1 | K96: 0
A97: Амурская область | B97: 78 | C97: 36 | D97: 29 | E97: 7 | F97: 2 | G97: 2 | H97: 1 | I97: 1 | J97: 0 | K97: 0
A98: Магаданская область | B98: 0 | C98: 0 | D98: 0 | E98: 0 | F98: 0 | G98: 0 | H98: 0 | I98: 0 | J98: 0 | K98: 0
A99: Сахалинская область | B99: 0 | C99: 0 | D99: 0 | E99: 0 | F99: 0 | G99: 0 | H99: 0 | I99: 0 | J99: 0 | K99: 0
A100: Еврейская автономная область | B100: 17 | C100: 0 | D100: 5 | E100: 6 | F100: 2 | G100: 2 | H100: 2 | I100: 0 | J100: 0 | K100: 0
A101: Чукотский автономный округ | B101: 20 | C101: 12 | D101: 6 | E101: 2 | F101: 0 | G101: 0 | H101: 0 | I101: 0 | J101: 0 | K101: 0
A103: 1) Включая 1 сельское поселение без населения в Республике Коми
A104: 2) Включая 1 сельское поселение без населения в Республике Дагестан

Sheet Таб_16
A1: Содержание
A2: 16. Группировка численности населения, проживающего в сельских поселениях, на 1 января 2024 года
B4: Численность населения, проживающего в сельских поселениях - всего | C4: в том числе с числом жителей, человек
A5: Группировка численности населения, проживающего в сельских поселениях | C5: до 500 | D5: 500 - 999 | E5: 1000 - 1999 | F5: 2000 - 2999 | G5: 3000 - 4999 | H5: 5000 - 6999 | I5: 7000 - 9999 | J5: 10000 - 19999 | K5: 20000 и более
A6: Российская Федерация | B6: 25727005 | C6: 929869 | D6: 3027290 | E6: 5220796 | F6: 2983198 | G6: 3934031 | H6: 2840269 | I6: 2463887 | J6: 3327828 | K6: 999837
A7: Центральный федеральный округ | B7: 4000177 | C7: 160933 | D7: 582903 | E7: 1001594 | F7: 541502 | G7: 735315 | H7: 403789 | I7: 247877 | J7: 286656 | K7: 39608
A8: Белгородская область | B8: 302804 | C8: 7391 | D8: 48777 | E8: 79886 | F8: 30432 | G8: 36589 | H8: 17835 | I8: 7800 | J8: 74094 | K8: 0
A9: Брянская область | B9: 280164 | C9: 5982 | D9: 48067 | E9: 85632 | F9: 45788 | G9: 44897 | H9: 24227 | I9: 0 | J9: 25571 | K9: 0
A10: Владимирская область | B10: 272933 | C10: 0 | D10: 4800 | E10: 20568 | F10: 51677 | G10: 94423 | H10: 45803 | I10: 33611 | J10: 22051 | K10: 0
A11: Воронежская область | B11: 679799 | C11: 23316 | D11: 98322 | E11: 182029 | F11: 91899 | G11: 116501 | H11: 74717 | I11: 40478 | J11: 12929 | K11: 39608
A12: Ивановская область | B12: 154061 | C12: 2976 | D12: 13335 | E12: 65245 | F12: 19048 | G12: 31903 | H12: 11281 | I12: 0 | J12: 10273 | K12: 0
A13: Калужская область | B13: 243843 | C13: 32310 | D13: 50804 | E13: 62526 | F13: 15337 | G13: 56423 | H13: 16357 | I13: 0 | J13: 10086 | K13: 0
A14: Костромская область | B14: 111286 | C14: 8432 | D14: 10187 | E14: 28428 | F14: 16316 | G14: 29466 | H14: 18457 | I14: 0 | J14: 0 | K14: 0
A15: Курская область | B15: 331112 | C15: 21871 | D15: 92574 | E15: 92313 | F15: 49711 | G15: 51863 | H15: 5874 | I15: 16906 | J15: 0 | K15: 0
A16: Липецкая область | B16: 414607 | C16: 20576 | D16: 67441 | E16: 115991 | F16: 41852 | G16: 64910 | H16: 44878 | I16: 58959 | J16: 0 | K16: 0
A17: Московская область | B17: 0 | C17: 0 | D17: 0 | E17: 0 | F17: 0 | G17: 0 | H17: 0 | I17: 0 | J17: 0 | K17: 0
A18: Орловская область | B18: 171688 | C18: 28533 | D18: 48118 | E18: 54045 | F18: 29426 | G18: 11566 | H18: 0 | I18: 0 | J18: 0 | K18: 0
A19: Рязанская область | B19: 268949 | C19: 7238 | D19: 62379 | E19: 88322 | F19: 61679 | G19: 34964 | H19: 6965 | I19: 7402 | J19: 0 | K19: 0
A20: Смоленская область | B20: 234245 | C20: 1865 | D20: 31753 | E20: 69937 | F20: 31979 | G20: 58249 | H20: 27994 | I20: 0 | J20: 12468 | K20: 0
A21: Тамбовская область | B21: 0 | C21: 0 | D21: 0 | E21: 0 | F21: 0 | G21: 0 | H21: 0 | I21: 0 | J21: 0 | K21: 0
A22: Тверская область | B22: 18761 | C22: 443 | D22: 3007 | E22: 10585 | F22: 4726 | G22: 0 | H22: 0 | I22: 0 | J22: 0 | K22: 0
A23: Тульская область | B23: 272840 | C23: 0 | D23: 0 | E23: 10807 | F23: 23317 | G23: 54375 | H23: 78199 | I23: 64740 | J23: 41402 | K23: 0
A24: Ярославская область | B24: 243085 | C24: 0 | D24: 3339 | E24: 35280 | F24: 28315 | G24: 49186 | H24: 31202 | I24: 17981 | J24: 77782 | K24: 0
A25: г.Москва | B25: 0 | C25: 0 | D25: 0 | E25: 0 | F25: 0 | G25: 0 | H25: 0 | I25: 0 | J25: 0 | K25: 0
A26: Северо-Западный федеральный округ | B26: 1132861 | C26: 31845 | D26: 103538 | E26: 201079 | F26: 148111 | G26: 146549 | H26: 137014 | I26: 116447 | J26: 160511 | K26: 87767
A27: Республика Карелия | B27: 77972 | C27: 4019 | D27: 20703 | E27: 26582 | F27: 13647 | G27: 13021 | H27: 0 | I27: 0 | J27: 0 | K27: 0
A28: Республика Коми | B28: 145402 | C28: 14651 | D28: 34424 | E28: 34925 | F28: 10330 | G28: 20397 | H28: 12303 | I28: 7778 | J28: 10594 | K28: 0
A29: Архангельская область, включая Ненецкий автономный округ | B29: 47058 | C29: 6548 | D29: 15907 | E29: 12145 | F29: 4545 | G29: 7913 | H29: 0 | I29: 0 | J29: 0 | K29: 0
A30: Ненецкий автономный округ | B30: 10642 | C30: 3410 | D30: 4440 | E30: 2792 | F30: 0 | G30: 0 | H30: 0 | I30: 0 | J30: 0 | K30: 0
A31: Архангельская область без Ненецкого автономного округа | B31: 36416 | C31: 3138 | D31: 11467 | E31: 9353 | F31: 4545 | G31: 7913 | H31: 0 | I31: 0 | J31: 0 | K31: 0
A32: Вологодская область | B32: 63746 | C32: 470 | D32: 1836 | E32: 13027 | F32: 18571 | G32: 17422 | H32: 12420 | I32: 0 | J32: 0 | K32: 0
A33: Калининградская область | B33: 0 | C33: 0 | D33: 0 | E33: 0 | F33: 0 | G33: 0 | H33: 0 | I33: 0 | J33: 0 | K33: 0
A34: Ленинградская область | B34: 549850 | C34: 462 | D34: 8100 | E34: 50038 | F34: 55897 | G34: 56262 | H34: 83765 | I34: 99772 | J34: 107787 | K34: 87767
A35: Мурманская область | B35: 13883 | C35: 730 | D35: 1137 | E35: 4255 | F35: 2327 | G35: 0 | H35: 5434 | I35: 0 | J35: 0 | K35: 0
A36: Новгородская область | B36: 115421 | C36: 2467 | D36: 9348 | E36: 30624 | F36: 27058 | G36: 12243 | H36: 0 | I36: 8897 | J36: 24784 | K36: 0
A37: Псковская область | B37: 119529 | C37: 2498 | D37: 12083 | E37: 29483 | F37: 15736 | G37: 19291 | H37: 23092 | I37: 0 | J37: 17346 | K37: 0
A38: г.Санкт-Петербург
A39: Южный федеральный округ | B39: 5295021 | C39: 33868 | D39: 207345 | E39: 751432 | F39: 638295 | G39: 914461 | H39: 729756 | I39: 559335 | J39: 943367 | K39: 517162
A40: Республика Адыгея | B40: 224236 | C40: 0 | D40: 0 | E40: 16403 | F40: 26022 | G40: 43659 | H40: 44946 | I40: 22993 | J40: 49287 | K40: 20926
A41: Республика Калмыкия | B41: 137099 | C41: 12780 | D41: 34441 | E41: 16346 | F41: 6413 | G41: 23244 | H41: 22671 | I41: 7975 | J41: 13229 | K41: 0
A42: Республика Крым | B42: 787010 | C42: 484 | D42: 11650 | E42: 135627 | F42: 173808 | G42: 147914 | H42: 83744 | I42: 75717 | J42: 114108 | K42: 43958
A43: Краснодарский край | B43: 1966570 | C43: 1938 | D43: 10802 | E43: 108223 | F43: 146390 | G43: 293546 | H43: 323519 | I43: 243448 | J43: 427677 | K43: 411027
A44: Астраханская область | B44: 333426 | C44: 1431 | D44: 17426 | E44: 52743 | F44: 44721 | G44: 70840 | H44: 40569 | I44: 26400 | J44: 58229 | K44: 21067
A45: Волгоградская область | B45: 519045 | C45: 15708 | D45: 100227 | E45: 223651 | F45: 69202 | G45: 62450 | H45: 39238 | I45: 8569 | J45: 0 | K45: 0
A46: Ростовская область | B46: 1327635 | C46: 1527 | D46: 32799 | E46: 198439 | F46: 171739 | G46: 272808 | H46: 175069 | I46: 174233 | J46: 280837 | K46: 20184
A47: г. Севастополь | B47: 0 | C47: 0 | D47: 0 | E47: 0 | F47: 0 | G47: 0 | H47: 0 | I47: 0 | J47: 0 | K47: 0
A48: Северо-Кавказский федеральный округ | B48: 3773149 | C48: 41758 | D48: 147222 | E48: 489737 | F48: 474546 | G48: 610205 | H48: 590188 | I48: 487278 | J48: 859394 | K48: 72821
A49: Республика Дагестан | B49: 1733001 | C49: 27345 | D49: 97476 | E49: 301541 | F49: 276633 | G49: 367708 | H49: 222147 | I49: 210685 | J49: 208079 | K49: 21387
A50: Республика Ингушетия | B50: 237242 | C50: 1335 | D50: 3676 | E50: 5436 | F50: 7603 | G50: 14664 | H50: 24656 | I50: 38814 | J50: 89624 | K50: 51434
A51: Кабардино-Балкарская Республика | B51: 373437 | C51: 927 | D51: 11963 | E51: 51221 | F51: 34936 | G51: 57886 | H51: 94955 | I51: 57119 | J51: 64430 | K51: 0
A52: Карачаево-Черкесская Республика | B52: 269873 | C52: 372 | D52: 8042 | E52: 35596 | F52: 41147 | G52: 59612 | H52: 54108 | I52: 24359 | J52: 46637 | K52: 0
A53: Республика Северная Осетия-Алания | B53: 247568 | C53: 5104 | D53: 9484 | E53: 44174 | F53: 30614 | G53: 21250 | H53: 36657 | I53: 32949 | J53: 67336 | K53: 0
A54: Чеченская Республика | B54: 912028 | C54: 6675 | D54: 16581 | E54: 51769 | F54: 83613 | G54: 89085 | H54: 157665 | I54: 123352 | J54: 383288 | K54: 0
A55: Ставропольский край | B55: 0 | C55: 0 | D55: 0 | E55: 0 | F55: 0 | G55: 0 | H55: 0 | I55: 0 | J55: 0 | K55: 0
A56: Приволжский федеральный округ | B56: 5341096 | C56: 273353 | D56: 949435 | E56: 1311035 | F56: 603095 | G56: 688097 | H56: 381428 | I56: 481571 | J56: 505732 | K56: 147350
A57: Республика Башкортостан | B57: 1479001 | C57: 30942 | D57: 235733 | E57: 368881 | F57: 148070 | G57: 158298 | H57: 92560 | I57: 198085 | J57: 212286 | K57: 34146
A58: Республика Марий Эл | B58: 182684 | C58: 2073 | D58: 8519 | E58: 74683 | F58: 58603 | G58: 33015 | H58: 5791 | I58: 0 | J58: 0 | K58: 0
A59: Республика Мордовия | B59: 261925 | C59: 24065 | D59: 68523 | E59: 64230 | F59: 22487 | G59: 42480 | H59: 22503 | I59: 17637 | J59: 0 | K59: 0
A60: Республика Татарстан | B60: 924868 | C60: 99190 | D60: 269480 | E60: 190926 | F60: 66153 | G60: 114264 | H60: 35722 | I60: 50557 | J60: 50676 | K60: 47900
A61: Удмуртская Республика | B61: 0 | C61: 0 | D61: 0 | E61: 0 | F61: 0 | G61: 0 | H61: 0 | I61: 0 | J61: 0 | K61: 0
A62: Чувашская Республика | B62: 0 | C62: 0 | D62: 0 | E62: 0 | F62: 0 | G62: 0 | H62: 0 | I62: 0 | J62: 0 | K62: 0
A63: Пермский край | B63: 0 | C63: 0 | D63: 0 | E63: 0 | F63: 0 | G63: 0 | H63: 0 | I63: 0 | J63: 0 | K63: 0
A64: Кировская область | B64: 164708 | C64: 26921 | D64: 51258 | E64: 41700 | F64: 16165 | G64: 22028 | H64: 6636 | I64: 0 | J64: 0 | K64: 0
A65: Нижегородская область | B65: 0 | C65: 0 | D65: 0 | E65: 0 | F65: 0 | G65: 0 | H65: 0 | I65: 0 | J65: 0 | K65: 0
A66: Оренбургская область | B66: 641700 | C66: 56678 | D66: 101932 | E66: 102625 | F66: 40227 | G66: 63510 | H66: 73897 | I66: 99638 | J66: 103193 | K66: 0
A67: Пензенская область | B67: 381265 | C67: 22968 | D67: 61044 | E67: 106495 | F67: 44962 | G67: 64244 | H67: 17348 | I67: 17765 | J67: 15850 | K67: 30589
A68: Самарская область | B68: 633307 | C68: 5371 | D68: 72834 | E68: 143068 | F68: 68185 | G68: 85948 | H68: 86083 | I68: 66278 | J68: 70825 | K68: 34715
A69: Саратовская область | B69: 460491 | C69: 4333 | D69: 63362 | E69: 142385 | F69: 88108 | G69: 61772 | H69: 23744 | I69: 23885 | J69: 52902 | K69: 0
A70: Ульяновская область | B70: 211147 | C70: 812 | D70: 16750 | E70: 76042 | F70: 50135 | G70: 42538 | H70: 17144 | I70: 7726 | J70: 0 | K70: 0
A71: Уральский федеральный округ | B71: 1211020 | C71: 28826 | D71: 121002 | E71: 252955 | F71: 149565 | G71: 165304 | H71: 137336 | I71: 141574 | J71: 151904 | K71: 62554
A72: Курганская область | B72: 0 | C72: 0 | D72: 0 | E72: 0 | F72: 0 | G72: 0 | H72: 0 | I72: 0 | J72: 0 | K72: 0
A73: Свердловская область | B73: 52274 | C73: 226 | D73: 763 | E73: 5826 | F73: 10743 | G73: 12600 | H73: 6366 | I73: 15750 | J73: 0 | K73: 0
A74: Тюменская область включая автономные округа | B74: 604706 | C74: 21258 | D74: 86943 | E74: 120320 | F74: 48045 | G74: 49622 | H74: 84766 | I74: 84546 | J74: 68975 | K74: 40231
A75: Ханты-Мансийский автономный округ - Югра | B75: 130162 | C75: 799 | D75: 6705 | E75: 43386 | F75: 19288 | G75: 7220 | H75: 16822 | I75: 8068 | J75: 27874 | K75: 0
A76: Ямало-Ненецкий автономный округ
A77: Тюменская область без автономных округов | B77: 474544 | C77: 20459 | D77: 80238 | E77: 76934 | F77: 28757 | G77: 42402 | H77: 67944 | I77: 76478 | J77: 41101 | K77: 40231
A78: Челябинская область | B78: 554040 | C78: 7342 | D78: 33296 | E78: 126809 | F78: 90777 | G78: 103082 | H78: 46204 | I78: 41278 | J78: 82929 | K78: 22323
A79: Сибирский федеральный округ | B79: 3580958 | C79: 216363 | D79: 625449 | E79: 940261 | F79: 326774 | G79: 501586 | H79: 314943 | I79: 310868 | J79: 319881 | K79: 24833
A80: Республика Алтай | B80: 146257 | C80: 4242 | D80: 26064 | E80: 36063 | F80: 8748 | G80: 14169 | H80: 29123 | I80: 8624 | J80: 19224 | K80: 0
A81: Республика Тыва | B81: 148716 | C81: 6645 | D81: 32888 | E81: 52421 | F81: 0 | G81: 50504 | H81: 6258 | I81: 0 | J81: 0 | K81: 0
A82: Республика Хакасия | B82: 163160 | C82: 3256 | D82: 14664 | E82: 49742 | F82: 16407 | G82: 22941 | H82: 11871 | I82: 18745 | J82: 25534 | K82: 0
A83: Алтайский край | B83: 786744 | C83: 58222 | D83: 175576 | E83: 173201 | F83: 43967 | G83: 137310 | H83: 38577 | I83: 107063 | J83: 52828 | K83: 0
A84: Красноярский край | B84: 535378 | C84: 50683 | D84: 82519 | E84: 132436 | F84: 79469 | G84: 77402 | H84: 51662 | I84: 39825 | J84: 21382 | K84: 0
A85: Иркутская область | B85: 495368 | C85: 25298 | D85: 79864 | E85: 153700 | F85: 45801 | G85: 42553 | H85: 38625 | I85: 16534 | J85: 68160 | K85: 24833
A86: Кемеровская область | B86: 4351 | C86: 0 | D86: 2183 | E86: 0 | F86: 2168 | G86: 0 | H86: 0 | I86: 0 | J86: 0 | K86: 0
A87: Новосибирская область | B87: 559780 | C87: 38742 | D87: 107437 | E87: 137117 | F87: 39606 | G87: 52364 | H87: 55919 | I87: 49933 | J87: 78662 | K87: 0
A88: Омская область | B88: 473717 | C88: 23463 | D88: 86713 | E88: 159280 | F88: 56464 | G88: 79980 | H88: 28291 | I88: 27750 | J88: 11776 | K88: 0
A89: Томская область | B89: 267487 | C89: 5812 | D89: 17541 | E89: 46301 | F89: 34144 | G89: 24363 | H89: 54617 | I89: 42394 | J89: 42315 | K89: 0
A90: Дальневосточный федеральный округ | B90: 1392723 | C90: 142923 | D90: 290396 | E90: 272703 | F90: 101310 | G90: 172514 | H90: 145815 | I90: 118937 | J90: 100383 | K90: 47742
A91: Республика Бурятия | B91: 394176 | C91: 21319 | D91: 71413 | E91: 71471 | F91: 29460 | G91: 35647 | H91: 59967 | I91: 26072 | J91: 56136 | K91: 22691
A92: Республика Саха (Якутия) | B92: 304613 | C92: 49710 | D92: 90711 | E92: 57330 | F92: 23950 | G92: 9544 | H92: 20003 | I92: 32848 | J92: 20517 | K92: 0
A93: Забайкальский край | B93: 233113 | C93: 31863 | D93: 56805 | E93: 52439 | F93: 19961 | G93: 27389 | H93: 31930 | I93: 0 | J93: 12726 | K93: 0
A94: Камчатский край | B94: 50765 | C94: 5795 | D94: 5446 | E94: 12867 | F94: 4695 | G94: 21962 | H94: 0 | I94: 0 | J94: 0 | K94: 0
A95: Приморский край | B95: 92289 | C95: 196 | D95: 5277 | E95: 13563 | F95: 2257 | G95: 11763 | H95: 0 | I95: 34182 | J95: 0 | K95: 25051
A96: Хабаровский край | B96: 202362 | C96: 19428 | D96: 32779 | E96: 45944 | F96: 10919 | G96: 49573 | H96: 15756 | I96: 16959 | J96: 11004 | K96: 0
A97: Амурская область | B97: 68719 | C97: 11267 | D97: 20332 | E97: 8201 | F97: 4893 | G97: 8671 | H97: 6479 | I97: 8876 | J97: 0 | K97: 0
A98: Магаданская область | B98: 0 | C98: 0 | D98: 0 | E98: 0 | F98: 0 | G98: 0 | H98: 0 | I98: 0 | J98: 0 | K98: 0
A99: Сахалинская область | B99: 0 | C99: 0 | D99: 0 | E99: 0 | F99: 0 | G99: 0 | H99: 0 | I99: 0 | J99: 0 | K99: 0
A100: Еврейская автономная область | B100: 36566 | C100: 0 | D100: 3753 | E100: 7993 | F100: 5175 | G100: 7965 | H100: 11680 | I100: 0 | J100: 0 | K100: 0
A101: Чукотский автономный округ | B101: 10120 | C101: 3345 | D101: 3880 | E101: 2895 | F101: 0 | G101: 0 | H101: 0 | I101: 0 | J101: 0 | K101: 0

Sheet Таб_17
A1: Содержание
A2: 17. Группировка числа городов по численности населения, проживающего в них, на 1 января 2024 года
B4: Число городов - всего | C4: в том числе с числом жителей, человек
A5: Группировка числа городов по численности населения, проживающего в них | C5: до 3000 | D5: 3000 - 4999 | E5: 5000 - 9999 | F5: 10000 - 19999 | G5: 20000 - 49999 | H5: 50000 - 99999 | I5: 100000 - 249999 | J5: 250000 - 499999 | K5: 500000 - 999999 | L5: 1000000 и более
A6: Российская Федерация 1), 2) | B6: 1119 | C6: 16 | D6: 35 | E6: 161 | F6: 251 | G6: 340 | H6: 146 | I6: 92 | J6: 42 | K6: 20 | L6: 16
A7: Центральный федеральный округ 1) | B7: 304 | C7: 4 | D7: 12 | E7: 51 | F7: 78 | G7: 83 | H7: 32 | I7: 23 | J7: 16 | K7: 3 | L7: 2
A8: Белгородская область | B8: 11 | C8: 0 | D8: 0 | E8: 3 | F8: 1 | G8: 4 | H8: 1 | I8: 1 | J8: 1 | K8: 0 | L8: 0
A9: Брянская область | B9: 16 | C9: 0 | D9: 0 | E9: 3 | F9: 8 | G9: 3 | H9: 1 | I9: 0 | J9: 1 | K9: 0 | L9: 0
A10: Владимирская область | B10: 23 | C10: 0 | D10: 0 | E10: 3 | F10: 12 | G10: 4 | H10: 1 | I10: 2 | J10: 1 | K10: 0 | L10: 0
A11: Воронежская область | B11: 15 | C11: 0 | D11: 0 | E11: 2 | F11: 3 | G11: 6 | H11: 3 | I11: 0 | J11: 0 | K11: 0 | L11: 1
A12: Ивановская область | B12: 17 | C12: 1 | D12: 0 | E12: 6 | F12: 2 | G12: 5 | H12: 2 | I12: 0 | J12: 1 | K12: 0 | L12: 0
A13: Калужская область | B13: 22 | C13: 0 | D13: 3 | E13: 4 | F13: 9 | G13: 4 | H13: 0 | I13: 1 | J13: 1 | K13: 0 | L13: 0
A14: Костромская область | B14: 12 | C14: 1 | D14: 1 | E14: 3 | F14: 6 | G14: 0 | H14: 0 | I14: 0 | J14: 1 | K14: 0 | L14: 0
A15: Курская область | B15: 10 | C15: 0 | D15: 2 | E15: 1 | F15: 4 | G15: 1 | H15: 1 | I15: 0 | J15: 1 | K15: 0 | L15: 0
A16: Липецкая область | B16: 8 | C16: 0 | D16: 0 | E16: 1 | F16: 4 | G16: 1 | H16: 1 | I16: 0 | J16: 1 | K16: 0 | L16: 0
A17: Московская область | B17: 74 | C17: 0 | D17: 1 | E17: 0 | F17: 12 | G17: 24 | H17: 16 | I17: 17 | J17: 3 | K17: 1 | L17: 0
A18: Орловская область | B18: 7 | C18: 1 | D18: 1 | E18: 2 | F18: 0 | G18: 2 | H18: 0 | I18: 0 | J18: 1 | K18: 0 | L18: 0
A19: Рязанская область | B19: 12 | C19: 0 | D19: 1 | E19: 4 | F19: 1 | G19: 5 | H19: 0 | I19: 0 | J19: 0 | K19: 1 | L19: 0
A20: Смоленская область | B20: 15 | C20: 0 | D20: 1 | E20: 7 | F20: 0 | G20: 5 | H20: 1 | I20: 0 | J20: 1 | K20: 0 | L20: 0
A21: Тамбовская область | B21: 8 | C21: 0 | D21: 0 | E21: 0 | F21: 2 | G21: 4 | H21: 1 | I21: 0 | J21: 1 | K21: 0 | L21: 0
A22: Тверская область | B22: 23 | C22: 0 | D22: 2 | E22: 6 | F22: 7 | G22: 6 | H22: 1 | I22: 0 | J22: 1 | K22: 0 | L22: 0
A23: Тульская область | B23: 19 | C23: 1 | D23: 0 | E23: 3 | F23: 5 | G23: 5 | H23: 3 | I23: 1 | J23: 1 | K23: 0 | L23: 0
A24: Ярославская область | B24: 11 | C24: 0 | D24: 0 | E24: 3 | F24: 2 | G24: 4 | H24: 0 | I24: 1 | J24: 0 | K24: 1 | L24: 0
A25: г.Москва 1) | B25: 1 | C25: 0 | D25: 0 | E25: 0 | F25: 0 | G25: 0 | H25: 0 | I25: 0 | J25: 0 | K25: 0 | L25: 1
A26: Северо-Западный федеральный округ | B26: 149 | C26: 5 | D26: 13 | E26: 38 | F26: 31 | G26: 39 | H26: 11 | I26: 6 | J26: 5 | K26: 0 | L26: 1
A27: Республика Карелия | B27: 13 | C27: 0 | D27: 0 | E27: 7 | F27: 2 | G27: 3 | H27: 0 | I27: 1 | J27: 0 | K27: 0 | L27: 0
A28: Республика Коми | B28: 10 | C28: 0 | D28: 0 | E28: 2 | F28: 2 | G28: 3 | H28: 2 | I28: 1 | J28: 0 | K28: 0 | L28: 0
A29: Архангельская область, включая Ненецкий автономный округ | B29: 14 | C29: 2 | D29: 1 | E29: 1 | F29: 2 | G29: 5 | H29: 1 | I29: 1 | J29: 1 | K29: 0 | L29: 0
A30: Ненецкий автономный округ | B30: 1 | C30: 0 | D30: 0 | E30: 0 | F30: 0 | G30: 1 | H30: 0 | I30: 0 | J30: 0 | K30: 0 | L30: 0
A31: Архангельская область, без Ненецкого автономного округа | B31: 13 | C31: 2 | D31: 1 | E31: 1 | F31: 2 | G31: 4 | H31: 1 | I31: 1 | J31: 1 | K31: 0 | L31: 0
A32: Вологодская область | B32: 15 | C32: 0 | D32: 1 | E32: 7 | F32: 3 | G32: 2 | H32: 0 | I32: 0 | J32: 2 | K32: 0 | L32: 0
A33: Калининградская область | B33: 22 | C33: 1 | D33: 6 | E33: 4 | F33: 4 | G33: 6 | H33: 0 | I33: 0 | J33: 1 | K33: 0 | L33: 0
A34: Ленинградская область | B34: 34 | C34: 1 | D34: 1 | E34: 4 | F34: 9 | G34: 11 | H34: 7 | I34: 1 | J34: 0 | K34: 0 | L34: 0
A35: Мурманская область | B35: 16 | C35: 1 | D35: 0 | E35: 3 | F35: 5 | G35: 6 | H35: 0 | I35: 0 | J35: 1 | K35: 0 | L35: 0
A36: Новгородская область | B36: 10 | C36: 0 | D36: 1 | E36: 3 | F36: 3 | G36: 2 | H36: 0 | I36: 1 | J36: 0 | K36: 0 | L36: 0
A37: Псковская область | B37: 14 | C37: 0 | D37: 3 | E37: 7 | F37: 1 | G37: 1 | H37: 1 | I37: 1 | J37: 0 | K37: 0 | L37: 0
A38: г.Санкт-Петербург | B38: 1 | C38: 0 | D38: 0 | E38: 0 | F38: 0 | G38: 0 | H38: 0 | I38: 0 | J38: 0 | K38: 0 | L38: 1
A39: Южный федеральный округ 2) | B39: 96 | C39: 0 | D39: 0 | E39: 4 | F39: 22 | G39: 31 | H39: 18 | I39: 12 | J39: 5 | K39: 1 | L39: 3
A40: Республика Адыгея | B40: 2 | C40: 0 | D40: 0 | E40: 0 | F40: 1 | G40: 0 | H40: 0 | I40: 1 | J40: 0 | K40: 0 | L40: 0
A41: Республика Калмыкия | B41: 3 | C41: 0 | D41: 0 | E41: 1 | F41: 1 | G41: 0 | H41: 0 | I41: 1 | J41: 0 | K41: 0 | L41: 0
A42: Республика Крым | B42: 16 | C42: 0 | D42: 0 | E42: 2 | F42: 4 | G42: 5 | H42: 2 | I42: 2 | J42: 1 | K42: 0 | L42: 0
A43: Краснодарский край | B43: 26 | C43: 0 | D43: 0 | E43: 0 | F43: 0 | G43: 11 | H43: 11 | I43: 1 | J43: 2 | K43: 0 | L43: 1
A44: Астраханская область | B44: 6 | C44: 0 | D44: 0 | E44: 0 | F44: 3 | G44: 2 | H44: 0 | I44: 0 | J44: 1 | K44: 0 | L44: 0
A45: Волгоградская область | B45: 19 | C45: 0 | D45: 0 | E45: 1 | F45: 9 | G45: 5 | H45: 1 | I45: 1 | J45: 1 | K45: 0 | L45: 1
A46: Ростовская область | B46: 23 | C46: 0 | D46: 0 | E46: 0 | F46: 4 | G46: 8 | H46: 4 | I46: 6 | J46: 0 | K46: 0 | L46: 1
A47: г. Севастополь 2) | B47: 1 | C47: 0 | D47: 0 | E47: 0 | F47: 0 | G47: 0 | H47: 0 | I47: 0 | J47: 0 | K47: 1 | L47: 0
A48: Северо-Кавказский федеральный округ | B48: 59 | C48: 0 | D48: 0 | E48: 1 | F48: 4 | G48: 28 | H48: 11 | I48: 11 | J48: 2 | K48: 2 | L48: 0
A49: Республика Дагестан | B49: 10 | C49: 0 | D49: 0 | E49: 0 | F49: 1 | G49: 2 | H49: 3 | I49: 3 | J49: 0 | K49: 1 | L49: 0
A50: Республика Ингушетия | B50: 5 | C50: 0 | D50: 0 | E50: 0 | F50: 1 | G50: 2 | H50: 1 | I50: 1 | J50: 0 | K50: 0 | L50: 0
A51: Кабардино-Балкарская Республика | B51: 8 | C51: 0 | D51: 0 | E51: 0 | F51: 0 | G51: 6 | H51: 1 | I51: 1 | J51: 0 | K51: 0 | L51: 0
A52: Карачаево-Черкесская Республика | B52: 4 | C52: 0 | D52: 0 | E52: 1 | F52: 0 | G52: 2 | H52: 0 | I52: 1 | J52: 0 | K52: 0 | L52: 0
A53: Республика Северная Осетия-Алания | B53: 6 | C53: 0 | D53: 0 | E53: 0 | F53: 2 | G53: 3 | H53: 0 | I53: 0 | J53: 1 | K53: 0 | L53: 0
A54: Чеченская Республика | B54: 7 | C54: 0 | D54: 0 | E54: 0 | F54: 0 | G54: 3 | H54: 3 | I54: 0 | J54: 1 | K54: 0 | L54: 0
A55: Ставропольский край | B55: 19 | C55: 0 | D55: 0 | E55: 0 | F55: 0 | G55: 10 | H55: 3 | I55: 5 | J55: 0 | K55: 1 | L55: 0
A56: Приволжский федеральный округ | B56: 200 | C56: 2 | D56: 3 | E56: 33 | F56: 46 | G56: 52 | H56: 33 | I56: 14 | J56: 6 | K56: 6 | L56: 5
A57: Республика Башкортостан | B57: 21 | C57: 0 | D57: 0 | E57: 0 | F57: 3 | G57: 6 | H57: 7 | I57: 3 | J57: 1 | K57: 0 | L57: 1
A58: Республика Марий Эл | B58: 4 | C58: 0 | D58: 0 | E58: 0 | F58: 2 | G58: 0 | H58: 1 | I58: 0 | J58: 1 | K58: 0 | L58: 0
A59: Республика Мордовия | B59: 7 | C59: 0 | D59: 0 | E59: 4 | F59: 1 | G59: 1 | H59: 0 | I59: 0 | J59: 1 | K59: 0 | L59: 0
A60: Республика Татарстан | B60: 24 | C60: 0 | D60: 1 | E60: 2 | F60: 7 | G60: 5 | H60: 5 | I60: 2 | J60: 0 | K60: 1 | L60: 1
A61: Удмуртская Республика | B61: 6 | C61: 0 | D61: 0 | E61: 1 | F61: 0 | G61: 1 | H61: 3 | I61: 0 | J61: 0 | K61: 1 | L61: 0
A62: Чувашская Республика | B62: 9 | C62: 0 | D62: 0 | E62: 3 | F62: 1 | G62: 3 | H62: 0 | I62: 1 | J62: 1 | K62: 0 | L62: 0
A63: Пермский край | B63: 25 | C63: 1 | D63: 1 | E63: 3 | F63: 7 | G63: 7 | H63: 4 | I63: 1 | J63: 0 | K63: 0 | L63: 1
A64: Кировская область | B64: 18 | C64: 0 | D64: 0 | E64: 10 | F64: 4 | G64: 2 | H64: 1 | I64: 0 | J64: 1 | K64: 0 | L64: 0
A65: Нижегородская область | B65: 28 | C65: 1 | D65: 0 | E65: 5 | F65: 7 | G65: 8 | H65: 4 | I65: 2 | J65: 0 | K65: 0 | L65: 1
A66: Оренбургская область | B66: 12 | C66: 0 | D66: 0 | E66: 0 | F66: 2 | G66: 6 | H66: 2 | I66: 1 | J66: 0 | K66: 1 | L66: 0
A67: Пензенская область | B67: 11 | C67: 0 | D67: 0 | E67: 4 | F67: 1 | G67: 3 | H67: 2 | I67: 0 | J67: 1 | K67: 0 | L67: 0
A68: Самарская область | B68: 11 | C68: 0 | D68: 0 | E68: 0 | F68: 2 | G68: 4 | H68: 2 | I68: 1 | J68: 0 | K68: 1 | L68: 1
A69: Саратовская область | B69: 18 | C69: 0 | D69: 1 | E69: 0 | F69: 6 | G69: 6 | H69: 2 | I69: 2 | J69: 0 | K69: 1 | L69: 0
A70: Ульяновская область | B70: 6 | C70: 0 | D70: 0 | E70: 1 | F70: 3 | G70: 0 | H70: 0 | I70: 1 | J70: 0 | K70: 1 | L70: 0
A71: Уральский федеральный округ | B71: 115 | C71: 0 | D71: 0 | E71: 11 | F71: 23 | G71: 47 | H71: 17 | I71: 9 | J71: 5 | K71: 1 | L71: 2
A72: Курганская область | B72: 9 | C72: 0 | D72: 0 | E72: 3 | F72: 4 | G72: 0 | H72: 1 | I72: 0 | J72: 1 | K72: 0 | L72: 0
A73: Свердловская область | B73: 47 | C73: 0 | D73: 0 | E73: 6 | F73: 8 | G73: 21 | H73: 8 | I73: 2 | J73: 1 | K73: 0 | L73: 1
A74: Тюменская область включая автономные округа | B74: 29 | C74: 0 | D74: 0 | E74: 0 | F74: 2 | G74: 15 | H74: 5 | I74: 4 | J74: 2 | K74: 1 | L74: 0
A75: Ханты-Мансийский автономный округ - Югра | B75: 16 | C75: 0 | D75: 0 | E75: 0 | F75: 2 | G75: 7 | H75: 3 | I75: 2 | J75: 2 | K75: 0 | L75: 0
A76: Ямало-Ненецкий автономный округ | B76: 8 | C76: 0 | D76: 0 | E76: 0 | F76: 0 | G76: 6 | H76: 0 | I76: 2 | J76: 0 | K76: 0 | L76: 0
A77: Тюменская область без автономных округов | B77: 5 | C77: 0 | D77: 0 | E77: 0 | F77: 0 | G77: 2 | H77: 2 | I77: 0 | J77: 0 | K77: 1 | L77: 0
A78: Челябинская область | B78: 30 | C78: 0 | D78: 0 | E78: 2 | F78: 9 | G78: 11 | H78: 3 | I78: 3 | J78: 1 | K78: 0 | L78: 1
A79: Сибирский федеральный округ | B79: 114 | C79: 2 | D79: 2 | E79: 10 | F79: 24 | G79: 39 | H79: 19 | I79: 10 | J79: 0 | K79: 5 | L79: 3
A80: Республика Алтай | B80: 1 | C80: 0 | D80: 0 | E80: 0 | F80: 0 | G80: 0 | H80: 1 | I80: 0 | J80: 0 | K80: 0 | L80: 0
A81: Республика Тыва | B81: 5 | C81: 0 | D81: 1 | E81: 1 | F81: 2 | G81: 0 | H81: 0 | I81: 1 | J81: 0 | K81: 0 | L81: 0
A82: Республика Хакасия | B82: 5 | C82: 0 | D82: 0 | E82: 1 | F82: 1 | G82: 1 | H82: 1 | I82: 1 | J82: 0 | K82: 0 | L82: 0
A83: Алтайский край | B83: 12 | C83: 0 | D83: 0 | E83: 2 | F83: 2 | G83: 4 | H83: 1 | I83: 2 | J83: 0 | K83: 1 | L83: 0
A84: Красноярский край | B84: 23 | C84: 1 | D84: 1 | E84: 0 | F84: 9 | G84: 4 | H84: 6 | I84: 1 | J84: 0 | K84: 0 | L84: 1
A85: Иркутская область | B85: 22 | C85: 0 | D85: 0 | E85: 3 | F85: 4 | G85: 9 | H85: 3 | I85: 2 | J85: 0 | K85: 1 | L85: 0
A86: Кемеровская область | B86: 20 | C86: 0 | D86: 0 | E86: 1 | F86: 0 | G86: 10 | H86: 6 | I86: 1 | J86: 0 | K86: 2 | L86: 0
A87: Новосибирская область | B87: 14 | C87: 0 | D87: 0 | E87: 1 | F87: 4 | G87: 6 | H87: 1 | I87: 1 | J87: 0 | K87: 0 | L87: 1
A88: Омская область | B88: 6 | C88: 0 | D88: 0 | E88: 1 | F88: 2 | G88: 2 | H88: 0 | I88: 0 | J88: 0 | K88: 0 | L88: 1
A89: Томская область | B89: 6 | C89: 1 | D89: 0 | E89: 0 | F89: 0 | G89: 3 | H89: 0 | I89: 1 | J89: 0 | K89: 1 | L89: 0
A90: Дальневосточный федеральный округ | B90: 82 | C90: 3 | D90: 5 | E90: 13 | F90: 23 | G90: 21 | H90: 5 | I90: 7 | J90: 3 | K90: 2 | L90: 0
A91: Республика Бурятия | B91: 6 | C91: 0 | D91: 1 | E91: 0 | F91: 2 | G91: 2 | H91: 0 | I91: 0 | J91: 1 | K91: 0 | L91: 0
A92: Республика Саха (Якутия) | B92: 13 | C92: 1 | D92: 1 | E92: 2 | F92: 4 | G92: 3 | H92: 1 | I92: 0 | J92: 1 | K92: 0 | L92: 0
A93: Забайкальский край | B93: 10 | C93: 0 | D93: 0 | E93: 2 | F93: 5 | G93: 1 | H93: 1 | I93: 0 | J93: 1 | K93: 0 | L93: 0
A94: Камчатский край | B94: 3 | C94: 0 | D94: 0 | E94: 0 | F94: 0 | G94: 2 | H94: 0 | I94: 1 | J94: 0 | K94: 0 | L94: 0
A95: Приморский край | B95: 12 | C95: 0 | D95: 0 | E95: 0 | F95: 1 | G95: 7 | H95: 0 | I95: 3 | J95: 0 | K95: 1 | L95: 0
A96: Хабаровский край | B96: 7 | C96: 0 | D96: 0 | E96: 0 | F96: 3 | G96: 2 | H96: 0 | I96: 1 | J96: 0 | K96: 1 | L96: 0
A97: Амурская область | B97: 10 | C97: 0 | D97: 0 | E97: 3 | F97: 3 | G97: 2 | H97: 1 | I97: 1 | J97: 0 | K97: 0 | L97: 0
A98: Магаданская область | B98: 2 | C98: 0 | D98: 1 | E98: 0 | F98: 0 | G98: 0 | H98: 1 | I98: 0 | J98: 0 | K98: 0 | L98: 0
A99: Сахалинская область | B99: 14 | C99: 2 | D99: 1 | E99: 4 | F99: 4 | G99: 2 | H99: 0 | I99: 1 | J99: 0 | K99: 0 | L99: 0
A100: Еврейская автономная область | B100: 2 | C100: 0 | D100: 0 | E100: 1 | F100: 0 | G100: 0 | H100: 1 | I100: 0 | J100: 0 | K100: 0 | L100: 0
A101: Чукотский автономный округ | B101: 3 | C101: 0 | D101: 1 | E101: 1 | F101: 1 | G101: 0 | H101: 0 | I101: 0 | J101: 0 | K101: 0 | L101: 0
A103: 1) Не включая 3 города в границах г. Москвы: Московский (114544 человек), Щербинка (62771 человек) и Троицк (71615 человек).
A104: 2) Не включая 2 города в границах г. Севастополя: н.п. Балаклава (38374 человек) и г. Инкерман (13643 человек)

Sheet Таб_18
A1: Содержание
A2: 18. Группировка численности населения, проживающего в городах, на 1 января 2024 года
B4: Численность населения, проживающего в городах - всего | C4: в том числе с числом жителей, человек
A5: Группировка численности населения, проживающего в городах | C5: до 3000 | D5: 3000 - 4999 | E5: 5000 - 9999 | F5: 10000 - 19999 | G5: 20000 - 49999 | H5: 50000 - 99999 | I5: 100000 - 249999 | J5: 250000 - 499999 | K5: 500000 - 999999 | L5: 1000000 и более
A6: Российская Федерация 1), 2) | B6: 102542745 | C6: 30198 | D6: 141576 | E6: 1230431 | F6: 3709786 | G6: 10726291 | H6: 10082260 | I6: 14017465 | J6: 14840620 | K6: 12142285 | L6: 35621833
A7: Центральный федеральный округ 1) | B7: 31049271 | C7: 7936 | D7: 50905 | E7: 361391 | F7: 1151964 | G7: 2610798 | H7: 2255721 | I7: 3295469 | J7: 5500596 | K7: 1618263 | L7: 14196228
A8: Белгородская область | B8: 794769 | C8: 0 | D8: 0 | E8: 18065 | F8: 18176 | G8: 129173 | H8: 83766 | I8: 217107 | J8: 328482 | K8: 0 | L8: 0
A9: Брянская область | B9: 656835 | C9: 0 | D9: 0 | E9: 18351 | F9: 117533 | G9: 86014 | H9: 61627 | I9: 0 | J9: 373310 | K9: 0 | L9: 0
A10: Владимирская область | B10: 965851 | C10: 0 | D10: 0 | E10: 21873 | F10: 163597 | G10: 147662 | H10: 54952 | I10: 233685 | J10: 344082 | K10: 0 | L10: 0
A11: Воронежская область | B11: 1434687 | C11: 0 | D11: 0 | E11: 15398 | F11: 47365 | G11: 155235 | H11: 170264 | I11: 0 | J11: 0 | K11: 0 | L11: 1046425
A12: Ивановская область | B12: 701490 | C12: 1826 | D12: 0 | E12: 43681 | F12: 26591 | G12: 142839 | H12: 128116 | I12: 0 | J12: 358437 | K12: 0 | L12: 0
A13: Калужская область | B13: 758544 | C13: 0 | D13: 12578 | E13: 29537 | F13: 119186 | G13: 135093 | H13: 0 | I13: 132477 | J13: 329673 | K13: 0 | L13: 0
A14: Костромская область | B14: 388674 | C14: 2359 | D14: 4111 | E14: 18353 | F14: 98090 | G14: 0 | H14: 0 | I14: 0 | J14: 265761 | K14: 0 | L14: 0
A15: Курская область | B15: 644717 | C15: 0 | D15: 9533 | E15: 6082 | F15: 57679 | G15: 39167 | H15: 95578 | I15: 0 | J15: 436678 | K15: 0 | L15: 0
A16: Липецкая область | B16: 701658 | C16: 0 | D16: 0 | E16: 9474 | F16: 68251 | G16: 43771 | H16: 94902 | I16: 0 | J16: 485260 | K16: 0 | L16: 0
A17: Московская область | B17: 5924564 | C17: 0 | D17: 4910 | E17: 0 | F17: 185680 | G17: 736072 | H17: 1199468 | I17: 2423215 | J17: 844908 | K17: 530311 | L17: 0
A18: Орловская область | B18: 391394 | C18: 2867 | D18: 3498 | E18: 14375 | F18: 0 | G18: 78248 | H18: 0 | I18: 0 | J18: 292406 | K18: 0 | L18: 0
A19: Рязанская область | B19: 686964 | C19: 0 | D19: 4534 | E19: 31235 | F19: 16619 | G19: 114067 | H19: 0 | I19: 0 | J19: 0 | K19: 520509 | L19: 0
A20: Смоленская область | B20: 588664 | C20: 0 | D20: 3866 | E20: 52573 | F20: 0 | G20: 170969 | H20: 50611 | I20: 0 | J20: 310645 | K20: 0 | L20: 0
A21: Тамбовская область | B21: 508476 | C21: 0 | D21: 0 | E21: 0 | F21: 29382 | G21: 134041 | H21: 88785 | I21: 0 | J21: 256268 | K21: 0 | L21: 0
A22: Тверская область | B22: 816331 | C22: 0 | D22: 7875 | E22: 41890 | F22: 100661 | G22: 199599 | H22: 53312 | I22: 0 | J22: 412994 | K22: 0 | L22: 0
A23: Тульская область | B23: 1017266 | C23: 884 | D23: 0 | E23: 24936 | F23: 73983 | G23: 164256 | H23: 174340 | I23: 117175 | J23: 461692 | K23: 0 | L23: 0
A24: Ярославская область | B24: 918584 | C24: 0 | D24: 0 | E24: 15568 | F24: 29171 | G24: 134592 | H24: 0 | I24: 171810 | J24: 0 | K24: 567443 | L24: 0
A25: г.Москва 1) | B25: 13149803 | C25: 0 | D25: 0 | E25: 0 | F25: 0 | G25: 0 | H25: 0 | I25: 0 | J25: 0 | K25: 0 | L25: 13149803
A26: Северо-Западный федеральный округ | B26: 11157227 | C26: 8551 | D26: 48545 | E26: 295743 | F26: 441053 | G26: 1197898 | H26: 771064 | I26: 1133031 | J26: 1663579 | K26: 0 | L26: 5597763
A27: Республика Карелия | B27: 387591 | C27: 0 | D27: 0 | E27: 51880 | F27: 26284 | G27: 73733 | H27: 0 | I27: 235694 | J27: 0 | K27: 0 | L27: 0
A28: Республика Коми | B28: 487335 | C28: 0 | D28: 0 | E28: 17289 | F28: 29992 | G28: 87051 | H28: 133318 | I28: 219685 | J28: 0 | K28: 0 | L28: 0
A29: Архангельская область, включая Ненецкий автономный округ | B29: 699095 | C29: 4660 | D29: 4439 | E29: 8709 | F29: 34111 | G29: 138887 | H29: 55977 | I29: 155647 | J29: 296665 | K29: 0 | L29: 0
A30: Ненецкий автономный округ | B30: 24266 | C30: 0 | D30: 0 | E30: 0 | F30: 0 | G30: 24266 | H30: 0 | I30: 0 | J30: 0 | K30: 0 | L30: 0
A31: Архангельская область, без Ненецкого автономного округа | B31: 674829 | C31: 4660 | D31: 4439 | E31: 8709 | F31: 34111 | G31: 114621 | H31: 55977 | I31: 155647 | J31: 296665 | K31: 0 | L31: 0
A32: Вологодская область | B32: 765179 | C32: 0 | D32: 3965 | E32: 52592 | F32: 36154 | G32: 61819 | H32: 0 | I32: 0 | J32: 610649 | K32: 0 | L32: 0
A33: Калининградская область | B33: 784695 | C33: 1458 | D33: 22480 | E33: 30755 | F33: 61093 | G33: 179325 | H33: 0 | I33: 0 | J33: 489584 | K33: 0 | L33: 0
A34: Ленинградская область | B34: 1135549 | C34: 1121 | D34: 4321 | E34: 30042 | F34: 133129 | G34: 358073 | H34: 496327 | I34: 112536 | J34: 0 | K34: 0 | L34: 0
A35: Мурманская область | B35: 564243 | C35: 1312 | D35: 0 | E35: 26064 | F35: 65795 | G35: 204391 | H35: 0 | I35: 0 | J35: 266681 | K35: 0 | L35: 0
A36: Новгородская область | B36: 367593 | C36: 0 | D36: 3083 | E36: 27089 | F36: 41235 | G36: 73846 | H36: 0 | I36: 222340 | J36: 0 | K36: 0 | L36: 0
A37: Псковская область | B37: 368184 | C37: 0 | D37: 10257 | E37: 51323 | F37: 13260 | G37: 20773 | H37: 85442 | I37: 187129 | J37: 0 | K37: 0 | L37: 0
A38: г Санкт-Петербург | B38: 5597763 | C38: 0 | D38: 0 | E38: 0 | F38: 0 | G38: 0 | H38: 0 | I38: 0 | J38: 0 | K38: 0 | L38: 5597763
A39: 1) Содержит общую численность населения г. Москвы, включая поселения Московский, Щербинка, Троицк (города), Кокошкино, Киевский (пгт.) и 16 поселений с сельским населением.
A40: Южный федеральный округ 2) | B40: 10060366 | C40: 0 | D40: 0 | E40: 35167 | F40: 339044 | G40: 1013119 | H40: 1186181 | I40: 1802971 | J40: 1824471 | K40: 561374 | L40: 3298039
